{"text_format":"1","workbook":"xlsx","n_sheets":11,"sheets":["Title Page","Observation Checklist","Document Review Checklist","Rater 1 Scoresheet","Rater 2 Scoresheet","Scoring Calculations","Overall Provision Score","Quality Improvement Feedback","Inter-rater Reliability","Kappa Statistic ","Sheet3"],"not_rendered":{"charts":0,"images":2,"macros":1,"external_links":0,"defined_names":0,"comments":0,"pivot_tables":0},"unopened":[],"bounds":{"document_bytes":16777216,"sheet_cells":100000,"rows_first":2000,"rows_last":500,"rows_between":2000,"halvings":0,"cell_chars":16384,"cell_head_chars":4096},"cells_cut":0,"cells_raw":0,"read":"whole","date_system":"1900"}

{"sheet":"Title Page","index":0,"n_rows":11,"n_cols":17,"rows_kept":11,"cut":false,"hidden":false,"merged":[[9,16,9,17],[10,16,10,17],[10,18,10,20],[9,18,9,20]]}
[]
[]
[]
[]
[]
[]
[]
[]
[]
[null,null,null,null,null,null,null,null,null,null,null,null,null,null,null,null,"Name of Rater 1:"]
[null,null,null,null,null,null,null,null,null,null,null,null,null,null,null,null,"Name of Rater 2:"]

{"sheet":"Observation Checklist","index":1,"n_rows":24,"n_cols":10,"rows_kept":24,"cut":false,"hidden":false,"merged":[[0,0,0,3],[0,6,0,9]]}
["STAFFINGS",null,null,null,null,null,"HEARINGS"]
["Team Member",null,"Present","Engaged",null,null,"Team Member",null,"Present","Engaged"]
["Judge",null,null,null,null,null,"Judge"]
["FTC Coordinator",null,null,null,null,null,"FTC Coordinator"]
["Assistant District Attorney",null,null,null,null,null,"Assistant District Attorney"]
["Parent’s Attorney",null,null,null,null,null,"Parent’s Attorney"]
["Children’s Attorney",null,null,null,null,null,"Children’s Attorney"]
["GAL/CASA",null,null,null,null,null,"GAL/CASA"]
["Child Welfare Caseworker",null,null,null,null,null,"Child Welfare Caseworker"]
["SUD Treatment Provider",null,null,null,null,null,"SUD Treatment Provider"]
["MH Treatment Provider",null,null,null,null,null,"MH Treatment Provider"]
["Children’s Services Provider",null,null,null,null,null,"Children’s Services Provider"]
[null,"Please specify:",null,null,null,null,null,"Please specify:"]
["Other described in MOU",null,null,null,null,null,"Other described in MOU"]
["Other described in MOU",null,null,null,null,null,"Other described in MOU"]
["Other described in MOU",null,null,null,null,null,"Other described in MOU "]
["Other described in MOU",null,null,null,null,null,"Other described in MOU"]
["Other described in MOU",null,null,null,null,null,"Other described in MOU "]
[]
[]
["GAL: Guardian Ad Litem"]
["CASA: Court Appointed Special Advocate"]
["SUD: Substance Use Disorder"]
["MH: Mental Health "]

{"sheet":"Document Review Checklist","index":2,"n_rows":29,"n_cols":5,"rows_kept":29,"cut":false,"hidden":false,"merged":[]}
["Number","Document Name","Source","Document Requested?","Document Received?"]
[1,"Current policies and procedures manual (or other governance document)","FTC Coordinator"]
[2,"All current written policies regarding participant use of prescriptions","FTC Coordinator"]
[3,"Participant handbook (or other materials that participant receives at program start)","FTC Coordinator"]
[4,"Any and all current Memoranda of Understanding (MOU) with partner agencies (e.g., substance use treatment, social services providers) and with governance entities","FTC Coordinator"]
[5,"Documentation confirming the judge’s appointment (including dates of appointment)","FTC Coordinator"]
[6,"All continuing legal education/training certificates or record of other training attendance obtained by the judge during the past calendar year","FTC Coordinator"]
[7,"All continuing education/training certificates or record of training attendance obtained by other FTC team members during the past calendar year","FTC Coordinator"]
[8,"Orientation training curriculum for new operational team ","FTC Coordinator"]
[9,"5 randomly chosen examples of participant progress reports or other pre-hearing participant status summary reports (names and other identifying information redacted) which could include: Child welfare court report(s) and/or Plan(s) of safe care","FTC Coordinator"]
[10,"Reporting or minutes/notes from meeting(s) that occurred in the previous 12 months during which FTC practices, policies, procedures, or outcomes were discussed ","FTC Coordinator"]
[11,"FTC Best Practices review report (or similar document summarizing annual review of FTC for alignment with FTC Best Practices)","FTC Coordinator"]
[12,"Data report/summary (or similar document summarizing key data elements used for continuous quality improvement)","FTC Coordinator"]
[13,"Evaluation reports (or similar document outlining key evaluation findings completed by the FTC or external evaluator)","FTC Coordinator"]
[14,"Assessment instruments used to screen participants for program eligibility","FTC Coordinator"]
[15,"Assessment instruments used to screen/assess case planning for participants","FTC Coordinator"]
[16,"Assessment instruments used to screen/assess case planning for children ","FTC Coordinator"]
[17,"Assessment instruments used to screen/assess case planning for other family members","FTC Coordinator"]
[18,"All continuing education/training certificates or record of other training attendance obtained by providers who serve FTC-involved clients during the past calendar year","Treatment"]
[19,"Initial evidence-based practice training and certification documentation","Treatment"]
[20,"Documentation of external or internal fidelity review of any evidence-based substance use treatment modality provided to FTC-involved clients","Treatment"]
[21,"Documentation of external or internal fidelity review of any evidence-based trauma intervention provided to FTC-involved clients","Treatment"]
[22,"Documentation of external or internal fidelity review of any evidence-based substance use disorder prevention intervention provided to FTC-involved clients","Treatment"]
[23,"Treatment provider state licensure or certification (if applicable)","Treatment"]
[24,"Assessment instruments used to screen participants for program eligibility","Treatment"]
[25,"Assessment instruments used to screen/assess case planning for participants","Treatment"]
[26,"Assessment instruments used to screen/assess case planning for children ","Treatment"]
[27,"Assessment instruments used to screen/assess case planning for other family members","Treatment"]
[28,"A schedule of treatment groups showing all types of groups currently available to FTC clients","Treatment"]

{"sheet":"Rater 1 Scoresheet","index":3,"n_rows":68,"n_cols":33,"rows_kept":68,"cut":false,"hidden":false,"merged":[]}
["Provision Number","Interview with FTC Coordinator Rating ","Interview with FTC Rating",null,"Interview with Treatment Rating","Interview with Treatment Rating",null,"Document Rating","Document Rating",null,"Observation of Staffing Rating","Observation of Staffing Rating","Observation of Hearing Rating","Observation of Hearing Rating","Total Obsevation  Rating",null,"Prov 1F  Max Interview Rating",null,"Split Provisions Total Implementation Rating",null,null,"[Optional Administrative Validity Check Rating]","[Optional Administrative Validity Check?]",null,null,"Only rated with 1 data source?",null,"Were both Observations Missing?",null,"If 3 data sources: source 1 & 2 missing? ","If 3 data sources: source 1 & 3 missing?","If 3 data sources: source 2 & 3 missing?","If 3 data sources: were any combo of 2 sources missing?"]
["1A",null,{"$f":"IF(B2=\"Fully Implemented\",3,IF(B2=\"Partially Implemented\",2,IF(B2=\"Not Yet Implemented\",1,IF(B2=\"Cannot Make a Rating\",0,IF(B2=\"\",0)))))","v":0},{"$f":"IF((C2=0),\"\",(C2))","v":""},null,null,null,null,null,null,null,{"$f":"IF(K2=\"Fully Implemented\",3,IF(K2=\"Partially Implemented\",2,IF(K2=\"Not Yet Implemented\",1,IF(K2=\"Cannot Make a Rating\",0,IF(K2=\"\",0)))))","v":0},null,{"$f":"IF(M2=\"Fully Implemented\",3,IF(M2=\"Partially Implemented\",2,IF(M2=\"Not Yet Implemented\",1,IF(M2=\"Cannot Make a Rating\",0,IF(M2=\"\",0)))))","v":0},{"$f":"IF(AND(L2=3,N2=3),3,IF(AND(L2=3,N2=2),2,IF(AND(L2=3,N2=1),2,IF(AND(L2=3,N2=0),3,IF(AND(L2=3,N2=\"\"),3,IF(AND(L2=2,N2=2),2,IF(AND(L2=2,N2=1),2,IF(AND(L2=2,N2=0),2,IF(AND(L2=2,N2=\"\"),2,IF(AND(L2=1,N2=1),1,IF(AND(L2=1,N2=0),1,IF(AND(L2=1,N2=\"\"),1,IF(AND(L2=0,N2=3),3,IF(AND(L2=0,N2=2),2,IF(AND(L2=0,N2=1),1,IF(AND(L2=\"\",N2=\"\"),\"\",IF(AND(L2=2,N2=3),2,IF(AND(L2=1,N2=3),2,IF(AND(L2=\"\",N2=3),3,IF(AND(L2=1,N2=2),2,IF(AND(L2=\"\",N2=1),1,IF(AND(L2=\"\",N2=2),2,IF(AND(L2=0,N2=0),0,IF(AND(L2=\"\",N2=0),0,IF(AND(L2=0,N2=\"\"),0)))))))))))))))))))))))))","v":0},{"$f":"IF((O2=0),\"\",(O2))","v":""},null,null,{"$f":"IF(AND(C2=3,O2=3),3,IF(AND(C2=3,O2=2),2,IF(AND(C2=3,O2=1),2,IF(AND(C2=3,O2=\"\"),3, IF(AND(C2=2,O2=2),2, IF(AND(C2=2,O2=1),2,IF(AND(C2=2,O2=\"\"),2,IF(AND(C2=1,O2=1),1, IF(AND(C2=1,O2=\"\"),1,IF(AND(C2=\"\",O2=\"\"),\"\",IF(AND(C2=2,O2=3),2,IF(AND(C2=1,O2=3),2,IF(AND(C2=\"\",O2=3),3,IF(AND(C2=1,O2=2),2,IF(AND(C2=\"\",O2=1),1,IF(AND(C2=\"\",O2=2),2,IF(AND(C2=\"\",O2=0),0,IF(AND(C2=0,O2=0),0,IF(AND(C2=0,O2=3),3,IF(AND(C2=0,O2=2),2,IF(AND(C2=0,O2=1),1,IF(AND(C2=3,O2=0),3,IF(AND(C2=2,O2=0),2,IF(AND(C2=1,O2=0),1,IF(AND(C2=0,O2=\"\"),0)))))))))))))))))))))))))","v":0},{"$f":"IF((S2=0),\"\",(S2))","v":""},null,null,null,null,null,{"$f":"IF(OR(B2=\"Cannot Make a Rating\",AB2=1),1,0)","v":0},null,{"$f":"IF(AND(K2=\"Cannot Make a Rating\", M2=\"Cannot Make a Rating\"),1,0)","v":0}]
["1B",null,{"$f":"IF(B3=\"Fully Implemented\",3,IF(B3=\"Partially Implemented\",2,IF(B3=\"Not Yet Implemented\",1,IF(B3=\"Cannot Make a Rating\",0,IF(B3=\"\",0)))))","v":0},{"$f":"IF((C3=0),\"\",(C3))","v":""},null,null,null,null,{"$f":"IF(H3=\"Fully Implemented\",3,IF(H3=\"Partially Implemented\",2,IF(H3=\"Not Yet Implemented\",1,IF(H3=\"Cannot Make a Rating\",0,IF(H3=\"\",0)))))","v":0},{"$f":"IF((I3=0),\"\",(I3))","v":""},null,null,null,null,null,null,null,null,{"$f":"IF(AND(C3=3,I3=3),3,IF(AND(C3=3,I3=2),2,IF(AND(C3=3,I3=1),2,IF(AND(C3=3,I3=\"\"),3, IF(AND(C3=2,I3=2),2, IF(AND(C3=2,I3=1),2,IF(AND(C3=2,I3=\"\"),2,IF(AND(C3=1,I3=1),1, IF(AND(C3=1,I3=\"\"),1,IF(AND(C3=\"\",I3=\"\"),\"\",IF(AND(C3=2,I3=3),2,IF(AND(C3=1,I3=3),2,IF(AND(C3=\"\",I3=3),3,IF(AND(C3=1,I3=2),2,IF(AND(C3=\"\",I3=1),1,IF(AND(C3=\"\",I3=2),2,IF(AND(C3=\"\",I3=0),0,IF(AND(C3=0,I3=0),0,IF(AND(C3=0,I3=3),3,IF(AND(C3=0,I3=2),2,IF(AND(C3=0,I3=1),1,IF(AND(C3=3,I3=0),3,IF(AND(C3=2,I3=0),2,IF(AND(C3=1,I3=0),1,IF(AND(C3=0,I3=\"\"),0)))))))))))))))))))))))))","v":0},{"$f":"IF((S3=0),\"\",(S3))","v":""},null,null,{"$f":"IF(V3=\"Fully Implemented\",3,IF(V3=\"Partially Implemented\",2,IF(V3=\"Not Yet Implemented\",1,IF(V3=\"Cannot Make a Rating\",0,IF(V3=\"\",\"\")))))","v":""},{"$f":"IF((W3=0),\"\",(W3))","v":""},null,{"$f":"IF(OR(B3=\"Cannot Make a Rating\",H3=\"Cannot Make a Rating\"),1,0)","v":0}]
["1C",null,null,null,null,null,null,null,0,{"$f":"IF((I4=0),\"\",(I4))","v":""},null,{"$f":"IF(K4=\"Fully Implemented\",3,IF(K4=\"Partially Implemented\",2,IF(K4=\"Not Yet Implemented\",1,IF(K4=\"Cannot Make a Rating\",0,IF(K4=\"\",0)))))","v":0},null,{"$f":"IF(M4=\"Fully Implemented\",3,IF(M4=\"Partially Implemented\",2,IF(M4=\"Not Yet Implemented\",1,IF(M4=\"Cannot Make a Rating\",0,IF(M4=\"\",0)))))","v":0},{"$f":"IF(AND(L4=3,N4=3),3,IF(AND(L4=3,N4=2),2,IF(AND(L4=3,N4=1),2,IF(AND(L4=3,N4=0),3,IF(AND(L4=3,N4=\"\"),3,IF(AND(L4=2,N4=2),2,IF(AND(L4=2,N4=1),2,IF(AND(L4=2,N4=0),2,IF(AND(L4=2,N4=\"\"),2,IF(AND(L4=1,N4=1),1,IF(AND(L4=1,N4=0),1,IF(AND(L4=1,N4=\"\"),1,IF(AND(L4=0,N4=3),3,IF(AND(L4=0,N4=2),2,IF(AND(L4=0,N4=1),1,IF(AND(L4=\"\",N4=\"\"),\"\",IF(AND(L4=2,N4=3),2,IF(AND(L4=1,N4=3),2,IF(AND(L4=\"\",N4=3),3,IF(AND(L4=1,N4=2),2,IF(AND(L4=\"\",N4=1),1,IF(AND(L4=\"\",N4=2),2,IF(AND(L4=0,N4=0),0,IF(AND(L4=\"\",N4=0),0,IF(AND(L4=0,N4=\"\"),0)))))))))))))))))))))))))","v":0},{"$f":"IF((O4=0),\"\",(O4))","v":""},null,null,null,null,null,null,null,null,null,{"$f":"IF(OR(H4=\"Cannot Make a Rating\",AB4=1),1,0)","v":0},null,{"$f":"IF(AND(K4=\"Cannot Make a Rating\", M4=\"Cannot Make a Rating\"),1,0)","v":0}]
["1D",null,{"$f":"IF(B5=\"Fully Implemented\",3,IF(B5=\"Partially Implemented\",2,IF(B5=\"Not Yet Implemented\",1,IF(B5=\"Cannot Make a Rating\",0,IF(B5=\"\",0)))))","v":0},{"$f":"IF((C5=0),\"\",(C5))","v":""},null,null,null,null,0,{"$f":"IF((I5=0),\"\",(I5))","v":""},null,null,null,null,null,null,null,null,null,null,null,null,null,null,null,{"$f":"IF(OR(B5=\"Cannot Make a Rating\",H5=\"Cannot Make a Rating\"),1,0)","v":0}]
["1E",null,0,{"$f":"IF((C6=0),\"\",(C6))","v":""},null,null,null,null,0,"",null,null,null,null,null,null,null,null,null,null,null,null,null,null,null,0]
["1F",null,0,"",null,{"$f":"IF(E7=\"Fully Implemented\",3,IF(E7=\"Partially Implemented\",2,IF(E7=\"Not Yet Implemented\",1,IF(E7=\"Cannot Make a Rating\",0,IF(E7=\"\",0)))))","v":0},{"$f":"IF((F7=0),\"\",(F7))","v":""},null,0,"",null,null,null,null,null,null,{"$f":"MAX(C7,F7)","v":0},{"$f":"IF((Q7=0),\"\",(Q7))","v":""},{"$f":"IF(AND(I7=3,Q7=3),3,IF(AND(I7=3,Q7=2),2,IF(AND(I7=3,Q7=1),2,IF(AND(I7=3,Q7=\"\"),3, IF(AND(I7=2,Q7=2),2, IF(AND(I7=2,Q7=1),2,IF(AND(I7=2,Q7=\"\"),2,IF(AND(I7=1,Q7=1),1, IF(AND(I7=1,Q7=\"\"),1,IF(AND(I7=\"\",Q7=\"\"),\"\",IF(AND(I7=2,Q7=3),2,IF(AND(I7=1,Q7=3),2,IF(AND(I7=\"\",Q7=3),3,IF(AND(I7=1,Q7=2),2,IF(AND(I7=\"\",Q7=1),1,IF(AND(I7=\"\",Q7=2),2,IF(AND(I7=\"\",Q7=0),0,IF(AND(I7=0,Q7=0),0,IF(AND(I7=0,Q7=3),3,IF(AND(I7=0,Q7=2),2,IF(AND(I7=0,Q7=1),1,IF(AND(I7=3,Q7=0),3,IF(AND(I7=2,Q7=0),2,IF(AND(I7=1,Q7=0),1,IF(AND(I7=0,Q7=\"\"),0)))))))))))))))))))))))))","v":0},{"$f":"IF((S7=0),\"\",(S7))","v":""},null,null,{"$f":"IF(V7=\"Fully Implemented\",3,IF(V7=\"Partially Implemented\",2,IF(V7=\"Not Yet Implemented\",1,IF(V7=\"Cannot Make a Rating\",0,IF(V7=\"\",\"\")))))","v":""},{"$f":"IF((W7=0),\"\",(W7))","v":""},null,0]
["1G",null,0,"",null,null,null,null,0,"",null,null,null,null,null,null,null,null,null,null,null,null,null,null,null,0]
["1H",null,0,"",null,null,null,null,0,"",null,null,null,null,null,null,null,null,null,null,null,null,null,null,null,0]
["1I",null,0,"",null,null,null,null,0,{"$f":"IF((I10=0),\"\",(I10))","v":""},null,null,null,null,null,null,null,null,null,null,null,null,null,null,null,0]
["1J",null,0,"",null,null,null,null,0,{"$f":"IF((I11=0),\"\",(I11))","v":""},null,{"$f":"IF(K11=\"Fully Implemented\",3,IF(K11=\"Partially Implemented\",2,IF(K11=\"Not Yet Implemented\",1,IF(K11=\"Cannot Make a Rating\",0,IF(K11=\"\",0)))))","v":0},null,{"$f":"IF(M11=\"Fully Implemented\",3,IF(M11=\"Partially Implemented\",2,IF(M11=\"Not Yet Implemented\",1,IF(M11=\"Cannot Make a Rating\",0,IF(M11=\"\",0)))))","v":0},{"$f":"IF(AND(L11=3,N11=3),3,IF(AND(L11=3,N11=2),2,IF(AND(L11=3,N11=1),2,IF(AND(L11=3,N11=0),3,IF(AND(L11=3,N11=\"\"),3,IF(AND(L11=2,N11=2),2,IF(AND(L11=2,N11=1),2,IF(AND(L11=2,N11=0),2,IF(AND(L11=2,N11=\"\"),2,IF(AND(L11=1,N11=1),1,IF(AND(L11=1,N11=0),1,IF(AND(L11=1,N11=\"\"),1,IF(AND(L11=0,N11=3),3,IF(AND(L11=0,N11=2),2,IF(AND(L11=0,N11=1),1,IF(AND(L11=\"\",N11=\"\"),\"\",IF(AND(L11=2,N11=3),2,IF(AND(L11=1,N11=3),2,IF(AND(L11=\"\",N11=3),3,IF(AND(L11=1,N11=2),2,IF(AND(L11=\"\",N11=1),1,IF(AND(L11=\"\",N11=2),2,IF(AND(L11=0,N11=0),0,IF(AND(L11=\"\",N11=0),0,IF(AND(L11=0,N11=\"\"),0)))))))))))))))))))))))))","v":0},{"$f":"IF((O11=0),\"\",(O11))","v":""},null,null,null,null,null,null,null,null,null,{"$f":"AG11","v":0},null,{"$f":"IF(AND(K11=\"Cannot Make a Rating\", M11=\"Cannot Make a Rating\"),1,0)","v":0},null,{"$f":"IF(AND(B11=\"Cannot Make a Rating\",H11=\"Cannot Make a Rating\"),1,0)","v":0},{"$f":"IF(AND(B11=\"Cannot Make a Rating\",AB11=1),1,0)","v":0},{"$f":"IF(AND(H11=\"Cannot Make a Rating\",AB11=1),1,0)","v":0},{"$f":"IF(OR(AD11=1,AE11=1,AF11=1),1,0)","v":0}]
["2A",null,0,"",null,null,null,null,0,"",null,null,null,null,null,null,null,null,null,null,null,null,null,null,null,{"$f":"IF(OR(B12=\"Cannot Make a Rating\",H12=\"Cannot Make a Rating\"),1,0)","v":0}]
["2B",null,0,"",null,null,null,null,null,null,null,{"$f":"IF(K13=\"Fully Implemented\",3,IF(K13=\"Partially Implemented\",2,IF(K13=\"Not Yet Implemented\",1,IF(K13=\"Cannot Make a Rating\",0,IF(K13=\"\",0)))))","v":0},null,null,{"$f":"IF(AND(L13=3,N13=3),3,IF(AND(L13=3,N13=2),2,IF(AND(L13=3,N13=1),2,IF(AND(L13=3,N13=0),3,IF(AND(L13=3,N13=\"\"),3,IF(AND(L13=2,N13=2),2,IF(AND(L13=2,N13=1),2,IF(AND(L13=2,N13=0),2,IF(AND(L13=2,N13=\"\"),2,IF(AND(L13=1,N13=1),1,IF(AND(L13=1,N13=0),1,IF(AND(L13=1,N13=\"\"),1,IF(AND(L13=0,N13=3),3,IF(AND(L13=0,N13=2),2,IF(AND(L13=0,N13=1),1,IF(AND(L13=\"\",N13=\"\"),\"\",IF(AND(L13=2,N13=3),2,IF(AND(L13=1,N13=3),2,IF(AND(L13=\"\",N13=3),3,IF(AND(L13=1,N13=2),2,IF(AND(L13=\"\",N13=1),1,IF(AND(L13=\"\",N13=2),2,IF(AND(L13=0,N13=0),0,IF(AND(L13=\"\",N13=0),0,IF(AND(L13=0,N13=\"\"),0)))))))))))))))))))))))))","v":0},{"$f":"IF((O13=0),\"\",(O13))","v":""},null,null,{"$f":"IF(AND(C13=3,O13=3),3,IF(AND(C13=3,O13=2),2,IF(AND(C13=3,O13=1),2,IF(AND(C13=3,O13=\"\"),3, IF(AND(C13=2,O13=2),2, IF(AND(C13=2,O13=1),2,IF(AND(C13=2,O13=\"\"),2,IF(AND(C13=1,O13=1),1, IF(AND(C13=1,O13=\"\"),1,IF(AND(C13=\"\",O13=\"\"),\"\",IF(AND(C13=2,O13=3),2,IF(AND(C13=1,O13=3),2,IF(AND(C13=\"\",O13=3),3,IF(AND(C13=1,O13=2),2,IF(AND(C13=\"\",O13=1),1,IF(AND(C13=\"\",O13=2),2,IF(AND(C13=\"\",O13=0),0,IF(AND(C13=0,O13=0),0,IF(AND(C13=0,O13=3),3,IF(AND(C13=0,O13=2),2,IF(AND(C13=0,O13=1),1,IF(AND(C13=3,O13=0),3,IF(AND(C13=2,O13=0),2,IF(AND(C13=1,O13=0),1,IF(AND(C13=0,O13=\"\"),0)))))))))))))))))))))))))","v":0},{"$f":"IF((S13=0),\"\",(S13))","v":""},null,null,null,null,null,{"$f":"IF(OR(B13=\"Cannot Make a Rating\",K13=\"Cannot Make a Rating\"),1,0)","v":0}]
["2C",null,0,"",null,null,null,null,null,null,null,{"$f":"IF(K14=\"Fully Implemented\",3,IF(K14=\"Partially Implemented\",2,IF(K14=\"Not Yet Implemented\",1,IF(K14=\"Cannot Make a Rating\",0,IF(K14=\"\",0)))))","v":0},null,null,{"$f":"IF(AND(L14=3,N14=3),3,IF(AND(L14=3,N14=2),2,IF(AND(L14=3,N14=1),2,IF(AND(L14=3,N14=0),3,IF(AND(L14=3,N14=\"\"),3,IF(AND(L14=2,N14=2),2,IF(AND(L14=2,N14=1),2,IF(AND(L14=2,N14=0),2,IF(AND(L14=2,N14=\"\"),2,IF(AND(L14=1,N14=1),1,IF(AND(L14=1,N14=0),1,IF(AND(L14=1,N14=\"\"),1,IF(AND(L14=0,N14=3),3,IF(AND(L14=0,N14=2),2,IF(AND(L14=0,N14=1),1,IF(AND(L14=\"\",N14=\"\"),\"\",IF(AND(L14=2,N14=3),2,IF(AND(L14=1,N14=3),2,IF(AND(L14=\"\",N14=3),3,IF(AND(L14=1,N14=2),2,IF(AND(L14=\"\",N14=1),1,IF(AND(L14=\"\",N14=2),2,IF(AND(L14=0,N14=0),0,IF(AND(L14=\"\",N14=0),0,IF(AND(L14=0,N14=\"\"),0)))))))))))))))))))))))))","v":0},{"$f":"IF((O14=0),\"\",(O14))","v":""},null,null,null,null,null,null,null,null,null,{"$f":"IF(OR(B14=\"Cannot Make a Rating\",K14=\"Cannot Make a Rating\"),1,0)","v":0}]
["2D",null,0,"",null,null,null,null,null,null,null,null,null,{"$f":"IF(M15=\"Fully Implemented\",3,IF(M15=\"Partially Implemented\",2,IF(M15=\"Not Yet Implemented\",1,IF(M15=\"Cannot Make a Rating\",0,IF(M15=\"\",0)))))","v":0},{"$f":"IF(AND(L15=3,N15=3),3,IF(AND(L15=3,N15=2),2,IF(AND(L15=3,N15=1),2,IF(AND(L15=3,N15=0),3,IF(AND(L15=3,N15=\"\"),3,IF(AND(L15=2,N15=2),2,IF(AND(L15=2,N15=1),2,IF(AND(L15=2,N15=0),2,IF(AND(L15=2,N15=\"\"),2,IF(AND(L15=1,N15=1),1,IF(AND(L15=1,N15=0),1,IF(AND(L15=1,N15=\"\"),1,IF(AND(L15=0,N15=3),3,IF(AND(L15=0,N15=2),2,IF(AND(L15=0,N15=1),1,IF(AND(L15=\"\",N15=\"\"),\"\",IF(AND(L15=2,N15=3),2,IF(AND(L15=1,N15=3),2,IF(AND(L15=\"\",N15=3),3,IF(AND(L15=1,N15=2),2,IF(AND(L15=\"\",N15=1),1,IF(AND(L15=\"\",N15=2),2,IF(AND(L15=0,N15=0),0,IF(AND(L15=\"\",N15=0),0,IF(AND(L15=0,N15=\"\"),0)))))))))))))))))))))))))","v":0},"",null,null,null,null,null,null,null,null,null,{"$f":"IF(OR(B15=\"Cannot Make a Rating\",M15=\"Cannot Make a Rating\"),1,0)","v":0}]
["2E",null,0,"",null,null,null,null,{"$f":"IF(H16=\"Fully Implemented\",3,IF(H16=\"Partially Implemented\",2,IF(H16=\"Not Yet Implemented\",1,IF(H16=\"Cannot Make a Rating\",0,IF(H16=\"\",0)))))","v":0},{"$f":"IF((I16=0),\"\",(I16))","v":""},null,null,null,null,null,null,null,null,null,null,null,null,null,null,null,{"$f":"IF(OR(B16=\"Cannot Make a Rating\",H16=\"Cannot Make a Rating\"),1,0)","v":0}]
["2F",null,0,"",null,null,null,null,0,{"$f":"IF((I17=0),\"\",(I17))","v":""},null,null,null,null,null,null,null,null,null,null,null,null,null,null,null,0]
["3A",null,0,"",null,null,null,null,0,"",null,null,null,null,null,null,null,null,null,null,null,null,null,null,null,0]
["3B",null,0,"",null,null,null,null,0,"",null,null,null,null,null,null,null,null,null,null,null,null,{"$f":"IF(V19=\"Fully Implemented\",3,IF(V19=\"Partially Implemented\",2,IF(V19=\"Not Yet Implemented\",1,IF(V19=\"Cannot Make a Rating\",0,IF(V19=\"\",\"\")))))","v":""},{"$f":"IF((W19=0),\"\",(W19))","v":""},null,0]
["3C",null,0,"",null,null,null,null,0,"",null,null,null,null,null,null,null,null,null,null,null,null,{"$f":"IF(V20=\"Fully Implemented\",3,IF(V20=\"Partially Implemented\",2,IF(V20=\"Not Yet Implemented\",1,IF(V20=\"Cannot Make a Rating\",0,IF(V20=\"\",\"\")))))","v":""},{"$f":"IF((W20=0),\"\",(W20))","v":""},null,0]
["3D",null,0,"",null,null,null,null,0,"",null,null,null,null,null,null,null,null,null,null,null,null,{"$f":"IF(V21=\"Fully Implemented\",3,IF(V21=\"Partially Implemented\",2,IF(V21=\"Not Yet Implemented\",1,IF(V21=\"Cannot Make a Rating\",0,IF(V21=\"\",\"\")))))","v":""},"",null,0]
["3E",null,0,"",null,null,null,null,0,"",null,null,null,null,null,null,null,null,null,null,null,null,null,null,null,0]
["4A",null,0,"",null,null,null,null,0,"",null,{"$f":"IF(K23=\"Fully Implemented\",3,IF(K23=\"Partially Implemented\",2,IF(K23=\"Not Yet Implemented\",1,IF(K23=\"Cannot Make a Rating\",0,IF(K23=\"\",0)))))","v":0},null,null,{"$f":"IF(AND(L23=3,N23=3),3,IF(AND(L23=3,N23=2),2,IF(AND(L23=3,N23=1),2,IF(AND(L23=3,N23=0),3,IF(AND(L23=3,N23=\"\"),3,IF(AND(L23=2,N23=2),2,IF(AND(L23=2,N23=1),2,IF(AND(L23=2,N23=0),2,IF(AND(L23=2,N23=\"\"),2,IF(AND(L23=1,N23=1),1,IF(AND(L23=1,N23=0),1,IF(AND(L23=1,N23=\"\"),1,IF(AND(L23=0,N23=3),3,IF(AND(L23=0,N23=2),2,IF(AND(L23=0,N23=1),1,IF(AND(L23=\"\",N23=\"\"),\"\",IF(AND(L23=2,N23=3),2,IF(AND(L23=1,N23=3),2,IF(AND(L23=\"\",N23=3),3,IF(AND(L23=1,N23=2),2,IF(AND(L23=\"\",N23=1),1,IF(AND(L23=\"\",N23=2),2,IF(AND(L23=0,N23=0),0,IF(AND(L23=\"\",N23=0),0,IF(AND(L23=0,N23=\"\"),0)))))))))))))))))))))))))","v":0},{"$f":"IF((O23=0),\"\",(O23))","v":""},null,null,null,null,null,null,null,null,null,0]
["4B",null,0,{"$f":"IF((C24=0),\"\",(C24))","v":""},null,null,null,null,0,"",null,null,null,null,null,null,null,null,null,null,null,null,{"$f":"IF(V24=\"Fully Implemented\",3,IF(V24=\"Partially Implemented\",2,IF(V24=\"Not Yet Implemented\",1,IF(V24=\"Cannot Make a Rating\",0,IF(V24=\"\",\"\")))))","v":""},{"$f":"IF((W24=0),\"\",(W24))","v":""},null,{"$f":"IF(OR(B24=\"Cannot Make a Rating\",H24=\"Cannot Make a Rating\"),1,0)","v":0}]
["4C",null,0,{"$f":"IF((C25=0),\"\",(C25))","v":""},null,{"$f":"IF(E25=\"Fully Implemented\",3,IF(E25=\"Partially Implemented\",2,IF(E25=\"Not Yet Implemented\",1,IF(E25=\"Cannot Make a Rating\",0,IF(E25=\"\",0)))))","v":0},{"$f":"IF((F25=0),\"\",(F25))","v":""},null,0,"",null,null,null,null,null,null,null,null,null,null,null,null,null,null,null,{"$f":"AG25","v":0},null,null,null,{"$f":"IF(AND(B25=\"Cannot Make a Rating\",E25=\"Cannot Make a Rating\"),1,0)","v":0},{"$f":"IF(AND(B25=\"Cannot Make a Rating\",H25=\"Cannot Make a Rating\"),1,0)","v":0},{"$f":"IF(AND(E25=\"Cannot Make a Rating\",H25=\"Cannot Make a Rating\"),1,0)","v":0},{"$f":"IF(OR(AD25=1,AE25=1,AF25=1),1,0)","v":0}]
["4D",null,0,"",null,null,null,null,0,"",null,null,null,null,null,null,null,null,{"$f":"IF(AND(C26=3,I26=3),3,IF(AND(C26=3,I26=2),2,IF(AND(C26=3,I26=1),2,IF(AND(C26=3,I26=\"\"),3, IF(AND(C26=2,I26=2),2, IF(AND(C26=2,I26=1),2,IF(AND(C26=2,I26=\"\"),2,IF(AND(C26=1,I26=1),1, IF(AND(C26=1,I26=\"\"),1,IF(AND(C26=\"\",I26=\"\"),\"\",IF(AND(C26=2,I26=3),2,IF(AND(C26=1,I26=3),2,IF(AND(C26=\"\",I26=3),3,IF(AND(C26=1,I26=2),2,IF(AND(C26=\"\",I26=1),1,IF(AND(C26=\"\",I26=2),2,IF(AND(C26=\"\",I26=0),0,IF(AND(C26=0,I26=0),0,IF(AND(C26=0,I26=3),3,IF(AND(C26=0,I26=2),2,IF(AND(C26=0,I26=1),1,IF(AND(C26=3,I26=0),3,IF(AND(C26=2,I26=0),2,IF(AND(C26=1,I26=0),1,IF(AND(C26=0,I26=\"\"),0)))))))))))))))))))))))))","v":0},{"$f":"IF((S26=0),\"\",(S26))","v":""},null,null,null,null,null,{"$f":"IF(OR(B26=\"Cannot Make a Rating\",H26=\"Cannot Make a Rating\"),1,0)","v":0}]
["4E",null,0,"",null,null,null,null,0,"",null,{"$f":"IF(K27=\"Fully Implemented\",3,IF(K27=\"Partially Implemented\",2,IF(K27=\"Not Yet Implemented\",1,IF(K27=\"Cannot Make a Rating\",0,IF(K27=\"\",0)))))","v":0},null,{"$f":"IF(M27=\"Fully Implemented\",3,IF(M27=\"Partially Implemented\",2,IF(M27=\"Not Yet Implemented\",1,IF(M27=\"Cannot Make a Rating\",0,IF(M27=\"\",0)))))","v":0},{"$f":"IF(AND(L27=3,N27=3),3,IF(AND(L27=3,N27=2),2,IF(AND(L27=3,N27=1),2,IF(AND(L27=3,N27=0),3,IF(AND(L27=3,N27=\"\"),3,IF(AND(L27=2,N27=2),2,IF(AND(L27=2,N27=1),2,IF(AND(L27=2,N27=0),2,IF(AND(L27=2,N27=\"\"),2,IF(AND(L27=1,N27=1),1,IF(AND(L27=1,N27=0),1,IF(AND(L27=1,N27=\"\"),1,IF(AND(L27=0,N27=3),3,IF(AND(L27=0,N27=2),2,IF(AND(L27=0,N27=1),1,IF(AND(L27=\"\",N27=\"\"),\"\",IF(AND(L27=2,N27=3),2,IF(AND(L27=1,N27=3),2,IF(AND(L27=\"\",N27=3),3,IF(AND(L27=1,N27=2),2,IF(AND(L27=\"\",N27=1),1,IF(AND(L27=\"\",N27=2),2,IF(AND(L27=0,N27=0),0,IF(AND(L27=\"\",N27=0),0,IF(AND(L27=0,N27=\"\"),0)))))))))))))))))))))))))","v":0},{"$f":"IF((O27=0),\"\",(O27))","v":""},null,null,null,null,null,null,null,null,null,{"$f":"AG27","v":0},null,{"$f":"IF(AND(K27=\"Cannot Make a Rating\", M27=\"Cannot Make a Rating\"),1,0)","v":0},null,{"$f":"IF(AND(B27=\"Cannot Make a Rating\",H27=\"Cannot Make a Rating\"),1,0)","v":0},{"$f":"IF(AND(B27=\"Cannot Make a Rating\",AB27=1),1,0)","v":0},{"$f":"IF(AND(H27=\"Cannot Make a Rating\",AB27=1),1,0)","v":0},{"$f":"IF(OR(AD27=1,AE27=1,AF27=1),1,0)","v":0}]
["5A",null,0,"",null,{"$f":"IF(E28=\"Fully Implemented\",3,IF(E28=\"Partially Implemented\",2,IF(E28=\"Not Yet Implemented\",1,IF(E28=\"Cannot Make a Rating\",0,IF(E28=\"\",0)))))","v":0},{"$f":"IF((F28=0),\"\",(F28))","v":""},null,null,null,null,null,null,null,null,null,null,null,null,null,null,null,{"$f":"IF(V28=\"Fully Implemented\",3,IF(V28=\"Partially Implemented\",2,IF(V28=\"Not Yet Implemented\",1,IF(V28=\"Cannot Make a Rating\",0,IF(V28=\"\",\"\")))))","v":""},{"$f":"IF((W28=0),\"\",(W28))","v":""},null,{"$f":"IF(OR(B28=\"Cannot Make a Rating\",E28=\"Cannot Make a Rating\"),1,0)","v":0}]
["5B",null,0,"",null,0,{"$f":"IF((F29=0),\"\",(F29))","v":""},null,null,null,null,null,null,null,null,null,null,null,null,null,null,null,null,null,null,{"$f":"IF(OR(B29=\"Cannot Make a Rating\",E29=\"Cannot Make a Rating\"),1,0)","v":0},null,null,null,null,null,null,{"$f":"IF(OR(AD29=1,AE29=1,AF29=1),1,0)","v":0}]
["5C",null,0,"",null,0,"",null,null,null,null,null,null,null,null,null,null,null,null,null,null,null,{"$f":"IF(V30=\"Fully Implemented\",3,IF(V30=\"Partially Implemented\",2,IF(V30=\"Not Yet Implemented\",1,IF(V30=\"Cannot Make a Rating\",0,IF(V30=\"\",\"\")))))","v":""},{"$f":"IF((W30=0),\"\",(W30))","v":""},null,{"$f":"IF(OR(B30=\"Cannot Make a Rating\",E30=\"Cannot Make a Rating\"),1,0)","v":0}]
["5D",null,0,"",null,0,"",null,null,null,null,null,null,null,null,null,null,null,null,null,null,null,null,null,null,{"$f":"IF(OR(B31=\"Cannot Make a Rating\",E31=\"Cannot Make a Rating\"),1,0)","v":0}]
["5E",null,0,"",null,0,"",null,null,null,null,null,null,null,null,null,null,null,null,null,null,null,null,null,null,{"$f":"IF(OR(B32=\"Cannot Make a Rating\",E32=\"Cannot Make a Rating\"),1,0)","v":0}]
["5F",null,null,null,null,0,"",null,{"$f":"IF(H33=\"Fully Implemented\",3,IF(H33=\"Partially Implemented\",2,IF(H33=\"Not Yet Implemented\",1,IF(H33=\"Cannot Make a Rating\",0,IF(H33=\"\",0)))))","v":0},{"$f":"IF((I33=0),\"\",(I33))","v":""},null,null,null,null,null,null,null,null,null,null,null,null,null,null,null,{"$f":"IF(OR(E33=\"Cannot Make a Rating\",H33=\"Cannot Make a Rating\"),1,0)","v":0}]
["5G",null,{"$f":"IF(B34=\"Fully Implemented\",3,IF(B34=\"Partially Implemented\",2,IF(B34=\"Not Yet Implemented\",1,IF(B34=\"Cannot Make a Rating\",0,IF(B34=\"\",0)))))","v":0},{"$f":"IF((C34=0),\"\",(C34))","v":""},null,0,"",null,null,null,null,null,null,null,null,null,null,null,null,null,null,null,null,null,null,{"$f":"IF(OR(B34=\"Cannot Make a Rating\",E34=\"Cannot Make a Rating\"),1,0)","v":0}]
["5H",null,0,{"$f":"IF((C35=0),\"\",(C35))","v":""},null,0,"",null,null,null,null,null,null,null,null,null,null,null,null,null,null,null,null,null,null,{"$f":"IF(OR(B35=\"Cannot Make a Rating\",E35=\"Cannot Make a Rating\"),1,0)","v":0}]
["5I",null,0,"",null,0,"",null,{"$f":"IF(H36=\"Fully Implemented\",3,IF(H36=\"Partially Implemented\",2,IF(H36=\"Not Yet Implemented\",1,IF(H36=\"Cannot Make a Rating\",0,IF(H36=\"\",0)))))","v":0},{"$f":"IF((I36=0),\"\",(I36))","v":""},null,null,null,null,null,null,null,null,null,null,null,null,null,null,null,{"$f":"AG36","v":0},null,null,null,{"$f":"IF(AND(B36=\"Cannot Make a Rating\",E36=\"Cannot Make a Rating\"),1,0)","v":0},{"$f":"IF(AND(B36=\"Cannot Make a Rating\",H36=\"Cannot Make a Rating\"),1,0)","v":0},{"$f":"IF(AND(E36=\"Cannot Make a Rating\",H36=\"Cannot Make a Rating\"),1,0)","v":0},{"$f":"IF(OR(AD36=1,AE36=1,AF36=1),1,0)","v":0}]
["5J",null,0,"",null,0,"",null,{"$f":"IF(H37=\"Fully Implemented\",3,IF(H37=\"Partially Implemented\",2,IF(H37=\"Not Yet Implemented\",1,IF(H37=\"Cannot Make a Rating\",0,IF(H37=\"\",0)))))","v":0},{"$f":"IF((I37=0),\"\",(I37))","v":""},null,null,null,null,null,null,null,null,null,null,null,null,null,null,null,{"$f":"AG37","v":0},null,null,null,{"$f":"IF(AND(B37=\"Cannot Make a Rating\",E37=\"Cannot Make a Rating\"),1,0)","v":0},{"$f":"IF(AND(B37=\"Cannot Make a Rating\",H37=\"Cannot Make a Rating\"),1,0)","v":0},{"$f":"IF(AND(E37=\"Cannot Make a Rating\",H37=\"Cannot Make a Rating\"),1,0)","v":0},{"$f":"IF(OR(AD37=1,AE37=1,AF37=1),1,0)","v":0}]
["5K",null,0,"",null,0,"",null,{"$f":"IF(H38=\"Fully Implemented\",3,IF(H38=\"Partially Implemented\",2,IF(H38=\"Not Yet Implemented\",1,IF(H38=\"Cannot Make a Rating\",0,IF(H38=\"\",0)))))","v":0},"",null,null,null,null,null,null,null,null,null,null,null,null,null,null,null,{"$f":"AG38","v":0},null,null,null,{"$f":"IF(AND(B38=\"Cannot Make a Rating\",E38=\"Cannot Make a Rating\"),1,0)","v":0},{"$f":"IF(AND(B38=\"Cannot Make a Rating\",H38=\"Cannot Make a Rating\"),1,0)","v":0},{"$f":"IF(AND(E38=\"Cannot Make a Rating\",H38=\"Cannot Make a Rating\"),1,0)","v":0},{"$f":"IF(OR(AD38=1,AE38=1,AF38=1),1,0)","v":0}]
["5L",null,0,"",null,0,"",null,{"$f":"IF(H39=\"Fully Implemented\",3,IF(H39=\"Partially Implemented\",2,IF(H39=\"Not Yet Implemented\",1,IF(H39=\"Cannot Make a Rating\",0,IF(H39=\"\",0)))))","v":0},"",null,null,null,null,null,null,null,null,null,null,null,null,null,null,null,{"$f":"AG39","v":0},null,null,null,{"$f":"IF(AND(B39=\"Cannot Make a Rating\",E39=\"Cannot Make a Rating\"),1,0)","v":0},{"$f":"IF(AND(B39=\"Cannot Make a Rating\",H39=\"Cannot Make a Rating\"),1,0)","v":0},{"$f":"IF(AND(E39=\"Cannot Make a Rating\",H39=\"Cannot Make a Rating\"),1,0)","v":0},{"$f":"IF(OR(AD39=1,AE39=1,AF39=1),1,0)","v":0}]
["6A",null,0,{"$f":"IF((C40=0),\"\",(C40))","v":""},null,null,null,null,{"$f":"IF(H40=\"Fully Implemented\",3,IF(H40=\"Partially Implemented\",2,IF(H40=\"Not Yet Implemented\",1,IF(H40=\"Cannot Make a Rating\",0,IF(H40=\"\",0)))))","v":0},"",null,{"$f":"IF(K40=\"Fully Implemented\",3,IF(K40=\"Partially Implemented\",2,IF(K40=\"Not Yet Implemented\",1,IF(K40=\"Cannot Make a Rating\",0,IF(K40=\"\",0)))))","v":0},null,null,{"$f":"IF(AND(L40=3,N40=3),3,IF(AND(L40=3,N40=2),2,IF(AND(L40=3,N40=1),2,IF(AND(L40=3,N40=0),3,IF(AND(L40=3,N40=\"\"),3,IF(AND(L40=2,N40=2),2,IF(AND(L40=2,N40=1),2,IF(AND(L40=2,N40=0),2,IF(AND(L40=2,N40=\"\"),2,IF(AND(L40=1,N40=1),1,IF(AND(L40=1,N40=0),1,IF(AND(L40=1,N40=\"\"),1,IF(AND(L40=0,N40=3),3,IF(AND(L40=0,N40=2),2,IF(AND(L40=0,N40=1),1,IF(AND(L40=\"\",N40=\"\"),\"\",IF(AND(L40=2,N40=3),2,IF(AND(L40=1,N40=3),2,IF(AND(L40=\"\",N40=3),3,IF(AND(L40=1,N40=2),2,IF(AND(L40=\"\",N40=1),1,IF(AND(L40=\"\",N40=2),2,IF(AND(L40=0,N40=0),0,IF(AND(L40=\"\",N40=0),0,IF(AND(L40=0,N40=\"\"),0)))))))))))))))))))))))))","v":0},{"$f":"IF((O40=0),\"\",(O40))","v":""},null,null,null,null,null,null,null,null,null,{"$f":"AG40","v":0},null,null,null,{"$f":"IF(AND(B40=\"Cannot Make a Rating\",H40=\"Cannot Make a Rating\"),1,0)","v":0},{"$f":"IF(AND(B40=\"Cannot Make a Rating\",K40=\"Cannot Make a Rating\"),1,0)","v":0},{"$f":"IF(AND(H40=\"Cannot Make a Rating\",K40=\"Cannot Make a Rating\"),1,0)","v":0},{"$f":"IF(OR(AD40=1,AE40=1,AF40=1),1,0)","v":0}]
["6B",null,0,"",null,null,null,null,null,null,null,{"$f":"IF(K41=\"Fully Implemented\",3,IF(K41=\"Partially Implemented\",2,IF(K41=\"Not Yet Implemented\",1,IF(K41=\"Cannot Make a Rating\",0,IF(K41=\"\",0)))))","v":0},null,{"$f":"IF(M41=\"Fully Implemented\",3,IF(M41=\"Partially Implemented\",2,IF(M41=\"Not Yet Implemented\",1,IF(M41=\"Cannot Make a Rating\",0,IF(M41=\"\",0)))))","v":0},{"$f":"IF(AND(L41=3,N41=3),3,IF(AND(L41=3,N41=2),2,IF(AND(L41=3,N41=1),2,IF(AND(L41=3,N41=0),3,IF(AND(L41=3,N41=\"\"),3,IF(AND(L41=2,N41=2),2,IF(AND(L41=2,N41=1),2,IF(AND(L41=2,N41=0),2,IF(AND(L41=2,N41=\"\"),2,IF(AND(L41=1,N41=1),1,IF(AND(L41=1,N41=0),1,IF(AND(L41=1,N41=\"\"),1,IF(AND(L41=0,N41=3),3,IF(AND(L41=0,N41=2),2,IF(AND(L41=0,N41=1),1,IF(AND(L41=\"\",N41=\"\"),\"\",IF(AND(L41=2,N41=3),2,IF(AND(L41=1,N41=3),2,IF(AND(L41=\"\",N41=3),3,IF(AND(L41=1,N41=2),2,IF(AND(L41=\"\",N41=1),1,IF(AND(L41=\"\",N41=2),2,IF(AND(L41=0,N41=0),0,IF(AND(L41=\"\",N41=0),0,IF(AND(L41=0,N41=\"\"),0)))))))))))))))))))))))))","v":0},{"$f":"IF((O41=0),\"\",(O41))","v":""},null,null,null,null,null,null,null,null,null,{"$f":"IF(OR(B41=\"Cannot Make a Rating\",K41=\"Cannot Make a Rating\"),1,0)","v":0}]
["6C",null,0,"",null,{"$f":"IF(E42=\"Fully Implemented\",3,IF(E42=\"Partially Implemented\",2,IF(E42=\"Not Yet Implemented\",1,IF(E42=\"Cannot Make a Rating\",0,IF(E42=\"\",0)))))","v":0},{"$f":"IF((F42=0),\"\",(F42))","v":""},null,null,null,null,null,null,{"$f":"IF(M42=\"Fully Implemented\",3,IF(M42=\"Partially Implemented\",2,IF(M42=\"Not Yet Implemented\",1,IF(M42=\"Cannot Make a Rating\",0,IF(M42=\"\",0)))))","v":0},{"$f":"IF(AND(L42=3,N42=3),3,IF(AND(L42=3,N42=2),2,IF(AND(L42=3,N42=1),2,IF(AND(L42=3,N42=0),3,IF(AND(L42=3,N42=\"\"),3,IF(AND(L42=2,N42=2),2,IF(AND(L42=2,N42=1),2,IF(AND(L42=2,N42=0),2,IF(AND(L42=2,N42=\"\"),2,IF(AND(L42=1,N42=1),1,IF(AND(L42=1,N42=0),1,IF(AND(L42=1,N42=\"\"),1,IF(AND(L42=0,N42=3),3,IF(AND(L42=0,N42=2),2,IF(AND(L42=0,N42=1),1,IF(AND(L42=\"\",N42=\"\"),\"\",IF(AND(L42=2,N42=3),2,IF(AND(L42=1,N42=3),2,IF(AND(L42=\"\",N42=3),3,IF(AND(L42=1,N42=2),2,IF(AND(L42=\"\",N42=1),1,IF(AND(L42=\"\",N42=2),2,IF(AND(L42=0,N42=0),0,IF(AND(L42=\"\",N42=0),0,IF(AND(L42=0,N42=\"\"),0)))))))))))))))))))))))))","v":0},"",null,null,null,null,null,null,null,null,null,{"$f":"AG42","v":0},null,null,null,{"$f":"IF(AND(B42=\"Cannot Make a Rating\",E42=\"Cannot Make a Rating\"),1,0)","v":0},{"$f":"IF(AND(B42=\"Cannot Make a Rating\",M42=\"Cannot Make a Rating\"),1,0)","v":0},{"$f":"IF(AND(E42=\"Cannot Make a Rating\",M42=\"Cannot Make a Rating\"),1,0)","v":0},{"$f":"IF(OR(AD42=1,AE42=1,AF42=1),1,0)","v":0}]
["6D",null,0,"",null,null,null,null,{"$f":"IF(H43=\"Fully Implemented\",3,IF(H43=\"Partially Implemented\",2,IF(H43=\"Not Yet Implemented\",1,IF(H43=\"Cannot Make a Rating\",0,IF(H43=\"\",0)))))","v":0},{"$f":"IF((I43=0),\"\",(I43))","v":""},null,null,null,null,null,null,null,null,null,null,null,null,null,null,null,{"$f":"IF(OR(B43=\"Cannot Make a Rating\",H43=\"Cannot Make a Rating\"),1,0)","v":0}]
["6E",null,0,"",null,{"$f":"IF(E44=\"Fully Implemented\",3,IF(E44=\"Partially Implemented\",2,IF(E44=\"Not Yet Implemented\",1,IF(E44=\"Cannot Make a Rating\",0,IF(E44=\"\",0)))))","v":0},{"$f":"IF((F44=0),\"\",(F44))","v":""},null,null,null,null,null,null,null,null,null,null,null,null,null,null,null,null,null,null,{"$f":"IF(OR(B44=\"Cannot Make a Rating\",E44=\"Cannot Make a Rating\"),1,0)","v":0}]
["6F",null,0,"",null,null,null,null,{"$f":"IF(H45=\"Fully Implemented\",3,IF(H45=\"Partially Implemented\",2,IF(H45=\"Not Yet Implemented\",1,IF(H45=\"Cannot Make a Rating\",0,IF(H45=\"\",0)))))","v":0},{"$f":"IF((I45=0),\"\",(I45))","v":""},null,null,null,{"$f":"IF(M45=\"Fully Implemented\",3,IF(M45=\"Partially Implemented\",2,IF(M45=\"Not Yet Implemented\",1,IF(M45=\"Cannot Make a Rating\",0,IF(M45=\"\",0)))))","v":0},{"$f":"IF(AND(L45=3,N45=3),3,IF(AND(L45=3,N45=2),2,IF(AND(L45=3,N45=1),2,IF(AND(L45=3,N45=0),3,IF(AND(L45=3,N45=\"\"),3,IF(AND(L45=2,N45=2),2,IF(AND(L45=2,N45=1),2,IF(AND(L45=2,N45=0),2,IF(AND(L45=2,N45=\"\"),2,IF(AND(L45=1,N45=1),1,IF(AND(L45=1,N45=0),1,IF(AND(L45=1,N45=\"\"),1,IF(AND(L45=0,N45=3),3,IF(AND(L45=0,N45=2),2,IF(AND(L45=0,N45=1),1,IF(AND(L45=\"\",N45=\"\"),\"\",IF(AND(L45=2,N45=3),2,IF(AND(L45=1,N45=3),2,IF(AND(L45=\"\",N45=3),3,IF(AND(L45=1,N45=2),2,IF(AND(L45=\"\",N45=1),1,IF(AND(L45=\"\",N45=2),2,IF(AND(L45=0,N45=0),0,IF(AND(L45=\"\",N45=0),0,IF(AND(L45=0,N45=\"\"),0)))))))))))))))))))))))))","v":0},{"$f":"IF((O45=0),\"\",(O45))","v":""},null,null,null,null,null,null,null,null,null,{"$f":"AG45","v":0},null,null,null,{"$f":"IF(AND(B45=\"Cannot Make a Rating\",H45=\"Cannot Make a Rating\"),1,0)","v":0},{"$f":"IF(AND(B45=\"Cannot Make a Rating\",M45=\"Cannot Make a Rating\"),1,0)","v":0},{"$f":"IF(AND(H45=\"Cannot Make a Rating\",M45=\"Cannot Make a Rating\"),1,0)","v":0},{"$f":"IF(OR(AD45=1,AE45=1,AF45=1),1,0)","v":0}]
["6G",null,0,"",null,{"$f":"IF(E46=\"Fully Implemented\",3,IF(E46=\"Partially Implemented\",2,IF(E46=\"Not Yet Implemented\",1,IF(E46=\"Cannot Make a Rating\",0,IF(E46=\"\",0)))))","v":0},{"$f":"IF((F46=0),\"\",(F46))","v":""},null,0,{"$f":"IF((I46=0),\"\",(I46))","v":""},null,null,null,null,null,null,null,null,null,null,null,null,null,null,null,{"$f":"AG46","v":0},null,null,null,{"$f":"IF(AND(B46=\"Cannot Make a Rating\",E46=\"Cannot Make a Rating\"),1,0)","v":0},{"$f":"IF(AND(B46=\"Cannot Make a Rating\",H46=\"Cannot Make a Rating\"),1,0)","v":0},{"$f":"IF(AND(E46=\"Cannot Make a Rating\",H46=\"Cannot Make a Rating\"),1,0)","v":0},{"$f":"IF(OR(AD46=1,AE46=1,AF46=1),1,0)","v":0}]
["6H",null,0,"",null,null,null,null,0,"",null,null,null,{"$f":"IF(M47=\"Fully Implemented\",3,IF(M47=\"Partially Implemented\",2,IF(M47=\"Not Yet Implemented\",1,IF(M47=\"Cannot Make a Rating\",0,IF(M47=\"\",0)))))","v":0},{"$f":"IF(AND(L47=3,N47=3),3,IF(AND(L47=3,N47=2),2,IF(AND(L47=3,N47=1),2,IF(AND(L47=3,N47=0),3,IF(AND(L47=3,N47=\"\"),3,IF(AND(L47=2,N47=2),2,IF(AND(L47=2,N47=1),2,IF(AND(L47=2,N47=0),2,IF(AND(L47=2,N47=\"\"),2,IF(AND(L47=1,N47=1),1,IF(AND(L47=1,N47=0),1,IF(AND(L47=1,N47=\"\"),1,IF(AND(L47=0,N47=3),3,IF(AND(L47=0,N47=2),2,IF(AND(L47=0,N47=1),1,IF(AND(L47=\"\",N47=\"\"),\"\",IF(AND(L47=2,N47=3),2,IF(AND(L47=1,N47=3),2,IF(AND(L47=\"\",N47=3),3,IF(AND(L47=1,N47=2),2,IF(AND(L47=\"\",N47=1),1,IF(AND(L47=\"\",N47=2),2,IF(AND(L47=0,N47=0),0,IF(AND(L47=\"\",N47=0),0,IF(AND(L47=0,N47=\"\"),0)))))))))))))))))))))))))","v":0},{"$f":"IF((O47=0),\"\",(O47))","v":""},null,null,null,null,null,null,null,null,null,{"$f":"AG47","v":0},null,null,null,{"$f":"IF(AND(B47=\"Cannot Make a Rating\",H47=\"Cannot Make a Rating\"),1,0)","v":0},{"$f":"IF(AND(B47=\"Cannot Make a Rating\",M47=\"Cannot Make a Rating\"),1,0)","v":0},{"$f":"IF(AND(H47=\"Cannot Make a Rating\",M47=\"Cannot Make a Rating\"),1,0)","v":0},{"$f":"IF(OR(AD47=1,AE47=1,AF47=1),1,0)","v":0}]
["6I",null,0,"",null,null,null,null,0,"",null,{"$f":"IF(K48=\"Fully Implemented\",3,IF(K48=\"Partially Implemented\",2,IF(K48=\"Not Yet Implemented\",1,IF(K48=\"Cannot Make a Rating\",0,IF(K48=\"\",0)))))","v":0},null,{"$f":"IF(M48=\"Fully Implemented\",3,IF(M48=\"Partially Implemented\",2,IF(M48=\"Not Yet Implemented\",1,IF(M48=\"Cannot Make a Rating\",0,IF(M48=\"\",0)))))","v":0},{"$f":"IF(AND(L48=3,N48=3),3,IF(AND(L48=3,N48=2),2,IF(AND(L48=3,N48=1),2,IF(AND(L48=3,N48=0),3,IF(AND(L48=3,N48=\"\"),3,IF(AND(L48=2,N48=2),2,IF(AND(L48=2,N48=1),2,IF(AND(L48=2,N48=0),2,IF(AND(L48=2,N48=\"\"),2,IF(AND(L48=1,N48=1),1,IF(AND(L48=1,N48=0),1,IF(AND(L48=1,N48=\"\"),1,IF(AND(L48=0,N48=3),3,IF(AND(L48=0,N48=2),2,IF(AND(L48=0,N48=1),1,IF(AND(L48=\"\",N48=\"\"),\"\",IF(AND(L48=2,N48=3),2,IF(AND(L48=1,N48=3),2,IF(AND(L48=\"\",N48=3),3,IF(AND(L48=1,N48=2),2,IF(AND(L48=\"\",N48=1),1,IF(AND(L48=\"\",N48=2),2,IF(AND(L48=0,N48=0),0,IF(AND(L48=\"\",N48=0),0,IF(AND(L48=0,N48=\"\"),0)))))))))))))))))))))))))","v":0},{"$f":"IF((O48=0),\"\",(O48))","v":""},null,null,null,null,null,null,null,null,null,{"$f":"AG48","v":0},null,{"$f":"IF(AND(K48=\"Cannot Make a Rating\", M48=\"Cannot Make a Rating\"),1,0)","v":0},null,{"$f":"IF(AND(B48=\"Cannot Make a Rating\",H48=\"Cannot Make a Rating\"),1,0)","v":0},{"$f":"IF(AND(B48=\"Cannot Make a Rating\",AB48=1),1,0)","v":0},{"$f":"IF(AND(H48=\"Cannot Make a Rating\",AB48=1),1,0)","v":0},{"$f":"IF(OR(AD48=1,AE48=1,AF48=1),1,0)","v":0}]
["6J",null,0,"",null,null,null,null,0,"",null,null,null,null,null,null,null,null,null,null,null,null,null,null,null,{"$f":"IF(OR(B49=\"Cannot Make a Rating\",H49=\"Cannot Make a Rating\"),1,0)","v":0}]
["6K",null,0,"",null,null,null,null,0,"",null,null,null,null,null,null,null,null,null,null,null,null,null,null,null,{"$f":"IF(OR(B50=\"Cannot Make a Rating\",H50=\"Cannot Make a Rating\"),1,0)","v":0}]
["7A",null,0,"",null,null,null,null,null,null,null,{"$f":"IF(K51=\"Fully Implemented\",3,IF(K51=\"Partially Implemented\",2,IF(K51=\"Not Yet Implemented\",1,IF(K51=\"Cannot Make a Rating\",0,IF(K51=\"\",0)))))","v":0},null,{"$f":"IF(M51=\"Fully Implemented\",3,IF(M51=\"Partially Implemented\",2,IF(M51=\"Not Yet Implemented\",1,IF(M51=\"Cannot Make a Rating\",0,IF(M51=\"\",0)))))","v":0},{"$f":"IF(AND(L51=3,N51=3),3,IF(AND(L51=3,N51=2),2,IF(AND(L51=3,N51=1),2,IF(AND(L51=3,N51=0),3,IF(AND(L51=3,N51=\"\"),3,IF(AND(L51=2,N51=2),2,IF(AND(L51=2,N51=1),2,IF(AND(L51=2,N51=0),2,IF(AND(L51=2,N51=\"\"),2,IF(AND(L51=1,N51=1),1,IF(AND(L51=1,N51=0),1,IF(AND(L51=1,N51=\"\"),1,IF(AND(L51=0,N51=3),3,IF(AND(L51=0,N51=2),2,IF(AND(L51=0,N51=1),1,IF(AND(L51=\"\",N51=\"\"),\"\",IF(AND(L51=2,N51=3),2,IF(AND(L51=1,N51=3),2,IF(AND(L51=\"\",N51=3),3,IF(AND(L51=1,N51=2),2,IF(AND(L51=\"\",N51=1),1,IF(AND(L51=\"\",N51=2),2,IF(AND(L51=0,N51=0),0,IF(AND(L51=\"\",N51=0),0,IF(AND(L51=0,N51=\"\"),0)))))))))))))))))))))))))","v":0},{"$f":"IF((O51=0),\"\",(O51))","v":""},null,null,null,null,null,null,null,null,null,{"$f":"IF(OR(B51=\"Cannot Make a Rating\",AB51=1),1,0)","v":0},null,{"$f":"IF(AND(K51=\"Cannot Make a Rating\", M51=\"Cannot Make a Rating\"),1,0)","v":0}]
["7B",null,0,"",null,{"$f":"IF(E52=\"Fully Implemented\",3,IF(E52=\"Partially Implemented\",2,IF(E52=\"Not Yet Implemented\",1,IF(E52=\"Cannot Make a Rating\",0,IF(E52=\"\",0)))))","v":0},{"$f":"IF((F52=0),\"\",(F52))","v":""},null,null,null,null,{"$f":"IF(K52=\"Fully Implemented\",3,IF(K52=\"Partially Implemented\",2,IF(K52=\"Not Yet Implemented\",1,IF(K52=\"Cannot Make a Rating\",0,IF(K52=\"\",0)))))","v":0},null,{"$f":"IF(M52=\"Fully Implemented\",3,IF(M52=\"Partially Implemented\",2,IF(M52=\"Not Yet Implemented\",1,IF(M52=\"Cannot Make a Rating\",0,IF(M52=\"\",0)))))","v":0},{"$f":"IF(AND(L52=3,N52=3),3,IF(AND(L52=3,N52=2),2,IF(AND(L52=3,N52=1),2,IF(AND(L52=3,N52=0),3,IF(AND(L52=3,N52=\"\"),3,IF(AND(L52=2,N52=2),2,IF(AND(L52=2,N52=1),2,IF(AND(L52=2,N52=0),2,IF(AND(L52=2,N52=\"\"),2,IF(AND(L52=1,N52=1),1,IF(AND(L52=1,N52=0),1,IF(AND(L52=1,N52=\"\"),1,IF(AND(L52=0,N52=3),3,IF(AND(L52=0,N52=2),2,IF(AND(L52=0,N52=1),1,IF(AND(L52=\"\",N52=\"\"),\"\",IF(AND(L52=2,N52=3),2,IF(AND(L52=1,N52=3),2,IF(AND(L52=\"\",N52=3),3,IF(AND(L52=1,N52=2),2,IF(AND(L52=\"\",N52=1),1,IF(AND(L52=\"\",N52=2),2,IF(AND(L52=0,N52=0),0,IF(AND(L52=\"\",N52=0),0,IF(AND(L52=0,N52=\"\"),0)))))))))))))))))))))))))","v":0},{"$f":"IF((O52=0),\"\",(O52))","v":""},null,null,null,null,null,null,null,null,null,{"$f":"AG52","v":0},null,{"$f":"IF(AND(K52=\"Cannot Make a Rating\", M52=\"Cannot Make a Rating\"),1,0)","v":0},null,{"$f":"IF(AND(B52=\"Cannot Make a Rating\",E52=\"Cannot Make a Rating\"),1,0)","v":0},{"$f":"IF(AND(B52=\"Cannot Make a Rating\",AB52=1),1,0)","v":0},{"$f":"IF(AND(E52=\"Cannot Make a Rating\",AB52=1),1,0)","v":0},{"$f":"IF(OR(AD52=1,AE52=1,AF52=1),1,0)","v":0}]
["7C",null,0,"",null,null,null,null,null,null,null,{"$f":"IF(K53=\"Fully Implemented\",3,IF(K53=\"Partially Implemented\",2,IF(K53=\"Not Yet Implemented\",1,IF(K53=\"Cannot Make a Rating\",0,IF(K53=\"\",0)))))","v":0},null,{"$f":"IF(M53=\"Fully Implemented\",3,IF(M53=\"Partially Implemented\",2,IF(M53=\"Not Yet Implemented\",1,IF(M53=\"Cannot Make a Rating\",0,IF(M53=\"\",0)))))","v":0},{"$f":"IF(AND(L53=3,N53=3),3,IF(AND(L53=3,N53=2),2,IF(AND(L53=3,N53=1),2,IF(AND(L53=3,N53=0),3,IF(AND(L53=3,N53=\"\"),3,IF(AND(L53=2,N53=2),2,IF(AND(L53=2,N53=1),2,IF(AND(L53=2,N53=0),2,IF(AND(L53=2,N53=\"\"),2,IF(AND(L53=1,N53=1),1,IF(AND(L53=1,N53=0),1,IF(AND(L53=1,N53=\"\"),1,IF(AND(L53=0,N53=3),3,IF(AND(L53=0,N53=2),2,IF(AND(L53=0,N53=1),1,IF(AND(L53=\"\",N53=\"\"),\"\",IF(AND(L53=2,N53=3),2,IF(AND(L53=1,N53=3),2,IF(AND(L53=\"\",N53=3),3,IF(AND(L53=1,N53=2),2,IF(AND(L53=\"\",N53=1),1,IF(AND(L53=\"\",N53=2),2,IF(AND(L53=0,N53=0),0,IF(AND(L53=\"\",N53=0),0,IF(AND(L53=0,N53=\"\"),0)))))))))))))))))))))))))","v":0},"",null,null,null,null,null,null,null,null,null,{"$f":"IF(OR(B53=\"Cannot Make a Rating\",AB53=1),1,0)","v":0},null,{"$f":"IF(AND(K53=\"Cannot Make a Rating\", M53=\"Cannot Make a Rating\"),1,0)","v":0}]
["7D",null,0,"",null,null,null,null,{"$f":"IF(H54=\"Fully Implemented\",3,IF(H54=\"Partially Implemented\",2,IF(H54=\"Not Yet Implemented\",1,IF(H54=\"Cannot Make a Rating\",0,IF(H54=\"\",0)))))","v":0},{"$f":"IF((I54=0),\"\",(I54))","v":""},null,null,null,null,null,null,null,null,null,null,null,null,null,null,null,{"$f":"IF(OR(B54=\"Cannot Make a Rating\",H54=\"Cannot Make a Rating\"),1,0)","v":0}]
["7E",null,0,"",null,null,null,null,null,null,null,{"$f":"IF(K55=\"Fully Implemented\",3,IF(K55=\"Partially Implemented\",2,IF(K55=\"Not Yet Implemented\",1,IF(K55=\"Cannot Make a Rating\",0,IF(K55=\"\",0)))))","v":0},null,{"$f":"IF(M55=\"Fully Implemented\",3,IF(M55=\"Partially Implemented\",2,IF(M55=\"Not Yet Implemented\",1,IF(M55=\"Cannot Make a Rating\",0,IF(M55=\"\",0)))))","v":0},{"$f":"IF(AND(L55=3,N55=3),3,IF(AND(L55=3,N55=2),2,IF(AND(L55=3,N55=1),2,IF(AND(L55=3,N55=0),3,IF(AND(L55=3,N55=\"\"),3,IF(AND(L55=2,N55=2),2,IF(AND(L55=2,N55=1),2,IF(AND(L55=2,N55=0),2,IF(AND(L55=2,N55=\"\"),2,IF(AND(L55=1,N55=1),1,IF(AND(L55=1,N55=0),1,IF(AND(L55=1,N55=\"\"),1,IF(AND(L55=0,N55=3),3,IF(AND(L55=0,N55=2),2,IF(AND(L55=0,N55=1),1,IF(AND(L55=\"\",N55=\"\"),\"\",IF(AND(L55=2,N55=3),2,IF(AND(L55=1,N55=3),2,IF(AND(L55=\"\",N55=3),3,IF(AND(L55=1,N55=2),2,IF(AND(L55=\"\",N55=1),1,IF(AND(L55=\"\",N55=2),2,IF(AND(L55=0,N55=0),0,IF(AND(L55=\"\",N55=0),0,IF(AND(L55=0,N55=\"\"),0)))))))))))))))))))))))))","v":0},{"$f":"IF((O55=0),\"\",(O55))","v":""},null,null,null,null,null,null,null,null,null,{"$f":"IF(OR(B55=\"Cannot Make a Rating\",AB55=1),1,0)","v":0},null,{"$f":"IF(AND(K55=\"Cannot Make a Rating\", M55=\"Cannot Make a Rating\"),1,0)","v":0}]
["7F",null,0,"",null,null,null,null,null,null,null,{"$f":"IF(K56=\"Fully Implemented\",3,IF(K56=\"Partially Implemented\",2,IF(K56=\"Not Yet Implemented\",1,IF(K56=\"Cannot Make a Rating\",0,IF(K56=\"\",0)))))","v":0},null,{"$f":"IF(M56=\"Fully Implemented\",3,IF(M56=\"Partially Implemented\",2,IF(M56=\"Not Yet Implemented\",1,IF(M56=\"Cannot Make a Rating\",0,IF(M56=\"\",0)))))","v":0},{"$f":"IF(AND(L56=3,N56=3),3,IF(AND(L56=3,N56=2),2,IF(AND(L56=3,N56=1),2,IF(AND(L56=3,N56=0),3,IF(AND(L56=3,N56=\"\"),3,IF(AND(L56=2,N56=2),2,IF(AND(L56=2,N56=1),2,IF(AND(L56=2,N56=0),2,IF(AND(L56=2,N56=\"\"),2,IF(AND(L56=1,N56=1),1,IF(AND(L56=1,N56=0),1,IF(AND(L56=1,N56=\"\"),1,IF(AND(L56=0,N56=3),3,IF(AND(L56=0,N56=2),2,IF(AND(L56=0,N56=1),1,IF(AND(L56=\"\",N56=\"\"),\"\",IF(AND(L56=2,N56=3),2,IF(AND(L56=1,N56=3),2,IF(AND(L56=\"\",N56=3),3,IF(AND(L56=1,N56=2),2,IF(AND(L56=\"\",N56=1),1,IF(AND(L56=\"\",N56=2),2,IF(AND(L56=0,N56=0),0,IF(AND(L56=\"\",N56=0),0,IF(AND(L56=0,N56=\"\"),0)))))))))))))))))))))))))","v":0},{"$f":"IF((O56=0),\"\",(O56))","v":""},null,null,null,null,null,null,null,null,null,{"$f":"IF(AND(B56=\"Cannot Make a Rating\",AB56=1),1,0)","v":0},null,{"$f":"IF(AND(K56=\"Cannot Make a Rating\", M56=\"Cannot Make a Rating\"),1,0)","v":0}]
["7G",null,0,"",null,null,null,null,{"$f":"IF(H57=\"Fully Implemented\",3,IF(H57=\"Partially Implemented\",2,IF(H57=\"Not Yet Implemented\",1,IF(H57=\"Cannot Make a Rating\",0,IF(H57=\"\",0)))))","v":0},{"$f":"IF((I57=0),\"\",(I57))","v":""},null,null,null,null,null,null,null,null,null,null,null,null,null,null,null,{"$f":"IF(OR(B57=\"Cannot Make a Rating\",H57=\"Cannot Make a Rating\"),1,0)","v":0}]
["7H",null,0,"",null,null,null,null,{"$f":"IF(H58=\"Fully Implemented\",3,IF(H58=\"Partially Implemented\",2,IF(H58=\"Not Yet Implemented\",1,IF(H58=\"Cannot Make a Rating\",0,IF(H58=\"\",0)))))","v":0},{"$f":"IF((I58=0),\"\",(I58))","v":""},null,null,null,null,null,null,null,null,null,null,null,null,null,null,null,{"$f":"IF(OR(B58=\"Cannot Make a Rating\",H58=\"Cannot Make a Rating\"),1,0)","v":0}]
["7I",null,0,"",null,null,null,null,null,null,null,null,null,{"$f":"IF(M59=\"Fully Implemented\",3,IF(M59=\"Partially Implemented\",2,IF(M59=\"Not Yet Implemented\",1,IF(M59=\"Cannot Make a Rating\",0,IF(M59=\"\",0)))))","v":0},{"$f":"IF(AND(L59=3,N59=3),3,IF(AND(L59=3,N59=2),2,IF(AND(L59=3,N59=1),2,IF(AND(L59=3,N59=0),3,IF(AND(L59=3,N59=\"\"),3,IF(AND(L59=2,N59=2),2,IF(AND(L59=2,N59=1),2,IF(AND(L59=2,N59=0),2,IF(AND(L59=2,N59=\"\"),2,IF(AND(L59=1,N59=1),1,IF(AND(L59=1,N59=0),1,IF(AND(L59=1,N59=\"\"),1,IF(AND(L59=0,N59=3),3,IF(AND(L59=0,N59=2),2,IF(AND(L59=0,N59=1),1,IF(AND(L59=\"\",N59=\"\"),\"\",IF(AND(L59=2,N59=3),2,IF(AND(L59=1,N59=3),2,IF(AND(L59=\"\",N59=3),3,IF(AND(L59=1,N59=2),2,IF(AND(L59=\"\",N59=1),1,IF(AND(L59=\"\",N59=2),2,IF(AND(L59=0,N59=0),0,IF(AND(L59=\"\",N59=0),0,IF(AND(L59=0,N59=\"\"),0)))))))))))))))))))))))))","v":0},{"$f":"IF((O59=0),\"\",(O59))","v":""},null,null,null,null,null,null,null,null,null,{"$f":"IF(OR(B59=\"Cannot Make a Rating\",M59=\"Cannot Make a Rating\"),1,0)","v":0}]
["7J",null,0,"",null,null,null,null,null,null,null,null,null,{"$f":"IF(M60=\"Fully Implemented\",3,IF(M60=\"Partially Implemented\",2,IF(M60=\"Not Yet Implemented\",1,IF(M60=\"Cannot Make a Rating\",0,IF(M60=\"\",0)))))","v":0},{"$f":"IF(AND(L60=3,N60=3),3,IF(AND(L60=3,N60=2),2,IF(AND(L60=3,N60=1),2,IF(AND(L60=3,N60=0),3,IF(AND(L60=3,N60=\"\"),3,IF(AND(L60=2,N60=2),2,IF(AND(L60=2,N60=1),2,IF(AND(L60=2,N60=0),2,IF(AND(L60=2,N60=\"\"),2,IF(AND(L60=1,N60=1),1,IF(AND(L60=1,N60=0),1,IF(AND(L60=1,N60=\"\"),1,IF(AND(L60=0,N60=3),3,IF(AND(L60=0,N60=2),2,IF(AND(L60=0,N60=1),1,IF(AND(L60=\"\",N60=\"\"),\"\",IF(AND(L60=2,N60=3),2,IF(AND(L60=1,N60=3),2,IF(AND(L60=\"\",N60=3),3,IF(AND(L60=1,N60=2),2,IF(AND(L60=\"\",N60=1),1,IF(AND(L60=\"\",N60=2),2,IF(AND(L60=0,N60=0),0,IF(AND(L60=\"\",N60=0),0,IF(AND(L60=0,N60=\"\"),0)))))))))))))))))))))))))","v":0},{"$f":"IF((O60=0),\"\",(O60))","v":""},null,null,null,null,null,null,null,null,null,{"$f":"IF(OR(B60=\"Cannot Make a Rating\",M60=\"Cannot Make a Rating\"),1,0)","v":0}]
["7K",null,0,"",null,null,null,null,null,null,null,{"$f":"IF(K61=\"Fully Implemented\",3,IF(K61=\"Partially Implemented\",2,IF(K61=\"Not Yet Implemented\",1,IF(K61=\"Cannot Make a Rating\",0,IF(K61=\"\",0)))))","v":0},null,{"$f":"IF(M61=\"Fully Implemented\",3,IF(M61=\"Partially Implemented\",2,IF(M61=\"Not Yet Implemented\",1,IF(M61=\"Cannot Make a Rating\",0,IF(M61=\"\",0)))))","v":0},{"$f":"IF(AND(L61=3,N61=3),3,IF(AND(L61=3,N61=2),2,IF(AND(L61=3,N61=1),2,IF(AND(L61=3,N61=0),3,IF(AND(L61=3,N61=\"\"),3,IF(AND(L61=2,N61=2),2,IF(AND(L61=2,N61=1),2,IF(AND(L61=2,N61=0),2,IF(AND(L61=2,N61=\"\"),2,IF(AND(L61=1,N61=1),1,IF(AND(L61=1,N61=0),1,IF(AND(L61=1,N61=\"\"),1,IF(AND(L61=0,N61=3),3,IF(AND(L61=0,N61=2),2,IF(AND(L61=0,N61=1),1,IF(AND(L61=\"\",N61=\"\"),\"\",IF(AND(L61=2,N61=3),2,IF(AND(L61=1,N61=3),2,IF(AND(L61=\"\",N61=3),3,IF(AND(L61=1,N61=2),2,IF(AND(L61=\"\",N61=1),1,IF(AND(L61=\"\",N61=2),2,IF(AND(L61=0,N61=0),0,IF(AND(L61=\"\",N61=0),0,IF(AND(L61=0,N61=\"\"),0)))))))))))))))))))))))))","v":0},"",null,null,null,null,null,null,null,null,null,{"$f":"IF(OR(B61=\"Cannot Make a Rating\",AB61=1),1,0)","v":0},null,{"$f":"IF(AND(K61=\"Cannot Make a Rating\", M61=\"Cannot Make a Rating\"),1,0)","v":0}]
["7L",null,0,"",null,null,null,null,null,null,null,{"$f":"IF(K62=\"Fully Implemented\",3,IF(K62=\"Partially Implemented\",2,IF(K62=\"Not Yet Implemented\",1,IF(K62=\"Cannot Make a Rating\",0,IF(K62=\"\",0)))))","v":0},null,null,{"$f":"IF(AND(L62=3,N62=3),3,IF(AND(L62=3,N62=2),2,IF(AND(L62=3,N62=1),2,IF(AND(L62=3,N62=0),3,IF(AND(L62=3,N62=\"\"),3,IF(AND(L62=2,N62=2),2,IF(AND(L62=2,N62=1),2,IF(AND(L62=2,N62=0),2,IF(AND(L62=2,N62=\"\"),2,IF(AND(L62=1,N62=1),1,IF(AND(L62=1,N62=0),1,IF(AND(L62=1,N62=\"\"),1,IF(AND(L62=0,N62=3),3,IF(AND(L62=0,N62=2),2,IF(AND(L62=0,N62=1),1,IF(AND(L62=\"\",N62=\"\"),\"\",IF(AND(L62=2,N62=3),2,IF(AND(L62=1,N62=3),2,IF(AND(L62=\"\",N62=3),3,IF(AND(L62=1,N62=2),2,IF(AND(L62=\"\",N62=1),1,IF(AND(L62=\"\",N62=2),2,IF(AND(L62=0,N62=0),0,IF(AND(L62=\"\",N62=0),0,IF(AND(L62=0,N62=\"\"),0)))))))))))))))))))))))))","v":0},"",null,null,null,null,null,null,null,null,null,{"$f":"IF(OR(B62=\"Cannot Make a Rating\",K62=\"Cannot Make a Rating\"),1,0)","v":0}]
["7M",null,null,null,null,null,null,null,{"$f":"IF(H63=\"Fully Implemented\",3,IF(H63=\"Partially Implemented\",2,IF(H63=\"Not Yet Implemented\",1,IF(H63=\"Cannot Make a Rating\",0,IF(H63=\"\",0)))))","v":0},{"$f":"IF((I63=0),\"\",(I63))","v":""},null,{"$f":"IF(K63=\"Fully Implemented\",3,IF(K63=\"Partially Implemented\",2,IF(K63=\"Not Yet Implemented\",1,IF(K63=\"Cannot Make a Rating\",0,IF(K63=\"\",0)))))","v":0},null,{"$f":"IF(M63=\"Fully Implemented\",3,IF(M63=\"Partially Implemented\",2,IF(M63=\"Not Yet Implemented\",1,IF(M63=\"Cannot Make a Rating\",0,IF(M63=\"\",0)))))","v":0},{"$f":"IF(AND(L63=3,N63=3),3,IF(AND(L63=3,N63=2),2,IF(AND(L63=3,N63=1),2,IF(AND(L63=3,N63=0),3,IF(AND(L63=3,N63=\"\"),3,IF(AND(L63=2,N63=2),2,IF(AND(L63=2,N63=1),2,IF(AND(L63=2,N63=0),2,IF(AND(L63=2,N63=\"\"),2,IF(AND(L63=1,N63=1),1,IF(AND(L63=1,N63=0),1,IF(AND(L63=1,N63=\"\"),1,IF(AND(L63=0,N63=3),3,IF(AND(L63=0,N63=2),2,IF(AND(L63=0,N63=1),1,IF(AND(L63=\"\",N63=\"\"),\"\",IF(AND(L63=2,N63=3),2,IF(AND(L63=1,N63=3),2,IF(AND(L63=\"\",N63=3),3,IF(AND(L63=1,N63=2),2,IF(AND(L63=\"\",N63=1),1,IF(AND(L63=\"\",N63=2),2,IF(AND(L63=0,N63=0),0,IF(AND(L63=\"\",N63=0),0,IF(AND(L63=0,N63=\"\"),0)))))))))))))))))))))))))","v":0},"",null,null,null,null,null,null,null,null,null,{"$f":"IF(OR(H63=\"Cannot Make a Rating\",AB63=1),1,0)","v":0},null,{"$f":"IF(AND(K63=\"Cannot Make a Rating\", M63=\"Cannot Make a Rating\"),1,0)","v":0}]
["7N",null,{"$f":"IF(B64=\"Fully Implemented\",3,IF(B64=\"Partially Implemented\",2,IF(B64=\"Not Yet Implemented\",1,IF(B64=\"Cannot Make a Rating\",0,IF(B64=\"\",0)))))","v":0},{"$f":"IF((C64=0),\"\",(C64))","v":""},null,null,null,null,0,{"$f":"IF((I64=0),\"\",(I64))","v":""},null,null,null,null,null,null,null,null,null,null,null,null,null,null,null,{"$f":"IF(OR(B64=\"Cannot Make a Rating\",H64=\"Cannot Make a Rating\"),1,0)","v":0}]
["8A",null,{"$f":"IF(B65=\"Fully Implemented\",3,IF(B65=\"Partially Implemented\",2,IF(B65=\"Not Yet Implemented\",1,IF(B65=\"Cannot Make a Rating\",0,IF(B65=\"\",0)))))","v":0},{"$f":"IF((C65=0),\"\",(C65))","v":""},null,null,null,null,0,"",null,null,null,null,null,null,null,null,null,null,null,null,{"$f":"IF(V65=\"Fully Implemented\",3,IF(V65=\"Partially Implemented\",2,IF(V65=\"Not Yet Implemented\",1,IF(V65=\"Cannot Make a Rating\",0,IF(V65=\"\",\"\")))))","v":""},{"$f":"IF((W65=0),\"\",(W65))","v":""},null,{"$f":"IF(OR(B65=\"Cannot Make a Rating\",H65=\"Cannot Make a Rating\"),1,0)","v":0}]
["8B",null,{"$f":"IF(B66=\"Fully Implemented\",3,IF(B66=\"Partially Implemented\",2,IF(B66=\"Not Yet Implemented\",1,IF(B66=\"Cannot Make a Rating\",0,IF(B66=\"\",0)))))","v":0},"",null,null,null,null,0,"",null,null,null,null,null,null,null,null,{"$f":"IF(AND(C66=3,I66=3),3,IF(AND(C66=3,I66=2),2,IF(AND(C66=3,I66=1),2,IF(AND(C66=3,I66=\"\"),3, IF(AND(C66=2,I66=2),2, IF(AND(C66=2,I66=1),2,IF(AND(C66=2,I66=\"\"),2,IF(AND(C66=1,I66=1),1, IF(AND(C66=1,I66=\"\"),1,IF(AND(C66=\"\",I66=\"\"),\"\",IF(AND(C66=2,I66=3),2,IF(AND(C66=1,I66=3),2,IF(AND(C66=\"\",I66=3),3,IF(AND(C66=1,I66=2),2,IF(AND(C66=\"\",I66=1),1,IF(AND(C66=\"\",I66=2),2,IF(AND(C66=\"\",I66=0),0,IF(AND(C66=0,I66=0),0,IF(AND(C66=0,I66=3),3,IF(AND(C66=0,I66=2),2,IF(AND(C66=0,I66=1),1,IF(AND(C66=3,I66=0),3,IF(AND(C66=2,I66=0),2,IF(AND(C66=1,I66=0),1,IF(AND(C66=0,I66=\"\"),0)))))))))))))))))))))))))","v":0},{"$f":"IF((S66=0),\"\",(S66))","v":""},null,null,null,null,null,{"$f":"IF(OR(B66=\"Cannot Make a Rating\",H66=\"Cannot Make a Rating\"),1,0)","v":0}]
["8C",null,{"$f":"IF(B67=\"Fully Implemented\",3,IF(B67=\"Partially Implemented\",2,IF(B67=\"Not Yet Implemented\",1,IF(B67=\"Cannot Make a Rating\",0,IF(B67=\"\",0)))))","v":0},"",null,null,null,null,0,"",null,null,null,null,null,null,null,null,null,null,null,null,null,null,null,{"$f":"IF(OR(B67=\"Cannot Make a Rating\",H67=\"Cannot Make a Rating\"),1,0)","v":0}]
["8D",null,{"$f":"IF(B68=\"Fully Implemented\",3,IF(B68=\"Partially Implemented\",2,IF(B68=\"Not Yet Implemented\",1,IF(B68=\"Cannot Make a Rating\",0,IF(B68=\"\",0)))))","v":0},"",null,null,null,null,0,"",null,null,null,null,null,null,null,null,null,null,null,null,null,null,null,{"$f":"IF(OR(B68=\"Cannot Make a Rating\",H68=\"Cannot Make a Rating\"),1,0)","v":0}]

{"sheet":"Rater 2 Scoresheet","index":4,"n_rows":68,"n_cols":24,"rows_kept":68,"cut":false,"hidden":false,"merged":[]}
["Provision Number","Interview with FTC Coordinator Rating ","Interview with FTC Rating",null,"Interview with Treatment Rating","Interview with Treatment Rating",null,"Document Rating","Document Rating",null,"Observation of Staffing Rating","Observation of Staffing Rating","Observation of Hearing Rating","Observation of Hearing Rating","Total Obsevation  Rating",null,"Prov 1F  Max Interview Rating",null,"Split Provisions Total Implementation Rating",null,null,"[Optional Administrative Validity Check Rating]","[Optional Administrative Validity Check?]"]
["1A",null,{"$f":"IF(B2=\"Fully Implemented\",3,IF(B2=\"Partially Implemented\",2,IF(B2=\"Not Yet Implemented\",1,IF(B2=\"Cannot Make a Rating\",0,IF(B2=\"\",0)))))","v":0},{"$f":"IF((C2=0),\"\",(C2))","v":""},null,null,null,null,null,null,null,{"$f":"IF(K2=\"Fully Implemented\",3,IF(K2=\"Partially Implemented\",2,IF(K2=\"Not Yet Implemented\",1,IF(K2=\"Cannot Make a Rating\",0,IF(K2=\"\",0)))))","v":0},null,{"$f":"IF(M2=\"Fully Implemented\",3,IF(M2=\"Partially Implemented\",2,IF(M2=\"Not Yet Implemented\",1,IF(M2=\"Cannot Make a Rating\",0,IF(M2=\"\",0)))))","v":0},{"$f":"IF(AND(L2=3,N2=3),3,IF(AND(L2=3,N2=2),2,IF(AND(L2=3,N2=1),2,IF(AND(L2=3,N2=0),3,IF(AND(L2=3,N2=\"\"),3,IF(AND(L2=2,N2=2),2,IF(AND(L2=2,N2=1),2,IF(AND(L2=2,N2=0),2,IF(AND(L2=2,N2=\"\"),2,IF(AND(L2=1,N2=1),1,IF(AND(L2=1,N2=0),1,IF(AND(L2=1,N2=\"\"),1,IF(AND(L2=0,N2=3),3,IF(AND(L2=0,N2=2),2,IF(AND(L2=0,N2=1),1,IF(AND(L2=\"\",N2=\"\"),\"\",IF(AND(L2=2,N2=3),2,IF(AND(L2=1,N2=3),2,IF(AND(L2=\"\",N2=3),3,IF(AND(L2=1,N2=2),2,IF(AND(L2=\"\",N2=1),1,IF(AND(L2=\"\",N2=2),2,IF(AND(L2=0,N2=0),0,IF(AND(L2=\"\",N2=0),0,IF(AND(L2=0,N2=\"\"),0)))))))))))))))))))))))))","v":0},{"$f":"IF((O2=0),\"\",(O2))","v":""},null,null,{"$f":"IF(AND(C2=3,O2=3),3,IF(AND(C2=3,O2=2),2,IF(AND(C2=3,O2=1),2,IF(AND(C2=3,O2=\"\"),3, IF(AND(C2=2,O2=2),2, IF(AND(C2=2,O2=1),2,IF(AND(C2=2,O2=\"\"),2,IF(AND(C2=1,O2=1),1, IF(AND(C2=1,O2=\"\"),1,IF(AND(C2=\"\",O2=\"\"),\"\",IF(AND(C2=2,O2=3),2,IF(AND(C2=1,O2=3),2,IF(AND(C2=\"\",O2=3),3,IF(AND(C2=1,O2=2),2,IF(AND(C2=\"\",O2=1),1,IF(AND(C2=\"\",O2=2),2,IF(AND(C2=\"\",O2=0),0,IF(AND(C2=0,O2=0),0,IF(AND(C2=0,O2=3),3,IF(AND(C2=0,O2=2),2,IF(AND(C2=0,O2=1),1,IF(AND(C2=3,O2=0),3,IF(AND(C2=2,O2=0),2,IF(AND(C2=1,O2=0),1,IF(AND(C2=0,O2=\"\"),0)))))))))))))))))))))))))","v":0},{"$f":"IF((S2=0),\"\",(S2))","v":""}]
["1B",null,{"$f":"IF(B3=\"Fully Implemented\",3,IF(B3=\"Partially Implemented\",2,IF(B3=\"Not Yet Implemented\",1,IF(B3=\"Cannot Make a Rating\",0,IF(B3=\"\",0)))))","v":0},{"$f":"IF((C3=0),\"\",(C3))","v":""},null,null,null,null,{"$f":"IF(H3=\"Fully Implemented\",3,IF(H3=\"Partially Implemented\",2,IF(H3=\"Not Yet Implemented\",1,IF(H3=\"Cannot Make a Rating\",0,IF(H3=\"\",0)))))","v":0},{"$f":"IF((I3=0),\"\",(I3))","v":""},null,null,null,null,null,null,null,null,{"$f":"IF(AND(C3=3,I3=3),3,IF(AND(C3=3,I3=2),2,IF(AND(C3=3,I3=1),2,IF(AND(C3=3,I3=\"\"),3, IF(AND(C3=2,I3=2),2, IF(AND(C3=2,I3=1),2,IF(AND(C3=2,I3=\"\"),2,IF(AND(C3=1,I3=1),1, IF(AND(C3=1,I3=\"\"),1,IF(AND(C3=\"\",I3=\"\"),\"\",IF(AND(C3=2,I3=3),2,IF(AND(C3=1,I3=3),2,IF(AND(C3=\"\",I3=3),3,IF(AND(C3=1,I3=2),2,IF(AND(C3=\"\",I3=1),1,IF(AND(C3=\"\",I3=2),2,IF(AND(C3=\"\",I3=0),0,IF(AND(C3=0,I3=0),0,IF(AND(C3=0,I3=3),3,IF(AND(C3=0,I3=2),2,IF(AND(C3=0,I3=1),1,IF(AND(C3=3,I3=0),3,IF(AND(C3=2,I3=0),2,IF(AND(C3=1,I3=0),1,IF(AND(C3=0,I3=\"\"),0)))))))))))))))))))))))))","v":0},{"$f":"IF((S3=0),\"\",(S3))","v":""},null,null,{"$f":"IF(V3=\"Fully Implemented\",3,IF(V3=\"Partially Implemented\",2,IF(V3=\"Not Yet Implemented\",1,IF(V3=\"Cannot Make a Rating\",0,IF(V3=\"\",\"\")))))","v":""},{"$f":"IF((W3=0),\"\",(W3))","v":""}]
["1C",null,null,null,null,null,null,null,0,{"$f":"IF((I4=0),\"\",(I4))","v":""},null,{"$f":"IF(K4=\"Fully Implemented\",3,IF(K4=\"Partially Implemented\",2,IF(K4=\"Not Yet Implemented\",1,IF(K4=\"Cannot Make a Rating\",0,IF(K4=\"\",0)))))","v":0},null,{"$f":"IF(M4=\"Fully Implemented\",3,IF(M4=\"Partially Implemented\",2,IF(M4=\"Not Yet Implemented\",1,IF(M4=\"Cannot Make a Rating\",0,IF(M4=\"\",0)))))","v":0},{"$f":"IF(AND(L4=3,N4=3),3,IF(AND(L4=3,N4=2),2,IF(AND(L4=3,N4=1),2,IF(AND(L4=3,N4=0),3,IF(AND(L4=3,N4=\"\"),3,IF(AND(L4=2,N4=2),2,IF(AND(L4=2,N4=1),2,IF(AND(L4=2,N4=0),2,IF(AND(L4=2,N4=\"\"),2,IF(AND(L4=1,N4=1),1,IF(AND(L4=1,N4=0),1,IF(AND(L4=1,N4=\"\"),1,IF(AND(L4=0,N4=3),3,IF(AND(L4=0,N4=2),2,IF(AND(L4=0,N4=1),1,IF(AND(L4=\"\",N4=\"\"),\"\",IF(AND(L4=2,N4=3),2,IF(AND(L4=1,N4=3),2,IF(AND(L4=\"\",N4=3),3,IF(AND(L4=1,N4=2),2,IF(AND(L4=\"\",N4=1),1,IF(AND(L4=\"\",N4=2),2,IF(AND(L4=0,N4=0),0,IF(AND(L4=\"\",N4=0),0,IF(AND(L4=0,N4=\"\"),0)))))))))))))))))))))))))","v":0},{"$f":"IF((O4=0),\"\",(O4))","v":""}]
["1D",null,{"$f":"IF(B5=\"Fully Implemented\",3,IF(B5=\"Partially Implemented\",2,IF(B5=\"Not Yet Implemented\",1,IF(B5=\"Cannot Make a Rating\",0,IF(B5=\"\",0)))))","v":0},{"$f":"IF((C5=0),\"\",(C5))","v":""},null,null,null,null,0,{"$f":"IF((I5=0),\"\",(I5))","v":""}]
["1E",null,0,{"$f":"IF((C6=0),\"\",(C6))","v":""},null,null,null,null,0,""]
["1F",null,0,"",null,{"$f":"IF(E7=\"Fully Implemented\",3,IF(E7=\"Partially Implemented\",2,IF(E7=\"Not Yet Implemented\",1,IF(E7=\"Cannot Make a Rating\",0,IF(E7=\"\",0)))))","v":0},{"$f":"IF((F7=0),\"\",(F7))","v":""},null,0,"",null,null,null,null,null,null,{"$f":"MAX(C7,F7)","v":0},{"$f":"IF((Q7=0),\"\",(Q7))","v":""},{"$f":"IF(AND(I7=3,Q7=3),3,IF(AND(I7=3,Q7=2),2,IF(AND(I7=3,Q7=1),2,IF(AND(I7=3,Q7=\"\"),3, IF(AND(I7=2,Q7=2),2, IF(AND(I7=2,Q7=1),2,IF(AND(I7=2,Q7=\"\"),2,IF(AND(I7=1,Q7=1),1, IF(AND(I7=1,Q7=\"\"),1,IF(AND(I7=\"\",Q7=\"\"),\"\",IF(AND(I7=2,Q7=3),2,IF(AND(I7=1,Q7=3),2,IF(AND(I7=\"\",Q7=3),3,IF(AND(I7=1,Q7=2),2,IF(AND(I7=\"\",Q7=1),1,IF(AND(I7=\"\",Q7=2),2,IF(AND(I7=\"\",Q7=0),0,IF(AND(I7=0,Q7=0),0,IF(AND(I7=0,Q7=3),3,IF(AND(I7=0,Q7=2),2,IF(AND(I7=0,Q7=1),1,IF(AND(I7=3,Q7=0),3,IF(AND(I7=2,Q7=0),2,IF(AND(I7=1,Q7=0),1,IF(AND(I7=0,Q7=\"\"),0)))))))))))))))))))))))))","v":0},{"$f":"IF((S7=0),\"\",(S7))","v":""},null,null,{"$f":"IF(V7=\"Fully Implemented\",3,IF(V7=\"Partially Implemented\",2,IF(V7=\"Not Yet Implemented\",1,IF(V7=\"Cannot Make a Rating\",0,IF(V7=\"\",\"\")))))","v":""},{"$f":"IF((W7=0),\"\",(W7))","v":""}]
["1G",null,0,"",null,null,null,null,0,""]
["1H",null,0,"",null,null,null,null,0,""]
["1I",null,0,"",null,null,null,null,0,{"$f":"IF((I10=0),\"\",(I10))","v":""}]
["1J",null,0,"",null,null,null,null,0,{"$f":"IF((I11=0),\"\",(I11))","v":""},null,{"$f":"IF(K11=\"Fully Implemented\",3,IF(K11=\"Partially Implemented\",2,IF(K11=\"Not Yet Implemented\",1,IF(K11=\"Cannot Make a Rating\",0,IF(K11=\"\",0)))))","v":0},null,{"$f":"IF(M11=\"Fully Implemented\",3,IF(M11=\"Partially Implemented\",2,IF(M11=\"Not Yet Implemented\",1,IF(M11=\"Cannot Make a Rating\",0,IF(M11=\"\",0)))))","v":0},{"$f":"IF(AND(L11=3,N11=3),3,IF(AND(L11=3,N11=2),2,IF(AND(L11=3,N11=1),2,IF(AND(L11=3,N11=0),3,IF(AND(L11=3,N11=\"\"),3,IF(AND(L11=2,N11=2),2,IF(AND(L11=2,N11=1),2,IF(AND(L11=2,N11=0),2,IF(AND(L11=2,N11=\"\"),2,IF(AND(L11=1,N11=1),1,IF(AND(L11=1,N11=0),1,IF(AND(L11=1,N11=\"\"),1,IF(AND(L11=0,N11=3),3,IF(AND(L11=0,N11=2),2,IF(AND(L11=0,N11=1),1,IF(AND(L11=\"\",N11=\"\"),\"\",IF(AND(L11=2,N11=3),2,IF(AND(L11=1,N11=3),2,IF(AND(L11=\"\",N11=3),3,IF(AND(L11=1,N11=2),2,IF(AND(L11=\"\",N11=1),1,IF(AND(L11=\"\",N11=2),2,IF(AND(L11=0,N11=0),0,IF(AND(L11=\"\",N11=0),0,IF(AND(L11=0,N11=\"\"),0)))))))))))))))))))))))))","v":0},{"$f":"IF((O11=0),\"\",(O11))","v":""}]
["2A",null,0,"",null,null,null,null,0,""]
["2B",null,0,"",null,null,null,null,null,null,null,{"$f":"IF(K13=\"Fully Implemented\",3,IF(K13=\"Partially Implemented\",2,IF(K13=\"Not Yet Implemented\",1,IF(K13=\"Cannot Make a Rating\",0,IF(K13=\"\",0)))))","v":0},null,null,{"$f":"IF(AND(L13=3,N13=3),3,IF(AND(L13=3,N13=2),2,IF(AND(L13=3,N13=1),2,IF(AND(L13=3,N13=0),3,IF(AND(L13=3,N13=\"\"),3,IF(AND(L13=2,N13=2),2,IF(AND(L13=2,N13=1),2,IF(AND(L13=2,N13=0),2,IF(AND(L13=2,N13=\"\"),2,IF(AND(L13=1,N13=1),1,IF(AND(L13=1,N13=0),1,IF(AND(L13=1,N13=\"\"),1,IF(AND(L13=0,N13=3),3,IF(AND(L13=0,N13=2),2,IF(AND(L13=0,N13=1),1,IF(AND(L13=\"\",N13=\"\"),\"\",IF(AND(L13=2,N13=3),2,IF(AND(L13=1,N13=3),2,IF(AND(L13=\"\",N13=3),3,IF(AND(L13=1,N13=2),2,IF(AND(L13=\"\",N13=1),1,IF(AND(L13=\"\",N13=2),2,IF(AND(L13=0,N13=0),0,IF(AND(L13=\"\",N13=0),0,IF(AND(L13=0,N13=\"\"),0)))))))))))))))))))))))))","v":0},{"$f":"IF((O13=0),\"\",(O13))","v":""},null,null,{"$f":"IF(AND(C13=3,O13=3),3,IF(AND(C13=3,O13=2),2,IF(AND(C13=3,O13=1),2,IF(AND(C13=3,O13=\"\"),3, IF(AND(C13=2,O13=2),2, IF(AND(C13=2,O13=1),2,IF(AND(C13=2,O13=\"\"),2,IF(AND(C13=1,O13=1),1, IF(AND(C13=1,O13=\"\"),1,IF(AND(C13=\"\",O13=\"\"),\"\",IF(AND(C13=2,O13=3),2,IF(AND(C13=1,O13=3),2,IF(AND(C13=\"\",O13=3),3,IF(AND(C13=1,O13=2),2,IF(AND(C13=\"\",O13=1),1,IF(AND(C13=\"\",O13=2),2,IF(AND(C13=\"\",O13=0),0,IF(AND(C13=0,O13=0),0,IF(AND(C13=0,O13=3),3,IF(AND(C13=0,O13=2),2,IF(AND(C13=0,O13=1),1,IF(AND(C13=3,O13=0),3,IF(AND(C13=2,O13=0),2,IF(AND(C13=1,O13=0),1,IF(AND(C13=0,O13=\"\"),0)))))))))))))))))))))))))","v":0},{"$f":"IF((S13=0),\"\",(S13))","v":""}]
["2C",null,0,"",null,null,null,null,null,null,null,{"$f":"IF(K14=\"Fully Implemented\",3,IF(K14=\"Partially Implemented\",2,IF(K14=\"Not Yet Implemented\",1,IF(K14=\"Cannot Make a Rating\",0,IF(K14=\"\",0)))))","v":0},null,null,{"$f":"IF(AND(L14=3,N14=3),3,IF(AND(L14=3,N14=2),2,IF(AND(L14=3,N14=1),2,IF(AND(L14=3,N14=0),3,IF(AND(L14=3,N14=\"\"),3,IF(AND(L14=2,N14=2),2,IF(AND(L14=2,N14=1),2,IF(AND(L14=2,N14=0),2,IF(AND(L14=2,N14=\"\"),2,IF(AND(L14=1,N14=1),1,IF(AND(L14=1,N14=0),1,IF(AND(L14=1,N14=\"\"),1,IF(AND(L14=0,N14=3),3,IF(AND(L14=0,N14=2),2,IF(AND(L14=0,N14=1),1,IF(AND(L14=\"\",N14=\"\"),\"\",IF(AND(L14=2,N14=3),2,IF(AND(L14=1,N14=3),2,IF(AND(L14=\"\",N14=3),3,IF(AND(L14=1,N14=2),2,IF(AND(L14=\"\",N14=1),1,IF(AND(L14=\"\",N14=2),2,IF(AND(L14=0,N14=0),0,IF(AND(L14=\"\",N14=0),0,IF(AND(L14=0,N14=\"\"),0)))))))))))))))))))))))))","v":0},{"$f":"IF((O14=0),\"\",(O14))","v":""}]
["2D",null,0,"",null,null,null,null,null,null,null,null,null,{"$f":"IF(M15=\"Fully Implemented\",3,IF(M15=\"Partially Implemented\",2,IF(M15=\"Not Yet Implemented\",1,IF(M15=\"Cannot Make a Rating\",0,IF(M15=\"\",0)))))","v":0},{"$f":"IF(AND(L15=3,N15=3),3,IF(AND(L15=3,N15=2),2,IF(AND(L15=3,N15=1),2,IF(AND(L15=3,N15=0),3,IF(AND(L15=3,N15=\"\"),3,IF(AND(L15=2,N15=2),2,IF(AND(L15=2,N15=1),2,IF(AND(L15=2,N15=0),2,IF(AND(L15=2,N15=\"\"),2,IF(AND(L15=1,N15=1),1,IF(AND(L15=1,N15=0),1,IF(AND(L15=1,N15=\"\"),1,IF(AND(L15=0,N15=3),3,IF(AND(L15=0,N15=2),2,IF(AND(L15=0,N15=1),1,IF(AND(L15=\"\",N15=\"\"),\"\",IF(AND(L15=2,N15=3),2,IF(AND(L15=1,N15=3),2,IF(AND(L15=\"\",N15=3),3,IF(AND(L15=1,N15=2),2,IF(AND(L15=\"\",N15=1),1,IF(AND(L15=\"\",N15=2),2,IF(AND(L15=0,N15=0),0,IF(AND(L15=\"\",N15=0),0,IF(AND(L15=0,N15=\"\"),0)))))))))))))))))))))))))","v":0},""]
["2E",null,0,"",null,null,null,null,{"$f":"IF(H16=\"Fully Implemented\",3,IF(H16=\"Partially Implemented\",2,IF(H16=\"Not Yet Implemented\",1,IF(H16=\"Cannot Make a Rating\",0,IF(H16=\"\",0)))))","v":0},{"$f":"IF((I16=0),\"\",(I16))","v":""}]
["2F",null,0,"",null,null,null,null,0,{"$f":"IF((I17=0),\"\",(I17))","v":""}]
["3A",null,0,"",null,null,null,null,0,""]
["3B",null,0,"",null,null,null,null,0,"",null,null,null,null,null,null,null,null,null,null,null,null,{"$f":"IF(V19=\"Fully Implemented\",3,IF(V19=\"Partially Implemented\",2,IF(V19=\"Not Yet Implemented\",1,IF(V19=\"Cannot Make a Rating\",0,IF(V19=\"\",\"\")))))","v":""},{"$f":"IF((W19=0),\"\",(W19))","v":""}]
["3C",null,0,"",null,null,null,null,0,"",null,null,null,null,null,null,null,null,null,null,null,null,{"$f":"IF(V20=\"Fully Implemented\",3,IF(V20=\"Partially Implemented\",2,IF(V20=\"Not Yet Implemented\",1,IF(V20=\"Cannot Make a Rating\",0,IF(V20=\"\",\"\")))))","v":""},{"$f":"IF((W20=0),\"\",(W20))","v":""}]
["3D",null,0,"",null,null,null,null,0,"",null,null,null,null,null,null,null,null,null,null,null,null,{"$f":"IF(V21=\"Fully Implemented\",3,IF(V21=\"Partially Implemented\",2,IF(V21=\"Not Yet Implemented\",1,IF(V21=\"Cannot Make a Rating\",0,IF(V21=\"\",\"\")))))","v":""},""]
["3E",null,0,"",null,null,null,null,0,""]
["4A",null,0,"",null,null,null,null,0,"",null,{"$f":"IF(K23=\"Fully Implemented\",3,IF(K23=\"Partially Implemented\",2,IF(K23=\"Not Yet Implemented\",1,IF(K23=\"Cannot Make a Rating\",0,IF(K23=\"\",0)))))","v":0},null,null,{"$f":"IF(AND(L23=3,N23=3),3,IF(AND(L23=3,N23=2),2,IF(AND(L23=3,N23=1),2,IF(AND(L23=3,N23=0),3,IF(AND(L23=3,N23=\"\"),3,IF(AND(L23=2,N23=2),2,IF(AND(L23=2,N23=1),2,IF(AND(L23=2,N23=0),2,IF(AND(L23=2,N23=\"\"),2,IF(AND(L23=1,N23=1),1,IF(AND(L23=1,N23=0),1,IF(AND(L23=1,N23=\"\"),1,IF(AND(L23=0,N23=3),3,IF(AND(L23=0,N23=2),2,IF(AND(L23=0,N23=1),1,IF(AND(L23=\"\",N23=\"\"),\"\",IF(AND(L23=2,N23=3),2,IF(AND(L23=1,N23=3),2,IF(AND(L23=\"\",N23=3),3,IF(AND(L23=1,N23=2),2,IF(AND(L23=\"\",N23=1),1,IF(AND(L23=\"\",N23=2),2,IF(AND(L23=0,N23=0),0,IF(AND(L23=\"\",N23=0),0,IF(AND(L23=0,N23=\"\"),0)))))))))))))))))))))))))","v":0},{"$f":"IF((O23=0),\"\",(O23))","v":""}]
["4B",null,0,{"$f":"IF((C24=0),\"\",(C24))","v":""},null,null,null,null,0,"",null,null,null,null,null,null,null,null,null,null,null,null,{"$f":"IF(V24=\"Fully Implemented\",3,IF(V24=\"Partially Implemented\",2,IF(V24=\"Not Yet Implemented\",1,IF(V24=\"Cannot Make a Rating\",0,IF(V24=\"\",\"\")))))","v":""},{"$f":"IF((W24=0),\"\",(W24))","v":""}]
["4C",null,0,{"$f":"IF((C25=0),\"\",(C25))","v":""},null,{"$f":"IF(E25=\"Fully Implemented\",3,IF(E25=\"Partially Implemented\",2,IF(E25=\"Not Yet Implemented\",1,IF(E25=\"Cannot Make a Rating\",0,IF(E25=\"\",0)))))","v":0},{"$f":"IF((F25=0),\"\",(F25))","v":""},null,0,""]
["4D",null,0,"",null,null,null,null,0,"",null,null,null,null,null,null,null,null,{"$f":"IF(AND(C26=3,I26=3),3,IF(AND(C26=3,I26=2),2,IF(AND(C26=3,I26=1),2,IF(AND(C26=3,I26=\"\"),3, IF(AND(C26=2,I26=2),2, IF(AND(C26=2,I26=1),2,IF(AND(C26=2,I26=\"\"),2,IF(AND(C26=1,I26=1),1, IF(AND(C26=1,I26=\"\"),1,IF(AND(C26=\"\",I26=\"\"),\"\",IF(AND(C26=2,I26=3),2,IF(AND(C26=1,I26=3),2,IF(AND(C26=\"\",I26=3),3,IF(AND(C26=1,I26=2),2,IF(AND(C26=\"\",I26=1),1,IF(AND(C26=\"\",I26=2),2,IF(AND(C26=\"\",I26=0),0,IF(AND(C26=0,I26=0),0,IF(AND(C26=0,I26=3),3,IF(AND(C26=0,I26=2),2,IF(AND(C26=0,I26=1),1,IF(AND(C26=3,I26=0),3,IF(AND(C26=2,I26=0),2,IF(AND(C26=1,I26=0),1,IF(AND(C26=0,I26=\"\"),0)))))))))))))))))))))))))","v":0},{"$f":"IF((S26=0),\"\",(S26))","v":""}]
["4E",null,0,"",null,null,null,null,0,"",null,{"$f":"IF(K27=\"Fully Implemented\",3,IF(K27=\"Partially Implemented\",2,IF(K27=\"Not Yet Implemented\",1,IF(K27=\"Cannot Make a Rating\",0,IF(K27=\"\",0)))))","v":0},null,{"$f":"IF(M27=\"Fully Implemented\",3,IF(M27=\"Partially Implemented\",2,IF(M27=\"Not Yet Implemented\",1,IF(M27=\"Cannot Make a Rating\",0,IF(M27=\"\",0)))))","v":0},{"$f":"IF(AND(L27=3,N27=3),3,IF(AND(L27=3,N27=2),2,IF(AND(L27=3,N27=1),2,IF(AND(L27=3,N27=0),3,IF(AND(L27=3,N27=\"\"),3,IF(AND(L27=2,N27=2),2,IF(AND(L27=2,N27=1),2,IF(AND(L27=2,N27=0),2,IF(AND(L27=2,N27=\"\"),2,IF(AND(L27=1,N27=1),1,IF(AND(L27=1,N27=0),1,IF(AND(L27=1,N27=\"\"),1,IF(AND(L27=0,N27=3),3,IF(AND(L27=0,N27=2),2,IF(AND(L27=0,N27=1),1,IF(AND(L27=\"\",N27=\"\"),\"\",IF(AND(L27=2,N27=3),2,IF(AND(L27=1,N27=3),2,IF(AND(L27=\"\",N27=3),3,IF(AND(L27=1,N27=2),2,IF(AND(L27=\"\",N27=1),1,IF(AND(L27=\"\",N27=2),2,IF(AND(L27=0,N27=0),0,IF(AND(L27=\"\",N27=0),0,IF(AND(L27=0,N27=\"\"),0)))))))))))))))))))))))))","v":0},{"$f":"IF((O27=0),\"\",(O27))","v":""}]
["5A",null,0,"",null,{"$f":"IF(E28=\"Fully Implemented\",3,IF(E28=\"Partially Implemented\",2,IF(E28=\"Not Yet Implemented\",1,IF(E28=\"Cannot Make a Rating\",0,IF(E28=\"\",0)))))","v":0},{"$f":"IF((F28=0),\"\",(F28))","v":""},null,null,null,null,null,null,null,null,null,null,null,null,null,null,null,{"$f":"IF(V28=\"Fully Implemented\",3,IF(V28=\"Partially Implemented\",2,IF(V28=\"Not Yet Implemented\",1,IF(V28=\"Cannot Make a Rating\",0,IF(V28=\"\",\"\")))))","v":""},{"$f":"IF((W28=0),\"\",(W28))","v":""}]
["5B",null,0,"",null,0,{"$f":"IF((F29=0),\"\",(F29))","v":""}]
["5C",null,0,"",null,0,"",null,null,null,null,null,null,null,null,null,null,null,null,null,null,null,{"$f":"IF(V30=\"Fully Implemented\",3,IF(V30=\"Partially Implemented\",2,IF(V30=\"Not Yet Implemented\",1,IF(V30=\"Cannot Make a Rating\",0,IF(V30=\"\",\"\")))))","v":""},{"$f":"IF((W30=0),\"\",(W30))","v":""}]
["5D",null,0,"",null,0,""]
["5E",null,0,"",null,0,""]
["5F",null,null,null,null,0,"",null,{"$f":"IF(H33=\"Fully Implemented\",3,IF(H33=\"Partially Implemented\",2,IF(H33=\"Not Yet Implemented\",1,IF(H33=\"Cannot Make a Rating\",0,IF(H33=\"\",0)))))","v":0},{"$f":"IF((I33=0),\"\",(I33))","v":""}]
["5G",null,{"$f":"IF(B34=\"Fully Implemented\",3,IF(B34=\"Partially Implemented\",2,IF(B34=\"Not Yet Implemented\",1,IF(B34=\"Cannot Make a Rating\",0,IF(B34=\"\",0)))))","v":0},{"$f":"IF((C34=0),\"\",(C34))","v":""},null,0,""]
["5H",null,0,{"$f":"IF((C35=0),\"\",(C35))","v":""},null,0,""]
["5I",null,0,"",null,0,"",null,{"$f":"IF(H36=\"Fully Implemented\",3,IF(H36=\"Partially Implemented\",2,IF(H36=\"Not Yet Implemented\",1,IF(H36=\"Cannot Make a Rating\",0,IF(H36=\"\",0)))))","v":0},{"$f":"IF((I36=0),\"\",(I36))","v":""}]
["5J",null,0,"",null,0,"",null,{"$f":"IF(H37=\"Fully Implemented\",3,IF(H37=\"Partially Implemented\",2,IF(H37=\"Not Yet Implemented\",1,IF(H37=\"Cannot Make a Rating\",0,IF(H37=\"\",0)))))","v":0},{"$f":"IF((I37=0),\"\",(I37))","v":""}]
["5K",null,0,"",null,0,"",null,{"$f":"IF(H38=\"Fully Implemented\",3,IF(H38=\"Partially Implemented\",2,IF(H38=\"Not Yet Implemented\",1,IF(H38=\"Cannot Make a Rating\",0,IF(H38=\"\",0)))))","v":0},""]
["5L",null,0,"",null,0,"",null,{"$f":"IF(H39=\"Fully Implemented\",3,IF(H39=\"Partially Implemented\",2,IF(H39=\"Not Yet Implemented\",1,IF(H39=\"Cannot Make a Rating\",0,IF(H39=\"\",0)))))","v":0},""]
["6A",null,0,"",null,null,null,null,{"$f":"IF(H40=\"Fully Implemented\",3,IF(H40=\"Partially Implemented\",2,IF(H40=\"Not Yet Implemented\",1,IF(H40=\"Cannot Make a Rating\",0,IF(H40=\"\",0)))))","v":0},"",null,{"$f":"IF(K40=\"Fully Implemented\",3,IF(K40=\"Partially Implemented\",2,IF(K40=\"Not Yet Implemented\",1,IF(K40=\"Cannot Make a Rating\",0,IF(K40=\"\",0)))))","v":0},null,null,{"$f":"IF(AND(L40=3,N40=3),3,IF(AND(L40=3,N40=2),2,IF(AND(L40=3,N40=1),2,IF(AND(L40=3,N40=0),3,IF(AND(L40=3,N40=\"\"),3,IF(AND(L40=2,N40=2),2,IF(AND(L40=2,N40=1),2,IF(AND(L40=2,N40=0),2,IF(AND(L40=2,N40=\"\"),2,IF(AND(L40=1,N40=1),1,IF(AND(L40=1,N40=0),1,IF(AND(L40=1,N40=\"\"),1,IF(AND(L40=0,N40=3),3,IF(AND(L40=0,N40=2),2,IF(AND(L40=0,N40=1),1,IF(AND(L40=\"\",N40=\"\"),\"\",IF(AND(L40=2,N40=3),2,IF(AND(L40=1,N40=3),2,IF(AND(L40=\"\",N40=3),3,IF(AND(L40=1,N40=2),2,IF(AND(L40=\"\",N40=1),1,IF(AND(L40=\"\",N40=2),2,IF(AND(L40=0,N40=0),0,IF(AND(L40=\"\",N40=0),0,IF(AND(L40=0,N40=\"\"),0)))))))))))))))))))))))))","v":0},{"$f":"IF((O40=0),\"\",(O40))","v":""}]
["6B",null,0,"",null,null,null,null,null,null,null,{"$f":"IF(K41=\"Fully Implemented\",3,IF(K41=\"Partially Implemented\",2,IF(K41=\"Not Yet Implemented\",1,IF(K41=\"Cannot Make a Rating\",0,IF(K41=\"\",0)))))","v":0},null,{"$f":"IF(M41=\"Fully Implemented\",3,IF(M41=\"Partially Implemented\",2,IF(M41=\"Not Yet Implemented\",1,IF(M41=\"Cannot Make a Rating\",0,IF(M41=\"\",0)))))","v":0},{"$f":"IF(AND(L41=3,N41=3),3,IF(AND(L41=3,N41=2),2,IF(AND(L41=3,N41=1),2,IF(AND(L41=3,N41=0),3,IF(AND(L41=3,N41=\"\"),3,IF(AND(L41=2,N41=2),2,IF(AND(L41=2,N41=1),2,IF(AND(L41=2,N41=0),2,IF(AND(L41=2,N41=\"\"),2,IF(AND(L41=1,N41=1),1,IF(AND(L41=1,N41=0),1,IF(AND(L41=1,N41=\"\"),1,IF(AND(L41=0,N41=3),3,IF(AND(L41=0,N41=2),2,IF(AND(L41=0,N41=1),1,IF(AND(L41=\"\",N41=\"\"),\"\",IF(AND(L41=2,N41=3),2,IF(AND(L41=1,N41=3),2,IF(AND(L41=\"\",N41=3),3,IF(AND(L41=1,N41=2),2,IF(AND(L41=\"\",N41=1),1,IF(AND(L41=\"\",N41=2),2,IF(AND(L41=0,N41=0),0,IF(AND(L41=\"\",N41=0),0,IF(AND(L41=0,N41=\"\"),0)))))))))))))))))))))))))","v":0},{"$f":"IF((O41=0),\"\",(O41))","v":""}]
["6C",null,0,"",null,{"$f":"IF(E42=\"Fully Implemented\",3,IF(E42=\"Partially Implemented\",2,IF(E42=\"Not Yet Implemented\",1,IF(E42=\"Cannot Make a Rating\",0,IF(E42=\"\",0)))))","v":0},{"$f":"IF((F42=0),\"\",(F42))","v":""},null,null,null,null,null,null,{"$f":"IF(M42=\"Fully Implemented\",3,IF(M42=\"Partially Implemented\",2,IF(M42=\"Not Yet Implemented\",1,IF(M42=\"Cannot Make a Rating\",0,IF(M42=\"\",0)))))","v":0},{"$f":"IF(AND(L42=3,N42=3),3,IF(AND(L42=3,N42=2),2,IF(AND(L42=3,N42=1),2,IF(AND(L42=3,N42=0),3,IF(AND(L42=3,N42=\"\"),3,IF(AND(L42=2,N42=2),2,IF(AND(L42=2,N42=1),2,IF(AND(L42=2,N42=0),2,IF(AND(L42=2,N42=\"\"),2,IF(AND(L42=1,N42=1),1,IF(AND(L42=1,N42=0),1,IF(AND(L42=1,N42=\"\"),1,IF(AND(L42=0,N42=3),3,IF(AND(L42=0,N42=2),2,IF(AND(L42=0,N42=1),1,IF(AND(L42=\"\",N42=\"\"),\"\",IF(AND(L42=2,N42=3),2,IF(AND(L42=1,N42=3),2,IF(AND(L42=\"\",N42=3),3,IF(AND(L42=1,N42=2),2,IF(AND(L42=\"\",N42=1),1,IF(AND(L42=\"\",N42=2),2,IF(AND(L42=0,N42=0),0,IF(AND(L42=\"\",N42=0),0,IF(AND(L42=0,N42=\"\"),0)))))))))))))))))))))))))","v":0},""]
["6D",null,0,"",null,null,null,null,{"$f":"IF(H43=\"Fully Implemented\",3,IF(H43=\"Partially Implemented\",2,IF(H43=\"Not Yet Implemented\",1,IF(H43=\"Cannot Make a Rating\",0,IF(H43=\"\",0)))))","v":0},{"$f":"IF((I43=0),\"\",(I43))","v":""}]
["6E",null,0,"",null,{"$f":"IF(E44=\"Fully Implemented\",3,IF(E44=\"Partially Implemented\",2,IF(E44=\"Not Yet Implemented\",1,IF(E44=\"Cannot Make a Rating\",0,IF(E44=\"\",0)))))","v":0},{"$f":"IF((F44=0),\"\",(F44))","v":""}]
["6F",null,0,"",null,null,null,null,{"$f":"IF(H45=\"Fully Implemented\",3,IF(H45=\"Partially Implemented\",2,IF(H45=\"Not Yet Implemented\",1,IF(H45=\"Cannot Make a Rating\",0,IF(H45=\"\",0)))))","v":0},{"$f":"IF((I45=0),\"\",(I45))","v":""},null,null,null,{"$f":"IF(M45=\"Fully Implemented\",3,IF(M45=\"Partially Implemented\",2,IF(M45=\"Not Yet Implemented\",1,IF(M45=\"Cannot Make a Rating\",0,IF(M45=\"\",0)))))","v":0},{"$f":"IF(AND(L45=3,N45=3),3,IF(AND(L45=3,N45=2),2,IF(AND(L45=3,N45=1),2,IF(AND(L45=3,N45=0),3,IF(AND(L45=3,N45=\"\"),3,IF(AND(L45=2,N45=2),2,IF(AND(L45=2,N45=1),2,IF(AND(L45=2,N45=0),2,IF(AND(L45=2,N45=\"\"),2,IF(AND(L45=1,N45=1),1,IF(AND(L45=1,N45=0),1,IF(AND(L45=1,N45=\"\"),1,IF(AND(L45=0,N45=3),3,IF(AND(L45=0,N45=2),2,IF(AND(L45=0,N45=1),1,IF(AND(L45=\"\",N45=\"\"),\"\",IF(AND(L45=2,N45=3),2,IF(AND(L45=1,N45=3),2,IF(AND(L45=\"\",N45=3),3,IF(AND(L45=1,N45=2),2,IF(AND(L45=\"\",N45=1),1,IF(AND(L45=\"\",N45=2),2,IF(AND(L45=0,N45=0),0,IF(AND(L45=\"\",N45=0),0,IF(AND(L45=0,N45=\"\"),0)))))))))))))))))))))))))","v":0},{"$f":"IF((O45=0),\"\",(O45))","v":""}]
["6G",null,0,"",null,{"$f":"IF(E46=\"Fully Implemented\",3,IF(E46=\"Partially Implemented\",2,IF(E46=\"Not Yet Implemented\",1,IF(E46=\"Cannot Make a Rating\",0,IF(E46=\"\",0)))))","v":0},{"$f":"IF((F46=0),\"\",(F46))","v":""},null,0,{"$f":"IF((I46=0),\"\",(I46))","v":""}]
["6H",null,0,"",null,null,null,null,0,"",null,null,null,{"$f":"IF(M47=\"Fully Implemented\",3,IF(M47=\"Partially Implemented\",2,IF(M47=\"Not Yet Implemented\",1,IF(M47=\"Cannot Make a Rating\",0,IF(M47=\"\",0)))))","v":0},{"$f":"IF(AND(L47=3,N47=3),3,IF(AND(L47=3,N47=2),2,IF(AND(L47=3,N47=1),2,IF(AND(L47=3,N47=0),3,IF(AND(L47=3,N47=\"\"),3,IF(AND(L47=2,N47=2),2,IF(AND(L47=2,N47=1),2,IF(AND(L47=2,N47=0),2,IF(AND(L47=2,N47=\"\"),2,IF(AND(L47=1,N47=1),1,IF(AND(L47=1,N47=0),1,IF(AND(L47=1,N47=\"\"),1,IF(AND(L47=0,N47=3),3,IF(AND(L47=0,N47=2),2,IF(AND(L47=0,N47=1),1,IF(AND(L47=\"\",N47=\"\"),\"\",IF(AND(L47=2,N47=3),2,IF(AND(L47=1,N47=3),2,IF(AND(L47=\"\",N47=3),3,IF(AND(L47=1,N47=2),2,IF(AND(L47=\"\",N47=1),1,IF(AND(L47=\"\",N47=2),2,IF(AND(L47=0,N47=0),0,IF(AND(L47=\"\",N47=0),0,IF(AND(L47=0,N47=\"\"),0)))))))))))))))))))))))))","v":0},{"$f":"IF((O47=0),\"\",(O47))","v":""}]
["6I",null,0,"",null,null,null,null,0,"",null,{"$f":"IF(K48=\"Fully Implemented\",3,IF(K48=\"Partially Implemented\",2,IF(K48=\"Not Yet Implemented\",1,IF(K48=\"Cannot Make a Rating\",0,IF(K48=\"\",0)))))","v":0},null,{"$f":"IF(M48=\"Fully Implemented\",3,IF(M48=\"Partially Implemented\",2,IF(M48=\"Not Yet Implemented\",1,IF(M48=\"Cannot Make a Rating\",0,IF(M48=\"\",0)))))","v":0},{"$f":"IF(AND(L48=3,N48=3),3,IF(AND(L48=3,N48=2),2,IF(AND(L48=3,N48=1),2,IF(AND(L48=3,N48=0),3,IF(AND(L48=3,N48=\"\"),3,IF(AND(L48=2,N48=2),2,IF(AND(L48=2,N48=1),2,IF(AND(L48=2,N48=0),2,IF(AND(L48=2,N48=\"\"),2,IF(AND(L48=1,N48=1),1,IF(AND(L48=1,N48=0),1,IF(AND(L48=1,N48=\"\"),1,IF(AND(L48=0,N48=3),3,IF(AND(L48=0,N48=2),2,IF(AND(L48=0,N48=1),1,IF(AND(L48=\"\",N48=\"\"),\"\",IF(AND(L48=2,N48=3),2,IF(AND(L48=1,N48=3),2,IF(AND(L48=\"\",N48=3),3,IF(AND(L48=1,N48=2),2,IF(AND(L48=\"\",N48=1),1,IF(AND(L48=\"\",N48=2),2,IF(AND(L48=0,N48=0),0,IF(AND(L48=\"\",N48=0),0,IF(AND(L48=0,N48=\"\"),0)))))))))))))))))))))))))","v":0},{"$f":"IF((O48=0),\"\",(O48))","v":""}]
["6J",null,0,"",null,null,null,null,0,""]
["6K",null,0,"",null,null,null,null,0,""]
["7A",null,0,"",null,null,null,null,null,null,null,{"$f":"IF(K51=\"Fully Implemented\",3,IF(K51=\"Partially Implemented\",2,IF(K51=\"Not Yet Implemented\",1,IF(K51=\"Cannot Make a Rating\",0,IF(K51=\"\",0)))))","v":0},null,{"$f":"IF(M51=\"Fully Implemented\",3,IF(M51=\"Partially Implemented\",2,IF(M51=\"Not Yet Implemented\",1,IF(M51=\"Cannot Make a Rating\",0,IF(M51=\"\",0)))))","v":0},{"$f":"IF(AND(L51=3,N51=3),3,IF(AND(L51=3,N51=2),2,IF(AND(L51=3,N51=1),2,IF(AND(L51=3,N51=0),3,IF(AND(L51=3,N51=\"\"),3,IF(AND(L51=2,N51=2),2,IF(AND(L51=2,N51=1),2,IF(AND(L51=2,N51=0),2,IF(AND(L51=2,N51=\"\"),2,IF(AND(L51=1,N51=1),1,IF(AND(L51=1,N51=0),1,IF(AND(L51=1,N51=\"\"),1,IF(AND(L51=0,N51=3),3,IF(AND(L51=0,N51=2),2,IF(AND(L51=0,N51=1),1,IF(AND(L51=\"\",N51=\"\"),\"\",IF(AND(L51=2,N51=3),2,IF(AND(L51=1,N51=3),2,IF(AND(L51=\"\",N51=3),3,IF(AND(L51=1,N51=2),2,IF(AND(L51=\"\",N51=1),1,IF(AND(L51=\"\",N51=2),2,IF(AND(L51=0,N51=0),0,IF(AND(L51=\"\",N51=0),0,IF(AND(L51=0,N51=\"\"),0)))))))))))))))))))))))))","v":0},{"$f":"IF((O51=0),\"\",(O51))","v":""}]
["7B",null,0,"",null,{"$f":"IF(E52=\"Fully Implemented\",3,IF(E52=\"Partially Implemented\",2,IF(E52=\"Not Yet Implemented\",1,IF(E52=\"Cannot Make a Rating\",0,IF(E52=\"\",0)))))","v":0},{"$f":"IF((F52=0),\"\",(F52))","v":""},null,null,null,null,{"$f":"IF(K52=\"Fully Implemented\",3,IF(K52=\"Partially Implemented\",2,IF(K52=\"Not Yet Implemented\",1,IF(K52=\"Cannot Make a Rating\",0,IF(K52=\"\",0)))))","v":0},null,{"$f":"IF(M52=\"Fully Implemented\",3,IF(M52=\"Partially Implemented\",2,IF(M52=\"Not Yet Implemented\",1,IF(M52=\"Cannot Make a Rating\",0,IF(M52=\"\",0)))))","v":0},{"$f":"IF(AND(L52=3,N52=3),3,IF(AND(L52=3,N52=2),2,IF(AND(L52=3,N52=1),2,IF(AND(L52=3,N52=0),3,IF(AND(L52=3,N52=\"\"),3,IF(AND(L52=2,N52=2),2,IF(AND(L52=2,N52=1),2,IF(AND(L52=2,N52=0),2,IF(AND(L52=2,N52=\"\"),2,IF(AND(L52=1,N52=1),1,IF(AND(L52=1,N52=0),1,IF(AND(L52=1,N52=\"\"),1,IF(AND(L52=0,N52=3),3,IF(AND(L52=0,N52=2),2,IF(AND(L52=0,N52=1),1,IF(AND(L52=\"\",N52=\"\"),\"\",IF(AND(L52=2,N52=3),2,IF(AND(L52=1,N52=3),2,IF(AND(L52=\"\",N52=3),3,IF(AND(L52=1,N52=2),2,IF(AND(L52=\"\",N52=1),1,IF(AND(L52=\"\",N52=2),2,IF(AND(L52=0,N52=0),0,IF(AND(L52=\"\",N52=0),0,IF(AND(L52=0,N52=\"\"),0)))))))))))))))))))))))))","v":0},{"$f":"IF((O52=0),\"\",(O52))","v":""}]
["7C",null,0,"",null,null,null,null,null,null,null,{"$f":"IF(K53=\"Fully Implemented\",3,IF(K53=\"Partially Implemented\",2,IF(K53=\"Not Yet Implemented\",1,IF(K53=\"Cannot Make a Rating\",0,IF(K53=\"\",0)))))","v":0},null,{"$f":"IF(M53=\"Fully Implemented\",3,IF(M53=\"Partially Implemented\",2,IF(M53=\"Not Yet Implemented\",1,IF(M53=\"Cannot Make a Rating\",0,IF(M53=\"\",0)))))","v":0},{"$f":"IF(AND(L53=3,N53=3),3,IF(AND(L53=3,N53=2),2,IF(AND(L53=3,N53=1),2,IF(AND(L53=3,N53=0),3,IF(AND(L53=3,N53=\"\"),3,IF(AND(L53=2,N53=2),2,IF(AND(L53=2,N53=1),2,IF(AND(L53=2,N53=0),2,IF(AND(L53=2,N53=\"\"),2,IF(AND(L53=1,N53=1),1,IF(AND(L53=1,N53=0),1,IF(AND(L53=1,N53=\"\"),1,IF(AND(L53=0,N53=3),3,IF(AND(L53=0,N53=2),2,IF(AND(L53=0,N53=1),1,IF(AND(L53=\"\",N53=\"\"),\"\",IF(AND(L53=2,N53=3),2,IF(AND(L53=1,N53=3),2,IF(AND(L53=\"\",N53=3),3,IF(AND(L53=1,N53=2),2,IF(AND(L53=\"\",N53=1),1,IF(AND(L53=\"\",N53=2),2,IF(AND(L53=0,N53=0),0,IF(AND(L53=\"\",N53=0),0,IF(AND(L53=0,N53=\"\"),0)))))))))))))))))))))))))","v":0},""]
["7D",null,0,"",null,null,null,null,{"$f":"IF(H54=\"Fully Implemented\",3,IF(H54=\"Partially Implemented\",2,IF(H54=\"Not Yet Implemented\",1,IF(H54=\"Cannot Make a Rating\",0,IF(H54=\"\",0)))))","v":0},{"$f":"IF((I54=0),\"\",(I54))","v":""}]
["7E",null,0,"",null,null,null,null,null,null,null,{"$f":"IF(K55=\"Fully Implemented\",3,IF(K55=\"Partially Implemented\",2,IF(K55=\"Not Yet Implemented\",1,IF(K55=\"Cannot Make a Rating\",0,IF(K55=\"\",0)))))","v":0},null,{"$f":"IF(M55=\"Fully Implemented\",3,IF(M55=\"Partially Implemented\",2,IF(M55=\"Not Yet Implemented\",1,IF(M55=\"Cannot Make a Rating\",0,IF(M55=\"\",0)))))","v":0},{"$f":"IF(AND(L55=3,N55=3),3,IF(AND(L55=3,N55=2),2,IF(AND(L55=3,N55=1),2,IF(AND(L55=3,N55=0),3,IF(AND(L55=3,N55=\"\"),3,IF(AND(L55=2,N55=2),2,IF(AND(L55=2,N55=1),2,IF(AND(L55=2,N55=0),2,IF(AND(L55=2,N55=\"\"),2,IF(AND(L55=1,N55=1),1,IF(AND(L55=1,N55=0),1,IF(AND(L55=1,N55=\"\"),1,IF(AND(L55=0,N55=3),3,IF(AND(L55=0,N55=2),2,IF(AND(L55=0,N55=1),1,IF(AND(L55=\"\",N55=\"\"),\"\",IF(AND(L55=2,N55=3),2,IF(AND(L55=1,N55=3),2,IF(AND(L55=\"\",N55=3),3,IF(AND(L55=1,N55=2),2,IF(AND(L55=\"\",N55=1),1,IF(AND(L55=\"\",N55=2),2,IF(AND(L55=0,N55=0),0,IF(AND(L55=\"\",N55=0),0,IF(AND(L55=0,N55=\"\"),0)))))))))))))))))))))))))","v":0},{"$f":"IF((O55=0),\"\",(O55))","v":""}]
["7F",null,0,"",null,null,null,null,null,null,null,{"$f":"IF(K56=\"Fully Implemented\",3,IF(K56=\"Partially Implemented\",2,IF(K56=\"Not Yet Implemented\",1,IF(K56=\"Cannot Make a Rating\",0,IF(K56=\"\",0)))))","v":0},null,{"$f":"IF(M56=\"Fully Implemented\",3,IF(M56=\"Partially Implemented\",2,IF(M56=\"Not Yet Implemented\",1,IF(M56=\"Cannot Make a Rating\",0,IF(M56=\"\",0)))))","v":0},{"$f":"IF(AND(L56=3,N56=3),3,IF(AND(L56=3,N56=2),2,IF(AND(L56=3,N56=1),2,IF(AND(L56=3,N56=0),3,IF(AND(L56=3,N56=\"\"),3,IF(AND(L56=2,N56=2),2,IF(AND(L56=2,N56=1),2,IF(AND(L56=2,N56=0),2,IF(AND(L56=2,N56=\"\"),2,IF(AND(L56=1,N56=1),1,IF(AND(L56=1,N56=0),1,IF(AND(L56=1,N56=\"\"),1,IF(AND(L56=0,N56=3),3,IF(AND(L56=0,N56=2),2,IF(AND(L56=0,N56=1),1,IF(AND(L56=\"\",N56=\"\"),\"\",IF(AND(L56=2,N56=3),2,IF(AND(L56=1,N56=3),2,IF(AND(L56=\"\",N56=3),3,IF(AND(L56=1,N56=2),2,IF(AND(L56=\"\",N56=1),1,IF(AND(L56=\"\",N56=2),2,IF(AND(L56=0,N56=0),0,IF(AND(L56=\"\",N56=0),0,IF(AND(L56=0,N56=\"\"),0)))))))))))))))))))))))))","v":0},{"$f":"IF((O56=0),\"\",(O56))","v":""}]
["7G",null,0,"",null,null,null,null,{"$f":"IF(H57=\"Fully Implemented\",3,IF(H57=\"Partially Implemented\",2,IF(H57=\"Not Yet Implemented\",1,IF(H57=\"Cannot Make a Rating\",0,IF(H57=\"\",0)))))","v":0},{"$f":"IF((I57=0),\"\",(I57))","v":""}]
["7H",null,0,"",null,null,null,null,{"$f":"IF(H58=\"Fully Implemented\",3,IF(H58=\"Partially Implemented\",2,IF(H58=\"Not Yet Implemented\",1,IF(H58=\"Cannot Make a Rating\",0,IF(H58=\"\",0)))))","v":0},{"$f":"IF((I58=0),\"\",(I58))","v":""}]
["7I",null,0,"",null,null,null,null,null,null,null,null,null,{"$f":"IF(M59=\"Fully Implemented\",3,IF(M59=\"Partially Implemented\",2,IF(M59=\"Not Yet Implemented\",1,IF(M59=\"Cannot Make a Rating\",0,IF(M59=\"\",0)))))","v":0},{"$f":"IF(AND(L59=3,N59=3),3,IF(AND(L59=3,N59=2),2,IF(AND(L59=3,N59=1),2,IF(AND(L59=3,N59=0),3,IF(AND(L59=3,N59=\"\"),3,IF(AND(L59=2,N59=2),2,IF(AND(L59=2,N59=1),2,IF(AND(L59=2,N59=0),2,IF(AND(L59=2,N59=\"\"),2,IF(AND(L59=1,N59=1),1,IF(AND(L59=1,N59=0),1,IF(AND(L59=1,N59=\"\"),1,IF(AND(L59=0,N59=3),3,IF(AND(L59=0,N59=2),2,IF(AND(L59=0,N59=1),1,IF(AND(L59=\"\",N59=\"\"),\"\",IF(AND(L59=2,N59=3),2,IF(AND(L59=1,N59=3),2,IF(AND(L59=\"\",N59=3),3,IF(AND(L59=1,N59=2),2,IF(AND(L59=\"\",N59=1),1,IF(AND(L59=\"\",N59=2),2,IF(AND(L59=0,N59=0),0,IF(AND(L59=\"\",N59=0),0,IF(AND(L59=0,N59=\"\"),0)))))))))))))))))))))))))","v":0},{"$f":"IF((O59=0),\"\",(O59))","v":""}]
["7J",null,0,"",null,null,null,null,null,null,null,null,null,{"$f":"IF(M60=\"Fully Implemented\",3,IF(M60=\"Partially Implemented\",2,IF(M60=\"Not Yet Implemented\",1,IF(M60=\"Cannot Make a Rating\",0,IF(M60=\"\",0)))))","v":0},{"$f":"IF(AND(L60=3,N60=3),3,IF(AND(L60=3,N60=2),2,IF(AND(L60=3,N60=1),2,IF(AND(L60=3,N60=0),3,IF(AND(L60=3,N60=\"\"),3,IF(AND(L60=2,N60=2),2,IF(AND(L60=2,N60=1),2,IF(AND(L60=2,N60=0),2,IF(AND(L60=2,N60=\"\"),2,IF(AND(L60=1,N60=1),1,IF(AND(L60=1,N60=0),1,IF(AND(L60=1,N60=\"\"),1,IF(AND(L60=0,N60=3),3,IF(AND(L60=0,N60=2),2,IF(AND(L60=0,N60=1),1,IF(AND(L60=\"\",N60=\"\"),\"\",IF(AND(L60=2,N60=3),2,IF(AND(L60=1,N60=3),2,IF(AND(L60=\"\",N60=3),3,IF(AND(L60=1,N60=2),2,IF(AND(L60=\"\",N60=1),1,IF(AND(L60=\"\",N60=2),2,IF(AND(L60=0,N60=0),0,IF(AND(L60=\"\",N60=0),0,IF(AND(L60=0,N60=\"\"),0)))))))))))))))))))))))))","v":0},{"$f":"IF((O60=0),\"\",(O60))","v":""}]
["7K",null,0,"",null,null,null,null,null,null,null,{"$f":"IF(K61=\"Fully Implemented\",3,IF(K61=\"Partially Implemented\",2,IF(K61=\"Not Yet Implemented\",1,IF(K61=\"Cannot Make a Rating\",0,IF(K61=\"\",0)))))","v":0},null,{"$f":"IF(M61=\"Fully Implemented\",3,IF(M61=\"Partially Implemented\",2,IF(M61=\"Not Yet Implemented\",1,IF(M61=\"Cannot Make a Rating\",0,IF(M61=\"\",0)))))","v":0},{"$f":"IF(AND(L61=3,N61=3),3,IF(AND(L61=3,N61=2),2,IF(AND(L61=3,N61=1),2,IF(AND(L61=3,N61=0),3,IF(AND(L61=3,N61=\"\"),3,IF(AND(L61=2,N61=2),2,IF(AND(L61=2,N61=1),2,IF(AND(L61=2,N61=0),2,IF(AND(L61=2,N61=\"\"),2,IF(AND(L61=1,N61=1),1,IF(AND(L61=1,N61=0),1,IF(AND(L61=1,N61=\"\"),1,IF(AND(L61=0,N61=3),3,IF(AND(L61=0,N61=2),2,IF(AND(L61=0,N61=1),1,IF(AND(L61=\"\",N61=\"\"),\"\",IF(AND(L61=2,N61=3),2,IF(AND(L61=1,N61=3),2,IF(AND(L61=\"\",N61=3),3,IF(AND(L61=1,N61=2),2,IF(AND(L61=\"\",N61=1),1,IF(AND(L61=\"\",N61=2),2,IF(AND(L61=0,N61=0),0,IF(AND(L61=\"\",N61=0),0,IF(AND(L61=0,N61=\"\"),0)))))))))))))))))))))))))","v":0},""]
["7L",null,0,"",null,null,null,null,null,null,null,{"$f":"IF(K62=\"Fully Implemented\",3,IF(K62=\"Partially Implemented\",2,IF(K62=\"Not Yet Implemented\",1,IF(K62=\"Cannot Make a Rating\",0,IF(K62=\"\",0)))))","v":0},null,null,{"$f":"IF(AND(L62=3,N62=3),3,IF(AND(L62=3,N62=2),2,IF(AND(L62=3,N62=1),2,IF(AND(L62=3,N62=0),3,IF(AND(L62=3,N62=\"\"),3,IF(AND(L62=2,N62=2),2,IF(AND(L62=2,N62=1),2,IF(AND(L62=2,N62=0),2,IF(AND(L62=2,N62=\"\"),2,IF(AND(L62=1,N62=1),1,IF(AND(L62=1,N62=0),1,IF(AND(L62=1,N62=\"\"),1,IF(AND(L62=0,N62=3),3,IF(AND(L62=0,N62=2),2,IF(AND(L62=0,N62=1),1,IF(AND(L62=\"\",N62=\"\"),\"\",IF(AND(L62=2,N62=3),2,IF(AND(L62=1,N62=3),2,IF(AND(L62=\"\",N62=3),3,IF(AND(L62=1,N62=2),2,IF(AND(L62=\"\",N62=1),1,IF(AND(L62=\"\",N62=2),2,IF(AND(L62=0,N62=0),0,IF(AND(L62=\"\",N62=0),0,IF(AND(L62=0,N62=\"\"),0)))))))))))))))))))))))))","v":0},""]
["7M",null,null,null,null,null,null,null,{"$f":"IF(H63=\"Fully Implemented\",3,IF(H63=\"Partially Implemented\",2,IF(H63=\"Not Yet Implemented\",1,IF(H63=\"Cannot Make a Rating\",0,IF(H63=\"\",0)))))","v":0},{"$f":"IF((I63=0),\"\",(I63))","v":""},null,{"$f":"IF(K63=\"Fully Implemented\",3,IF(K63=\"Partially Implemented\",2,IF(K63=\"Not Yet Implemented\",1,IF(K63=\"Cannot Make a Rating\",0,IF(K63=\"\",0)))))","v":0},null,{"$f":"IF(M63=\"Fully Implemented\",3,IF(M63=\"Partially Implemented\",2,IF(M63=\"Not Yet Implemented\",1,IF(M63=\"Cannot Make a Rating\",0,IF(M63=\"\",0)))))","v":0},{"$f":"IF(AND(L63=3,N63=3),3,IF(AND(L63=3,N63=2),2,IF(AND(L63=3,N63=1),2,IF(AND(L63=3,N63=0),3,IF(AND(L63=3,N63=\"\"),3,IF(AND(L63=2,N63=2),2,IF(AND(L63=2,N63=1),2,IF(AND(L63=2,N63=0),2,IF(AND(L63=2,N63=\"\"),2,IF(AND(L63=1,N63=1),1,IF(AND(L63=1,N63=0),1,IF(AND(L63=1,N63=\"\"),1,IF(AND(L63=0,N63=3),3,IF(AND(L63=0,N63=2),2,IF(AND(L63=0,N63=1),1,IF(AND(L63=\"\",N63=\"\"),\"\",IF(AND(L63=2,N63=3),2,IF(AND(L63=1,N63=3),2,IF(AND(L63=\"\",N63=3),3,IF(AND(L63=1,N63=2),2,IF(AND(L63=\"\",N63=1),1,IF(AND(L63=\"\",N63=2),2,IF(AND(L63=0,N63=0),0,IF(AND(L63=\"\",N63=0),0,IF(AND(L63=0,N63=\"\"),0)))))))))))))))))))))))))","v":0},""]
["7N",null,{"$f":"IF(B64=\"Fully Implemented\",3,IF(B64=\"Partially Implemented\",2,IF(B64=\"Not Yet Implemented\",1,IF(B64=\"Cannot Make a Rating\",0,IF(B64=\"\",0)))))","v":0},{"$f":"IF((C64=0),\"\",(C64))","v":""},null,null,null,null,0,{"$f":"IF((I64=0),\"\",(I64))","v":""}]
["8A",null,{"$f":"IF(B65=\"Fully Implemented\",3,IF(B65=\"Partially Implemented\",2,IF(B65=\"Not Yet Implemented\",1,IF(B65=\"Cannot Make a Rating\",0,IF(B65=\"\",0)))))","v":0},{"$f":"IF((C65=0),\"\",(C65))","v":""},null,null,null,null,0,"",null,null,null,null,null,null,null,null,null,null,null,null,{"$f":"IF(V65=\"Fully Implemented\",3,IF(V65=\"Partially Implemented\",2,IF(V65=\"Not Yet Implemented\",1,IF(V65=\"Cannot Make a Rating\",0,IF(V65=\"\",\"\")))))","v":""},{"$f":"IF((W65=0),\"\",(W65))","v":""}]
["8B",null,{"$f":"IF(B66=\"Fully Implemented\",3,IF(B66=\"Partially Implemented\",2,IF(B66=\"Not Yet Implemented\",1,IF(B66=\"Cannot Make a Rating\",0,IF(B66=\"\",0)))))","v":0},"",null,null,null,null,0,"",null,null,null,null,null,null,null,null,{"$f":"IF(AND(C66=3,I66=3),3,IF(AND(C66=3,I66=2),2,IF(AND(C66=3,I66=1),2,IF(AND(C66=3,I66=\"\"),3, IF(AND(C66=2,I66=2),2, IF(AND(C66=2,I66=1),2,IF(AND(C66=2,I66=\"\"),2,IF(AND(C66=1,I66=1),1, IF(AND(C66=1,I66=\"\"),1,IF(AND(C66=\"\",I66=\"\"),\"\",IF(AND(C66=2,I66=3),2,IF(AND(C66=1,I66=3),2,IF(AND(C66=\"\",I66=3),3,IF(AND(C66=1,I66=2),2,IF(AND(C66=\"\",I66=1),1,IF(AND(C66=\"\",I66=2),2,IF(AND(C66=\"\",I66=0),0,IF(AND(C66=0,I66=0),0,IF(AND(C66=0,I66=3),3,IF(AND(C66=0,I66=2),2,IF(AND(C66=0,I66=1),1,IF(AND(C66=3,I66=0),3,IF(AND(C66=2,I66=0),2,IF(AND(C66=1,I66=0),1,IF(AND(C66=0,I66=\"\"),0)))))))))))))))))))))))))","v":0},{"$f":"IF((S66=0),\"\",(S66))","v":""}]
["8C",null,{"$f":"IF(B67=\"Fully Implemented\",3,IF(B67=\"Partially Implemented\",2,IF(B67=\"Not Yet Implemented\",1,IF(B67=\"Cannot Make a Rating\",0,IF(B67=\"\",0)))))","v":0},"",null,null,null,null,0,""]
["8D",null,{"$f":"IF(B68=\"Fully Implemented\",3,IF(B68=\"Partially Implemented\",2,IF(B68=\"Not Yet Implemented\",1,IF(B68=\"Cannot Make a Rating\",0,IF(B68=\"\",0)))))","v":0},"",null,null,null,null,0,""]

{"sheet":"Scoring Calculations","index":5,"n_rows":68,"n_cols":18,"rows_kept":68,"cut":false,"hidden":true,"merged":[]}
["Provision Number","Interview FTC Average between Raters","Interview with Treatment Average between Raters","Document Average between Raters","Observation Average between Raters","Split Provisions Implementation Ratings",null,"Max Score among Data Sources",null,"[Optional Administrative Validity Check Average between Raters]",null,"Discrepancy?"]
["1A",{"$f":"(IFERROR(AVERAGE('Rater 1 Scoresheet'!D2,'Rater 2 Scoresheet'!D2),\"\"))","v":""},null,null,{"$f":"(IFERROR(AVERAGE('Rater 1 Scoresheet'!P2,'Rater 2 Scoresheet'!P2),\"\"))","v":""},{"$f":"IFERROR(AVERAGE('Rater 1 Scoresheet'!T2,'Rater 2 Scoresheet'!T2),\"\")","v":""},null,{"$f":"IF((F2=0),\"\",(F2))","v":""},null,null,null,{"$f":"IF(OR(M2=1, N2=1, O2=1,P2=1,Q2=1,R2=1),1,0)","v":0},{"$f":"IF(AND('Rater 1 Scoresheet'!C2=1,'Rater 1 Scoresheet'!O2=3),1,0)","v":0},{"$f":"IF(AND('Rater 1 Scoresheet'!C2=3,'Rater 1 Scoresheet'!O2=1),1,0)","v":0}]
["1B",null,null,{"$f":"(IFERROR(AVERAGE('Rater 1 Scoresheet'!J3,'Rater 2 Scoresheet'!J3),\"\"))","v":""},null,{"$f":"IFERROR(AVERAGE('Rater 1 Scoresheet'!T3,'Rater 2 Scoresheet'!T3),\"\")","v":""},null,{"$f":"IF((F3=0),\"\",(F3))","v":""},null,{"$f":"IF(AND('Rater 1 Scoresheet'!X3=\"\",'Rater 2 Scoresheet'!X3=\"\"),\"N/A\",AVERAGE('Rater 1 Scoresheet'!X3,'Rater 2 Scoresheet'!X3))","v":"N/A"},null,{"$f":"IF(OR(M3=1, N3=1, O3=1,P3=1,Q3=1,R3=1),1,0)","v":0},{"$f":"IF(AND('Rater 1 Scoresheet'!C3=1,'Rater 1 Scoresheet'!I3=3),1,0)","v":0},{"$f":"IF(AND('Rater 1 Scoresheet'!C3=3,'Rater 1 Scoresheet'!I3=1),1,0)","v":0}]
["1C",null,null,{"$f":"(IFERROR(AVERAGE('Rater 1 Scoresheet'!J4,'Rater 2 Scoresheet'!J4),\"\"))","v":""},{"$f":"(IFERROR(AVERAGE('Rater 1 Scoresheet'!P4,'Rater 2 Scoresheet'!P4),\"\"))","v":""},null,null,{"$f":"IF(MAX(B4:E4)=0,\"\",MAX(B4:E4))","v":""},null,null,null,0,{"$f":"IF(AND('Rater 1 Scoresheet'!I4=1,'Rater 1 Scoresheet'!O4=3),1,0)","v":0},{"$f":"IF(AND('Rater 1 Scoresheet'!I4=3,'Rater 1 Scoresheet'!O4=1),1,0)","v":0}]
["1D",{"$f":"(IFERROR(AVERAGE('Rater 1 Scoresheet'!D5,'Rater 2 Scoresheet'!D5),\"\"))","v":""},null,{"$f":"(IFERROR(AVERAGE('Rater 1 Scoresheet'!J5,'Rater 2 Scoresheet'!J5),\"\"))","v":""},null,null,null,{"$f":"IF(MAX(B5:E5)=0,\"\",MAX(B5:E5))","v":""},null,null,null,0,{"$f":"IF(AND('Rater 1 Scoresheet'!C5=1,'Rater 1 Scoresheet'!I5=3),1,0)","v":0},{"$f":"IF(AND('Rater 1 Scoresheet'!I5=1,'Rater 1 Scoresheet'!C5=3),1,0)","v":0}]
["1E",{"$f":"(IFERROR(AVERAGE('Rater 1 Scoresheet'!D6,'Rater 2 Scoresheet'!D6),\"\"))","v":""},null,{"$f":"(IFERROR(AVERAGE('Rater 1 Scoresheet'!J6,'Rater 2 Scoresheet'!J6),\"\"))","v":""},null,null,null,{"$f":"IF(MAX(B6:E6)=0,\"\",MAX(B6:E6))","v":""},null,null,null,0,{"$f":"IF(AND('Rater 1 Scoresheet'!C6=1,'Rater 1 Scoresheet'!I6=3),1,0)","v":0},{"$f":"IF(AND('Rater 1 Scoresheet'!I6=1,'Rater 1 Scoresheet'!C6=3),1,0)","v":0}]
["1F",null,null,{"$f":"(IFERROR(AVERAGE('Rater 1 Scoresheet'!J7,'Rater 2 Scoresheet'!J7),\"\"))","v":""},null,{"$f":"IFERROR(AVERAGE('Rater 1 Scoresheet'!T7,'Rater 2 Scoresheet'!T7),\"\")","v":""},null,{"$f":"IF((F7=0),\"\",(F7))","v":""},null,{"$f":"IF(AND('Rater 1 Scoresheet'!X7=\"\",'Rater 2 Scoresheet'!X7=\"\"),\"N/A\",AVERAGE('Rater 1 Scoresheet'!X7,'Rater 2 Scoresheet'!X7))","v":"N/A"},null,0,{"$f":"IF(AND('Rater 1 Scoresheet'!C7=1,'Rater 1 Scoresheet'!F7=3),1,0)","v":0},{"$f":"IF(AND('Rater 1 Scoresheet'!F7=1,'Rater 1 Scoresheet'!C7=3),1,0)","v":0},{"$f":"IF(AND('Rater 1 Scoresheet'!C7=1,'Rater 1 Scoresheet'!I7=3),1,0)","v":0},{"$f":"IF(AND('Rater 1 Scoresheet'!I7=1,'Rater 1 Scoresheet'!C7=3),1,0)","v":0},{"$f":"IF(AND('Rater 1 Scoresheet'!I7=1,'Rater 1 Scoresheet'!F7=3),1,0)","v":0},{"$f":"IF(AND('Rater 1 Scoresheet'!F7=1,'Rater 1 Scoresheet'!I7=3),1,0)","v":0}]
["1G",{"$f":"(IFERROR(AVERAGE('Rater 1 Scoresheet'!D8,'Rater 2 Scoresheet'!D8),\"\"))","v":""},null,{"$f":"(IFERROR(AVERAGE('Rater 1 Scoresheet'!J8,'Rater 2 Scoresheet'!J8),\"\"))","v":""},null,null,null,{"$f":"IF(MAX(B8:E8)=0,\"\",MAX(B8:E8))","v":""},null,null,null,0,{"$f":"IF(AND('Rater 1 Scoresheet'!C8=1,'Rater 1 Scoresheet'!I8=3),1,0)","v":0},{"$f":"IF(AND('Rater 1 Scoresheet'!I8=1,'Rater 1 Scoresheet'!C8=3),1,0)","v":0}]
["1H",{"$f":"(IFERROR(AVERAGE('Rater 1 Scoresheet'!D9,'Rater 2 Scoresheet'!D9),\"\"))","v":""},null,{"$f":"(IFERROR(AVERAGE('Rater 1 Scoresheet'!J9,'Rater 2 Scoresheet'!J9),\"\"))","v":""},null,null,null,{"$f":"IF(MAX(B9:E9)=0,\"\",MAX(B9:E9))","v":""},null,null,null,0,{"$f":"IF(AND('Rater 1 Scoresheet'!C9=1,'Rater 1 Scoresheet'!I9=3),1,0)","v":0},{"$f":"IF(AND('Rater 1 Scoresheet'!I9=1,'Rater 1 Scoresheet'!C9=3),1,0)","v":0}]
["1I",{"$f":"(IFERROR(AVERAGE('Rater 1 Scoresheet'!D10,'Rater 2 Scoresheet'!D10),\"\"))","v":""},null,{"$f":"(IFERROR(AVERAGE('Rater 1 Scoresheet'!J10,'Rater 2 Scoresheet'!J10),\"\"))","v":""},null,null,null,"",null,null,null,0,{"$f":"IF(AND('Rater 1 Scoresheet'!C10=1,'Rater 1 Scoresheet'!I10=3),1,0)","v":0},{"$f":"IF(AND('Rater 1 Scoresheet'!I10=1,'Rater 1 Scoresheet'!C10=3),1,0)","v":0}]
["1J",{"$f":"(IFERROR(AVERAGE('Rater 1 Scoresheet'!D11,'Rater 2 Scoresheet'!D11),\"\"))","v":""},null,{"$f":"(IFERROR(AVERAGE('Rater 1 Scoresheet'!J11,'Rater 2 Scoresheet'!J11),\"\"))","v":""},{"$f":"(IFERROR(AVERAGE('Rater 1 Scoresheet'!P11,'Rater 2 Scoresheet'!P11),\"\"))","v":""},null,null,"",null,null,null,0,{"$f":"IF(AND('Rater 1 Scoresheet'!C11=1,'Rater 1 Scoresheet'!I11=3),1,0)","v":0},{"$f":"IF(AND('Rater 1 Scoresheet'!I11=1,'Rater 1 Scoresheet'!C11=3),1,0)","v":0},{"$f":"IF(AND('Rater 1 Scoresheet'!C11=1,'Rater 1 Scoresheet'!O11=3),1,0)","v":0},{"$f":"IF(AND('Rater 1 Scoresheet'!O11=1,'Rater 1 Scoresheet'!C11=3),1,0)","v":0},{"$f":"IF(AND('Rater 1 Scoresheet'!I11=1,'Rater 1 Scoresheet'!O11=3),1,0)","v":0},{"$f":"IF(AND('Rater 1 Scoresheet'!O11=1,'Rater 1 Scoresheet'!I11=3),1,0)","v":0}]
["2A",{"$f":"(IFERROR(AVERAGE('Rater 1 Scoresheet'!D12,'Rater 2 Scoresheet'!D12),\"\"))","v":""},null,{"$f":"(IFERROR(AVERAGE('Rater 1 Scoresheet'!J12,'Rater 2 Scoresheet'!J12),\"\"))","v":""},null,null,null,"",null,null,null,0,{"$f":"IF(AND('Rater 1 Scoresheet'!C12=1,'Rater 1 Scoresheet'!I12=3),1,0)","v":0},{"$f":"IF(AND('Rater 1 Scoresheet'!I12=1,'Rater 1 Scoresheet'!C12=3),1,0)","v":0}]
["2B",null,null,null,{"$f":"(IFERROR(AVERAGE('Rater 1 Scoresheet'!P13,'Rater 2 Scoresheet'!P13),\"\"))","v":""},{"$f":"IFERROR(AVERAGE('Rater 1 Scoresheet'!T13,'Rater 2 Scoresheet'!T13),\"\")","v":""},null,{"$f":"IF((F13=0),\"\",(F13))","v":""},null,null,null,0,{"$f":"IF(AND('Rater 1 Scoresheet'!C13=1,'Rater 1 Scoresheet'!L13=3),1,0)","v":0},{"$f":"IF(AND('Rater 1 Scoresheet'!L13=1,'Rater 1 Scoresheet'!C13=3),1,0)","v":0}]
["2C",{"$f":"(IFERROR(AVERAGE('Rater 1 Scoresheet'!D14,'Rater 2 Scoresheet'!D14),\"\"))","v":""},null,null,{"$f":"(IFERROR(AVERAGE('Rater 1 Scoresheet'!P14,'Rater 2 Scoresheet'!P14),\"\"))","v":""},null,null,{"$f":"IF(MAX(B14:E14)=0,\"\",MAX(B14:E14))","v":""},null,null,null,0,{"$f":"IF(AND('Rater 1 Scoresheet'!C14=1,'Rater 1 Scoresheet'!L14=3),1,0)","v":0},{"$f":"IF(AND('Rater 1 Scoresheet'!L14=1,'Rater 1 Scoresheet'!C14=3),1,0)","v":0}]
["2D",{"$f":"(IFERROR(AVERAGE('Rater 1 Scoresheet'!D15,'Rater 2 Scoresheet'!D15),\"\"))","v":""},null,null,{"$f":"(IFERROR(AVERAGE('Rater 1 Scoresheet'!P15,'Rater 2 Scoresheet'!P15),\"\"))","v":""},null,null,{"$f":"IF(MAX(B15:E15)=0,\"\",MAX(B15:E15))","v":""},null,null,null,0,{"$f":"IF(AND('Rater 1 Scoresheet'!C15=1,'Rater 1 Scoresheet'!N14=3),1,0)","v":0},{"$f":"IF(AND('Rater 1 Scoresheet'!N15=1,'Rater 1 Scoresheet'!C14=3),1,0)","v":0}]
["2E",{"$f":"(IFERROR(AVERAGE('Rater 1 Scoresheet'!D16,'Rater 2 Scoresheet'!D16),\"\"))","v":""},null,{"$f":"(IFERROR(AVERAGE('Rater 1 Scoresheet'!J16,'Rater 2 Scoresheet'!J16),\"\"))","v":""},null,null,null,"",null,null,null,0,{"$f":"IF(AND('Rater 1 Scoresheet'!C16=1,'Rater 1 Scoresheet'!I16=3),1,0)","v":0},{"$f":"IF(AND('Rater 1 Scoresheet'!I16=1,'Rater 1 Scoresheet'!C16=3),1,0)","v":0}]
["2F",{"$f":"(IFERROR(AVERAGE('Rater 1 Scoresheet'!D17,'Rater 2 Scoresheet'!D17),\"\"))","v":""},null,{"$f":"(IFERROR(AVERAGE('Rater 1 Scoresheet'!J17,'Rater 2 Scoresheet'!J17),\"\"))","v":""},null,null,null,"",null,null,null,0,{"$f":"IF(AND('Rater 1 Scoresheet'!C17=1,'Rater 1 Scoresheet'!I17=3),1,0)","v":0},{"$f":"IF(AND('Rater 1 Scoresheet'!I17=1,'Rater 1 Scoresheet'!C17=3),1,0)","v":0}]
["3A",{"$f":"(IFERROR(AVERAGE('Rater 1 Scoresheet'!D18,'Rater 2 Scoresheet'!D18),\"\"))","v":""},null,{"$f":"(IFERROR(AVERAGE('Rater 1 Scoresheet'!J18,'Rater 2 Scoresheet'!J18),\"\"))","v":""},null,null,null,"",null,null,null,0,{"$f":"IF(AND('Rater 1 Scoresheet'!C18=1,'Rater 1 Scoresheet'!I18=3),1,0)","v":0},{"$f":"IF(AND('Rater 1 Scoresheet'!I18=1,'Rater 1 Scoresheet'!C18=3),1,0)","v":0}]
["3B",{"$f":"(IFERROR(AVERAGE('Rater 1 Scoresheet'!D19,'Rater 2 Scoresheet'!D19),\"\"))","v":""},null,{"$f":"(IFERROR(AVERAGE('Rater 1 Scoresheet'!J19,'Rater 2 Scoresheet'!J19),\"\"))","v":""},null,null,null,"",null,{"$f":"IF(AND('Rater 1 Scoresheet'!X19=\"\",'Rater 2 Scoresheet'!X19=\"\"),\"N/A\",AVERAGE('Rater 1 Scoresheet'!X19,'Rater 2 Scoresheet'!X19))","v":"N/A"},null,0,{"$f":"IF(AND('Rater 1 Scoresheet'!C19=1,'Rater 1 Scoresheet'!I19=3),1,0)","v":0},{"$f":"IF(AND('Rater 1 Scoresheet'!I19=1,'Rater 1 Scoresheet'!C19=3),1,0)","v":0}]
["3C",{"$f":"(IFERROR(AVERAGE('Rater 1 Scoresheet'!D20,'Rater 2 Scoresheet'!D20),\"\"))","v":""},null,{"$f":"(IFERROR(AVERAGE('Rater 1 Scoresheet'!J20,'Rater 2 Scoresheet'!J20),\"\"))","v":""},null,null,null,{"$f":"IF(MAX(B20:E20)=0,\"\",MAX(B20:E20))","v":""},null,{"$f":"IF(AND('Rater 1 Scoresheet'!X20=\"\",'Rater 2 Scoresheet'!X20=\"\"),\"N/A\",AVERAGE('Rater 1 Scoresheet'!X20,'Rater 2 Scoresheet'!X20))","v":"N/A"},null,0,{"$f":"IF(AND('Rater 1 Scoresheet'!C20=1,'Rater 1 Scoresheet'!I20=3),1,0)","v":0},{"$f":"IF(AND('Rater 1 Scoresheet'!I20=1,'Rater 1 Scoresheet'!C20=3),1,0)","v":0}]
["3D",{"$f":"(IFERROR(AVERAGE('Rater 1 Scoresheet'!D21,'Rater 2 Scoresheet'!D21),\"\"))","v":""},null,{"$f":"(IFERROR(AVERAGE('Rater 1 Scoresheet'!J21,'Rater 2 Scoresheet'!J21),\"\"))","v":""},null,null,null,{"$f":"IF(MAX(B21:E21)=0,\"\",MAX(B21:E21))","v":""},null,{"$f":"IF(AND('Rater 1 Scoresheet'!X21=\"\",'Rater 2 Scoresheet'!X21=\"\"),\"N/A\",AVERAGE('Rater 1 Scoresheet'!X21,'Rater 2 Scoresheet'!X21))","v":"N/A"},null,0,{"$f":"IF(AND('Rater 1 Scoresheet'!C21=1,'Rater 1 Scoresheet'!I21=3),1,0)","v":0},{"$f":"IF(AND('Rater 1 Scoresheet'!I21=1,'Rater 1 Scoresheet'!C21=3),1,0)","v":0}]
["3E",{"$f":"(IFERROR(AVERAGE('Rater 1 Scoresheet'!D22,'Rater 2 Scoresheet'!D22),\"\"))","v":""},null,{"$f":"(IFERROR(AVERAGE('Rater 1 Scoresheet'!J22,'Rater 2 Scoresheet'!J22),\"\"))","v":""},null,null,null,"",null,null,null,0,{"$f":"IF(AND('Rater 1 Scoresheet'!C22=1,'Rater 1 Scoresheet'!I22=3),1,0)","v":0},{"$f":"IF(AND('Rater 1 Scoresheet'!I22=1,'Rater 1 Scoresheet'!C22=3),1,0)","v":0}]
["4A",{"$f":"(IFERROR(AVERAGE('Rater 1 Scoresheet'!D23,'Rater 2 Scoresheet'!D23),\"\"))","v":""},null,{"$f":"(IFERROR(AVERAGE('Rater 1 Scoresheet'!J23,'Rater 2 Scoresheet'!J23),\"\"))","v":""},{"$f":"(IFERROR(AVERAGE('Rater 1 Scoresheet'!P23,'Rater 2 Scoresheet'!P23),\"\"))","v":""},null,null,"",null,null,null,0,{"$f":"IF(AND('Rater 1 Scoresheet'!C23=1,'Rater 1 Scoresheet'!I23=3),1,0)","v":0},{"$f":"IF(AND('Rater 1 Scoresheet'!I23=1,'Rater 1 Scoresheet'!C23=3),1,0)","v":0},{"$f":"IF(AND('Rater 1 Scoresheet'!C23=1,'Rater 1 Scoresheet'!O23=3),1,0)","v":0},{"$f":"IF(AND('Rater 1 Scoresheet'!O23=1,'Rater 1 Scoresheet'!C23=3),1,0)","v":0},{"$f":"IF(AND('Rater 1 Scoresheet'!I23=1,'Rater 1 Scoresheet'!O23=3),1,0)","v":0},{"$f":"IF(AND('Rater 1 Scoresheet'!O23=1,'Rater 1 Scoresheet'!I23=3),1,0)","v":0}]
["4B",{"$f":"(IFERROR(AVERAGE('Rater 1 Scoresheet'!D24,'Rater 2 Scoresheet'!D24),\"\"))","v":""},null,{"$f":"(IFERROR(AVERAGE('Rater 1 Scoresheet'!J24,'Rater 2 Scoresheet'!J24),\"\"))","v":""},null,null,null,"",null,{"$f":"IF(AND('Rater 1 Scoresheet'!X24=\"\",'Rater 2 Scoresheet'!X24=\"\"),\"N/A\",AVERAGE('Rater 1 Scoresheet'!X24,'Rater 2 Scoresheet'!X24))","v":"N/A"},null,0,{"$f":"IF(AND('Rater 1 Scoresheet'!C24=1,'Rater 1 Scoresheet'!I24=3),1,0)","v":0},{"$f":"IF(AND('Rater 1 Scoresheet'!I24=1,'Rater 1 Scoresheet'!C24=3),1,0)","v":0}]
["4C",{"$f":"(IFERROR(AVERAGE('Rater 1 Scoresheet'!D25,'Rater 2 Scoresheet'!D25),\"\"))","v":""},{"$f":"(IFERROR(AVERAGE('Rater 1 Scoresheet'!G25,'Rater 2 Scoresheet'!G25),\"\"))","v":""},{"$f":"(IFERROR(AVERAGE('Rater 1 Scoresheet'!J25,'Rater 2 Scoresheet'!J25),\"\"))","v":""},null,null,null,"",null,null,null,0,{"$f":"IF(AND('Rater 1 Scoresheet'!C25=1,'Rater 1 Scoresheet'!I25=3),1,0)","v":0},{"$f":"IF(AND('Rater 1 Scoresheet'!I25=1,'Rater 1 Scoresheet'!C25=3),1,0)","v":0},{"$f":"IF(AND('Rater 1 Scoresheet'!C25=1,'Rater 1 Scoresheet'!O25=3),1,0)","v":0},{"$f":"IF(AND('Rater 1 Scoresheet'!O25=1,'Rater 1 Scoresheet'!C25=3),1,0)","v":0},{"$f":"IF(AND('Rater 1 Scoresheet'!I25=1,'Rater 1 Scoresheet'!O25=3),1,0)","v":0},{"$f":"IF(AND('Rater 1 Scoresheet'!O25=1,'Rater 1 Scoresheet'!I25=3),1,0)","v":0}]
["4D",{"$f":"(IFERROR(AVERAGE('Rater 1 Scoresheet'!D26,'Rater 2 Scoresheet'!D26),\"\"))","v":""},null,{"$f":"(IFERROR(AVERAGE('Rater 1 Scoresheet'!J26,'Rater 2 Scoresheet'!J26),\"\"))","v":""},null,{"$f":"IFERROR(AVERAGE('Rater 1 Scoresheet'!T26,'Rater 2 Scoresheet'!T26),\"\")","v":""},null,{"$f":"IF((F26=0),\"\",(F26))","v":""},null,null,null,0,{"$f":"IF(AND('Rater 1 Scoresheet'!C26=1,'Rater 1 Scoresheet'!I26=3),1,0)","v":0},{"$f":"IF(AND('Rater 1 Scoresheet'!I26=1,'Rater 1 Scoresheet'!C26=3),1,0)","v":0}]
["4E",{"$f":"(IFERROR(AVERAGE('Rater 1 Scoresheet'!D27,'Rater 2 Scoresheet'!D27),\"\"))","v":""},null,{"$f":"(IFERROR(AVERAGE('Rater 1 Scoresheet'!J27,'Rater 2 Scoresheet'!J27),\"\"))","v":""},{"$f":"(IFERROR(AVERAGE('Rater 1 Scoresheet'!P27,'Rater 2 Scoresheet'!P27),\"\"))","v":""},null,null,{"$f":"IF(MAX(B27:E27)=0,\"\",MAX(B27:E27))","v":""},null,null,null,0,{"$f":"IF(AND('Rater 1 Scoresheet'!C25=1,'Rater 1 Scoresheet'!I25=3),1,0)","v":0},{"$f":"IF(AND('Rater 1 Scoresheet'!I25=1,'Rater 1 Scoresheet'!C25=3),1,0)","v":0},{"$f":"IF(AND('Rater 1 Scoresheet'!C27=1,'Rater 1 Scoresheet'!O27=3),1,0)","v":0},{"$f":"IF(AND('Rater 1 Scoresheet'!O27=1,'Rater 1 Scoresheet'!C27=3),1,0)","v":0},{"$f":"IF(AND('Rater 1 Scoresheet'!I27=1,'Rater 1 Scoresheet'!O27=3),1,0)","v":0},{"$f":"IF(AND('Rater 1 Scoresheet'!O27=1,'Rater 1 Scoresheet'!I27=3),1,0)","v":0}]
["5A",{"$f":"(IFERROR(AVERAGE('Rater 1 Scoresheet'!D28,'Rater 2 Scoresheet'!D28),\"\"))","v":""},{"$f":"(IFERROR(AVERAGE('Rater 1 Scoresheet'!G28,'Rater 2 Scoresheet'!G28),\"\"))","v":""},null,null,null,null,{"$f":"IF(MAX(B28:E28)=0,\"\",MAX(B28:E28))","v":""},null,{"$f":"IF(AND('Rater 1 Scoresheet'!X28=\"\",'Rater 2 Scoresheet'!X28=\"\"),\"N/A\",AVERAGE('Rater 1 Scoresheet'!X28,'Rater 2 Scoresheet'!X28))","v":"N/A"},null,0,{"$f":"IF(AND('Rater 1 Scoresheet'!C28=1,'Rater 1 Scoresheet'!F28=3),1,0)","v":0},{"$f":"IF(AND('Rater 1 Scoresheet'!F28=1,'Rater 1 Scoresheet'!C28=3),1,0)","v":0}]
["5B",{"$f":"(IFERROR(AVERAGE('Rater 1 Scoresheet'!D29,'Rater 2 Scoresheet'!D29),\"\"))","v":""},{"$f":"(IFERROR(AVERAGE('Rater 1 Scoresheet'!G29,'Rater 2 Scoresheet'!G29),\"\"))","v":""},{"$f":"(IFERROR(AVERAGE('Rater 1 Scoresheet'!J29,'Rater 2 Scoresheet'!J29),\"\"))","v":""},null,null,null,{"$f":"IF(MAX(B29:E29)=0,\"\",MAX(B29:E29))","v":""},null,null,null,0,{"$f":"IF(AND('Rater 1 Scoresheet'!C29=1,'Rater 1 Scoresheet'!F29=3),1,0)","v":0},{"$f":"IF(AND('Rater 1 Scoresheet'!F29=1,'Rater 1 Scoresheet'!C29=3),1,0)","v":0}]
["5C",{"$f":"(IFERROR(AVERAGE('Rater 1 Scoresheet'!D30,'Rater 2 Scoresheet'!D30),\"\"))","v":""},{"$f":"(IFERROR(AVERAGE('Rater 1 Scoresheet'!G30,'Rater 2 Scoresheet'!G30),\"\"))","v":""},null,null,null,null,{"$f":"IF(MAX(B30:E30)=0,\"\",MAX(B30:E30))","v":""},null,{"$f":"IF(AND('Rater 1 Scoresheet'!X30=\"\",'Rater 2 Scoresheet'!X30=\"\"),\"N/A\",AVERAGE('Rater 1 Scoresheet'!X30,'Rater 2 Scoresheet'!X30))","v":"N/A"},null,0,{"$f":"IF(AND('Rater 1 Scoresheet'!C30=1,'Rater 1 Scoresheet'!F30=3),1,0)","v":0},{"$f":"IF(AND('Rater 1 Scoresheet'!F30=1,'Rater 1 Scoresheet'!C30=3),1,0)","v":0}]
["5D",{"$f":"(IFERROR(AVERAGE('Rater 1 Scoresheet'!D31,'Rater 2 Scoresheet'!D31),\"\"))","v":""},{"$f":"(IFERROR(AVERAGE('Rater 1 Scoresheet'!G31,'Rater 2 Scoresheet'!G31),\"\"))","v":""},null,null,null,null,{"$f":"IF(MAX(B31:E31)=0,\"\",MAX(B31:E31))","v":""},null,null,null,0,{"$f":"IF(AND('Rater 1 Scoresheet'!C31=1,'Rater 1 Scoresheet'!I31=3),1,0)","v":0},{"$f":"IF(AND('Rater 1 Scoresheet'!I31=1,'Rater 1 Scoresheet'!C31=3),1,0)","v":0}]
["5E",{"$f":"(IFERROR(AVERAGE('Rater 1 Scoresheet'!D32,'Rater 2 Scoresheet'!D32),\"\"))","v":""},{"$f":"(IFERROR(AVERAGE('Rater 1 Scoresheet'!G32,'Rater 2 Scoresheet'!G32),\"\"))","v":""},null,null,null,null,"",null,null,null,0,{"$f":"IF(AND('Rater 1 Scoresheet'!C32=1,'Rater 1 Scoresheet'!I32=3),1,0)","v":0},{"$f":"IF(AND('Rater 1 Scoresheet'!I32=1,'Rater 1 Scoresheet'!C32=3),1,0)","v":0}]
["5F",null,{"$f":"(IFERROR(AVERAGE('Rater 1 Scoresheet'!G33,'Rater 2 Scoresheet'!G33),\"\"))","v":""},{"$f":"(IFERROR(AVERAGE('Rater 1 Scoresheet'!J33,'Rater 2 Scoresheet'!J33),\"\"))","v":""},null,null,null,"",null,null,null,0,{"$f":"IF(AND('Rater 1 Scoresheet'!F33=1,'Rater 1 Scoresheet'!I33=3),1,0)","v":0},{"$f":"IF(AND('Rater 1 Scoresheet'!I33=1,'Rater 1 Scoresheet'!F33=3),1,0)","v":0}]
["5G",{"$f":"(IFERROR(AVERAGE('Rater 1 Scoresheet'!D34,'Rater 2 Scoresheet'!D34),\"\"))","v":""},{"$f":"(IFERROR(AVERAGE('Rater 1 Scoresheet'!G34,'Rater 2 Scoresheet'!G34),\"\"))","v":""},null,null,null,null,"",null,null,null,0,{"$f":"IF(AND('Rater 1 Scoresheet'!C34=1,'Rater 1 Scoresheet'!F34=3),1,0)","v":0},{"$f":"IF(AND('Rater 1 Scoresheet'!F34=1,'Rater 1 Scoresheet'!C34=3),1,0)","v":0}]
["5H",{"$f":"(IFERROR(AVERAGE('Rater 1 Scoresheet'!D35,'Rater 2 Scoresheet'!D35),\"\"))","v":""},{"$f":"(IFERROR(AVERAGE('Rater 1 Scoresheet'!G35,'Rater 2 Scoresheet'!G35),\"\"))","v":""},null,null,null,null,"",null,null,null,0,{"$f":"IF(AND('Rater 1 Scoresheet'!C35=1,'Rater 1 Scoresheet'!F35=3),1,0)","v":0},{"$f":"IF(AND('Rater 1 Scoresheet'!F35=1,'Rater 1 Scoresheet'!C35=3),1,0)","v":0}]
["5I",{"$f":"(IFERROR(AVERAGE('Rater 1 Scoresheet'!D36,'Rater 2 Scoresheet'!D36),\"\"))","v":""},{"$f":"(IFERROR(AVERAGE('Rater 1 Scoresheet'!G36,'Rater 2 Scoresheet'!G36),\"\"))","v":""},{"$f":"(IFERROR(AVERAGE('Rater 1 Scoresheet'!J36,'Rater 2 Scoresheet'!J36),\"\"))","v":""},null,null,null,"",null,null,null,0,{"$f":"IF(AND('Rater 1 Scoresheet'!C36=1,'Rater 1 Scoresheet'!F36=3),1,0)","v":0},{"$f":"IF(AND('Rater 1 Scoresheet'!F36=1,'Rater 1 Scoresheet'!C36=3),1,0)","v":0},{"$f":"IF(AND('Rater 1 Scoresheet'!C36=1,'Rater 1 Scoresheet'!I36=3),1,0)","v":0},{"$f":"IF(AND('Rater 1 Scoresheet'!I36=1,'Rater 1 Scoresheet'!C36=3),1,0)","v":0},{"$f":"IF(AND('Rater 1 Scoresheet'!F36=1,'Rater 1 Scoresheet'!I36=3),1,0)","v":0},{"$f":"IF(AND('Rater 1 Scoresheet'!I36=1,'Rater 1 Scoresheet'!F36=3),1,0)","v":0}]
["5J",{"$f":"(IFERROR(AVERAGE('Rater 1 Scoresheet'!D37,'Rater 2 Scoresheet'!D37),\"\"))","v":""},{"$f":"(IFERROR(AVERAGE('Rater 1 Scoresheet'!G37,'Rater 2 Scoresheet'!G37),\"\"))","v":""},{"$f":"(IFERROR(AVERAGE('Rater 1 Scoresheet'!J37,'Rater 2 Scoresheet'!J37),\"\"))","v":""},null,null,null,"",null,null,null,0,{"$f":"IF(AND('Rater 1 Scoresheet'!C37=1,'Rater 1 Scoresheet'!F37=3),1,0)","v":0},{"$f":"IF(AND('Rater 1 Scoresheet'!F37=1,'Rater 1 Scoresheet'!C37=3),1,0)","v":0},{"$f":"IF(AND('Rater 1 Scoresheet'!C37=1,'Rater 1 Scoresheet'!I37=3),1,0)","v":0},{"$f":"IF(AND('Rater 1 Scoresheet'!I37=1,'Rater 1 Scoresheet'!C37=3),1,0)","v":0},{"$f":"IF(AND('Rater 1 Scoresheet'!F37=1,'Rater 1 Scoresheet'!I37=3),1,0)","v":0},{"$f":"IF(AND('Rater 1 Scoresheet'!I37=1,'Rater 1 Scoresheet'!F37=3),1,0)","v":0}]
["5K",{"$f":"(IFERROR(AVERAGE('Rater 1 Scoresheet'!D38,'Rater 2 Scoresheet'!D38),\"\"))","v":""},{"$f":"(IFERROR(AVERAGE('Rater 1 Scoresheet'!G38,'Rater 2 Scoresheet'!G38),\"\"))","v":""},{"$f":"(IFERROR(AVERAGE('Rater 1 Scoresheet'!J38,'Rater 2 Scoresheet'!J38),\"\"))","v":""},null,null,null,"",null,null,null,0,{"$f":"IF(AND('Rater 1 Scoresheet'!C38=1,'Rater 1 Scoresheet'!F38=3),1,0)","v":0},{"$f":"IF(AND('Rater 1 Scoresheet'!F38=1,'Rater 1 Scoresheet'!C38=3),1,0)","v":0},{"$f":"IF(AND('Rater 1 Scoresheet'!C38=1,'Rater 1 Scoresheet'!I38=3),1,0)","v":0},{"$f":"IF(AND('Rater 1 Scoresheet'!I38=1,'Rater 1 Scoresheet'!C38=3),1,0)","v":0},{"$f":"IF(AND('Rater 1 Scoresheet'!F38=1,'Rater 1 Scoresheet'!I38=3),1,0)","v":0},{"$f":"IF(AND('Rater 1 Scoresheet'!I38=1,'Rater 1 Scoresheet'!F38=3),1,0)","v":0}]
["5L",{"$f":"(IFERROR(AVERAGE('Rater 1 Scoresheet'!D39,'Rater 2 Scoresheet'!D39),\"\"))","v":""},{"$f":"(IFERROR(AVERAGE('Rater 1 Scoresheet'!G39,'Rater 2 Scoresheet'!G39),\"\"))","v":""},{"$f":"(IFERROR(AVERAGE('Rater 1 Scoresheet'!J39,'Rater 2 Scoresheet'!J39),\"\"))","v":""},null,null,null,"",null,null,null,0,{"$f":"IF(AND('Rater 1 Scoresheet'!C39=1,'Rater 1 Scoresheet'!F39=3),1,0)","v":0},{"$f":"IF(AND('Rater 1 Scoresheet'!F39=1,'Rater 1 Scoresheet'!C39=3),1,0)","v":0},{"$f":"IF(AND('Rater 1 Scoresheet'!C39=1,'Rater 1 Scoresheet'!I39=3),1,0)","v":0},{"$f":"IF(AND('Rater 1 Scoresheet'!I39=1,'Rater 1 Scoresheet'!C39=3),1,0)","v":0},{"$f":"IF(AND('Rater 1 Scoresheet'!F39=1,'Rater 1 Scoresheet'!I39=3),1,0)","v":0},{"$f":"IF(AND('Rater 1 Scoresheet'!I39=1,'Rater 1 Scoresheet'!F39=3),1,0)","v":0}]
["6A",{"$f":"(IFERROR(AVERAGE('Rater 1 Scoresheet'!D40,'Rater 2 Scoresheet'!D40),\"\"))","v":""},null,{"$f":"(IFERROR(AVERAGE('Rater 1 Scoresheet'!J40,'Rater 2 Scoresheet'!J40),\"\"))","v":""},{"$f":"(IFERROR(AVERAGE('Rater 1 Scoresheet'!P40,'Rater 2 Scoresheet'!P40),\"\"))","v":""},null,null,"",null,null,null,0,{"$f":"IF(AND('Rater 1 Scoresheet'!C40=1,'Rater 1 Scoresheet'!F40=3),1,0)","v":0},{"$f":"IF(AND('Rater 1 Scoresheet'!F40=1,'Rater 1 Scoresheet'!C40=3),1,0)","v":0},{"$f":"IF(AND('Rater 1 Scoresheet'!C40=1,'Rater 1 Scoresheet'!I40=3),1,0)","v":0},{"$f":"IF(AND('Rater 1 Scoresheet'!I40=1,'Rater 1 Scoresheet'!C40=3),1,0)","v":0},{"$f":"IF(AND('Rater 1 Scoresheet'!F40=1,'Rater 1 Scoresheet'!I40=3),1,0)","v":0},{"$f":"IF(AND('Rater 1 Scoresheet'!I40=1,'Rater 1 Scoresheet'!F40=3),1,0)","v":0}]
["6B",{"$f":"(IFERROR(AVERAGE('Rater 1 Scoresheet'!D41,'Rater 2 Scoresheet'!D41),\"\"))","v":""},null,null,{"$f":"(IFERROR(AVERAGE('Rater 1 Scoresheet'!P41,'Rater 2 Scoresheet'!P41),\"\"))","v":""},null,null,"",null,null,null,0,{"$f":"IF(AND('Rater 1 Scoresheet'!C41=1,'Rater 1 Scoresheet'!L41=3),1,0)","v":0},{"$f":"IF(AND('Rater 1 Scoresheet'!L41=1,'Rater 1 Scoresheet'!C41=3),1,0)","v":0}]
["6C",{"$f":"(IFERROR(AVERAGE('Rater 1 Scoresheet'!D42,'Rater 2 Scoresheet'!D42),\"\"))","v":""},{"$f":"(IFERROR(AVERAGE('Rater 1 Scoresheet'!G42,'Rater 2 Scoresheet'!G42),\"\"))","v":""},null,{"$f":"(IFERROR(AVERAGE('Rater 1 Scoresheet'!P42,'Rater 2 Scoresheet'!P42),\"\"))","v":""},null,null,"",null,null,null,0,{"$f":"IF(AND('Rater 1 Scoresheet'!C42=1,'Rater 1 Scoresheet'!F42=3),1,0)","v":0},{"$f":"IF(AND('Rater 1 Scoresheet'!F42=1,'Rater 1 Scoresheet'!C42=3),1,0)","v":0},{"$f":"IF(AND('Rater 1 Scoresheet'!C42=1,'Rater 1 Scoresheet'!O42=3),1,0)","v":0},{"$f":"IF(AND('Rater 1 Scoresheet'!O42=1,'Rater 1 Scoresheet'!C42=3),1,0)","v":0},{"$f":"IF(AND('Rater 1 Scoresheet'!F42=1,'Rater 1 Scoresheet'!O42=3),1,0)","v":0},{"$f":"IF(AND('Rater 1 Scoresheet'!O42=1,'Rater 1 Scoresheet'!F42=3),1,0)","v":0}]
["6D",{"$f":"(IFERROR(AVERAGE('Rater 1 Scoresheet'!D43,'Rater 2 Scoresheet'!D43),\"\"))","v":""},null,{"$f":"(IFERROR(AVERAGE('Rater 1 Scoresheet'!J43,'Rater 2 Scoresheet'!J43),\"\"))","v":""},null,null,null,"",null,null,null,0,{"$f":"IF(AND('Rater 1 Scoresheet'!C43=1,'Rater 1 Scoresheet'!I43=3),1,0)","v":0},{"$f":"IF(AND('Rater 1 Scoresheet'!I43=1,'Rater 1 Scoresheet'!C43=3),1,0)","v":0}]
["6E",{"$f":"(IFERROR(AVERAGE('Rater 1 Scoresheet'!D44,'Rater 2 Scoresheet'!D44),\"\"))","v":""},{"$f":"(IFERROR(AVERAGE('Rater 1 Scoresheet'!G44,'Rater 2 Scoresheet'!G44),\"\"))","v":""},null,null,null,null,"",null,null,null,0,{"$f":"IF(AND('Rater 1 Scoresheet'!C44=1,'Rater 1 Scoresheet'!F44=3),1,0)","v":0},{"$f":"IF(AND('Rater 1 Scoresheet'!F44=1,'Rater 1 Scoresheet'!C44=3),1,0)","v":0}]
["6F",{"$f":"(IFERROR(AVERAGE('Rater 1 Scoresheet'!D45,'Rater 2 Scoresheet'!D45),\"\"))","v":""},null,{"$f":"(IFERROR(AVERAGE('Rater 1 Scoresheet'!J45,'Rater 2 Scoresheet'!J45),\"\"))","v":""},{"$f":"(IFERROR(AVERAGE('Rater 1 Scoresheet'!P45,'Rater 2 Scoresheet'!P45),\"\"))","v":""},null,null,"",null,null,null,0,{"$f":"IF(AND('Rater 1 Scoresheet'!C45=1,'Rater 1 Scoresheet'!I45=3),1,0)","v":0},{"$f":"IF(AND('Rater 1 Scoresheet'!I45=1,'Rater 1 Scoresheet'!C45=3),1,0)","v":0},{"$f":"IF(AND('Rater 1 Scoresheet'!C45=1,'Rater 1 Scoresheet'!O45=3),1,0)","v":0},{"$f":"IF(AND('Rater 1 Scoresheet'!O45=1,'Rater 1 Scoresheet'!C45=3),1,0)","v":0},{"$f":"IF(AND('Rater 1 Scoresheet'!I45=1,'Rater 1 Scoresheet'!O45=3),1,0)","v":0},{"$f":"IF(AND('Rater 1 Scoresheet'!O45=1,'Rater 1 Scoresheet'!I45=3),1,0)","v":0}]
["6G",{"$f":"(IFERROR(AVERAGE('Rater 1 Scoresheet'!D46,'Rater 2 Scoresheet'!D46),\"\"))","v":""},{"$f":"(IFERROR(AVERAGE('Rater 1 Scoresheet'!G46,'Rater 2 Scoresheet'!G46),\"\"))","v":""},{"$f":"(IFERROR(AVERAGE('Rater 1 Scoresheet'!J46,'Rater 2 Scoresheet'!J46),\"\"))","v":""},null,null,null,"",null,null,null,0,{"$f":"IF(AND('Rater 1 Scoresheet'!C46=1,'Rater 1 Scoresheet'!I46=3),1,0)","v":0},{"$f":"IF(AND('Rater 1 Scoresheet'!I46=1,'Rater 1 Scoresheet'!C46=3),1,0)","v":0},{"$f":"IF(AND('Rater 1 Scoresheet'!C46=1,'Rater 1 Scoresheet'!F46=3),1,0)","v":0},{"$f":"IF(AND('Rater 1 Scoresheet'!F46=1,'Rater 1 Scoresheet'!C46=3),1,0)","v":0},{"$f":"IF(AND('Rater 1 Scoresheet'!F46=1,'Rater 1 Scoresheet'!I46=3),1,0)","v":0},{"$f":"IF(AND('Rater 1 Scoresheet'!I46=1,'Rater 1 Scoresheet'!F46=3),1,0)","v":0}]
["6H",{"$f":"(IFERROR(AVERAGE('Rater 1 Scoresheet'!D47,'Rater 2 Scoresheet'!D47),\"\"))","v":""},null,{"$f":"(IFERROR(AVERAGE('Rater 1 Scoresheet'!J47,'Rater 2 Scoresheet'!J47),\"\"))","v":""},{"$f":"(IFERROR(AVERAGE('Rater 1 Scoresheet'!P47,'Rater 2 Scoresheet'!P47),\"\"))","v":""},null,null,"",null,null,null,0,{"$f":"IF(AND('Rater 1 Scoresheet'!C47=1,'Rater 1 Scoresheet'!I47=3),1,0)","v":0},{"$f":"IF(AND('Rater 1 Scoresheet'!I47=1,'Rater 1 Scoresheet'!C47=3),1,0)","v":0},{"$f":"IF(AND('Rater 1 Scoresheet'!C47=1,'Rater 1 Scoresheet'!O47=3),1,0)","v":0},{"$f":"IF(AND('Rater 1 Scoresheet'!O47=1,'Rater 1 Scoresheet'!C47=3),1,0)","v":0},{"$f":"IF(AND('Rater 1 Scoresheet'!I47=1,'Rater 1 Scoresheet'!O47=3),1,0)","v":0},{"$f":"IF(AND('Rater 1 Scoresheet'!O47=1,'Rater 1 Scoresheet'!I47=3),1,0)","v":0}]
["6I",{"$f":"(IFERROR(AVERAGE('Rater 1 Scoresheet'!D48,'Rater 2 Scoresheet'!D48),\"\"))","v":""},null,{"$f":"(IFERROR(AVERAGE('Rater 1 Scoresheet'!J48,'Rater 2 Scoresheet'!J48),\"\"))","v":""},{"$f":"(IFERROR(AVERAGE('Rater 1 Scoresheet'!P48,'Rater 2 Scoresheet'!P48),\"\"))","v":""},null,null,"",null,null,null,0,{"$f":"IF(AND('Rater 1 Scoresheet'!C48=1,'Rater 1 Scoresheet'!I48=3),1,0)","v":0},{"$f":"IF(AND('Rater 1 Scoresheet'!I48=1,'Rater 1 Scoresheet'!C48=3),1,0)","v":0},{"$f":"IF(AND('Rater 1 Scoresheet'!C48=1,'Rater 1 Scoresheet'!O48=3),1,0)","v":0},{"$f":"IF(AND('Rater 1 Scoresheet'!O48=1,'Rater 1 Scoresheet'!C48=3),1,0)","v":0},{"$f":"IF(AND('Rater 1 Scoresheet'!I48=1,'Rater 1 Scoresheet'!O48=3),1,0)","v":0},{"$f":"IF(AND('Rater 1 Scoresheet'!O48=1,'Rater 1 Scoresheet'!I48=3),1,0)","v":0}]
["6J",{"$f":"(IFERROR(AVERAGE('Rater 1 Scoresheet'!D49,'Rater 2 Scoresheet'!D49),\"\"))","v":""},null,{"$f":"(IFERROR(AVERAGE('Rater 1 Scoresheet'!J49,'Rater 2 Scoresheet'!J49),\"\"))","v":""},null,null,null,"",null,null,null,0,{"$f":"IF(AND('Rater 1 Scoresheet'!C49=1,'Rater 1 Scoresheet'!I49=3),1,0)","v":0},{"$f":"IF(AND('Rater 1 Scoresheet'!I49=1,'Rater 1 Scoresheet'!C49=3),1,0)","v":0}]
["6K",{"$f":"(IFERROR(AVERAGE('Rater 1 Scoresheet'!D50,'Rater 2 Scoresheet'!D50),\"\"))","v":""},null,{"$f":"(IFERROR(AVERAGE('Rater 1 Scoresheet'!J50,'Rater 2 Scoresheet'!J50),\"\"))","v":""},null,null,null,"",null,null,null,0,{"$f":"IF(AND('Rater 1 Scoresheet'!C50=1,'Rater 1 Scoresheet'!I49=3),1,0)","v":0},{"$f":"IF(AND('Rater 1 Scoresheet'!I50=1,'Rater 1 Scoresheet'!C50=3),1,0)","v":0}]
["7A",{"$f":"(IFERROR(AVERAGE('Rater 1 Scoresheet'!D51,'Rater 2 Scoresheet'!D51),\"\"))","v":""},null,null,{"$f":"(IFERROR(AVERAGE('Rater 1 Scoresheet'!P51,'Rater 2 Scoresheet'!P51),\"\"))","v":""},null,null,"",null,null,null,0,{"$f":"IF(AND('Rater 1 Scoresheet'!C51=1,'Rater 1 Scoresheet'!O51=3),1,0)","v":0},{"$f":"IF(AND('Rater 1 Scoresheet'!O51=1,'Rater 1 Scoresheet'!C51=3),1,0)","v":0}]
["7B",{"$f":"(IFERROR(AVERAGE('Rater 1 Scoresheet'!D52,'Rater 2 Scoresheet'!D52),\"\"))","v":""},{"$f":"(IFERROR(AVERAGE('Rater 1 Scoresheet'!G52,'Rater 2 Scoresheet'!G52),\"\"))","v":""},null,{"$f":"(IFERROR(AVERAGE('Rater 1 Scoresheet'!P52,'Rater 2 Scoresheet'!P52),\"\"))","v":""},null,null,"",null,null,null,0,{"$f":"IF(AND('Rater 1 Scoresheet'!C52=1,'Rater 1 Scoresheet'!F52=3),1,0)","v":0},{"$f":"IF(AND('Rater 1 Scoresheet'!F52=1,'Rater 1 Scoresheet'!C52=3),1,0)","v":0},{"$f":"IF(AND('Rater 1 Scoresheet'!C52=1,'Rater 1 Scoresheet'!O52=3),1,0)","v":0},{"$f":"IF(AND('Rater 1 Scoresheet'!O52=1,'Rater 1 Scoresheet'!C52=3),1,0)","v":0},{"$f":"IF(AND('Rater 1 Scoresheet'!F52=1,'Rater 1 Scoresheet'!O52=3),1,0)","v":0},{"$f":"IF(AND('Rater 1 Scoresheet'!O52=1,'Rater 1 Scoresheet'!F52=3),1,0)","v":0}]
["7C",{"$f":"(IFERROR(AVERAGE('Rater 1 Scoresheet'!D53,'Rater 2 Scoresheet'!D53),\"\"))","v":""},null,null,{"$f":"(IFERROR(AVERAGE('Rater 1 Scoresheet'!P53,'Rater 2 Scoresheet'!P53),\"\"))","v":""},null,null,"",null,null,null,0,{"$f":"IF(AND('Rater 1 Scoresheet'!C53=1,'Rater 1 Scoresheet'!O53=3),1,0)","v":0},{"$f":"IF(AND('Rater 1 Scoresheet'!O53=1,'Rater 1 Scoresheet'!C53=3),1,0)","v":0}]
["7D",{"$f":"(IFERROR(AVERAGE('Rater 1 Scoresheet'!D54,'Rater 2 Scoresheet'!D54),\"\"))","v":""},null,{"$f":"(IFERROR(AVERAGE('Rater 1 Scoresheet'!J54,'Rater 2 Scoresheet'!J54),\"\"))","v":""},null,null,null,"",null,null,null,0,{"$f":"IF(AND('Rater 1 Scoresheet'!C54=1,'Rater 1 Scoresheet'!I54=3),1,0)","v":0},{"$f":"IF(AND('Rater 1 Scoresheet'!I54=1,'Rater 1 Scoresheet'!C54=3),1,0)","v":0}]
["7E",{"$f":"(IFERROR(AVERAGE('Rater 1 Scoresheet'!D55,'Rater 2 Scoresheet'!D55),\"\"))","v":""},null,null,{"$f":"(IFERROR(AVERAGE('Rater 1 Scoresheet'!P55,'Rater 2 Scoresheet'!P55),\"\"))","v":""},null,null,"",null,null,null,0,{"$f":"IF(AND('Rater 1 Scoresheet'!C55=1,'Rater 1 Scoresheet'!O54=3),1,0)","v":0},{"$f":"IF(AND('Rater 1 Scoresheet'!O55=1,'Rater 1 Scoresheet'!C54=3),1,0)","v":0}]
["7F",{"$f":"(IFERROR(AVERAGE('Rater 1 Scoresheet'!D56,'Rater 2 Scoresheet'!D56),\"\"))","v":""},null,null,{"$f":"(IFERROR(AVERAGE('Rater 1 Scoresheet'!P56,'Rater 2 Scoresheet'!P56),\"\"))","v":""},null,null,"",null,null,null,0,{"$f":"IF(AND('Rater 1 Scoresheet'!C56=1,'Rater 1 Scoresheet'!O56=3),1,0)","v":0},{"$f":"IF(AND('Rater 1 Scoresheet'!O56=1,'Rater 1 Scoresheet'!C56=3),1,0)","v":0}]
["7G",{"$f":"(IFERROR(AVERAGE('Rater 1 Scoresheet'!D57,'Rater 2 Scoresheet'!D57),\"\"))","v":""},null,{"$f":"(IFERROR(AVERAGE('Rater 1 Scoresheet'!J57,'Rater 2 Scoresheet'!J57),\"\"))","v":""},null,null,null,"",null,null,null,0,{"$f":"IF(AND('Rater 1 Scoresheet'!C57=1,'Rater 1 Scoresheet'!I57=3),1,0)","v":0},{"$f":"IF(AND('Rater 1 Scoresheet'!I57=1,'Rater 1 Scoresheet'!C57=3),1,0)","v":0}]
["7H",{"$f":"(IFERROR(AVERAGE('Rater 1 Scoresheet'!D58,'Rater 2 Scoresheet'!D58),\"\"))","v":""},null,{"$f":"(IFERROR(AVERAGE('Rater 1 Scoresheet'!J58,'Rater 2 Scoresheet'!J58),\"\"))","v":""},null,null,null,"",null,null,null,0,{"$f":"IF(AND('Rater 1 Scoresheet'!C58=1,'Rater 1 Scoresheet'!I58=3),1,0)","v":0},{"$f":"IF(AND('Rater 1 Scoresheet'!I58=1,'Rater 1 Scoresheet'!C58=3),1,0)","v":0}]
["7I",{"$f":"(IFERROR(AVERAGE('Rater 1 Scoresheet'!D59,'Rater 2 Scoresheet'!D59),\"\"))","v":""},null,null,{"$f":"(IFERROR(AVERAGE('Rater 1 Scoresheet'!P59,'Rater 2 Scoresheet'!P59),\"\"))","v":""},null,null,"",null,null,null,0,{"$f":"IF(AND('Rater 1 Scoresheet'!C59=1,'Rater 1 Scoresheet'!O59=3),1,0)","v":0},{"$f":"IF(AND('Rater 1 Scoresheet'!O59=1,'Rater 1 Scoresheet'!C59=3),1,0)","v":0}]
["7J",{"$f":"(IFERROR(AVERAGE('Rater 1 Scoresheet'!D60,'Rater 2 Scoresheet'!D60),\"\"))","v":""},null,null,{"$f":"(IFERROR(AVERAGE('Rater 1 Scoresheet'!P60,'Rater 2 Scoresheet'!P60),\"\"))","v":""},null,null,"",null,null,null,0,{"$f":"IF(AND('Rater 1 Scoresheet'!C60=1,'Rater 1 Scoresheet'!O60=3),1,0)","v":0},{"$f":"IF(AND('Rater 1 Scoresheet'!O60=1,'Rater 1 Scoresheet'!C60=3),1,0)","v":0}]
["7K",{"$f":"(IFERROR(AVERAGE('Rater 1 Scoresheet'!D61,'Rater 2 Scoresheet'!D61),\"\"))","v":""},null,null,{"$f":"(IFERROR(AVERAGE('Rater 1 Scoresheet'!P61,'Rater 2 Scoresheet'!P61),\"\"))","v":""},null,null,"",null,null,null,0,{"$f":"IF(AND('Rater 1 Scoresheet'!C61=1,'Rater 1 Scoresheet'!O61=3),1,0)","v":0},{"$f":"IF(AND('Rater 1 Scoresheet'!O61=1,'Rater 1 Scoresheet'!C61=3),1,0)","v":0}]
["7L",{"$f":"(IFERROR(AVERAGE('Rater 1 Scoresheet'!D62,'Rater 2 Scoresheet'!D62),\"\"))","v":""},null,null,{"$f":"(IFERROR(AVERAGE('Rater 1 Scoresheet'!P62,'Rater 2 Scoresheet'!P62),\"\"))","v":""},null,null,"",null,null,null,0,{"$f":"IF(AND('Rater 1 Scoresheet'!C62=1,'Rater 1 Scoresheet'!O62=3),1,0)","v":0},{"$f":"IF(AND('Rater 1 Scoresheet'!O62=1,'Rater 1 Scoresheet'!C62=3),1,0)","v":0}]
["7M",null,null,{"$f":"(IFERROR(AVERAGE('Rater 1 Scoresheet'!J63,'Rater 2 Scoresheet'!J63),\"\"))","v":""},{"$f":"(IFERROR(AVERAGE('Rater 1 Scoresheet'!P63,'Rater 2 Scoresheet'!P63),\"\"))","v":""},null,null,"",null,null,null,0,{"$f":"IF(AND('Rater 1 Scoresheet'!I63=1,'Rater 1 Scoresheet'!O63=3),1,0)","v":0},{"$f":"IF(AND('Rater 1 Scoresheet'!O63=1,'Rater 1 Scoresheet'!I63=3),1,0)","v":0}]
["7N",{"$f":"(IFERROR(AVERAGE('Rater 1 Scoresheet'!D64,'Rater 2 Scoresheet'!D64),\"\"))","v":""},null,{"$f":"(IFERROR(AVERAGE('Rater 1 Scoresheet'!J64,'Rater 2 Scoresheet'!J64),\"\"))","v":""},null,null,null,"",null,null,null,0,{"$f":"IF(AND('Rater 1 Scoresheet'!C64=1,'Rater 1 Scoresheet'!I64=3),1,0)","v":0},{"$f":"IF(AND('Rater 1 Scoresheet'!I64=1,'Rater 1 Scoresheet'!C64=3),1,0)","v":0}]
["8A",{"$f":"(IFERROR(AVERAGE('Rater 1 Scoresheet'!D65,'Rater 2 Scoresheet'!D65),\"\"))","v":""},null,{"$f":"(IFERROR(AVERAGE('Rater 1 Scoresheet'!J65,'Rater 2 Scoresheet'!J65),\"\"))","v":""},null,null,null,"",null,{"$f":"IF(AND('Rater 1 Scoresheet'!X65=\"\",'Rater 2 Scoresheet'!X65=\"\"),\"N/A\",AVERAGE('Rater 1 Scoresheet'!X65,'Rater 2 Scoresheet'!X65))","v":"N/A"},null,0,{"$f":"IF(AND('Rater 1 Scoresheet'!C65=1,'Rater 1 Scoresheet'!I65=3),1,0)","v":0},{"$f":"IF(AND('Rater 1 Scoresheet'!I65=1,'Rater 1 Scoresheet'!C65=3),1,0)","v":0}]
["8B",{"$f":"(IFERROR(AVERAGE('Rater 1 Scoresheet'!D66,'Rater 2 Scoresheet'!D66),\"\"))","v":""},null,{"$f":"(IFERROR(AVERAGE('Rater 1 Scoresheet'!J66,'Rater 2 Scoresheet'!J66),\"\"))","v":""},null,{"$f":"IFERROR(AVERAGE('Rater 1 Scoresheet'!T66,'Rater 2 Scoresheet'!T66),\"\")","v":""},null,{"$f":"IF((F66=0),\"\",(F66))","v":""},null,null,null,0,{"$f":"IF(AND('Rater 1 Scoresheet'!C66=1,'Rater 1 Scoresheet'!I66=3),1,0)","v":0},{"$f":"IF(AND('Rater 1 Scoresheet'!I66=1,'Rater 1 Scoresheet'!C66=3),1,0)","v":0}]
["8C",{"$f":"(IFERROR(AVERAGE('Rater 1 Scoresheet'!D67,'Rater 2 Scoresheet'!D67),\"\"))","v":""},null,{"$f":"(IFERROR(AVERAGE('Rater 1 Scoresheet'!J67,'Rater 2 Scoresheet'!J67),\"\"))","v":""},null,null,null,"",null,null,null,{"$f":"IF(OR(M67=1, N67=1, O67=1,P67=1,Q67=1,R67=1),1,0)","v":0},{"$f":"IF(AND('Rater 1 Scoresheet'!C67=1,'Rater 1 Scoresheet'!I67=3),1,0)","v":0},{"$f":"IF(AND('Rater 1 Scoresheet'!I67=1,'Rater 1 Scoresheet'!C67=3),1,0)","v":0}]
["8D",{"$f":"(IFERROR(AVERAGE('Rater 1 Scoresheet'!D68,'Rater 2 Scoresheet'!D68),\"\"))","v":""},null,{"$f":"(IFERROR(AVERAGE('Rater 1 Scoresheet'!J68,'Rater 2 Scoresheet'!J68),\"\"))","v":""},null,null,null,"",null,null,null,0,{"$f":"IF(AND('Rater 1 Scoresheet'!C68=1,'Rater 1 Scoresheet'!I68=3),1,0)","v":0},{"$f":"IF(AND('Rater 1 Scoresheet'!I68=1,'Rater 1 Scoresheet'!C68=3),1,0)","v":0}]

{"sheet":"Overall Provision Score","index":6,"n_rows":68,"n_cols":13,"rows_kept":68,"cut":false,"hidden":false,"merged":[]}
["Provision Number","Overall Provision Score"," 1 Data Source Only"," Data Sources do not Align","Raters do not Agree",null,"[Optional Administrative Validity Check]"]
["1A",{"$f":"(IFERROR('Scoring Calculations'!H2,\"\"))","v":""},{"$f":"IF(AND('Rater 1 Scoresheet'!Z2=1,B2<>\"\"),\"*\",\"\")","v":""},{"$f":"IF('Scoring Calculations'!L2=1,\"†\",\"\")","v":""},{"$f":"IF(AND('Inter-rater Reliability'!B70>0,OR('Inter-rater Reliability'!F2=1,'Inter-rater Reliability'!P2=1)),\"§\",\"\")","v":""}]
["1B",{"$f":"(IFERROR('Scoring Calculations'!H3,\"\"))","v":""},{"$f":"IF(AND('Rater 1 Scoresheet'!Z3=1,B3<>\"\"),\"*\",\"\")","v":""},{"$f":"IF('Scoring Calculations'!L3=1,\"†\",\"\")","v":""},{"$f":"IF(AND('Inter-rater Reliability'!B70>0,OR('Inter-rater Reliability'!F3=1,'Inter-rater Reliability'!P3=1)),\"§\",\"\")","v":""},null,{"$f":"('Scoring Calculations'!J3)","v":"N/A"},null,null," "]
["1C",{"$f":"(IFERROR('Scoring Calculations'!H4,\"\"))","v":""},{"$f":"IF(AND('Rater 1 Scoresheet'!Z4=1,B4<>\"\"),\"*\",\"\")","v":""},{"$f":"IF('Scoring Calculations'!L4=1,\"†\",\"\")","v":""},{"$f":"IF(AND('Inter-rater Reliability'!B70>0,OR('Inter-rater Reliability'!F4=1,'Inter-rater Reliability'!P4=1)),\"§\",\"\")","v":""}]
["1D",{"$f":"(IFERROR('Scoring Calculations'!H5,\"\"))","v":""},{"$f":"IF(AND('Rater 1 Scoresheet'!Z5=1,B5<>\"\"),\"*\",\"\")","v":""},{"$f":"IF('Scoring Calculations'!L5=1,\"†\",\"\")","v":""},{"$f":"IF(AND('Inter-rater Reliability'!B70>0,OR('Inter-rater Reliability'!F5=1,'Inter-rater Reliability'!P5=1)),\"§\",\"\")","v":""}]
["1E",{"$f":"(IFERROR('Scoring Calculations'!H6,\"\"))","v":""},{"$f":"IF(AND('Rater 1 Scoresheet'!Z6=1,B6<>\"\"),\"*\",\"\")","v":""},{"$f":"IF('Scoring Calculations'!L6=1,\"†\",\"\")","v":""},{"$f":"IF(AND('Inter-rater Reliability'!B70>0,OR('Inter-rater Reliability'!F6=1,'Inter-rater Reliability'!P6=1)),\"§\",\"\")","v":""},null,null,null,null,null,null,null,{"$f":"IF(L6=\"Cannot Make a Rating\",“*”,\"\")","v":""}]
["1F",{"$f":"(IFERROR('Scoring Calculations'!H7,\"\"))","v":""},{"$f":"IF(AND('Rater 1 Scoresheet'!Z7=1,B7<>\"\"),\"*\",\"\")","v":""},{"$f":"IF('Scoring Calculations'!L7=1,\"†\",\"\")","v":""},{"$f":"IF(AND('Inter-rater Reliability'!B70>0,OR('Inter-rater Reliability'!F7=1,'Inter-rater Reliability'!P7=1)),\"§\",\"\")","v":""},null,{"$f":"('Scoring Calculations'!J7)","v":"N/A"}]
["1G",{"$f":"(IFERROR('Scoring Calculations'!H8,\"\"))","v":""},{"$f":"IF(AND('Rater 1 Scoresheet'!Z8=1,B8<>\"\"),\"*\",\"\")","v":""},{"$f":"IF('Scoring Calculations'!L8=1,\"†\",\"\")","v":""},{"$f":"IF(AND('Inter-rater Reliability'!B70>0,OR('Inter-rater Reliability'!F8=1,'Inter-rater Reliability'!P7=1)),\"§\",\"\")","v":""}]
["1H",{"$f":"(IFERROR('Scoring Calculations'!H9,\"\"))","v":""},{"$f":"IF(AND('Rater 1 Scoresheet'!Z9=1,B9<>\"\"),\"*\",\"\")","v":""},{"$f":"IF('Scoring Calculations'!L9=1,\"†\",\"\")","v":""},{"$f":"IF(AND('Inter-rater Reliability'!B70>0,OR('Inter-rater Reliability'!F9=1,'Inter-rater Reliability'!P9=1)),\"§\",\"\")","v":""}]
["1I",{"$f":"(IFERROR('Scoring Calculations'!H10,\"\"))","v":""},{"$f":"IF(AND('Rater 1 Scoresheet'!Z10=1,B10<>\"\"),\"*\",\"\")","v":""},{"$f":"IF('Scoring Calculations'!L10=1,\"†\",\"\")","v":""},{"$f":"IF(AND('Inter-rater Reliability'!B70>0,OR('Inter-rater Reliability'!F10=1,'Inter-rater Reliability'!P2=10)),\"§\",\"\")","v":""}]
["1J",{"$f":"(IFERROR('Scoring Calculations'!H11,\"\"))","v":""},{"$f":"IF(AND('Rater 1 Scoresheet'!Z11=1,B11<>\"\"),\"*\",\"\")","v":""},{"$f":"IF('Scoring Calculations'!L11=1,\"†\",\"\")","v":""},{"$f":"IF(AND('Inter-rater Reliability'!B70>0,OR('Inter-rater Reliability'!F11=1,'Inter-rater Reliability'!P11=1)),\"§\",\"\")","v":""}]
["2A",{"$f":"(IFERROR('Scoring Calculations'!H12,\"\"))","v":""},{"$f":"IF(AND('Rater 1 Scoresheet'!Z12=1,B12<>\"\"),\"*\",\"\")","v":""},{"$f":"IF('Scoring Calculations'!L12=1,\"†\",\"\")","v":""},{"$f":"IF(AND('Inter-rater Reliability'!B70>0,OR('Inter-rater Reliability'!F12=1,'Inter-rater Reliability'!P12=1)),\"§\",\"\")","v":""}]
["2B",{"$f":"(IFERROR('Scoring Calculations'!H13,\"\"))","v":""},{"$f":"IF(AND('Rater 1 Scoresheet'!Z13=1,B13<>\"\"),\"*\",\"\")","v":""},null,{"$f":"IF(AND('Inter-rater Reliability'!B70>0,OR('Inter-rater Reliability'!F13=1,'Inter-rater Reliability'!P13=1)),\"§\",\"\")","v":""}]
["2C",{"$f":"(IFERROR('Scoring Calculations'!H14,\"\"))","v":""},{"$f":"IF(AND('Rater 1 Scoresheet'!Z14=1,B14<>\"\"),\"*\",\"\")","v":""},{"$f":"IF('Scoring Calculations'!L14=1,\"†\",\"\")","v":""},{"$f":"IF(AND('Inter-rater Reliability'!B70>0,OR('Inter-rater Reliability'!F14=1,'Inter-rater Reliability'!P14=1)),\"§\",\"\")","v":""}]
["2D",{"$f":"(IFERROR('Scoring Calculations'!H15,\"\"))","v":""},{"$f":"IF(AND('Rater 1 Scoresheet'!Z15=1,B15<>\"\"),\"*\",\"\")","v":""},{"$f":"IF('Scoring Calculations'!L15=1,\"†\",\"\")","v":""},{"$f":"IF(AND('Inter-rater Reliability'!B70>0,OR('Inter-rater Reliability'!F15=1,'Inter-rater Reliability'!P15=1)),\"§\",\"\")","v":""}]
["2E",{"$f":"(IFERROR('Scoring Calculations'!H16,\"\"))","v":""},{"$f":"IF(AND('Rater 1 Scoresheet'!Z16=1,B16<>\"\"),\"*\",\"\")","v":""},{"$f":"IF('Scoring Calculations'!L16=1,\"†\",\"\")","v":""},{"$f":"IF(AND('Inter-rater Reliability'!B70>0,OR('Inter-rater Reliability'!F16=1,'Inter-rater Reliability'!P16=1)),\"§\",\"\")","v":""}]
["2F",{"$f":"(IFERROR('Scoring Calculations'!H17,\"\"))","v":""},{"$f":"IF(AND('Rater 1 Scoresheet'!Z17=1,B17<>\"\"),\"*\",\"\")","v":""},{"$f":"IF('Scoring Calculations'!L17=1,\"†\",\"\")","v":""},{"$f":"IF(AND('Inter-rater Reliability'!B70>0,OR('Inter-rater Reliability'!F17=1,'Inter-rater Reliability'!P17=1)),\"§\",\"\")","v":""}]
["3A",{"$f":"(IFERROR('Scoring Calculations'!H18,\"\"))","v":""},{"$f":"IF(AND('Rater 1 Scoresheet'!Z18=1,B18<>\"\"),\"*\",\"\")","v":""},{"$f":"IF('Scoring Calculations'!L18=1,\"†\",\"\")","v":""},{"$f":"IF(AND('Inter-rater Reliability'!B70>0,OR('Inter-rater Reliability'!F18=1,'Inter-rater Reliability'!P18=1)),\"§\",\"\")","v":""}]
["3B",{"$f":"(IFERROR('Scoring Calculations'!H19,\"\"))","v":""},{"$f":"IF(AND('Rater 1 Scoresheet'!Z19=1,B19<>\"\"),\"*\",\"\")","v":""},{"$f":"IF('Scoring Calculations'!L19=1,\"†\",\"\")","v":""},{"$f":"IF(AND('Inter-rater Reliability'!B70>0,OR('Inter-rater Reliability'!F19=1,'Inter-rater Reliability'!P19=1)),\"§\",\"\")","v":""},null,{"$f":"('Scoring Calculations'!J19)","v":"N/A"}]
["3C",{"$f":"(IFERROR('Scoring Calculations'!H20,\"\"))","v":""},{"$f":"IF(AND('Rater 1 Scoresheet'!Z20=1,B20<>\"\"),\"*\",\"\")","v":""},{"$f":"IF('Scoring Calculations'!L20=1,\"†\",\"\")","v":""},{"$f":"IF(AND('Inter-rater Reliability'!B70>0,OR('Inter-rater Reliability'!F20=1,'Inter-rater Reliability'!P20=1)),\"§\",\"\")","v":""},null,{"$f":"('Scoring Calculations'!J20)","v":"N/A"}]
["3D",{"$f":"(IFERROR('Scoring Calculations'!H21,\"\"))","v":""},{"$f":"IF(AND('Rater 1 Scoresheet'!Z21=1,B21<>\"\"),\"*\",\"\")","v":""},{"$f":"IF('Scoring Calculations'!L21=1,\"†\",\"\")","v":""},{"$f":"IF(AND('Inter-rater Reliability'!B70>0,OR('Inter-rater Reliability'!F21=1,'Inter-rater Reliability'!P21=1)),\"§\",\"\")","v":""},null,{"$f":"('Scoring Calculations'!J21)","v":"N/A"}]
["3E",{"$f":"(IFERROR('Scoring Calculations'!H22,\"\"))","v":""},{"$f":"IF(AND('Rater 1 Scoresheet'!Z22=1,B22<>\"\"),\"*\",\"\")","v":""},{"$f":"IF('Scoring Calculations'!L22=1,\"†\",\"\")","v":""},{"$f":"IF(AND('Inter-rater Reliability'!B70>0,OR('Inter-rater Reliability'!F22=1,'Inter-rater Reliability'!P22=1)),\"§\",\"\")","v":""}]
["4A",{"$f":"(IFERROR('Scoring Calculations'!H23,\"\"))","v":""},{"$f":"IF(AND('Rater 1 Scoresheet'!Z23=1,B23<>\"\"),\"*\",\"\")","v":""},{"$f":"IF('Scoring Calculations'!L23=1,\"†\",\"\")","v":""},{"$f":"IF(AND('Inter-rater Reliability'!B70>0,OR('Inter-rater Reliability'!F23=1,'Inter-rater Reliability'!P23=1)),\"§\",\"\")","v":""}]
["4B",{"$f":"(IFERROR('Scoring Calculations'!H24,\"\"))","v":""},{"$f":"IF(AND('Rater 1 Scoresheet'!Z24=1,B24<>\"\"),\"*\",\"\")","v":""},{"$f":"IF('Scoring Calculations'!L24=1,\"†\",\"\")","v":""},{"$f":"IF(AND('Inter-rater Reliability'!B70>0,OR('Inter-rater Reliability'!F24=1,'Inter-rater Reliability'!P24=1)),\"§\",\"\")","v":""},null,{"$f":"('Scoring Calculations'!J24)","v":"N/A"}]
["4C",{"$f":"(IFERROR('Scoring Calculations'!H25,\"\"))","v":""},{"$f":"IF(AND('Rater 1 Scoresheet'!Z25=1,B25<>\"\"),\"*\",\"\")","v":""},{"$f":"IF('Scoring Calculations'!L25=1,\"†\",\"\")","v":""},{"$f":"IF(AND('Inter-rater Reliability'!B70>0,OR('Inter-rater Reliability'!F25=1,'Inter-rater Reliability'!P25=1)),\"§\",\"\")","v":""}]
["4D",{"$f":"(IFERROR('Scoring Calculations'!H26,\"\"))","v":""},{"$f":"IF(AND('Rater 1 Scoresheet'!Z26=1,B26<>\"\"),\"*\",\"\")","v":""},null,{"$f":"IF(AND('Inter-rater Reliability'!B70>0,OR('Inter-rater Reliability'!F26=1,'Inter-rater Reliability'!P26=1)),\"§\",\"\")","v":""}]
["4E",{"$f":"(IFERROR('Scoring Calculations'!H27,\"\"))","v":""},{"$f":"IF(AND('Rater 1 Scoresheet'!Z27=1,B27<>\"\"),\"*\",\"\")","v":""},{"$f":"IF('Scoring Calculations'!L27=1,\"†\",\"\")","v":""},{"$f":"IF(AND('Inter-rater Reliability'!B70>0,OR('Inter-rater Reliability'!F27=1,'Inter-rater Reliability'!P27=1)),\"§\",\"\")","v":""}]
["5A",{"$f":"(IFERROR('Scoring Calculations'!H28,\"\"))","v":""},{"$f":"IF(AND('Rater 1 Scoresheet'!Z28=1,B28<>\"\"),\"*\",\"\")","v":""},{"$f":"IF('Scoring Calculations'!L28=1,\"†\",\"\")","v":""},{"$f":"IF(AND('Inter-rater Reliability'!B70>0,OR('Inter-rater Reliability'!F28=1,'Inter-rater Reliability'!P28=1)),\"§\",\"\")","v":""},null,{"$f":"('Scoring Calculations'!J28)","v":"N/A"}]
["5B",{"$f":"(IFERROR('Scoring Calculations'!H29,\"\"))","v":""},{"$f":"IF(AND('Rater 1 Scoresheet'!Z29=1,B29<>\"\"),\"*\",\"\")","v":""},{"$f":"IF('Scoring Calculations'!L29=1,\"†\",\"\")","v":""},{"$f":"IF(AND('Inter-rater Reliability'!B70>0,OR('Inter-rater Reliability'!F29=1,'Inter-rater Reliability'!P29=1)),\"§\",\"\")","v":""}]
["5C",{"$f":"(IFERROR('Scoring Calculations'!H30,\"\"))","v":""},{"$f":"IF(AND('Rater 1 Scoresheet'!Z30=1,B30<>\"\"),\"*\",\"\")","v":""},{"$f":"IF('Scoring Calculations'!L30=1,\"†\",\"\")","v":""},{"$f":"IF(AND('Inter-rater Reliability'!B70>0,OR('Inter-rater Reliability'!F30=1,'Inter-rater Reliability'!P30=1)),\"§\",\"\")","v":""},null,{"$f":"('Scoring Calculations'!J30)","v":"N/A"}]
["5D",{"$f":"(IFERROR('Scoring Calculations'!H31,\"\"))","v":""},{"$f":"IF(AND('Rater 1 Scoresheet'!Z31=1,B31<>\"\"),\"*\",\"\")","v":""},{"$f":"IF('Scoring Calculations'!L31=1,\"†\",\"\")","v":""},{"$f":"IF(AND('Inter-rater Reliability'!B70>0,OR('Inter-rater Reliability'!F31=1,'Inter-rater Reliability'!P31=1)),\"§\",\"\")","v":""}]
["5E",{"$f":"(IFERROR('Scoring Calculations'!H32,\"\"))","v":""},{"$f":"IF(AND('Rater 1 Scoresheet'!Z32=1,B32<>\"\"),\"*\",\"\")","v":""},{"$f":"IF('Scoring Calculations'!L32=1,\"†\",\"\")","v":""},{"$f":"IF(AND('Inter-rater Reliability'!B70>0,OR('Inter-rater Reliability'!F32=1,'Inter-rater Reliability'!P32=1)),\"§\",\"\")","v":""}]
["5F",{"$f":"(IFERROR('Scoring Calculations'!H33,\"\"))","v":""},{"$f":"IF(AND('Rater 1 Scoresheet'!Z33=1,B33<>\"\"),\"*\",\"\")","v":""},{"$f":"IF('Scoring Calculations'!L33=1,\"†\",\"\")","v":""},{"$f":"IF(AND('Inter-rater Reliability'!B70>0,OR('Inter-rater Reliability'!F33=1,'Inter-rater Reliability'!P33=1)),\"§\",\"\")","v":""}]
["5G",{"$f":"(IFERROR('Scoring Calculations'!H34,\"\"))","v":""},{"$f":"IF(AND('Rater 1 Scoresheet'!Z34=1,B34<>\"\"),\"*\",\"\")","v":""},{"$f":"IF('Scoring Calculations'!L34=1,\"†\",\"\")","v":""},{"$f":"IF(AND('Inter-rater Reliability'!B70>0,OR('Inter-rater Reliability'!F34=1,'Inter-rater Reliability'!P34=1)),\"§\",\"\")","v":""}]
["5H",{"$f":"(IFERROR('Scoring Calculations'!H35,\"\"))","v":""},{"$f":"IF(AND('Rater 1 Scoresheet'!Z35=1,B35<>\"\"),\"*\",\"\")","v":""},{"$f":"IF('Scoring Calculations'!L35=1,\"†\",\"\")","v":""},{"$f":"IF(AND('Inter-rater Reliability'!B70>0,OR('Inter-rater Reliability'!F35=1,'Inter-rater Reliability'!P35=1)),\"§\",\"\")","v":""}]
["5I",{"$f":"(IFERROR('Scoring Calculations'!H36,\"\"))","v":""},{"$f":"IF(AND('Rater 1 Scoresheet'!Z36=1,B36<>\"\"),\"*\",\"\")","v":""},{"$f":"IF('Scoring Calculations'!L36=1,\"†\",\"\")","v":""},{"$f":"IF(AND('Inter-rater Reliability'!B70>0,OR('Inter-rater Reliability'!F36=1,'Inter-rater Reliability'!P36=1)),\"§\",\"\")","v":""}]
["5J",{"$f":"(IFERROR('Scoring Calculations'!H37,\"\"))","v":""},{"$f":"IF(AND('Rater 1 Scoresheet'!Z37=1,B37<>\"\"),\"*\",\"\")","v":""},{"$f":"IF('Scoring Calculations'!L37=1,\"†\",\"\")","v":""},{"$f":"IF(AND('Inter-rater Reliability'!B70>0,OR('Inter-rater Reliability'!F37=1,'Inter-rater Reliability'!P37=1)),\"§\",\"\")","v":""}]
["5K",{"$f":"(IFERROR('Scoring Calculations'!H38,\"\"))","v":""},{"$f":"IF(AND('Rater 1 Scoresheet'!Z38=1,B38<>\"\"),\"*\",\"\")","v":""},{"$f":"IF('Scoring Calculations'!L38=1,\"†\",\"\")","v":""},{"$f":"IF(AND('Inter-rater Reliability'!B70>0,OR('Inter-rater Reliability'!F38=1,'Inter-rater Reliability'!P38=1)),\"§\",\"\")","v":""}]
["5L",{"$f":"(IFERROR('Scoring Calculations'!H39,\"\"))","v":""},{"$f":"IF(AND('Rater 1 Scoresheet'!Z39=1,B39<>\"\"),\"*\",\"\")","v":""},{"$f":"IF('Scoring Calculations'!L39=1,\"†\",\"\")","v":""},{"$f":"IF(AND('Inter-rater Reliability'!B70>0,OR('Inter-rater Reliability'!F39=1,'Inter-rater Reliability'!P39=1)),\"§\",\"\")","v":""}]
["6A",{"$f":"(IFERROR('Scoring Calculations'!H40,\"\"))","v":""},{"$f":"IF(AND('Rater 1 Scoresheet'!Z40=1,B40<>\"\"),\"*\",\"\")","v":""},{"$f":"IF('Scoring Calculations'!L40=1,\"†\",\"\")","v":""},{"$f":"IF(AND('Inter-rater Reliability'!B70>0,OR('Inter-rater Reliability'!F40=1,'Inter-rater Reliability'!P40=1)),\"§\",\"\")","v":""}]
["6B",{"$f":"(IFERROR('Scoring Calculations'!H41,\"\"))","v":""},{"$f":"IF(AND('Rater 1 Scoresheet'!Z41=1,B41<>\"\"),\"*\",\"\")","v":""},{"$f":"IF('Scoring Calculations'!L41=1,\"†\",\"\")","v":""},{"$f":"IF(AND('Inter-rater Reliability'!B70>0,OR('Inter-rater Reliability'!F41=1,'Inter-rater Reliability'!P41=1)),\"§\",\"\")","v":""}]
["6C",{"$f":"(IFERROR('Scoring Calculations'!H42,\"\"))","v":""},{"$f":"IF(AND('Rater 1 Scoresheet'!Z42=1,B42<>\"\"),\"*\",\"\")","v":""},{"$f":"IF('Scoring Calculations'!L42=1,\"†\",\"\")","v":""},{"$f":"IF(AND('Inter-rater Reliability'!B70>0,OR('Inter-rater Reliability'!F42=1,'Inter-rater Reliability'!P42=1)),\"§\",\"\")","v":""}]
["6D",{"$f":"(IFERROR('Scoring Calculations'!H43,\"\"))","v":""},{"$f":"IF(AND('Rater 1 Scoresheet'!Z43=1,B43<>\"\"),\"*\",\"\")","v":""},{"$f":"IF('Scoring Calculations'!L43=1,\"†\",\"\")","v":""},{"$f":"IF(AND('Inter-rater Reliability'!B70>0,OR('Inter-rater Reliability'!F43=1,'Inter-rater Reliability'!P43=1)),\"§\",\"\")","v":""}]
["6E",{"$f":"(IFERROR('Scoring Calculations'!H44,\"\"))","v":""},{"$f":"IF(AND('Rater 1 Scoresheet'!Z44=1,B44<>\"\"),\"*\",\"\")","v":""},{"$f":"IF('Scoring Calculations'!L44=1,\"†\",\"\")","v":""},{"$f":"IF(AND('Inter-rater Reliability'!B70>0,OR('Inter-rater Reliability'!F44=1,'Inter-rater Reliability'!P44=1)),\"§\",\"\")","v":""}]
["6F",{"$f":"(IFERROR('Scoring Calculations'!H45,\"\"))","v":""},{"$f":"IF(AND('Rater 1 Scoresheet'!Z45=1,B45<>\"\"),\"*\",\"\")","v":""},{"$f":"IF('Scoring Calculations'!L45=1,\"†\",\"\")","v":""},{"$f":"IF(AND('Inter-rater Reliability'!B70>0,OR('Inter-rater Reliability'!F45=1,'Inter-rater Reliability'!P45=1)),\"§\",\"\")","v":""}]
["6G",{"$f":"(IFERROR('Scoring Calculations'!H46,\"\"))","v":""},{"$f":"IF(AND('Rater 1 Scoresheet'!Z46=1,B46<>\"\"),\"*\",\"\")","v":""},{"$f":"IF('Scoring Calculations'!L46=1,\"†\",\"\")","v":""},{"$f":"IF(AND('Inter-rater Reliability'!B70>0,OR('Inter-rater Reliability'!F46=1,'Inter-rater Reliability'!P46=1)),\"§\",\"\")","v":""}]
["6H",{"$f":"(IFERROR('Scoring Calculations'!H47,\"\"))","v":""},{"$f":"IF(AND('Rater 1 Scoresheet'!Z47=1,B47<>\"\"),\"*\",\"\")","v":""},{"$f":"IF('Scoring Calculations'!L47=1,\"†\",\"\")","v":""},{"$f":"IF(AND('Inter-rater Reliability'!B70>0,OR('Inter-rater Reliability'!F47=1,'Inter-rater Reliability'!P47=1)),\"§\",\"\")","v":""}]
["6I",{"$f":"(IFERROR('Scoring Calculations'!H48,\"\"))","v":""},{"$f":"IF(AND('Rater 1 Scoresheet'!Z48=1,B48<>\"\"),\"*\",\"\")","v":""},{"$f":"IF('Scoring Calculations'!L48=1,\"†\",\"\")","v":""},{"$f":"IF(AND('Inter-rater Reliability'!B70>0,OR('Inter-rater Reliability'!F48=1,'Inter-rater Reliability'!P48=1)),\"§\",\"\")","v":""}]
["6J",{"$f":"(IFERROR('Scoring Calculations'!H49,\"\"))","v":""},{"$f":"IF(AND('Rater 1 Scoresheet'!Z49=1,B49<>\"\"),\"*\",\"\")","v":""},{"$f":"IF('Scoring Calculations'!L49=1,\"†\",\"\")","v":""},{"$f":"IF(AND('Inter-rater Reliability'!B70>0,OR('Inter-rater Reliability'!F49=1,'Inter-rater Reliability'!P49=1)),\"§\",\"\")","v":""}]
["6K",{"$f":"(IFERROR('Scoring Calculations'!H50,\"\"))","v":""},{"$f":"IF(AND('Rater 1 Scoresheet'!Z50=1,B50<>\"\"),\"*\",\"\")","v":""},{"$f":"IF('Scoring Calculations'!L50=1,\"†\",\"\")","v":""},{"$f":"IF(AND('Inter-rater Reliability'!B70>0,OR('Inter-rater Reliability'!F50=1,'Inter-rater Reliability'!P50=1)),\"§\",\"\")","v":""}]
["7A",{"$f":"(IFERROR('Scoring Calculations'!H51,\"\"))","v":""},{"$f":"IF(AND('Rater 1 Scoresheet'!Z51=1,B51<>\"\"),\"*\",\"\")","v":""},{"$f":"IF('Scoring Calculations'!L51=1,\"†\",\"\")","v":""},{"$f":"IF(AND('Inter-rater Reliability'!B70>0,OR('Inter-rater Reliability'!F51=1,'Inter-rater Reliability'!P51=1)),\"§\",\"\")","v":""}]
["7B",{"$f":"(IFERROR('Scoring Calculations'!H52,\"\"))","v":""},{"$f":"IF(AND('Rater 1 Scoresheet'!Z52=1,B52<>\"\"),\"*\",\"\")","v":""},{"$f":"IF('Scoring Calculations'!L52=1,\"†\",\"\")","v":""},{"$f":"IF(AND('Inter-rater Reliability'!B70>0,OR('Inter-rater Reliability'!F52=1,'Inter-rater Reliability'!P52=1)),\"§\",\"\")","v":""}]
["7C",{"$f":"(IFERROR('Scoring Calculations'!H53,\"\"))","v":""},{"$f":"IF(AND('Rater 1 Scoresheet'!Z53=1,B53<>\"\"),\"*\",\"\")","v":""},{"$f":"IF('Scoring Calculations'!L53=1,\"†\",\"\")","v":""},{"$f":"IF(AND('Inter-rater Reliability'!B70>0,OR('Inter-rater Reliability'!F53=1,'Inter-rater Reliability'!P53=1)),\"§\",\"\")","v":""}]
["7D",{"$f":"(IFERROR('Scoring Calculations'!H54,\"\"))","v":""},{"$f":"IF(AND('Rater 1 Scoresheet'!Z54=1,B54<>\"\"),\"*\",\"\")","v":""},{"$f":"IF('Scoring Calculations'!L54=1,\"†\",\"\")","v":""},{"$f":"IF(AND('Inter-rater Reliability'!B70>0,OR('Inter-rater Reliability'!F54=1,'Inter-rater Reliability'!P54=1)),\"§\",\"\")","v":""}]
["7E",{"$f":"(IFERROR('Scoring Calculations'!H55,\"\"))","v":""},{"$f":"IF(AND('Rater 1 Scoresheet'!Z55=1,B55<>\"\"),\"*\",\"\")","v":""},{"$f":"IF('Scoring Calculations'!L55=1,\"†\",\"\")","v":""},{"$f":"IF(AND('Inter-rater Reliability'!B70>0,OR('Inter-rater Reliability'!F55=1,'Inter-rater Reliability'!P55=1)),\"§\",\"\")","v":""}]
["7F",{"$f":"(IFERROR('Scoring Calculations'!H56,\"\"))","v":""},{"$f":"IF(AND('Rater 1 Scoresheet'!Z56=1,B56<>\"\"),\"*\",\"\")","v":""},{"$f":"IF('Scoring Calculations'!L56=1,\"†\",\"\")","v":""},{"$f":"IF(AND('Inter-rater Reliability'!B70>0,OR('Inter-rater Reliability'!F56=1,'Inter-rater Reliability'!P56=1)),\"§\",\"\")","v":""}]
["7G",{"$f":"(IFERROR('Scoring Calculations'!H57,\"\"))","v":""},{"$f":"IF(AND('Rater 1 Scoresheet'!Z57=1,B57<>\"\"),\"*\",\"\")","v":""},{"$f":"IF('Scoring Calculations'!L57=1,\"†\",\"\")","v":""},{"$f":"IF(AND('Inter-rater Reliability'!B70>0,OR('Inter-rater Reliability'!F57=1,'Inter-rater Reliability'!P57=1)),\"§\",\"\")","v":""}]
["7H",{"$f":"(IFERROR('Scoring Calculations'!H58,\"\"))","v":""},{"$f":"IF(AND('Rater 1 Scoresheet'!Z58=1,B58<>\"\"),\"*\",\"\")","v":""},{"$f":"IF('Scoring Calculations'!L58=1,\"†\",\"\")","v":""},{"$f":"IF(AND('Inter-rater Reliability'!B70>0,OR('Inter-rater Reliability'!F58=1,'Inter-rater Reliability'!P58=1)),\"§\",\"\")","v":""}]
["7I",{"$f":"(IFERROR('Scoring Calculations'!H59,\"\"))","v":""},{"$f":"IF(AND('Rater 1 Scoresheet'!Z59=1,B59<>\"\"),\"*\",\"\")","v":""},{"$f":"IF('Scoring Calculations'!L59=1,\"†\",\"\")","v":""},{"$f":"IF(AND('Inter-rater Reliability'!B70>0,OR('Inter-rater Reliability'!F59=1,'Inter-rater Reliability'!P59=1)),\"§\",\"\")","v":""}]
["7J",{"$f":"(IFERROR('Scoring Calculations'!H60,\"\"))","v":""},{"$f":"IF(AND('Rater 1 Scoresheet'!Z60=1,B60<>\"\"),\"*\",\"\")","v":""},{"$f":"IF('Scoring Calculations'!L60=1,\"†\",\"\")","v":""},{"$f":"IF(AND('Inter-rater Reliability'!B70>0,OR('Inter-rater Reliability'!F60=1,'Inter-rater Reliability'!P60=1)),\"§\",\"\")","v":""}]
["7K",{"$f":"(IFERROR('Scoring Calculations'!H61,\"\"))","v":""},{"$f":"IF(AND('Rater 1 Scoresheet'!Z61=1,B61<>\"\"),\"*\",\"\")","v":""},{"$f":"IF('Scoring Calculations'!L61=1,\"†\",\"\")","v":""},{"$f":"IF(AND('Inter-rater Reliability'!B70>0,OR('Inter-rater Reliability'!F61=1,'Inter-rater Reliability'!P61=1)),\"§\",\"\")","v":""}]
["7L",{"$f":"(IFERROR('Scoring Calculations'!H62,\"\"))","v":""},{"$f":"IF(AND('Rater 1 Scoresheet'!Z62=1,B62<>\"\"),\"*\",\"\")","v":""},{"$f":"IF('Scoring Calculations'!L62=1,\"†\",\"\")","v":""},{"$f":"IF(AND('Inter-rater Reliability'!B70>0,OR('Inter-rater Reliability'!F62=1,'Inter-rater Reliability'!P62=1)),\"§\",\"\")","v":""}]
["7M",{"$f":"(IFERROR('Scoring Calculations'!H63,\"\"))","v":""},{"$f":"IF(AND('Rater 1 Scoresheet'!Z63=1,B63<>\"\"),\"*\",\"\")","v":""},{"$f":"IF('Scoring Calculations'!L63=1,\"†\",\"\")","v":""},{"$f":"IF(AND('Inter-rater Reliability'!B70>0,OR('Inter-rater Reliability'!F63=1,'Inter-rater Reliability'!P63=1)),\"§\",\"\")","v":""}]
["7N",{"$f":"(IFERROR('Scoring Calculations'!H64,\"\"))","v":""},{"$f":"IF(AND('Rater 1 Scoresheet'!Z64=1,B64<>\"\"),\"*\",\"\")","v":""},{"$f":"IF('Scoring Calculations'!L64=1,\"†\",\"\")","v":""},{"$f":"IF(AND('Inter-rater Reliability'!B70>0,OR('Inter-rater Reliability'!F64=1,'Inter-rater Reliability'!P64=1)),\"§\",\"\")","v":""}]
["8A",{"$f":"(IFERROR('Scoring Calculations'!H65,\"\"))","v":""},{"$f":"IF(AND('Rater 1 Scoresheet'!Z65=1,B65<>\"\"),\"*\",\"\")","v":""},{"$f":"IF('Scoring Calculations'!L65=1,\"†\",\"\")","v":""},{"$f":"IF(AND('Inter-rater Reliability'!B70>0,OR('Inter-rater Reliability'!F65=1,'Inter-rater Reliability'!P65=1)),\"§\",\"\")","v":""},null,{"$f":"('Scoring Calculations'!J65)","v":"N/A"}]
["8B",{"$f":"(IFERROR('Scoring Calculations'!H66,\"\"))","v":""},{"$f":"IF(AND('Rater 1 Scoresheet'!Z66=1,B66<>\"\"),\"*\",\"\")","v":""},{"$f":"IF('Scoring Calculations'!L66=1,\"†\",\"\")","v":""},{"$f":"IF(AND('Inter-rater Reliability'!B70>0,OR('Inter-rater Reliability'!F66=1,'Inter-rater Reliability'!P66=1)),\"§\",\"\")","v":""}]
["8C",{"$f":"(IFERROR('Scoring Calculations'!H67,\"\"))","v":""},{"$f":"IF(AND('Rater 1 Scoresheet'!Z67=1,B67<>\"\"),\"*\",\"\")","v":""},{"$f":"IF('Scoring Calculations'!L67=1,\"†\",\"\")","v":""},{"$f":"IF(AND('Inter-rater Reliability'!B70>0,OR('Inter-rater Reliability'!F67=1,'Inter-rater Reliability'!P67=1)),\"§\",\"\")","v":""}]
["8D",{"$f":"(IFERROR('Scoring Calculations'!H68,\"\"))","v":""},{"$f":"IF(AND('Rater 1 Scoresheet'!Z68=1,B68<>\"\"),\"*\",\"\")","v":""},{"$f":"IF('Scoring Calculations'!L68=1,\"†\",\"\")","v":""},{"$f":"IF(AND('Inter-rater Reliability'!B70>0,OR('Inter-rater Reliability'!F68=1,'Inter-rater Reliability'!P68=1)),\"§\",\"\")","v":""}]

{"sheet":"Quality Improvement Feedback","index":7,"n_rows":68,"n_cols":5,"rows_kept":68,"cut":false,"hidden":false,"merged":[]}
["Provision Number","Overall Provision Score","[Optional Administrative Validity Check]","Provision Language for Provisions that Received an Overall Provision Score < 2.5"]
["1A",{"$f":"(IFERROR('Scoring Calculations'!H2,\"\"))","v":""},null,{"$f":"IF(B2<2.5,CONCATENATE(E2,F2),\"\")","v":""},"Coordination and collaboration between court system, child welfare system, SUD and mental health treatment, children’s services, and related health, education, and social service systems. Organization executives collaborate to ensure that the FTC’s structures and operations adhere to the mandates of each system to improve outcomes across systems. "]
["1B",{"$f":"(IFERROR('Scoring Calculations'!H3,\"\"))","v":""},{"$f":"('Scoring Calculations'!J3)","v":"N/A"},"","Established partnerships between court, child welfare, SUD and mental health treatment, child/adolescent services, and related services and systems, to access, define, and provide services for children, caregivers, and families. Community partnerships formalized through MOUs that describe roles, responsibilities, and functions. Community partnerships formalized through MOUs that describe roles, responsibilities, and functions."]
["1C",{"$f":"(IFERROR('Scoring Calculations'!H4,\"\"))","v":""},null,"","Ongoing FTC operations administered by team of professionals from judge, FTC coordinator, child welfare agency/state’s attorney, caregiver’s attorney, child’s attorney, GAL and/or CASA, child welfare worker, SUD treatment, MH treatment, child & adolescent service providers and related agencies."]
["1D",{"$f":"(IFERROR('Scoring Calculations'!H5,\"\"))","v":""},null,"","FTC has a three-tier governance structure: 1. Oversight body comprises partner organization executive-level staff and other community leadership and elected officials. 2. Steering committee comprises partner organization supervisory-level staff. 3. Operational team (see Provision 1.C) Roles, responsibilities, and communication among each of the three governance committees are clearly defined in P&P manual and in MOUs."]
["1E",{"$f":"(IFERROR('Scoring Calculations'!H6,\"\"))","v":""},null,"","Vision and mission statements are collaboratively developed by partner organizations to be reflective of each system’s values, and jointly identify measurable goals and objectives."]
["1F",{"$f":"(IFERROR('Scoring Calculations'!H7,\"\"))","v":""},{"$f":"('Scoring Calculations'!J7)","v":"N/A"},"","Team shares case information in a timely manner. Team shares information with each other on caregiver, child, and family progress, including participant behavior. Purpose of information sharing is to support recovery and family reunification efforts, monitor progress, and review and respond to participant behavior. FTC has established information-sharing protocols compliant with all confidentiality requirements, ethics, and laws. Team uses email."]
["1G",{"$f":"(IFERROR('Scoring Calculations'!H8,\"\"))","v":""},null,"","Team training/education plan offers:  onboarding/orientation training, annual cross-training, and ongoing interdisciplinary education for the FTC oversight body, steering committee, and operational team members as well as other community agencies."]
["1H",{"$f":"(IFERROR('Scoring Calculations'!H9,\"\"))","v":""},null,"","Daily operations and interactions reflect family-centered, culturally relevant, and trauma-informed policies and practices by all staff who recognize and respond to signs and symptoms of trauma and are alert to culturally relevant factors."]
["1I",{"$f":"(IFERROR('Scoring Calculations'!H10,\"\"))","v":""},null,"","P&P Manual describes policies, procedures, day-to-day operations, and team member roles and responsibilities. P&P Manual contains the mission, vision, goals, eligibility criteria, referral and entry process, phase structure, monitoring, recovery and reunification support services, drug and alcohol testing procedures, coordinated responses to behavior, and protocols to determine necessary treatment and complementary services for children, caregivers, and families."]
["1J",{"$f":"(IFERROR('Scoring Calculations'!H11,\"\"))","v":""},null,"","A progress report is developed and read by all team members prior to each staffing. Operational team members attend staffings. Staffing prepares team for hearing. During staffing, team discusses progress and needs of children, caregivers, and family and recommends coordinated response to participant behavior to judge. The FTC court review hearing occurs immediately after staffing."]
["2A",{"$f":"(IFERROR('Scoring Calculations'!H12,\"\"))","v":""},null,"","The judge convenes the operational team and guides members in the development, implementation, and management of ongoing operations and actualization of the FTC’s mission and vision."]
["2B",{"$f":"(IFERROR('Scoring Calculations'!H13,\"\"))","v":""},null,"","In pre-court staffing, the FTC judge and operational team  discuss the recommended responses for each case based on information about participant attendance, progress, engagement in treatment, complementary services received, children’s needs and services, and compliance with dependency court and child welfare agency requirements. The FTC judge makes the final decision about the court-ordered response."]
["2C",{"$f":"(IFERROR('Scoring Calculations'!H14,\"\"))","v":""},null,"","The FTC judge consistently attends pre-court staffing to discuss participant progress, updates, and behaviors. "]
["2D",{"$f":"(IFERROR('Scoring Calculations'!H15,\"\"))","v":""},null,"","At FTC hearings, judge spends a minimum of three minutes talking to each participant. Judge responds to the participant’s behavior and provides a rationale for these responses. Judge reinforces the treatment adjustments and responses to behaviors. Judge is engaging, supportive, and encouraging, and works to build rapport with the participant. Judge emphasizes participant strengths and the importance of the participant’s continued engagement in treatment and services. Judge encourages the participant to discuss his or her progress, progress the children are making, and activities to enhance parenting skills or to discuss parenting challenges that the participant needs assistance."]
["2E",{"$f":"(IFERROR('Scoring Calculations'!H16,\"\"))","v":""},null,"","The FTC judge obtains training on mental health, substance use disorders, child welfare, and legal and constitutional issues related to FTCs. The FTC judge attends annual training conferences and workshops and training with other operational team members to assure cross-training."]
["2F",{"$f":"(IFERROR('Scoring Calculations'!H17,\"\"))","v":""},null,{"$f":"IF(B17<2.5,\"The FTC judge presides over the FTC for at least two consecutive years.\",\"\")","v":""},"The FTC judge presides over the FTC for at least two consecutive years."]
["3A",{"$f":"(IFERROR('Scoring Calculations'!H18,\"\"))","v":""},null,{"$f":"IF(B18<2.5,CONCATENATE(E18,F18),\"\")","v":""},"The FTC examines its eligibility criteria, screening, referral, entry, and assessment processes, and other entry processes at least annually. Review of criteria and processes aims to identify and correct any disproportionality in access."]
["3B",{"$f":"(IFERROR('Scoring Calculations'!H19,\"\"))","v":""},{"$f":"('Scoring Calculations'!J19)","v":"N/A"},"","FTC acts strategically to increase participation, engagement, successful discharge, permanency and well-being outcomes for historically marginalized groups at rates equivalent or better than overall child welfare system (CWS) population."]
["3C",{"$f":"(IFERROR('Scoring Calculations'!H20,\"\"))","v":""},{"$f":"('Scoring Calculations'!J20)","v":"N/A"},"","Family-centered, gender-responsive, trauma-informed, and linguistically and culturally appropriate treatment matches the intensity, dosage, and quality consistent with the needs and preferences of the individual and family, ensuing equivalent outcomes across groups."]
["3D",{"$f":"(IFERROR('Scoring Calculations'!H21,\"\"))","v":""},{"$f":"('Scoring Calculations'!J21)","v":"N/A"},"","FTC administers equitable responses across groups. Responses to participant behavior are regularly monitored for procedural fairness and that they are equivalent in similar situations across groups. "]
["3E",{"$f":"(IFERROR('Scoring Calculations'!H22,\"\"))","v":""},null,"","The FTC provides training on culturally relevant services and supports to its operational team and partners."]
["4A",{"$f":"(IFERROR('Scoring Calculations'!H23,\"\"))","v":""},null,"","FTC targets families that require intensive services, increased support and monitoring, and judicial oversight to comply with CWS case plan, complete SUD treatment, and safely reunify with children. FTC defines target population using objective eligibility and exclusion criteria. FTC communicates eligibility criteria in writing to all referral sources. FTCs do not make eligibility determinations based on subjective criteria."]
["4B",{"$f":"(IFERROR('Scoring Calculations'!H24,\"\"))","v":""},{"$f":"('Scoring Calculations'!J24)","v":"N/A"},"","Agreed-upon, standardized, and systematic processes for referring, screening, and assessing all caregivers, children, and families ensure a prompt, systematic, and universal experience for referred cases. Referral sources are trained in when to appropriately refer their participants."]
["4C",{"$f":"(IFERROR('Scoring Calculations'!H25,\"\"))","v":""},null,"","Valid and reliable instruments used to screen and assess:\n· Caregivers/families referred to FTC for program eligibility\n· appropriate treatment level-of-care\n· complementary services\n· case planning for children, caregivers, and family members.\nSee Appendix G of the Site Visit Guide for information on determining whether a screening/assessment instrument is validated."]
["4D",{"$f":"(IFERROR('Scoring Calculations'!H26,\"\"))","v":""},null,"","Children of FTC participants are assessed within a standardized time frame using validated and developmentally appropriate instruments. Child assessments reoccur at developmentally appropriate intervals."]
["4E",{"$f":"(IFERROR('Scoring Calculations'!H27,\"\"))","v":""},null,"","The FTC systematically monitors community-based barriers that hinder participants, children, and families from obtaining services or progressing toward goals."]
["5A",{"$f":"(IFERROR('Scoring Calculations'!H28,\"\"))","v":""},{"$f":"('Scoring Calculations'!J28)","v":"N/A"},"","Protocols and practices ensure timely access to an appropriate SUD treatment. Time between case opening and treatment entry is tracked as a routine process measure."]
["5B",{"$f":"(IFERROR('Scoring Calculations'!H29,\"\"))","v":""},null,"","Appropriate treatment, based on a valid and reliable clinical assessment instrument conducted by a qualified treatment provider, meets current needs of participants and adjusted based on ongoing formal reassessments of participants’ clinical needs. Assessment instruments are valid and reliable. See Appendix H of the Site Visit Guide for suggestions for ways to use administrative data as a validity check for these items."]
["5C",{"$f":"(IFERROR('Scoring Calculations'!H30,\"\"))","v":""},{"$f":"('Scoring Calculations'!J30)","v":"N/A"},"","Participants have access to a continuum of SUD treatment that includes medication management in each level of care: outpatient treatment, intensive outpatient treatment, partial hospitalization, residential or inpatient treatment, and medically managed intensive inpatient services (i.e., medical detoxification). Each participant’s SUD treatment dosage and duration are sufficient to achieve and sustain recovery. After acute SUD treatment no longer required, participants engage in continuing care to maintain stable health and recovery."]
["5D",{"$f":"(IFERROR('Scoring Calculations'!H31,\"\"))","v":""},null,"","Integrated treatment plans address the needs of participants who have co-occurring substance use and mental health disorders in a coordinated manner."]
["5E",{"$f":"(IFERROR('Scoring Calculations'!H32,\"\"))","v":""},null,"","SUD treatment is comprehensive and family-centered:\n· meets caregivers’ needs\n· meets children’s and family members’ needs\n· addresses effects of participant SUD on family\n· children can stay in residential with caregivers\nSee section 2.2 of the Site Visit Guide for definitions of special terminology such as family-centered."]
["5F",{"$f":"(IFERROR('Scoring Calculations'!H33,\"\"))","v":""},null,"","Treatment providers are trained in gender-responsive treatment. Treatment meets the needs of all genders:\n· Gender-specific groups;\n· Child care;\n· Medical and nutritional interventions"]
["5G",{"$f":"(IFERROR('Scoring Calculations'!H34,\"\"))","v":""},null,"","Protocol and practices identify the unique needs of pregnant participants and provides treatment and other services to meet these women’s needs, including integrated prenatal, perinatal, and postnatal medical care, as well as SUD interventions including medication-assisted treatment (MAT) when clinically indicated."]
["5H",{"$f":"(IFERROR('Scoring Calculations'!H35,\"\"))","v":""},null,"","The services and practices of the FTC SUD treatment providers are respectful of and responsive to the cultural and linguistic needs of FTC participants. See section 2.2 of the Site Visit Guide for definitions of special terminology such as culturally responsive treatment."]
["5I",{"$f":"(IFERROR('Scoring Calculations'!H36,\"\"))","v":""},null,"","SUD Treatment agencies that partner with the FTC provide evidence-based, manualized treatments with fidelity to the model. \nSUD Treatment providers are trained, certified (when applicable), and clinically supervised to ensure continuing fidelity to the model. For information on determining whether a treatment is evidence-based, see Appendix G of the Site Visit Guide."]
["5J",{"$f":"(IFERROR('Scoring Calculations'!H37,\"\"))","v":""},null,"","FTC participants receive MAT for SUDs based on an objective determination by a qualified medical provider that MAT is medically indicated. FTC does not exclude individuals using, or considering, MAT from FTC program. FTC does not mandate MAT."]
["5K",{"$f":"(IFERROR('Scoring Calculations'!H38,\"\"))","v":""},null,"","Standardized drug testing protocol specifies the frequency (a minimum of two times per week), scheduling, randomization procedures, observation, duration, and breadth of testing to monitor participants’ use of illicit and licit substances as well as outline processes for confirmation, notification, and dissemination of test results."]
["5L",{"$f":"(IFERROR('Scoring Calculations'!H39,\"\"))","v":""},null,"","The FTC’s treatment providers are licensed, certified, or accredited. Treatment providers receive continuing education and clinical supervision to ensure adoption of best practices in treatment of SUD, mental health, and related disorders."]
["6A",{"$f":"(IFERROR('Scoring Calculations'!H40,\"\"))","v":""},null,"","A coordinated case plan (or a set of case plans) is developed and systematically monitored to ensure that participants receive intensive supportive case management based on the results of reliable and valid needs assessments of all family members."]
["6B",{"$f":"(IFERROR('Scoring Calculations'!H41,\"\"))","v":""},null,"","Operational team’s approach is family-centered, culturally responsive, and strengths-based in which children, caregivers, and family members (as appropriate) are active partners in identifying their needs and strengths, and making decisions about their family’s treatment and case plan, setting goals, and achieving desired outcomes."]
["6C",{"$f":"(IFERROR('Scoring Calculations'!H42,\"\"))","v":""},null,"","The FTC links participants with professionally trained or certified recovery specialists (also known as recovery coaches), or with peer support specialists (also known as peer mentors). FTC team actively works with participants to build a community-based recovery support network. FTC does not require participants to attend any specific peer support group, but rather provides a range of options."]
["6D",{"$f":"(IFERROR('Scoring Calculations'!H43,\"\"))","v":""},null,"","FTC participants and their children receive high-quality, well-resourced, face-to-face parenting time (visitation). When needed, trained individuals facilitate supervised visitation as caregivers work to achieve unsupervised time. Minimum caregiver visitations as follows:\n     ·  > 1 (3-5x wk; 60 min.)\n     ·  1-2 (2-4x wk; 60 min.)\n     ·  2-5 (2-4x wk; 60 min.)\n     ·  6-12 (1-3x wk; 60 min.)\n     ·  13+ (1-2x wk; 60 min) \nMinimum sibling visitations: 1x per week; 60 min."]
["6E",{"$f":"(IFERROR('Scoring Calculations'!H44,\"\"))","v":""},null,"","All evidenced-based interventions  include a caregiver-child interaction component (in which caregivers and children attend sessions together) and are culturally appropriate parenting or family-strengthening programs designed to meet the needs of families affected by parental SUDs and co-occurring additional risk factors. FTC Team matches interventions to the needs of each child, parent, and family. For information on determining whether a treatment is evidence-based, see Appendix G of the Site Visit Guide."]
["6F",{"$f":"(IFERROR('Scoring Calculations'!H45,\"\"))","v":""},null,"","FTC participants and their families receive reunification and related supports."]
["6G",{"$f":"(IFERROR('Scoring Calculations'!H46,\"\"))","v":""},null,"","FTC participants and their children are screened and assessed for trauma. FTC participants and their children receive evidence-based or evidence-informed, trauma-specific, clinical interventions to treat their trauma-related symptoms and disorders. Trained treatment professionals provide trauma-specific therapies with fidelity."]
["6H",{"$f":"(IFERROR('Scoring Calculations'!H47,\"\"))","v":""},null,"","Children of participants are connected to a continuum of high-quality prevention, intervention, and treatment services to meet their physical, cognitive, social, emotional, behavioral, developmental, therapeutic, and educational needs identified by a comprehensive assessment, ideally through a medical home for the family.\n\nOperational team matches age and developmentally appropriate services to the child’s identified needs and monitors providers so that services are delivered with fidelity."]
["6I",{"$f":"(IFERROR('Scoring Calculations'!H48,\"\"))","v":""},null,"","Comprehensive range of complementary support services (e.g., child care, employment, educational, domestic violence, legal, transportation, food, clothing, housing, medical and dental care) are chosen to meet the individual needs of participants and their family members as identified by formal assessment to promote engagement and retention in SUD treatment and for sustained recovery and permanency."]
["6J",{"$f":"(IFERROR('Scoring Calculations'!H49,\"\"))","v":""},null,"","Infants and children under the age of 3 who are experiencing effects of prenatal substance exposure are connected to early intervention services that address the infant’s developmental, physical, social and emotional, physical health, and safety needs."]
["6K",{"$f":"(IFERROR('Scoring Calculations'!H50,\"\"))","v":""},null,{"$f":"IF(B50<2.5,CONCATENATE(E50,F50),\"\")","v":""},"Children of participants have access to evidence-based SUD prevention and early intervention services that are culturally, developmentally, and age appropriate, and are designed to enhance protective factors and reduce risk factors."]
["7A",{"$f":"(IFERROR('Scoring Calculations'!H51,\"\"))","v":""},null,"","Responses to behavior are made in child’s best interest and do not:\n· negatively affect participants, children, or families;\n· interfere with dependency court hearings or requirements.\nParenting time is not used as an incentive or sanction."]
["7B",{"$f":"(IFERROR('Scoring Calculations'!H52,\"\"))","v":""},null,"","Team considers whether non-compliance is due to a therapeutic problem before issuing a sanction. If such an issue exists, adjustments in the type of treatment, level of care, and dosage are based on the clinical needs of the participant’s substance use and mental, physical, social, or emotional health. Adjustments made in consultation with clinical treatment professionals.\nTreatment adjustments are not used as incentive or sanction."]
["7C",{"$f":"(IFERROR('Scoring Calculations'!H53,\"\"))","v":""},null,"","Team considers whether noncompliance is due to an unavoidable or structural barrier before issuing a sanction. \nIf such is determined, FTC team responds by providing additional complementary supports and services."]
["7D",{"$f":"(IFERROR('Scoring Calculations'!H54,\"\"))","v":""},null,"","The policy and procedure manual and the participant handbook provide the criteria necessary for advancement through the phases and successful discharge. Advancement is based on achievement of realistic, clearly defined behavioral objectives or milestones associated with sustained recovery, stable reunification, and safety, well-being, and permanency for children. FTC does not demote participants."]
["7E",{"$f":"(IFERROR('Scoring Calculations'!H55,\"\"))","v":""},null,"","The FTC develops a range of responses (incentives and sanctions) of varying magnitudes that it employs throughout each participant’s time in the FTC. FTC uses more incentives than sanctions."]
["7F",{"$f":"(IFERROR('Scoring Calculations'!H56,\"\"))","v":""},null,"","All relevant factors for each participant are considered and team members must articulate their reasoning when recommending consequences for a participant before the judge. Consequences do not differ by gender, race, ethnicity, nationality, socioeconomic status, or sexual orientation are equivalent to those received by other participants who engage in comparable conduct in similar circumstances and with similar expectations."]
["7G",{"$f":"(IFERROR('Scoring Calculations'!H57,\"\"))","v":""},null,"","The operational team reliably detects and responds consistently to all participant behaviors listed in the FTC Policy Manual."]
["7H",{"$f":"(IFERROR('Scoring Calculations'!H58,\"\"))","v":""},null,"","The FTC notifies participants in advance of the behaviors required for successful participation."]
["7I",{"$f":"(IFERROR('Scoring Calculations'!H59,\"\"))","v":""},null,"","Compliant or noncompliant behavior is responded to as soon as possible following the behavior in adherence with FTC policies and procedures, and legal and ethical communication protocols to minimize the time from event to response."]
["7J",{"$f":"(IFERROR('Scoring Calculations'!H60,\"\"))","v":""},null,"","The FTC gives all participants an opportunity to express their perspectives on their behavior, disagreements about facts and other relevant issues."]
["7K",{"$f":"(IFERROR('Scoring Calculations'!H61,\"\"))","v":""},null,"","Operational team’s interactions with the participant, children, family, and other members of the participant’s support system are respectful and professional."]
["7L",{"$f":"(IFERROR('Scoring Calculations'!H62,\"\"))","v":""},null,"","Appropriate child safety interventions, placement, and parenting time changes are made based on safety, well-being, and permanency indicators. Child welfare workers are responsible for ensuring child safety and may not delegate that responsibility."]
["7M",{"$f":"(IFERROR('Scoring Calculations'!H63,\"\"))","v":""},null,"","Medical experts determine whether a prescription for an addictive or intoxicating medication is medically indicated and whether safe alternatives are available. Use of nonmedically-indicated intoxicating or addictive substances (alcohol, cannabis, and prescription medications) regardless of the substance’s licit/illicit status is addressed."]
["7N",{"$f":"(IFERROR('Scoring Calculations'!H64,\"\"))","v":""},null,"","Agreed-upon criteria provide a framework to determine the appropriate discharge for each participant in its policies and procedures manual and participant handbook."]
["8A",{"$f":"(IFERROR('Scoring Calculations'!H65,\"\"))","v":""},{"$f":"('Scoring Calculations'!J65)","v":"N/A"},"","An electronic database stores information about the services provided to children, caregivers, and family members and monitors participants’ performance. Participant demographic characteristics; dependency court actions and processes; child welfare indicators; SUD and mental health treatment; other parent or caregiver, child, family, and parenting needs and services; recovery and reunification support; criminal justice involvement; children, caregiver, and family well-being; and long-term outcomes are recorded by FTC team members."]
["8B",{"$f":"(IFERROR('Scoring Calculations'!H66,\"\"))","v":""},null,"","Partners collaborate to improve processes and outcomes via routinely monitoring data for quality assurance and ensuring that data entry occurs within 48 of each activity/event. Data summaries provide real-time information on participant, process, and outcome measures that inform policy setting, sustainability and quality improvement efforts. Policies, procedures, and outcomes are evaluated annually and an action plan is developed to address challenges, incorporate best practices, and improve outcomes."]
["8C",{"$f":"(IFERROR('Scoring Calculations'!H67,\"\"))","v":""},null,"","FTC adheres to best practice standards. "]
["8D",{"$f":"(IFERROR('Scoring Calculations'!H68,\"\"))","v":""},null,"","Rigorous evaluation methods, preferably using comparison groups when feasible and appropriate, are used to address the pertinent evaluation questions. "]

{"sheet":"Inter-rater Reliability","index":8,"n_rows":76,"n_cols":17,"rows_kept":76,"cut":false,"hidden":false,"merged":[[9,22,9,25]]}
["Provision Number","Interview with FTC Rating","Interview with Treatment Rating","Document Rating","Total Obsevation  Rating","Raters do not agree: was a data source marked as 3 by one rater and 1 by another rater?",null,"interview ftc",null,"interview tx",null,"doc",null,"total obs",null,"Raters do not agree: was a data source marked as \"cannot make a rating\" for one rater and given a valid score by another rater?"]
["1A",{"$f":"'Rater 1 Scoresheet'!C2-'Rater 2 Scoresheet'!C2","v":0},null,null,{"$f":"'Rater 1 Scoresheet'!O2-'Rater 2 Scoresheet'!O2","v":0},{"$f":"IF(OR(ABS(B2)>1,(ABS(C2)>1),(ABS(D2)>1),(ABS(E2)>1)),1,0)","v":0},null,{"$f":"IF(AND('Rater 1 Scoresheet'!C2=0,'Rater 2 Scoresheet'!C2>0),1,0)","v":0},{"$f":"IF(AND('Rater 2 Scoresheet'!C2=0,'Rater 1 Scoresheet'!C2>0),1,0)","v":0},{"$f":"IF(AND('Rater 1 Scoresheet'!F2=0,'Rater 2 Scoresheet'!F2>0),1,0)","v":0},{"$f":"IF(AND('Rater 2 Scoresheet'!F2=0,'Rater 1 Scoresheet'!F2>0),1,0)","v":0},{"$f":"IF(AND('Rater 1 Scoresheet'!I2=0,'Rater 2 Scoresheet'!I2>0),1,0)","v":0},{"$f":"IF(AND('Rater 2 Scoresheet'!I2=0,'Rater 1 Scoresheet'!I2>0),1,0)","v":0},{"$f":"IF(AND('Rater 1 Scoresheet'!O2=0,'Rater 2 Scoresheet'!O2>0),1,0)","v":0},{"$f":"IF(AND('Rater 2 Scoresheet'!O2=0,'Rater 1 Scoresheet'!O2>0),1,0)","v":0},{"$f":"IF(OR(H2=1,I2=1,J2=1,K2=1,L2=1,M2=1,N2=1,O2=1),1,0)","v":0}]
["1B",{"$f":"'Rater 1 Scoresheet'!C3-'Rater 2 Scoresheet'!C3","v":0},null,{"$f":"'Rater 1 Scoresheet'!I3-'Rater 2 Scoresheet'!I3","v":0},null,{"$f":"IF(OR(ABS(B3)>1,(ABS(C3)>1),(ABS(D3)>1),(ABS(E3)>1)),1,0)","v":0},null,{"$f":"IF(AND('Rater 1 Scoresheet'!C3=0,'Rater 2 Scoresheet'!C3>0),1,0)","v":0},{"$f":"IF(AND('Rater 2 Scoresheet'!C3=0,'Rater 1 Scoresheet'!C3>0),1,0)","v":0},{"$f":"IF(AND('Rater 1 Scoresheet'!F3=0,'Rater 2 Scoresheet'!F3>0),1,0)","v":0},{"$f":"IF(AND('Rater 2 Scoresheet'!F3=0,'Rater 1 Scoresheet'!F3>0),1,0)","v":0},{"$f":"IF(AND('Rater 1 Scoresheet'!I3=0,'Rater 2 Scoresheet'!I3>0),1,0)","v":0},{"$f":"IF(AND('Rater 2 Scoresheet'!I3=0,'Rater 1 Scoresheet'!I3>0),1,0)","v":0},{"$f":"IF(AND('Rater 1 Scoresheet'!O3=0,'Rater 2 Scoresheet'!O3>0),1,0)","v":0},{"$f":"IF(AND('Rater 2 Scoresheet'!O3=0,'Rater 1 Scoresheet'!O3>0),1,0)","v":0},{"$f":"IF(OR(H3=1,I3=1,J3=1,K3=1,L3=1,M3=1,N3=1,O3=1),1,0)","v":0}]
["1C",null,null,{"$f":"'Rater 1 Scoresheet'!I4-'Rater 2 Scoresheet'!I4","v":0},{"$f":"'Rater 1 Scoresheet'!O4-'Rater 2 Scoresheet'!O4","v":0},0,null,{"$f":"IF(AND('Rater 1 Scoresheet'!C4=0,'Rater 2 Scoresheet'!C4>0),1,0)","v":0},{"$f":"IF(AND('Rater 2 Scoresheet'!C4=0,'Rater 1 Scoresheet'!C4>0),1,0)","v":0},{"$f":"IF(AND('Rater 1 Scoresheet'!F4=0,'Rater 2 Scoresheet'!F4>0),1,0)","v":0},{"$f":"IF(AND('Rater 2 Scoresheet'!F4=0,'Rater 1 Scoresheet'!F4>0),1,0)","v":0},{"$f":"IF(AND('Rater 1 Scoresheet'!I4=0,'Rater 2 Scoresheet'!I4>0),1,0)","v":0},{"$f":"IF(AND('Rater 2 Scoresheet'!I4=0,'Rater 1 Scoresheet'!I4>0),1,0)","v":0},{"$f":"IF(AND('Rater 1 Scoresheet'!O4=0,'Rater 2 Scoresheet'!O4>0),1,0)","v":0},{"$f":"IF(AND('Rater 2 Scoresheet'!O4=0,'Rater 1 Scoresheet'!O4>0),1,0)","v":0},0]
["1D",{"$f":"'Rater 1 Scoresheet'!C5-'Rater 2 Scoresheet'!C5","v":0},null,{"$f":"'Rater 1 Scoresheet'!I5-'Rater 2 Scoresheet'!I5","v":0},null,0,null,{"$f":"IF(AND('Rater 1 Scoresheet'!C5=0,'Rater 2 Scoresheet'!C5>0),1,0)","v":0},{"$f":"IF(AND('Rater 2 Scoresheet'!C5=0,'Rater 1 Scoresheet'!C5>0),1,0)","v":0},{"$f":"IF(AND('Rater 1 Scoresheet'!F5=0,'Rater 2 Scoresheet'!F5>0),1,0)","v":0},{"$f":"IF(AND('Rater 2 Scoresheet'!F5=0,'Rater 1 Scoresheet'!F5>0),1,0)","v":0},{"$f":"IF(AND('Rater 1 Scoresheet'!I5=0,'Rater 2 Scoresheet'!I5>0),1,0)","v":0},{"$f":"IF(AND('Rater 2 Scoresheet'!I5=0,'Rater 1 Scoresheet'!I5>0),1,0)","v":0},{"$f":"IF(AND('Rater 1 Scoresheet'!O5=0,'Rater 2 Scoresheet'!O5>0),1,0)","v":0},{"$f":"IF(AND('Rater 2 Scoresheet'!O5=0,'Rater 1 Scoresheet'!O5>0),1,0)","v":0},0]
["1E",{"$f":"'Rater 1 Scoresheet'!C6-'Rater 2 Scoresheet'!C6","v":0},null,{"$f":"'Rater 1 Scoresheet'!I6-'Rater 2 Scoresheet'!I6","v":0},null,0,null,{"$f":"IF(AND('Rater 1 Scoresheet'!C6=0,'Rater 2 Scoresheet'!C6>0),1,0)","v":0},{"$f":"IF(AND('Rater 2 Scoresheet'!C6=0,'Rater 1 Scoresheet'!C6>0),1,0)","v":0},{"$f":"IF(AND('Rater 1 Scoresheet'!F6=0,'Rater 2 Scoresheet'!F6>0),1,0)","v":0},{"$f":"IF(AND('Rater 2 Scoresheet'!F6=0,'Rater 1 Scoresheet'!F6>0),1,0)","v":0},{"$f":"IF(AND('Rater 1 Scoresheet'!I6=0,'Rater 2 Scoresheet'!I6>0),1,0)","v":0},{"$f":"IF(AND('Rater 2 Scoresheet'!I6=0,'Rater 1 Scoresheet'!I6>0),1,0)","v":0},{"$f":"IF(AND('Rater 1 Scoresheet'!O6=0,'Rater 2 Scoresheet'!O6>0),1,0)","v":0},{"$f":"IF(AND('Rater 2 Scoresheet'!O6=0,'Rater 1 Scoresheet'!O6>0),1,0)","v":0},0]
["1F",{"$f":"'Rater 1 Scoresheet'!C7-'Rater 2 Scoresheet'!C7","v":0},{"$f":"'Rater 1 Scoresheet'!F7-'Rater 2 Scoresheet'!F7","v":0},{"$f":"'Rater 1 Scoresheet'!I7-'Rater 2 Scoresheet'!I7","v":0},null,0,null,{"$f":"IF(AND('Rater 1 Scoresheet'!C7=0,'Rater 2 Scoresheet'!C7>0),1,0)","v":0},{"$f":"IF(AND('Rater 2 Scoresheet'!C7=0,'Rater 1 Scoresheet'!C7>0),1,0)","v":0},{"$f":"IF(AND('Rater 1 Scoresheet'!F7=0,'Rater 2 Scoresheet'!F7>0),1,0)","v":0},{"$f":"IF(AND('Rater 2 Scoresheet'!F7=0,'Rater 1 Scoresheet'!F7>0),1,0)","v":0},{"$f":"IF(AND('Rater 1 Scoresheet'!I7=0,'Rater 2 Scoresheet'!I7>0),1,0)","v":0},{"$f":"IF(AND('Rater 2 Scoresheet'!I7=0,'Rater 1 Scoresheet'!I7>0),1,0)","v":0},{"$f":"IF(AND('Rater 1 Scoresheet'!O7=0,'Rater 2 Scoresheet'!O7>0),1,0)","v":0},{"$f":"IF(AND('Rater 2 Scoresheet'!O7=0,'Rater 1 Scoresheet'!O7>0),1,0)","v":0},0]
["1G",{"$f":"'Rater 1 Scoresheet'!C8-'Rater 2 Scoresheet'!C8","v":0},null,{"$f":"'Rater 1 Scoresheet'!I8-'Rater 2 Scoresheet'!I8","v":0},null,0,null,{"$f":"IF(AND('Rater 1 Scoresheet'!C8=0,'Rater 2 Scoresheet'!C8>0),1,0)","v":0},{"$f":"IF(AND('Rater 2 Scoresheet'!C8=0,'Rater 1 Scoresheet'!C8>0),1,0)","v":0},{"$f":"IF(AND('Rater 1 Scoresheet'!F8=0,'Rater 2 Scoresheet'!F8>0),1,0)","v":0},{"$f":"IF(AND('Rater 2 Scoresheet'!F8=0,'Rater 1 Scoresheet'!F8>0),1,0)","v":0},{"$f":"IF(AND('Rater 1 Scoresheet'!I8=0,'Rater 2 Scoresheet'!I8>0),1,0)","v":0},{"$f":"IF(AND('Rater 2 Scoresheet'!I8=0,'Rater 1 Scoresheet'!I8>0),1,0)","v":0},{"$f":"IF(AND('Rater 1 Scoresheet'!O8=0,'Rater 2 Scoresheet'!O8>0),1,0)","v":0},{"$f":"IF(AND('Rater 2 Scoresheet'!O8=0,'Rater 1 Scoresheet'!O8>0),1,0)","v":0},0]
["1H",{"$f":"'Rater 1 Scoresheet'!C9-'Rater 2 Scoresheet'!C9","v":0},null,{"$f":"'Rater 1 Scoresheet'!I9-'Rater 2 Scoresheet'!I9","v":0},null,0,null,{"$f":"IF(AND('Rater 1 Scoresheet'!C9=0,'Rater 2 Scoresheet'!C9>0),1,0)","v":0},{"$f":"IF(AND('Rater 2 Scoresheet'!C9=0,'Rater 1 Scoresheet'!C9>0),1,0)","v":0},{"$f":"IF(AND('Rater 1 Scoresheet'!F9=0,'Rater 2 Scoresheet'!F9>0),1,0)","v":0},{"$f":"IF(AND('Rater 2 Scoresheet'!F9=0,'Rater 1 Scoresheet'!F9>0),1,0)","v":0},{"$f":"IF(AND('Rater 1 Scoresheet'!I9=0,'Rater 2 Scoresheet'!I9>0),1,0)","v":0},{"$f":"IF(AND('Rater 2 Scoresheet'!I9=0,'Rater 1 Scoresheet'!I9>0),1,0)","v":0},{"$f":"IF(AND('Rater 1 Scoresheet'!O9=0,'Rater 2 Scoresheet'!O9>0),1,0)","v":0},{"$f":"IF(AND('Rater 2 Scoresheet'!O9=0,'Rater 1 Scoresheet'!O9>0),1,0)","v":0},0]
["1I",{"$f":"'Rater 1 Scoresheet'!C10-'Rater 2 Scoresheet'!C10","v":0},null,{"$f":"'Rater 1 Scoresheet'!I10-'Rater 2 Scoresheet'!I10","v":0},null,0,null,{"$f":"IF(AND('Rater 1 Scoresheet'!C10=0,'Rater 2 Scoresheet'!C10>0),1,0)","v":0},{"$f":"IF(AND('Rater 2 Scoresheet'!C10=0,'Rater 1 Scoresheet'!C10>0),1,0)","v":0},{"$f":"IF(AND('Rater 1 Scoresheet'!F10=0,'Rater 2 Scoresheet'!F10>0),1,0)","v":0},{"$f":"IF(AND('Rater 2 Scoresheet'!F10=0,'Rater 1 Scoresheet'!F10>0),1,0)","v":0},{"$f":"IF(AND('Rater 1 Scoresheet'!I10=0,'Rater 2 Scoresheet'!I10>0),1,0)","v":0},{"$f":"IF(AND('Rater 2 Scoresheet'!I10=0,'Rater 1 Scoresheet'!I10>0),1,0)","v":0},{"$f":"IF(AND('Rater 1 Scoresheet'!O10=0,'Rater 2 Scoresheet'!O10>0),1,0)","v":0},{"$f":"IF(AND('Rater 2 Scoresheet'!O10=0,'Rater 1 Scoresheet'!O10>0),1,0)","v":0},0]
["1J",{"$f":"'Rater 1 Scoresheet'!C11-'Rater 2 Scoresheet'!C11","v":0},null,{"$f":"'Rater 1 Scoresheet'!I11-'Rater 2 Scoresheet'!I11","v":0},{"$f":"'Rater 1 Scoresheet'!O11-'Rater 2 Scoresheet'!O11","v":0},0,null,{"$f":"IF(AND('Rater 1 Scoresheet'!C11=0,'Rater 2 Scoresheet'!C11>0),1,0)","v":0},{"$f":"IF(AND('Rater 2 Scoresheet'!C11=0,'Rater 1 Scoresheet'!C11>0),1,0)","v":0},{"$f":"IF(AND('Rater 1 Scoresheet'!F11=0,'Rater 2 Scoresheet'!F11>0),1,0)","v":0},{"$f":"IF(AND('Rater 2 Scoresheet'!F11=0,'Rater 1 Scoresheet'!F11>0),1,0)","v":0},{"$f":"IF(AND('Rater 1 Scoresheet'!I11=0,'Rater 2 Scoresheet'!I11>0),1,0)","v":0},{"$f":"IF(AND('Rater 2 Scoresheet'!I11=0,'Rater 1 Scoresheet'!I11>0),1,0)","v":0},{"$f":"IF(AND('Rater 1 Scoresheet'!O11=0,'Rater 2 Scoresheet'!O11>0),1,0)","v":0},{"$f":"IF(AND('Rater 2 Scoresheet'!O11=0,'Rater 1 Scoresheet'!O11>0),1,0)","v":0},0]
["2A",{"$f":"'Rater 1 Scoresheet'!C12-'Rater 2 Scoresheet'!C12","v":0},null,{"$f":"'Rater 1 Scoresheet'!I12-'Rater 2 Scoresheet'!I12","v":0},{"$f":"'Rater 1 Scoresheet'!O12-'Rater 2 Scoresheet'!O12","v":0},0,null,{"$f":"IF(AND('Rater 1 Scoresheet'!C12=0,'Rater 2 Scoresheet'!C12>0),1,0)","v":0},{"$f":"IF(AND('Rater 2 Scoresheet'!C12=0,'Rater 1 Scoresheet'!C12>0),1,0)","v":0},{"$f":"IF(AND('Rater 1 Scoresheet'!F12=0,'Rater 2 Scoresheet'!F12>0),1,0)","v":0},{"$f":"IF(AND('Rater 2 Scoresheet'!F12=0,'Rater 1 Scoresheet'!F12>0),1,0)","v":0},{"$f":"IF(AND('Rater 1 Scoresheet'!I12=0,'Rater 2 Scoresheet'!I12>0),1,0)","v":0},{"$f":"IF(AND('Rater 2 Scoresheet'!I12=0,'Rater 1 Scoresheet'!I12>0),1,0)","v":0},{"$f":"IF(AND('Rater 1 Scoresheet'!O12=0,'Rater 2 Scoresheet'!O12>0),1,0)","v":0},{"$f":"IF(AND('Rater 2 Scoresheet'!O12=0,'Rater 1 Scoresheet'!O12>0),1,0)","v":0},0]
["2B",{"$f":"'Rater 1 Scoresheet'!C13-'Rater 2 Scoresheet'!C13","v":0},null,null,{"$f":"'Rater 1 Scoresheet'!O13-'Rater 2 Scoresheet'!O13","v":0},0,null,{"$f":"IF(AND('Rater 1 Scoresheet'!C13=0,'Rater 2 Scoresheet'!C13>0),1,0)","v":0},{"$f":"IF(AND('Rater 2 Scoresheet'!C13=0,'Rater 1 Scoresheet'!C13>0),1,0)","v":0},{"$f":"IF(AND('Rater 1 Scoresheet'!F13=0,'Rater 2 Scoresheet'!F13>0),1,0)","v":0},{"$f":"IF(AND('Rater 2 Scoresheet'!F13=0,'Rater 1 Scoresheet'!F13>0),1,0)","v":0},{"$f":"IF(AND('Rater 1 Scoresheet'!I13=0,'Rater 2 Scoresheet'!I13>0),1,0)","v":0},{"$f":"IF(AND('Rater 2 Scoresheet'!I13=0,'Rater 1 Scoresheet'!I13>0),1,0)","v":0},{"$f":"IF(AND('Rater 1 Scoresheet'!O13=0,'Rater 2 Scoresheet'!O13>0),1,0)","v":0},{"$f":"IF(AND('Rater 2 Scoresheet'!O13=0,'Rater 1 Scoresheet'!O13>0),1,0)","v":0},0]
["2C",{"$f":"'Rater 1 Scoresheet'!C14-'Rater 2 Scoresheet'!C14","v":0},null,null,{"$f":"'Rater 1 Scoresheet'!O14-'Rater 2 Scoresheet'!O14","v":0},0,null,{"$f":"IF(AND('Rater 1 Scoresheet'!C14=0,'Rater 2 Scoresheet'!C14>0),1,0)","v":0},{"$f":"IF(AND('Rater 2 Scoresheet'!C14=0,'Rater 1 Scoresheet'!C14>0),1,0)","v":0},{"$f":"IF(AND('Rater 1 Scoresheet'!F14=0,'Rater 2 Scoresheet'!F14>0),1,0)","v":0},{"$f":"IF(AND('Rater 2 Scoresheet'!F14=0,'Rater 1 Scoresheet'!F14>0),1,0)","v":0},{"$f":"IF(AND('Rater 1 Scoresheet'!I14=0,'Rater 2 Scoresheet'!I14>0),1,0)","v":0},{"$f":"IF(AND('Rater 2 Scoresheet'!I14=0,'Rater 1 Scoresheet'!I14>0),1,0)","v":0},{"$f":"IF(AND('Rater 1 Scoresheet'!O14=0,'Rater 2 Scoresheet'!O14>0),1,0)","v":0},{"$f":"IF(AND('Rater 2 Scoresheet'!O14=0,'Rater 1 Scoresheet'!O14>0),1,0)","v":0},0]
["2D",{"$f":"'Rater 1 Scoresheet'!C15-'Rater 2 Scoresheet'!C15","v":0},null,null,{"$f":"'Rater 1 Scoresheet'!O15-'Rater 2 Scoresheet'!O15","v":0},0,null,{"$f":"IF(AND('Rater 1 Scoresheet'!C15=0,'Rater 2 Scoresheet'!C15>0),1,0)","v":0},{"$f":"IF(AND('Rater 2 Scoresheet'!C15=0,'Rater 1 Scoresheet'!C15>0),1,0)","v":0},{"$f":"IF(AND('Rater 1 Scoresheet'!F15=0,'Rater 2 Scoresheet'!F15>0),1,0)","v":0},{"$f":"IF(AND('Rater 2 Scoresheet'!F15=0,'Rater 1 Scoresheet'!F15>0),1,0)","v":0},{"$f":"IF(AND('Rater 1 Scoresheet'!I15=0,'Rater 2 Scoresheet'!I15>0),1,0)","v":0},{"$f":"IF(AND('Rater 2 Scoresheet'!I15=0,'Rater 1 Scoresheet'!I15>0),1,0)","v":0},{"$f":"IF(AND('Rater 1 Scoresheet'!O15=0,'Rater 2 Scoresheet'!O15>0),1,0)","v":0},{"$f":"IF(AND('Rater 2 Scoresheet'!O15=0,'Rater 1 Scoresheet'!O15>0),1,0)","v":0},0]
["2E",{"$f":"'Rater 1 Scoresheet'!C16-'Rater 2 Scoresheet'!C16","v":0},null,{"$f":"'Rater 1 Scoresheet'!I16-'Rater 2 Scoresheet'!I16","v":0},null,0,null,{"$f":"IF(AND('Rater 1 Scoresheet'!C16=0,'Rater 2 Scoresheet'!C16>0),1,0)","v":0},{"$f":"IF(AND('Rater 2 Scoresheet'!C16=0,'Rater 1 Scoresheet'!C16>0),1,0)","v":0},{"$f":"IF(AND('Rater 1 Scoresheet'!F16=0,'Rater 2 Scoresheet'!F16>0),1,0)","v":0},{"$f":"IF(AND('Rater 2 Scoresheet'!F16=0,'Rater 1 Scoresheet'!F16>0),1,0)","v":0},{"$f":"IF(AND('Rater 1 Scoresheet'!I16=0,'Rater 2 Scoresheet'!I16>0),1,0)","v":0},{"$f":"IF(AND('Rater 2 Scoresheet'!I16=0,'Rater 1 Scoresheet'!I16>0),1,0)","v":0},{"$f":"IF(AND('Rater 1 Scoresheet'!O16=0,'Rater 2 Scoresheet'!O16>0),1,0)","v":0},{"$f":"IF(AND('Rater 2 Scoresheet'!O16=0,'Rater 1 Scoresheet'!O16>0),1,0)","v":0},0]
["2F",{"$f":"'Rater 1 Scoresheet'!C17-'Rater 2 Scoresheet'!C17","v":0},null,{"$f":"'Rater 1 Scoresheet'!I17-'Rater 2 Scoresheet'!I17","v":0},null,0,null,{"$f":"IF(AND('Rater 1 Scoresheet'!C17=0,'Rater 2 Scoresheet'!C17>0),1,0)","v":0},{"$f":"IF(AND('Rater 2 Scoresheet'!C17=0,'Rater 1 Scoresheet'!C17>0),1,0)","v":0},{"$f":"IF(AND('Rater 1 Scoresheet'!F17=0,'Rater 2 Scoresheet'!F17>0),1,0)","v":0},{"$f":"IF(AND('Rater 2 Scoresheet'!F17=0,'Rater 1 Scoresheet'!F17>0),1,0)","v":0},{"$f":"IF(AND('Rater 1 Scoresheet'!I17=0,'Rater 2 Scoresheet'!I17>0),1,0)","v":0},{"$f":"IF(AND('Rater 2 Scoresheet'!I17=0,'Rater 1 Scoresheet'!I17>0),1,0)","v":0},{"$f":"IF(AND('Rater 1 Scoresheet'!O17=0,'Rater 2 Scoresheet'!O17>0),1,0)","v":0},{"$f":"IF(AND('Rater 2 Scoresheet'!O17=0,'Rater 1 Scoresheet'!O17>0),1,0)","v":0},0]
["3A",{"$f":"'Rater 1 Scoresheet'!C18-'Rater 2 Scoresheet'!C18","v":0},null,{"$f":"'Rater 1 Scoresheet'!I18-'Rater 2 Scoresheet'!I18","v":0},null,0,null,{"$f":"IF(AND('Rater 1 Scoresheet'!C18=0,'Rater 2 Scoresheet'!C18>0),1,0)","v":0},{"$f":"IF(AND('Rater 2 Scoresheet'!C18=0,'Rater 1 Scoresheet'!C18>0),1,0)","v":0},{"$f":"IF(AND('Rater 1 Scoresheet'!F18=0,'Rater 2 Scoresheet'!F18>0),1,0)","v":0},{"$f":"IF(AND('Rater 2 Scoresheet'!F18=0,'Rater 1 Scoresheet'!F18>0),1,0)","v":0},{"$f":"IF(AND('Rater 1 Scoresheet'!I18=0,'Rater 2 Scoresheet'!I18>0),1,0)","v":0},{"$f":"IF(AND('Rater 2 Scoresheet'!I18=0,'Rater 1 Scoresheet'!I18>0),1,0)","v":0},{"$f":"IF(AND('Rater 1 Scoresheet'!O18=0,'Rater 2 Scoresheet'!O18>0),1,0)","v":0},{"$f":"IF(AND('Rater 2 Scoresheet'!O18=0,'Rater 1 Scoresheet'!O18>0),1,0)","v":0},0]
["3B",{"$f":"'Rater 1 Scoresheet'!C19-'Rater 2 Scoresheet'!C19","v":0},null,{"$f":"'Rater 1 Scoresheet'!I19-'Rater 2 Scoresheet'!I19","v":0},null,0,null,{"$f":"IF(AND('Rater 1 Scoresheet'!C19=0,'Rater 2 Scoresheet'!C19>0),1,0)","v":0},{"$f":"IF(AND('Rater 2 Scoresheet'!C19=0,'Rater 1 Scoresheet'!C19>0),1,0)","v":0},{"$f":"IF(AND('Rater 1 Scoresheet'!F19=0,'Rater 2 Scoresheet'!F19>0),1,0)","v":0},{"$f":"IF(AND('Rater 2 Scoresheet'!F19=0,'Rater 1 Scoresheet'!F19>0),1,0)","v":0},{"$f":"IF(AND('Rater 1 Scoresheet'!I19=0,'Rater 2 Scoresheet'!I19>0),1,0)","v":0},{"$f":"IF(AND('Rater 2 Scoresheet'!I19=0,'Rater 1 Scoresheet'!I19>0),1,0)","v":0},{"$f":"IF(AND('Rater 1 Scoresheet'!O19=0,'Rater 2 Scoresheet'!O19>0),1,0)","v":0},{"$f":"IF(AND('Rater 2 Scoresheet'!O19=0,'Rater 1 Scoresheet'!O19>0),1,0)","v":0},0]
["3C",{"$f":"'Rater 1 Scoresheet'!C20-'Rater 2 Scoresheet'!C20","v":0},null,{"$f":"'Rater 1 Scoresheet'!I20-'Rater 2 Scoresheet'!I20","v":0},null,0,null,{"$f":"IF(AND('Rater 1 Scoresheet'!C20=0,'Rater 2 Scoresheet'!C20>0),1,0)","v":0},{"$f":"IF(AND('Rater 2 Scoresheet'!C20=0,'Rater 1 Scoresheet'!C20>0),1,0)","v":0},{"$f":"IF(AND('Rater 1 Scoresheet'!F20=0,'Rater 2 Scoresheet'!F20>0),1,0)","v":0},{"$f":"IF(AND('Rater 2 Scoresheet'!F20=0,'Rater 1 Scoresheet'!F20>0),1,0)","v":0},{"$f":"IF(AND('Rater 1 Scoresheet'!I20=0,'Rater 2 Scoresheet'!I20>0),1,0)","v":0},{"$f":"IF(AND('Rater 2 Scoresheet'!I20=0,'Rater 1 Scoresheet'!I20>0),1,0)","v":0},{"$f":"IF(AND('Rater 1 Scoresheet'!O20=0,'Rater 2 Scoresheet'!O20>0),1,0)","v":0},{"$f":"IF(AND('Rater 2 Scoresheet'!O20=0,'Rater 1 Scoresheet'!O20>0),1,0)","v":0},0]
["3D",{"$f":"'Rater 1 Scoresheet'!C21-'Rater 2 Scoresheet'!C21","v":0},null,{"$f":"'Rater 1 Scoresheet'!I21-'Rater 2 Scoresheet'!I21","v":0},null,0,null,{"$f":"IF(AND('Rater 1 Scoresheet'!C21=0,'Rater 2 Scoresheet'!C21>0),1,0)","v":0},{"$f":"IF(AND('Rater 2 Scoresheet'!C21=0,'Rater 1 Scoresheet'!C21>0),1,0)","v":0},{"$f":"IF(AND('Rater 1 Scoresheet'!F21=0,'Rater 2 Scoresheet'!F21>0),1,0)","v":0},{"$f":"IF(AND('Rater 2 Scoresheet'!F21=0,'Rater 1 Scoresheet'!F21>0),1,0)","v":0},{"$f":"IF(AND('Rater 1 Scoresheet'!I21=0,'Rater 2 Scoresheet'!I21>0),1,0)","v":0},{"$f":"IF(AND('Rater 2 Scoresheet'!I21=0,'Rater 1 Scoresheet'!I21>0),1,0)","v":0},{"$f":"IF(AND('Rater 1 Scoresheet'!O21=0,'Rater 2 Scoresheet'!O21>0),1,0)","v":0},{"$f":"IF(AND('Rater 2 Scoresheet'!O21=0,'Rater 1 Scoresheet'!O21>0),1,0)","v":0},0]
["3E",{"$f":"'Rater 1 Scoresheet'!C22-'Rater 2 Scoresheet'!C22","v":0},null,{"$f":"'Rater 1 Scoresheet'!I22-'Rater 2 Scoresheet'!I22","v":0},null,0,null,{"$f":"IF(AND('Rater 1 Scoresheet'!C22=0,'Rater 2 Scoresheet'!C22>0),1,0)","v":0},{"$f":"IF(AND('Rater 2 Scoresheet'!C22=0,'Rater 1 Scoresheet'!C22>0),1,0)","v":0},{"$f":"IF(AND('Rater 1 Scoresheet'!F22=0,'Rater 2 Scoresheet'!F22>0),1,0)","v":0},{"$f":"IF(AND('Rater 2 Scoresheet'!F22=0,'Rater 1 Scoresheet'!F22>0),1,0)","v":0},{"$f":"IF(AND('Rater 1 Scoresheet'!I22=0,'Rater 2 Scoresheet'!I22>0),1,0)","v":0},{"$f":"IF(AND('Rater 2 Scoresheet'!I22=0,'Rater 1 Scoresheet'!I22>0),1,0)","v":0},{"$f":"IF(AND('Rater 1 Scoresheet'!O22=0,'Rater 2 Scoresheet'!O22>0),1,0)","v":0},{"$f":"IF(AND('Rater 2 Scoresheet'!O22=0,'Rater 1 Scoresheet'!O22>0),1,0)","v":0},0]
["4A",{"$f":"'Rater 1 Scoresheet'!C23-'Rater 2 Scoresheet'!C23","v":0},null,{"$f":"'Rater 1 Scoresheet'!I23-'Rater 2 Scoresheet'!I23","v":0},{"$f":"'Rater 1 Scoresheet'!O23-'Rater 2 Scoresheet'!O23","v":0},0,null,{"$f":"IF(AND('Rater 1 Scoresheet'!C23=0,'Rater 2 Scoresheet'!C23>0),1,0)","v":0},{"$f":"IF(AND('Rater 2 Scoresheet'!C23=0,'Rater 1 Scoresheet'!C23>0),1,0)","v":0},{"$f":"IF(AND('Rater 1 Scoresheet'!F23=0,'Rater 2 Scoresheet'!F23>0),1,0)","v":0},{"$f":"IF(AND('Rater 2 Scoresheet'!F23=0,'Rater 1 Scoresheet'!F23>0),1,0)","v":0},{"$f":"IF(AND('Rater 1 Scoresheet'!I23=0,'Rater 2 Scoresheet'!I23>0),1,0)","v":0},{"$f":"IF(AND('Rater 2 Scoresheet'!I23=0,'Rater 1 Scoresheet'!I23>0),1,0)","v":0},{"$f":"IF(AND('Rater 1 Scoresheet'!O23=0,'Rater 2 Scoresheet'!O23>0),1,0)","v":0},{"$f":"IF(AND('Rater 2 Scoresheet'!O23=0,'Rater 1 Scoresheet'!O23>0),1,0)","v":0},0]
["4B",{"$f":"'Rater 1 Scoresheet'!C24-'Rater 2 Scoresheet'!C24","v":0},null,{"$f":"'Rater 1 Scoresheet'!I24-'Rater 2 Scoresheet'!I24","v":0},null,0,null,{"$f":"IF(AND('Rater 1 Scoresheet'!C24=0,'Rater 2 Scoresheet'!C24>0),1,0)","v":0},{"$f":"IF(AND('Rater 2 Scoresheet'!C24=0,'Rater 1 Scoresheet'!C24>0),1,0)","v":0},{"$f":"IF(AND('Rater 1 Scoresheet'!F24=0,'Rater 2 Scoresheet'!F24>0),1,0)","v":0},{"$f":"IF(AND('Rater 2 Scoresheet'!F24=0,'Rater 1 Scoresheet'!F24>0),1,0)","v":0},{"$f":"IF(AND('Rater 1 Scoresheet'!I24=0,'Rater 2 Scoresheet'!I24>0),1,0)","v":0},{"$f":"IF(AND('Rater 2 Scoresheet'!I24=0,'Rater 1 Scoresheet'!I24>0),1,0)","v":0},{"$f":"IF(AND('Rater 1 Scoresheet'!O24=0,'Rater 2 Scoresheet'!O24>0),1,0)","v":0},{"$f":"IF(AND('Rater 2 Scoresheet'!O24=0,'Rater 1 Scoresheet'!O24>0),1,0)","v":0},0]
["4C",{"$f":"'Rater 1 Scoresheet'!C25-'Rater 2 Scoresheet'!C25","v":0},{"$f":"'Rater 1 Scoresheet'!F25-'Rater 2 Scoresheet'!F25","v":0},{"$f":"'Rater 1 Scoresheet'!I25-'Rater 2 Scoresheet'!I25","v":0},null,0,null,{"$f":"IF(AND('Rater 1 Scoresheet'!C25=0,'Rater 2 Scoresheet'!C25>0),1,0)","v":0},{"$f":"IF(AND('Rater 2 Scoresheet'!C25=0,'Rater 1 Scoresheet'!C25>0),1,0)","v":0},{"$f":"IF(AND('Rater 1 Scoresheet'!F25=0,'Rater 2 Scoresheet'!F25>0),1,0)","v":0},{"$f":"IF(AND('Rater 2 Scoresheet'!F25=0,'Rater 1 Scoresheet'!F25>0),1,0)","v":0},{"$f":"IF(AND('Rater 1 Scoresheet'!I25=0,'Rater 2 Scoresheet'!I25>0),1,0)","v":0},{"$f":"IF(AND('Rater 2 Scoresheet'!I25=0,'Rater 1 Scoresheet'!I25>0),1,0)","v":0},{"$f":"IF(AND('Rater 1 Scoresheet'!O25=0,'Rater 2 Scoresheet'!O25>0),1,0)","v":0},{"$f":"IF(AND('Rater 2 Scoresheet'!O25=0,'Rater 1 Scoresheet'!O25>0),1,0)","v":0},0]
["4D",{"$f":"'Rater 1 Scoresheet'!C26-'Rater 2 Scoresheet'!C26","v":0},null,{"$f":"'Rater 1 Scoresheet'!I26-'Rater 2 Scoresheet'!I26","v":0},null,0,null,{"$f":"IF(AND('Rater 1 Scoresheet'!C26=0,'Rater 2 Scoresheet'!C26>0),1,0)","v":0},{"$f":"IF(AND('Rater 2 Scoresheet'!C26=0,'Rater 1 Scoresheet'!C26>0),1,0)","v":0},{"$f":"IF(AND('Rater 1 Scoresheet'!F26=0,'Rater 2 Scoresheet'!F26>0),1,0)","v":0},{"$f":"IF(AND('Rater 2 Scoresheet'!F26=0,'Rater 1 Scoresheet'!F26>0),1,0)","v":0},{"$f":"IF(AND('Rater 1 Scoresheet'!I26=0,'Rater 2 Scoresheet'!I26>0),1,0)","v":0},{"$f":"IF(AND('Rater 2 Scoresheet'!I26=0,'Rater 1 Scoresheet'!I26>0),1,0)","v":0},{"$f":"IF(AND('Rater 1 Scoresheet'!O26=0,'Rater 2 Scoresheet'!O26>0),1,0)","v":0},{"$f":"IF(AND('Rater 2 Scoresheet'!O26=0,'Rater 1 Scoresheet'!O26>0),1,0)","v":0},0]
["4E",{"$f":"'Rater 1 Scoresheet'!C27-'Rater 2 Scoresheet'!C27","v":0},null,{"$f":"'Rater 1 Scoresheet'!I27-'Rater 2 Scoresheet'!I27","v":0},{"$f":"'Rater 1 Scoresheet'!O27-'Rater 2 Scoresheet'!O27","v":0},0,null,{"$f":"IF(AND('Rater 1 Scoresheet'!C27=0,'Rater 2 Scoresheet'!C27>0),1,0)","v":0},{"$f":"IF(AND('Rater 2 Scoresheet'!C27=0,'Rater 1 Scoresheet'!C27>0),1,0)","v":0},{"$f":"IF(AND('Rater 1 Scoresheet'!F27=0,'Rater 2 Scoresheet'!F27>0),1,0)","v":0},{"$f":"IF(AND('Rater 2 Scoresheet'!F27=0,'Rater 1 Scoresheet'!F27>0),1,0)","v":0},{"$f":"IF(AND('Rater 1 Scoresheet'!I27=0,'Rater 2 Scoresheet'!I27>0),1,0)","v":0},{"$f":"IF(AND('Rater 2 Scoresheet'!I27=0,'Rater 1 Scoresheet'!I27>0),1,0)","v":0},{"$f":"IF(AND('Rater 1 Scoresheet'!O27=0,'Rater 2 Scoresheet'!O27>0),1,0)","v":0},{"$f":"IF(AND('Rater 2 Scoresheet'!O27=0,'Rater 1 Scoresheet'!O27>0),1,0)","v":0},0]
["5A",{"$f":"'Rater 1 Scoresheet'!C28-'Rater 2 Scoresheet'!C28","v":0},{"$f":"'Rater 1 Scoresheet'!F28-'Rater 2 Scoresheet'!F28","v":0},null,null,0,null,{"$f":"IF(AND('Rater 1 Scoresheet'!C28=0,'Rater 2 Scoresheet'!C28>0),1,0)","v":0},{"$f":"IF(AND('Rater 2 Scoresheet'!C28=0,'Rater 1 Scoresheet'!C28>0),1,0)","v":0},{"$f":"IF(AND('Rater 1 Scoresheet'!F28=0,'Rater 2 Scoresheet'!F28>0),1,0)","v":0},{"$f":"IF(AND('Rater 2 Scoresheet'!F28=0,'Rater 1 Scoresheet'!F28>0),1,0)","v":0},{"$f":"IF(AND('Rater 1 Scoresheet'!I28=0,'Rater 2 Scoresheet'!I28>0),1,0)","v":0},{"$f":"IF(AND('Rater 2 Scoresheet'!I28=0,'Rater 1 Scoresheet'!I28>0),1,0)","v":0},{"$f":"IF(AND('Rater 1 Scoresheet'!O28=0,'Rater 2 Scoresheet'!O28>0),1,0)","v":0},{"$f":"IF(AND('Rater 2 Scoresheet'!O28=0,'Rater 1 Scoresheet'!O28>0),1,0)","v":0},0]
["5B",{"$f":"'Rater 1 Scoresheet'!C29-'Rater 2 Scoresheet'!C29","v":0},{"$f":"'Rater 1 Scoresheet'!F29-'Rater 2 Scoresheet'!F29","v":0},null,null,0,null,{"$f":"IF(AND('Rater 1 Scoresheet'!C29=0,'Rater 2 Scoresheet'!C29>0),1,0)","v":0},{"$f":"IF(AND('Rater 2 Scoresheet'!C29=0,'Rater 1 Scoresheet'!C29>0),1,0)","v":0},{"$f":"IF(AND('Rater 1 Scoresheet'!F29=0,'Rater 2 Scoresheet'!F29>0),1,0)","v":0},{"$f":"IF(AND('Rater 2 Scoresheet'!F29=0,'Rater 1 Scoresheet'!F29>0),1,0)","v":0},{"$f":"IF(AND('Rater 1 Scoresheet'!I29=0,'Rater 2 Scoresheet'!I29>0),1,0)","v":0},{"$f":"IF(AND('Rater 2 Scoresheet'!I29=0,'Rater 1 Scoresheet'!I29>0),1,0)","v":0},{"$f":"IF(AND('Rater 1 Scoresheet'!O29=0,'Rater 2 Scoresheet'!O29>0),1,0)","v":0},{"$f":"IF(AND('Rater 2 Scoresheet'!O29=0,'Rater 1 Scoresheet'!O29>0),1,0)","v":0},0]
["5C",{"$f":"'Rater 1 Scoresheet'!C30-'Rater 2 Scoresheet'!C30","v":0},{"$f":"'Rater 1 Scoresheet'!F30-'Rater 2 Scoresheet'!F30","v":0},null,null,0,null,{"$f":"IF(AND('Rater 1 Scoresheet'!C30=0,'Rater 2 Scoresheet'!C30>0),1,0)","v":0},{"$f":"IF(AND('Rater 2 Scoresheet'!C30=0,'Rater 1 Scoresheet'!C30>0),1,0)","v":0},{"$f":"IF(AND('Rater 1 Scoresheet'!F30=0,'Rater 2 Scoresheet'!F30>0),1,0)","v":0},{"$f":"IF(AND('Rater 2 Scoresheet'!F30=0,'Rater 1 Scoresheet'!F30>0),1,0)","v":0},{"$f":"IF(AND('Rater 1 Scoresheet'!I30=0,'Rater 2 Scoresheet'!I30>0),1,0)","v":0},{"$f":"IF(AND('Rater 2 Scoresheet'!I30=0,'Rater 1 Scoresheet'!I30>0),1,0)","v":0},{"$f":"IF(AND('Rater 1 Scoresheet'!O30=0,'Rater 2 Scoresheet'!O30>0),1,0)","v":0},{"$f":"IF(AND('Rater 2 Scoresheet'!O30=0,'Rater 1 Scoresheet'!O30>0),1,0)","v":0},0]
["5D",{"$f":"'Rater 1 Scoresheet'!C31-'Rater 2 Scoresheet'!C31","v":0},{"$f":"'Rater 1 Scoresheet'!F31-'Rater 2 Scoresheet'!F31","v":0},null,null,0,null,{"$f":"IF(AND('Rater 1 Scoresheet'!C31=0,'Rater 2 Scoresheet'!C31>0),1,0)","v":0},{"$f":"IF(AND('Rater 2 Scoresheet'!C31=0,'Rater 1 Scoresheet'!C31>0),1,0)","v":0},{"$f":"IF(AND('Rater 1 Scoresheet'!F31=0,'Rater 2 Scoresheet'!F31>0),1,0)","v":0},{"$f":"IF(AND('Rater 2 Scoresheet'!F31=0,'Rater 1 Scoresheet'!F31>0),1,0)","v":0},{"$f":"IF(AND('Rater 1 Scoresheet'!I31=0,'Rater 2 Scoresheet'!I31>0),1,0)","v":0},{"$f":"IF(AND('Rater 2 Scoresheet'!I31=0,'Rater 1 Scoresheet'!I31>0),1,0)","v":0},{"$f":"IF(AND('Rater 1 Scoresheet'!O31=0,'Rater 2 Scoresheet'!O31>0),1,0)","v":0},{"$f":"IF(AND('Rater 2 Scoresheet'!O31=0,'Rater 1 Scoresheet'!O31>0),1,0)","v":0},0]
["5E",{"$f":"'Rater 1 Scoresheet'!C32-'Rater 2 Scoresheet'!C32","v":0},{"$f":"'Rater 1 Scoresheet'!F32-'Rater 2 Scoresheet'!F32","v":0},null,null,0,null,{"$f":"IF(AND('Rater 1 Scoresheet'!C32=0,'Rater 2 Scoresheet'!C32>0),1,0)","v":0},{"$f":"IF(AND('Rater 2 Scoresheet'!C32=0,'Rater 1 Scoresheet'!C32>0),1,0)","v":0},{"$f":"IF(AND('Rater 1 Scoresheet'!F32=0,'Rater 2 Scoresheet'!F32>0),1,0)","v":0},{"$f":"IF(AND('Rater 2 Scoresheet'!F32=0,'Rater 1 Scoresheet'!F32>0),1,0)","v":0},{"$f":"IF(AND('Rater 1 Scoresheet'!I32=0,'Rater 2 Scoresheet'!I32>0),1,0)","v":0},{"$f":"IF(AND('Rater 2 Scoresheet'!I32=0,'Rater 1 Scoresheet'!I32>0),1,0)","v":0},{"$f":"IF(AND('Rater 1 Scoresheet'!O32=0,'Rater 2 Scoresheet'!O32>0),1,0)","v":0},{"$f":"IF(AND('Rater 2 Scoresheet'!O32=0,'Rater 1 Scoresheet'!O32>0),1,0)","v":0},0]
["5F",null,{"$f":"'Rater 1 Scoresheet'!F33-'Rater 2 Scoresheet'!F33","v":0},{"$f":"'Rater 1 Scoresheet'!I33-'Rater 2 Scoresheet'!I33","v":0},null,0,null,{"$f":"IF(AND('Rater 1 Scoresheet'!C33=0,'Rater 2 Scoresheet'!C33>0),1,0)","v":0},{"$f":"IF(AND('Rater 2 Scoresheet'!C33=0,'Rater 1 Scoresheet'!C33>0),1,0)","v":0},{"$f":"IF(AND('Rater 1 Scoresheet'!F33=0,'Rater 2 Scoresheet'!F33>0),1,0)","v":0},{"$f":"IF(AND('Rater 2 Scoresheet'!F33=0,'Rater 1 Scoresheet'!F33>0),1,0)","v":0},{"$f":"IF(AND('Rater 1 Scoresheet'!I33=0,'Rater 2 Scoresheet'!I33>0),1,0)","v":0},{"$f":"IF(AND('Rater 2 Scoresheet'!I33=0,'Rater 1 Scoresheet'!I33>0),1,0)","v":0},{"$f":"IF(AND('Rater 1 Scoresheet'!O33=0,'Rater 2 Scoresheet'!O33>0),1,0)","v":0},{"$f":"IF(AND('Rater 2 Scoresheet'!O33=0,'Rater 1 Scoresheet'!O33>0),1,0)","v":0},0]
["5G",{"$f":"'Rater 1 Scoresheet'!C34-'Rater 2 Scoresheet'!C34","v":0},{"$f":"'Rater 1 Scoresheet'!F34-'Rater 2 Scoresheet'!F34","v":0},null,null,0,null,{"$f":"IF(AND('Rater 1 Scoresheet'!C34=0,'Rater 2 Scoresheet'!C34>0),1,0)","v":0},{"$f":"IF(AND('Rater 2 Scoresheet'!C34=0,'Rater 1 Scoresheet'!C34>0),1,0)","v":0},{"$f":"IF(AND('Rater 1 Scoresheet'!F34=0,'Rater 2 Scoresheet'!F34>0),1,0)","v":0},{"$f":"IF(AND('Rater 2 Scoresheet'!F34=0,'Rater 1 Scoresheet'!F34>0),1,0)","v":0},{"$f":"IF(AND('Rater 1 Scoresheet'!I34=0,'Rater 2 Scoresheet'!I34>0),1,0)","v":0},{"$f":"IF(AND('Rater 2 Scoresheet'!I34=0,'Rater 1 Scoresheet'!I34>0),1,0)","v":0},{"$f":"IF(AND('Rater 1 Scoresheet'!O34=0,'Rater 2 Scoresheet'!O34>0),1,0)","v":0},{"$f":"IF(AND('Rater 2 Scoresheet'!O34=0,'Rater 1 Scoresheet'!O34>0),1,0)","v":0},0]
["5H",{"$f":"'Rater 1 Scoresheet'!C35-'Rater 2 Scoresheet'!C35","v":0},{"$f":"'Rater 1 Scoresheet'!F35-'Rater 2 Scoresheet'!F35","v":0},null,null,0,null,{"$f":"IF(AND('Rater 1 Scoresheet'!C35=0,'Rater 2 Scoresheet'!C35>0),1,0)","v":0},{"$f":"IF(AND('Rater 2 Scoresheet'!C35=0,'Rater 1 Scoresheet'!C35>0),1,0)","v":0},{"$f":"IF(AND('Rater 1 Scoresheet'!F35=0,'Rater 2 Scoresheet'!F35>0),1,0)","v":0},{"$f":"IF(AND('Rater 2 Scoresheet'!F35=0,'Rater 1 Scoresheet'!F35>0),1,0)","v":0},{"$f":"IF(AND('Rater 1 Scoresheet'!I35=0,'Rater 2 Scoresheet'!I35>0),1,0)","v":0},{"$f":"IF(AND('Rater 2 Scoresheet'!I35=0,'Rater 1 Scoresheet'!I35>0),1,0)","v":0},{"$f":"IF(AND('Rater 1 Scoresheet'!O35=0,'Rater 2 Scoresheet'!O35>0),1,0)","v":0},{"$f":"IF(AND('Rater 2 Scoresheet'!O35=0,'Rater 1 Scoresheet'!O35>0),1,0)","v":0},0]
["5I",{"$f":"'Rater 1 Scoresheet'!C36-'Rater 2 Scoresheet'!C36","v":0},{"$f":"'Rater 1 Scoresheet'!F36-'Rater 2 Scoresheet'!F36","v":0},{"$f":"'Rater 1 Scoresheet'!I36-'Rater 2 Scoresheet'!I36","v":0},null,0,null,{"$f":"IF(AND('Rater 1 Scoresheet'!C36=0,'Rater 2 Scoresheet'!C36>0),1,0)","v":0},{"$f":"IF(AND('Rater 2 Scoresheet'!C36=0,'Rater 1 Scoresheet'!C36>0),1,0)","v":0},{"$f":"IF(AND('Rater 1 Scoresheet'!F36=0,'Rater 2 Scoresheet'!F36>0),1,0)","v":0},{"$f":"IF(AND('Rater 2 Scoresheet'!F36=0,'Rater 1 Scoresheet'!F36>0),1,0)","v":0},{"$f":"IF(AND('Rater 1 Scoresheet'!I36=0,'Rater 2 Scoresheet'!I36>0),1,0)","v":0},{"$f":"IF(AND('Rater 2 Scoresheet'!I36=0,'Rater 1 Scoresheet'!I36>0),1,0)","v":0},{"$f":"IF(AND('Rater 1 Scoresheet'!O36=0,'Rater 2 Scoresheet'!O36>0),1,0)","v":0},{"$f":"IF(AND('Rater 2 Scoresheet'!O36=0,'Rater 1 Scoresheet'!O36>0),1,0)","v":0},0]
["5J",{"$f":"'Rater 1 Scoresheet'!C37-'Rater 2 Scoresheet'!C37","v":0},{"$f":"'Rater 1 Scoresheet'!F37-'Rater 2 Scoresheet'!F37","v":0},{"$f":"'Rater 1 Scoresheet'!I37-'Rater 2 Scoresheet'!I37","v":0},null,0,null,{"$f":"IF(AND('Rater 1 Scoresheet'!C37=0,'Rater 2 Scoresheet'!C37>0),1,0)","v":0},{"$f":"IF(AND('Rater 2 Scoresheet'!C37=0,'Rater 1 Scoresheet'!C37>0),1,0)","v":0},{"$f":"IF(AND('Rater 1 Scoresheet'!F37=0,'Rater 2 Scoresheet'!F37>0),1,0)","v":0},{"$f":"IF(AND('Rater 2 Scoresheet'!F37=0,'Rater 1 Scoresheet'!F37>0),1,0)","v":0},{"$f":"IF(AND('Rater 1 Scoresheet'!I37=0,'Rater 2 Scoresheet'!I37>0),1,0)","v":0},{"$f":"IF(AND('Rater 2 Scoresheet'!I37=0,'Rater 1 Scoresheet'!I37>0),1,0)","v":0},{"$f":"IF(AND('Rater 1 Scoresheet'!O37=0,'Rater 2 Scoresheet'!O37>0),1,0)","v":0},{"$f":"IF(AND('Rater 2 Scoresheet'!O37=0,'Rater 1 Scoresheet'!O37>0),1,0)","v":0},0]
["5K",{"$f":"'Rater 1 Scoresheet'!C38-'Rater 2 Scoresheet'!C38","v":0},{"$f":"'Rater 1 Scoresheet'!F38-'Rater 2 Scoresheet'!F38","v":0},{"$f":"'Rater 1 Scoresheet'!I38-'Rater 2 Scoresheet'!I38","v":0},null,0,null,{"$f":"IF(AND('Rater 1 Scoresheet'!C38=0,'Rater 2 Scoresheet'!C38>0),1,0)","v":0},{"$f":"IF(AND('Rater 2 Scoresheet'!C38=0,'Rater 1 Scoresheet'!C38>0),1,0)","v":0},{"$f":"IF(AND('Rater 1 Scoresheet'!F38=0,'Rater 2 Scoresheet'!F38>0),1,0)","v":0},{"$f":"IF(AND('Rater 2 Scoresheet'!F38=0,'Rater 1 Scoresheet'!F38>0),1,0)","v":0},{"$f":"IF(AND('Rater 1 Scoresheet'!I38=0,'Rater 2 Scoresheet'!I38>0),1,0)","v":0},{"$f":"IF(AND('Rater 2 Scoresheet'!I38=0,'Rater 1 Scoresheet'!I38>0),1,0)","v":0},{"$f":"IF(AND('Rater 1 Scoresheet'!O38=0,'Rater 2 Scoresheet'!O38>0),1,0)","v":0},{"$f":"IF(AND('Rater 2 Scoresheet'!O38=0,'Rater 1 Scoresheet'!O38>0),1,0)","v":0},0]
["5L",{"$f":"'Rater 1 Scoresheet'!C39-'Rater 2 Scoresheet'!C39","v":0},{"$f":"'Rater 1 Scoresheet'!F39-'Rater 2 Scoresheet'!F39","v":0},{"$f":"'Rater 1 Scoresheet'!I39-'Rater 2 Scoresheet'!I39","v":0},null,0,null,{"$f":"IF(AND('Rater 1 Scoresheet'!C39=0,'Rater 2 Scoresheet'!C39>0),1,0)","v":0},{"$f":"IF(AND('Rater 2 Scoresheet'!C39=0,'Rater 1 Scoresheet'!C39>0),1,0)","v":0},{"$f":"IF(AND('Rater 1 Scoresheet'!F39=0,'Rater 2 Scoresheet'!F39>0),1,0)","v":0},{"$f":"IF(AND('Rater 2 Scoresheet'!F39=0,'Rater 1 Scoresheet'!F39>0),1,0)","v":0},{"$f":"IF(AND('Rater 1 Scoresheet'!I39=0,'Rater 2 Scoresheet'!I39>0),1,0)","v":0},{"$f":"IF(AND('Rater 2 Scoresheet'!I39=0,'Rater 1 Scoresheet'!I39>0),1,0)","v":0},{"$f":"IF(AND('Rater 1 Scoresheet'!O39=0,'Rater 2 Scoresheet'!O39>0),1,0)","v":0},{"$f":"IF(AND('Rater 2 Scoresheet'!O39=0,'Rater 1 Scoresheet'!O39>0),1,0)","v":0},0]
["6A",{"$f":"'Rater 1 Scoresheet'!C40-'Rater 2 Scoresheet'!C40","v":0},null,{"$f":"'Rater 1 Scoresheet'!I40-'Rater 2 Scoresheet'!I40","v":0},{"$f":"'Rater 1 Scoresheet'!O40-'Rater 2 Scoresheet'!O40","v":0},0,null,{"$f":"IF(AND('Rater 1 Scoresheet'!C40=0,'Rater 2 Scoresheet'!C40>0),1,0)","v":0},{"$f":"IF(AND('Rater 2 Scoresheet'!C40=0,'Rater 1 Scoresheet'!C40>0),1,0)","v":0},{"$f":"IF(AND('Rater 1 Scoresheet'!F40=0,'Rater 2 Scoresheet'!F40>0),1,0)","v":0},{"$f":"IF(AND('Rater 2 Scoresheet'!F40=0,'Rater 1 Scoresheet'!F40>0),1,0)","v":0},{"$f":"IF(AND('Rater 1 Scoresheet'!I40=0,'Rater 2 Scoresheet'!I40>0),1,0)","v":0},{"$f":"IF(AND('Rater 2 Scoresheet'!I40=0,'Rater 1 Scoresheet'!I40>0),1,0)","v":0},{"$f":"IF(AND('Rater 1 Scoresheet'!O40=0,'Rater 2 Scoresheet'!O40>0),1,0)","v":0},{"$f":"IF(AND('Rater 2 Scoresheet'!O40=0,'Rater 1 Scoresheet'!O40>0),1,0)","v":0},0]
["6B",{"$f":"'Rater 1 Scoresheet'!C41-'Rater 2 Scoresheet'!C41","v":0},null,null,{"$f":"'Rater 1 Scoresheet'!O41-'Rater 2 Scoresheet'!O41","v":0},0,null,{"$f":"IF(AND('Rater 1 Scoresheet'!C41=0,'Rater 2 Scoresheet'!C41>0),1,0)","v":0},{"$f":"IF(AND('Rater 2 Scoresheet'!C41=0,'Rater 1 Scoresheet'!C41>0),1,0)","v":0},{"$f":"IF(AND('Rater 1 Scoresheet'!F41=0,'Rater 2 Scoresheet'!F41>0),1,0)","v":0},{"$f":"IF(AND('Rater 2 Scoresheet'!F41=0,'Rater 1 Scoresheet'!F41>0),1,0)","v":0},{"$f":"IF(AND('Rater 1 Scoresheet'!I41=0,'Rater 2 Scoresheet'!I41>0),1,0)","v":0},{"$f":"IF(AND('Rater 2 Scoresheet'!I41=0,'Rater 1 Scoresheet'!I41>0),1,0)","v":0},{"$f":"IF(AND('Rater 1 Scoresheet'!O41=0,'Rater 2 Scoresheet'!O41>0),1,0)","v":0},{"$f":"IF(AND('Rater 2 Scoresheet'!O41=0,'Rater 1 Scoresheet'!O41>0),1,0)","v":0},0]
["6C",{"$f":"'Rater 1 Scoresheet'!C42-'Rater 2 Scoresheet'!C42","v":0},{"$f":"'Rater 1 Scoresheet'!F42-'Rater 2 Scoresheet'!F42","v":0},null,{"$f":"'Rater 1 Scoresheet'!O42-'Rater 2 Scoresheet'!O42","v":0},0,null,{"$f":"IF(AND('Rater 1 Scoresheet'!C42=0,'Rater 2 Scoresheet'!C42>0),1,0)","v":0},{"$f":"IF(AND('Rater 2 Scoresheet'!C42=0,'Rater 1 Scoresheet'!C42>0),1,0)","v":0},{"$f":"IF(AND('Rater 1 Scoresheet'!F42=0,'Rater 2 Scoresheet'!F42>0),1,0)","v":0},{"$f":"IF(AND('Rater 2 Scoresheet'!F42=0,'Rater 1 Scoresheet'!F42>0),1,0)","v":0},{"$f":"IF(AND('Rater 1 Scoresheet'!I42=0,'Rater 2 Scoresheet'!I42>0),1,0)","v":0},{"$f":"IF(AND('Rater 2 Scoresheet'!I42=0,'Rater 1 Scoresheet'!I42>0),1,0)","v":0},{"$f":"IF(AND('Rater 1 Scoresheet'!O42=0,'Rater 2 Scoresheet'!O42>0),1,0)","v":0},{"$f":"IF(AND('Rater 2 Scoresheet'!O42=0,'Rater 1 Scoresheet'!O42>0),1,0)","v":0},0]
["6D",{"$f":"'Rater 1 Scoresheet'!C43-'Rater 2 Scoresheet'!C43","v":0},null,{"$f":"'Rater 1 Scoresheet'!I43-'Rater 2 Scoresheet'!I43","v":0},null,0,null,{"$f":"IF(AND('Rater 1 Scoresheet'!C43=0,'Rater 2 Scoresheet'!C43>0),1,0)","v":0},{"$f":"IF(AND('Rater 2 Scoresheet'!C43=0,'Rater 1 Scoresheet'!C43>0),1,0)","v":0},{"$f":"IF(AND('Rater 1 Scoresheet'!F43=0,'Rater 2 Scoresheet'!F43>0),1,0)","v":0},{"$f":"IF(AND('Rater 2 Scoresheet'!F43=0,'Rater 1 Scoresheet'!F43>0),1,0)","v":0},{"$f":"IF(AND('Rater 1 Scoresheet'!I43=0,'Rater 2 Scoresheet'!I43>0),1,0)","v":0},{"$f":"IF(AND('Rater 2 Scoresheet'!I43=0,'Rater 1 Scoresheet'!I43>0),1,0)","v":0},{"$f":"IF(AND('Rater 1 Scoresheet'!O43=0,'Rater 2 Scoresheet'!O43>0),1,0)","v":0},{"$f":"IF(AND('Rater 2 Scoresheet'!O43=0,'Rater 1 Scoresheet'!O43>0),1,0)","v":0},0]
["6E",{"$f":"'Rater 1 Scoresheet'!C44-'Rater 2 Scoresheet'!C44","v":0},{"$f":"'Rater 1 Scoresheet'!F44-'Rater 2 Scoresheet'!F44","v":0},null,null,0,null,{"$f":"IF(AND('Rater 1 Scoresheet'!C44=0,'Rater 2 Scoresheet'!C44>0),1,0)","v":0},{"$f":"IF(AND('Rater 2 Scoresheet'!C44=0,'Rater 1 Scoresheet'!C44>0),1,0)","v":0},{"$f":"IF(AND('Rater 1 Scoresheet'!F44=0,'Rater 2 Scoresheet'!F44>0),1,0)","v":0},{"$f":"IF(AND('Rater 2 Scoresheet'!F44=0,'Rater 1 Scoresheet'!F44>0),1,0)","v":0},{"$f":"IF(AND('Rater 1 Scoresheet'!I44=0,'Rater 2 Scoresheet'!I44>0),1,0)","v":0},{"$f":"IF(AND('Rater 2 Scoresheet'!I44=0,'Rater 1 Scoresheet'!I44>0),1,0)","v":0},{"$f":"IF(AND('Rater 1 Scoresheet'!O44=0,'Rater 2 Scoresheet'!O44>0),1,0)","v":0},{"$f":"IF(AND('Rater 2 Scoresheet'!O44=0,'Rater 1 Scoresheet'!O44>0),1,0)","v":0},0]
["6F",{"$f":"'Rater 1 Scoresheet'!C45-'Rater 2 Scoresheet'!C45","v":0},null,{"$f":"'Rater 1 Scoresheet'!I45-'Rater 2 Scoresheet'!I45","v":0},{"$f":"'Rater 1 Scoresheet'!O45-'Rater 2 Scoresheet'!O45","v":0},0,null,{"$f":"IF(AND('Rater 1 Scoresheet'!C45=0,'Rater 2 Scoresheet'!C45>0),1,0)","v":0},{"$f":"IF(AND('Rater 2 Scoresheet'!C45=0,'Rater 1 Scoresheet'!C45>0),1,0)","v":0},{"$f":"IF(AND('Rater 1 Scoresheet'!F45=0,'Rater 2 Scoresheet'!F45>0),1,0)","v":0},{"$f":"IF(AND('Rater 2 Scoresheet'!F45=0,'Rater 1 Scoresheet'!F45>0),1,0)","v":0},{"$f":"IF(AND('Rater 1 Scoresheet'!I45=0,'Rater 2 Scoresheet'!I45>0),1,0)","v":0},{"$f":"IF(AND('Rater 2 Scoresheet'!I45=0,'Rater 1 Scoresheet'!I45>0),1,0)","v":0},{"$f":"IF(AND('Rater 1 Scoresheet'!O45=0,'Rater 2 Scoresheet'!O45>0),1,0)","v":0},{"$f":"IF(AND('Rater 2 Scoresheet'!O45=0,'Rater 1 Scoresheet'!O45>0),1,0)","v":0},0]
["6G",{"$f":"'Rater 1 Scoresheet'!C46-'Rater 2 Scoresheet'!C46","v":0},{"$f":"'Rater 1 Scoresheet'!F46-'Rater 2 Scoresheet'!F46","v":0},{"$f":"'Rater 1 Scoresheet'!I46-'Rater 2 Scoresheet'!I46","v":0},null,0,null,{"$f":"IF(AND('Rater 1 Scoresheet'!C46=0,'Rater 2 Scoresheet'!C46>0),1,0)","v":0},{"$f":"IF(AND('Rater 2 Scoresheet'!C46=0,'Rater 1 Scoresheet'!C46>0),1,0)","v":0},{"$f":"IF(AND('Rater 1 Scoresheet'!F46=0,'Rater 2 Scoresheet'!F46>0),1,0)","v":0},{"$f":"IF(AND('Rater 2 Scoresheet'!F46=0,'Rater 1 Scoresheet'!F46>0),1,0)","v":0},{"$f":"IF(AND('Rater 1 Scoresheet'!I46=0,'Rater 2 Scoresheet'!I46>0),1,0)","v":0},{"$f":"IF(AND('Rater 2 Scoresheet'!I46=0,'Rater 1 Scoresheet'!I46>0),1,0)","v":0},{"$f":"IF(AND('Rater 1 Scoresheet'!O46=0,'Rater 2 Scoresheet'!O46>0),1,0)","v":0},{"$f":"IF(AND('Rater 2 Scoresheet'!O46=0,'Rater 1 Scoresheet'!O46>0),1,0)","v":0},0]
["6H",{"$f":"'Rater 1 Scoresheet'!C47-'Rater 2 Scoresheet'!C47","v":0},null,{"$f":"'Rater 1 Scoresheet'!I47-'Rater 2 Scoresheet'!I47","v":0},{"$f":"'Rater 1 Scoresheet'!O47-'Rater 2 Scoresheet'!O47","v":0},0,null,{"$f":"IF(AND('Rater 1 Scoresheet'!C47=0,'Rater 2 Scoresheet'!C47>0),1,0)","v":0},{"$f":"IF(AND('Rater 2 Scoresheet'!C47=0,'Rater 1 Scoresheet'!C47>0),1,0)","v":0},{"$f":"IF(AND('Rater 1 Scoresheet'!F47=0,'Rater 2 Scoresheet'!F47>0),1,0)","v":0},{"$f":"IF(AND('Rater 2 Scoresheet'!F47=0,'Rater 1 Scoresheet'!F47>0),1,0)","v":0},{"$f":"IF(AND('Rater 1 Scoresheet'!I47=0,'Rater 2 Scoresheet'!I47>0),1,0)","v":0},{"$f":"IF(AND('Rater 2 Scoresheet'!I47=0,'Rater 1 Scoresheet'!I47>0),1,0)","v":0},{"$f":"IF(AND('Rater 1 Scoresheet'!O47=0,'Rater 2 Scoresheet'!O47>0),1,0)","v":0},{"$f":"IF(AND('Rater 2 Scoresheet'!O47=0,'Rater 1 Scoresheet'!O47>0),1,0)","v":0},0]
["6I",{"$f":"'Rater 1 Scoresheet'!C48-'Rater 2 Scoresheet'!C48","v":0},null,{"$f":"'Rater 1 Scoresheet'!I48-'Rater 2 Scoresheet'!I48","v":0},{"$f":"'Rater 1 Scoresheet'!O48-'Rater 2 Scoresheet'!O48","v":0},0,null,{"$f":"IF(AND('Rater 1 Scoresheet'!C48=0,'Rater 2 Scoresheet'!C48>0),1,0)","v":0},{"$f":"IF(AND('Rater 2 Scoresheet'!C48=0,'Rater 1 Scoresheet'!C48>0),1,0)","v":0},{"$f":"IF(AND('Rater 1 Scoresheet'!F48=0,'Rater 2 Scoresheet'!F48>0),1,0)","v":0},{"$f":"IF(AND('Rater 2 Scoresheet'!F48=0,'Rater 1 Scoresheet'!F48>0),1,0)","v":0},{"$f":"IF(AND('Rater 1 Scoresheet'!I48=0,'Rater 2 Scoresheet'!I48>0),1,0)","v":0},{"$f":"IF(AND('Rater 2 Scoresheet'!I48=0,'Rater 1 Scoresheet'!I48>0),1,0)","v":0},{"$f":"IF(AND('Rater 1 Scoresheet'!O48=0,'Rater 2 Scoresheet'!O48>0),1,0)","v":0},{"$f":"IF(AND('Rater 2 Scoresheet'!O48=0,'Rater 1 Scoresheet'!O48>0),1,0)","v":0},0]
["6J",{"$f":"'Rater 1 Scoresheet'!C49-'Rater 2 Scoresheet'!C49","v":0},null,{"$f":"'Rater 1 Scoresheet'!I49-'Rater 2 Scoresheet'!I49","v":0},null,0,null,{"$f":"IF(AND('Rater 1 Scoresheet'!C49=0,'Rater 2 Scoresheet'!C49>0),1,0)","v":0},{"$f":"IF(AND('Rater 2 Scoresheet'!C49=0,'Rater 1 Scoresheet'!C49>0),1,0)","v":0},{"$f":"IF(AND('Rater 1 Scoresheet'!F49=0,'Rater 2 Scoresheet'!F49>0),1,0)","v":0},{"$f":"IF(AND('Rater 2 Scoresheet'!F49=0,'Rater 1 Scoresheet'!F49>0),1,0)","v":0},{"$f":"IF(AND('Rater 1 Scoresheet'!I49=0,'Rater 2 Scoresheet'!I49>0),1,0)","v":0},{"$f":"IF(AND('Rater 2 Scoresheet'!I49=0,'Rater 1 Scoresheet'!I49>0),1,0)","v":0},{"$f":"IF(AND('Rater 1 Scoresheet'!O49=0,'Rater 2 Scoresheet'!O49>0),1,0)","v":0},{"$f":"IF(AND('Rater 2 Scoresheet'!O49=0,'Rater 1 Scoresheet'!O49>0),1,0)","v":0},0]
["6K",{"$f":"'Rater 1 Scoresheet'!C50-'Rater 2 Scoresheet'!C50","v":0},null,{"$f":"'Rater 1 Scoresheet'!I50-'Rater 2 Scoresheet'!I50","v":0},null,0,null,{"$f":"IF(AND('Rater 1 Scoresheet'!C50=0,'Rater 2 Scoresheet'!C50>0),1,0)","v":0},{"$f":"IF(AND('Rater 2 Scoresheet'!C50=0,'Rater 1 Scoresheet'!C50>0),1,0)","v":0},{"$f":"IF(AND('Rater 1 Scoresheet'!F50=0,'Rater 2 Scoresheet'!F50>0),1,0)","v":0},{"$f":"IF(AND('Rater 2 Scoresheet'!F50=0,'Rater 1 Scoresheet'!F50>0),1,0)","v":0},{"$f":"IF(AND('Rater 1 Scoresheet'!I50=0,'Rater 2 Scoresheet'!I50>0),1,0)","v":0},{"$f":"IF(AND('Rater 2 Scoresheet'!I50=0,'Rater 1 Scoresheet'!I50>0),1,0)","v":0},{"$f":"IF(AND('Rater 1 Scoresheet'!O50=0,'Rater 2 Scoresheet'!O50>0),1,0)","v":0},{"$f":"IF(AND('Rater 2 Scoresheet'!O50=0,'Rater 1 Scoresheet'!O50>0),1,0)","v":0},0]
["7A",{"$f":"'Rater 1 Scoresheet'!C51-'Rater 2 Scoresheet'!C51","v":0},null,null,{"$f":"'Rater 1 Scoresheet'!O51-'Rater 2 Scoresheet'!O51","v":0},0,null,{"$f":"IF(AND('Rater 1 Scoresheet'!C51=0,'Rater 2 Scoresheet'!C51>0),1,0)","v":0},{"$f":"IF(AND('Rater 2 Scoresheet'!C51=0,'Rater 1 Scoresheet'!C51>0),1,0)","v":0},{"$f":"IF(AND('Rater 1 Scoresheet'!F51=0,'Rater 2 Scoresheet'!F51>0),1,0)","v":0},{"$f":"IF(AND('Rater 2 Scoresheet'!F51=0,'Rater 1 Scoresheet'!F51>0),1,0)","v":0},{"$f":"IF(AND('Rater 1 Scoresheet'!I51=0,'Rater 2 Scoresheet'!I51>0),1,0)","v":0},{"$f":"IF(AND('Rater 2 Scoresheet'!I51=0,'Rater 1 Scoresheet'!I51>0),1,0)","v":0},{"$f":"IF(AND('Rater 1 Scoresheet'!O51=0,'Rater 2 Scoresheet'!O51>0),1,0)","v":0},{"$f":"IF(AND('Rater 2 Scoresheet'!O51=0,'Rater 1 Scoresheet'!O51>0),1,0)","v":0},0]
["7B",{"$f":"'Rater 1 Scoresheet'!C52-'Rater 2 Scoresheet'!C52","v":0},{"$f":"'Rater 1 Scoresheet'!F52-'Rater 2 Scoresheet'!F52","v":0},null,{"$f":"'Rater 1 Scoresheet'!O52-'Rater 2 Scoresheet'!O52","v":0},0,null,{"$f":"IF(AND('Rater 1 Scoresheet'!C52=0,'Rater 2 Scoresheet'!C52>0),1,0)","v":0},{"$f":"IF(AND('Rater 2 Scoresheet'!C52=0,'Rater 1 Scoresheet'!C52>0),1,0)","v":0},{"$f":"IF(AND('Rater 1 Scoresheet'!F52=0,'Rater 2 Scoresheet'!F52>0),1,0)","v":0},{"$f":"IF(AND('Rater 2 Scoresheet'!F52=0,'Rater 1 Scoresheet'!F52>0),1,0)","v":0},{"$f":"IF(AND('Rater 1 Scoresheet'!I52=0,'Rater 2 Scoresheet'!I52>0),1,0)","v":0},{"$f":"IF(AND('Rater 2 Scoresheet'!I52=0,'Rater 1 Scoresheet'!I52>0),1,0)","v":0},{"$f":"IF(AND('Rater 1 Scoresheet'!O52=0,'Rater 2 Scoresheet'!O52>0),1,0)","v":0},{"$f":"IF(AND('Rater 2 Scoresheet'!O52=0,'Rater 1 Scoresheet'!O52>0),1,0)","v":0},0]
["7C",{"$f":"'Rater 1 Scoresheet'!C53-'Rater 2 Scoresheet'!C53","v":0},null,null,{"$f":"'Rater 1 Scoresheet'!O53-'Rater 2 Scoresheet'!O53","v":0},0,null,{"$f":"IF(AND('Rater 1 Scoresheet'!C53=0,'Rater 2 Scoresheet'!C53>0),1,0)","v":0},{"$f":"IF(AND('Rater 2 Scoresheet'!C53=0,'Rater 1 Scoresheet'!C53>0),1,0)","v":0},{"$f":"IF(AND('Rater 1 Scoresheet'!F53=0,'Rater 2 Scoresheet'!F53>0),1,0)","v":0},{"$f":"IF(AND('Rater 2 Scoresheet'!F53=0,'Rater 1 Scoresheet'!F53>0),1,0)","v":0},{"$f":"IF(AND('Rater 1 Scoresheet'!I53=0,'Rater 2 Scoresheet'!I53>0),1,0)","v":0},{"$f":"IF(AND('Rater 2 Scoresheet'!I53=0,'Rater 1 Scoresheet'!I53>0),1,0)","v":0},{"$f":"IF(AND('Rater 1 Scoresheet'!O53=0,'Rater 2 Scoresheet'!O53>0),1,0)","v":0},{"$f":"IF(AND('Rater 2 Scoresheet'!O53=0,'Rater 1 Scoresheet'!O53>0),1,0)","v":0},0]
["7D",{"$f":"'Rater 1 Scoresheet'!C54-'Rater 2 Scoresheet'!C54","v":0},null,{"$f":"'Rater 1 Scoresheet'!I54-'Rater 2 Scoresheet'!I54","v":0},null,0,null,{"$f":"IF(AND('Rater 1 Scoresheet'!C54=0,'Rater 2 Scoresheet'!C54>0),1,0)","v":0},{"$f":"IF(AND('Rater 2 Scoresheet'!C54=0,'Rater 1 Scoresheet'!C54>0),1,0)","v":0},{"$f":"IF(AND('Rater 1 Scoresheet'!F54=0,'Rater 2 Scoresheet'!F54>0),1,0)","v":0},{"$f":"IF(AND('Rater 2 Scoresheet'!F54=0,'Rater 1 Scoresheet'!F54>0),1,0)","v":0},{"$f":"IF(AND('Rater 1 Scoresheet'!I54=0,'Rater 2 Scoresheet'!I54>0),1,0)","v":0},{"$f":"IF(AND('Rater 2 Scoresheet'!I54=0,'Rater 1 Scoresheet'!I54>0),1,0)","v":0},{"$f":"IF(AND('Rater 1 Scoresheet'!O54=0,'Rater 2 Scoresheet'!O54>0),1,0)","v":0},{"$f":"IF(AND('Rater 2 Scoresheet'!O54=0,'Rater 1 Scoresheet'!O54>0),1,0)","v":0},0]
["7E",{"$f":"'Rater 1 Scoresheet'!C55-'Rater 2 Scoresheet'!C55","v":0},null,null,{"$f":"'Rater 1 Scoresheet'!O55-'Rater 2 Scoresheet'!O55","v":0},0,null,{"$f":"IF(AND('Rater 1 Scoresheet'!C55=0,'Rater 2 Scoresheet'!C55>0),1,0)","v":0},{"$f":"IF(AND('Rater 2 Scoresheet'!C55=0,'Rater 1 Scoresheet'!C55>0),1,0)","v":0},{"$f":"IF(AND('Rater 1 Scoresheet'!F55=0,'Rater 2 Scoresheet'!F55>0),1,0)","v":0},{"$f":"IF(AND('Rater 2 Scoresheet'!F55=0,'Rater 1 Scoresheet'!F55>0),1,0)","v":0},{"$f":"IF(AND('Rater 1 Scoresheet'!I55=0,'Rater 2 Scoresheet'!I55>0),1,0)","v":0},{"$f":"IF(AND('Rater 2 Scoresheet'!I55=0,'Rater 1 Scoresheet'!I55>0),1,0)","v":0},{"$f":"IF(AND('Rater 1 Scoresheet'!O55=0,'Rater 2 Scoresheet'!O55>0),1,0)","v":0},{"$f":"IF(AND('Rater 2 Scoresheet'!O55=0,'Rater 1 Scoresheet'!O55>0),1,0)","v":0},0]
["7F",{"$f":"'Rater 1 Scoresheet'!C56-'Rater 2 Scoresheet'!C56","v":0},null,null,{"$f":"'Rater 1 Scoresheet'!O56-'Rater 2 Scoresheet'!O56","v":0},0,null,{"$f":"IF(AND('Rater 1 Scoresheet'!C56=0,'Rater 2 Scoresheet'!C56>0),1,0)","v":0},{"$f":"IF(AND('Rater 2 Scoresheet'!C56=0,'Rater 1 Scoresheet'!C56>0),1,0)","v":0},{"$f":"IF(AND('Rater 1 Scoresheet'!F56=0,'Rater 2 Scoresheet'!F56>0),1,0)","v":0},{"$f":"IF(AND('Rater 2 Scoresheet'!F56=0,'Rater 1 Scoresheet'!F56>0),1,0)","v":0},{"$f":"IF(AND('Rater 1 Scoresheet'!I56=0,'Rater 2 Scoresheet'!I56>0),1,0)","v":0},{"$f":"IF(AND('Rater 2 Scoresheet'!I56=0,'Rater 1 Scoresheet'!I56>0),1,0)","v":0},{"$f":"IF(AND('Rater 1 Scoresheet'!O56=0,'Rater 2 Scoresheet'!O56>0),1,0)","v":0},{"$f":"IF(AND('Rater 2 Scoresheet'!O56=0,'Rater 1 Scoresheet'!O56>0),1,0)","v":0},0]
["7G",{"$f":"'Rater 1 Scoresheet'!C57-'Rater 2 Scoresheet'!C57","v":0},null,{"$f":"'Rater 1 Scoresheet'!I57-'Rater 2 Scoresheet'!I57","v":0},null,0,null,{"$f":"IF(AND('Rater 1 Scoresheet'!C57=0,'Rater 2 Scoresheet'!C57>0),1,0)","v":0},{"$f":"IF(AND('Rater 2 Scoresheet'!C57=0,'Rater 1 Scoresheet'!C57>0),1,0)","v":0},{"$f":"IF(AND('Rater 1 Scoresheet'!F57=0,'Rater 2 Scoresheet'!F57>0),1,0)","v":0},{"$f":"IF(AND('Rater 2 Scoresheet'!F57=0,'Rater 1 Scoresheet'!F57>0),1,0)","v":0},{"$f":"IF(AND('Rater 1 Scoresheet'!I57=0,'Rater 2 Scoresheet'!I57>0),1,0)","v":0},{"$f":"IF(AND('Rater 2 Scoresheet'!I57=0,'Rater 1 Scoresheet'!I57>0),1,0)","v":0},{"$f":"IF(AND('Rater 1 Scoresheet'!O57=0,'Rater 2 Scoresheet'!O57>0),1,0)","v":0},{"$f":"IF(AND('Rater 2 Scoresheet'!O57=0,'Rater 1 Scoresheet'!O57>0),1,0)","v":0},0]
["7H",{"$f":"'Rater 1 Scoresheet'!C58-'Rater 2 Scoresheet'!C58","v":0},null,{"$f":"'Rater 1 Scoresheet'!I58-'Rater 2 Scoresheet'!I58","v":0},null,0,null,{"$f":"IF(AND('Rater 1 Scoresheet'!C58=0,'Rater 2 Scoresheet'!C58>0),1,0)","v":0},{"$f":"IF(AND('Rater 2 Scoresheet'!C58=0,'Rater 1 Scoresheet'!C58>0),1,0)","v":0},{"$f":"IF(AND('Rater 1 Scoresheet'!F58=0,'Rater 2 Scoresheet'!F58>0),1,0)","v":0},{"$f":"IF(AND('Rater 2 Scoresheet'!F58=0,'Rater 1 Scoresheet'!F58>0),1,0)","v":0},{"$f":"IF(AND('Rater 1 Scoresheet'!I58=0,'Rater 2 Scoresheet'!I58>0),1,0)","v":0},{"$f":"IF(AND('Rater 2 Scoresheet'!I58=0,'Rater 1 Scoresheet'!I58>0),1,0)","v":0},{"$f":"IF(AND('Rater 1 Scoresheet'!O58=0,'Rater 2 Scoresheet'!O58>0),1,0)","v":0},{"$f":"IF(AND('Rater 2 Scoresheet'!O58=0,'Rater 1 Scoresheet'!O58>0),1,0)","v":0},0]
["7I",{"$f":"'Rater 1 Scoresheet'!C59-'Rater 2 Scoresheet'!C59","v":0},null,null,{"$f":"'Rater 1 Scoresheet'!O59-'Rater 2 Scoresheet'!O59","v":0},0,null,{"$f":"IF(AND('Rater 1 Scoresheet'!C59=0,'Rater 2 Scoresheet'!C59>0),1,0)","v":0},{"$f":"IF(AND('Rater 2 Scoresheet'!C59=0,'Rater 1 Scoresheet'!C59>0),1,0)","v":0},{"$f":"IF(AND('Rater 1 Scoresheet'!F59=0,'Rater 2 Scoresheet'!F59>0),1,0)","v":0},{"$f":"IF(AND('Rater 2 Scoresheet'!F59=0,'Rater 1 Scoresheet'!F59>0),1,0)","v":0},{"$f":"IF(AND('Rater 1 Scoresheet'!I59=0,'Rater 2 Scoresheet'!I59>0),1,0)","v":0},{"$f":"IF(AND('Rater 2 Scoresheet'!I59=0,'Rater 1 Scoresheet'!I59>0),1,0)","v":0},{"$f":"IF(AND('Rater 1 Scoresheet'!O59=0,'Rater 2 Scoresheet'!O59>0),1,0)","v":0},{"$f":"IF(AND('Rater 2 Scoresheet'!O59=0,'Rater 1 Scoresheet'!O59>0),1,0)","v":0},0]
["7J",{"$f":"'Rater 1 Scoresheet'!C60-'Rater 2 Scoresheet'!C60","v":0},null,null,{"$f":"'Rater 1 Scoresheet'!O60-'Rater 2 Scoresheet'!O60","v":0},0,null,{"$f":"IF(AND('Rater 1 Scoresheet'!C60=0,'Rater 2 Scoresheet'!C60>0),1,0)","v":0},{"$f":"IF(AND('Rater 2 Scoresheet'!C60=0,'Rater 1 Scoresheet'!C60>0),1,0)","v":0},{"$f":"IF(AND('Rater 1 Scoresheet'!F60=0,'Rater 2 Scoresheet'!F60>0),1,0)","v":0},{"$f":"IF(AND('Rater 2 Scoresheet'!F60=0,'Rater 1 Scoresheet'!F60>0),1,0)","v":0},{"$f":"IF(AND('Rater 1 Scoresheet'!I60=0,'Rater 2 Scoresheet'!I60>0),1,0)","v":0},{"$f":"IF(AND('Rater 2 Scoresheet'!I60=0,'Rater 1 Scoresheet'!I60>0),1,0)","v":0},{"$f":"IF(AND('Rater 1 Scoresheet'!O60=0,'Rater 2 Scoresheet'!O60>0),1,0)","v":0},{"$f":"IF(AND('Rater 2 Scoresheet'!O60=0,'Rater 1 Scoresheet'!O60>0),1,0)","v":0},0]
["7K",{"$f":"'Rater 1 Scoresheet'!C61-'Rater 2 Scoresheet'!C61","v":0},null,null,{"$f":"'Rater 1 Scoresheet'!O61-'Rater 2 Scoresheet'!O61","v":0},0,null,{"$f":"IF(AND('Rater 1 Scoresheet'!C61=0,'Rater 2 Scoresheet'!C61>0),1,0)","v":0},{"$f":"IF(AND('Rater 2 Scoresheet'!C61=0,'Rater 1 Scoresheet'!C61>0),1,0)","v":0},{"$f":"IF(AND('Rater 1 Scoresheet'!F61=0,'Rater 2 Scoresheet'!F61>0),1,0)","v":0},{"$f":"IF(AND('Rater 2 Scoresheet'!F61=0,'Rater 1 Scoresheet'!F61>0),1,0)","v":0},{"$f":"IF(AND('Rater 1 Scoresheet'!I61=0,'Rater 2 Scoresheet'!I61>0),1,0)","v":0},{"$f":"IF(AND('Rater 2 Scoresheet'!I61=0,'Rater 1 Scoresheet'!I61>0),1,0)","v":0},{"$f":"IF(AND('Rater 1 Scoresheet'!O61=0,'Rater 2 Scoresheet'!O61>0),1,0)","v":0},{"$f":"IF(AND('Rater 2 Scoresheet'!O61=0,'Rater 1 Scoresheet'!O61>0),1,0)","v":0},0]
["7L",{"$f":"'Rater 1 Scoresheet'!C62-'Rater 2 Scoresheet'!C62","v":0},null,null,{"$f":"'Rater 1 Scoresheet'!O62-'Rater 2 Scoresheet'!O62","v":0},0,null,{"$f":"IF(AND('Rater 1 Scoresheet'!C62=0,'Rater 2 Scoresheet'!C62>0),1,0)","v":0},{"$f":"IF(AND('Rater 2 Scoresheet'!C62=0,'Rater 1 Scoresheet'!C62>0),1,0)","v":0},{"$f":"IF(AND('Rater 1 Scoresheet'!F62=0,'Rater 2 Scoresheet'!F62>0),1,0)","v":0},{"$f":"IF(AND('Rater 2 Scoresheet'!F62=0,'Rater 1 Scoresheet'!F62>0),1,0)","v":0},{"$f":"IF(AND('Rater 1 Scoresheet'!I62=0,'Rater 2 Scoresheet'!I62>0),1,0)","v":0},{"$f":"IF(AND('Rater 2 Scoresheet'!I62=0,'Rater 1 Scoresheet'!I62>0),1,0)","v":0},{"$f":"IF(AND('Rater 1 Scoresheet'!O62=0,'Rater 2 Scoresheet'!O62>0),1,0)","v":0},{"$f":"IF(AND('Rater 2 Scoresheet'!O62=0,'Rater 1 Scoresheet'!O62>0),1,0)","v":0},0]
["7M",null,null,{"$f":"'Rater 1 Scoresheet'!I63-'Rater 2 Scoresheet'!I63","v":0},{"$f":"'Rater 1 Scoresheet'!O63-'Rater 2 Scoresheet'!O63","v":0},0,null,{"$f":"IF(AND('Rater 1 Scoresheet'!C63=0,'Rater 2 Scoresheet'!C63>0),1,0)","v":0},{"$f":"IF(AND('Rater 2 Scoresheet'!C63=0,'Rater 1 Scoresheet'!C63>0),1,0)","v":0},{"$f":"IF(AND('Rater 1 Scoresheet'!F63=0,'Rater 2 Scoresheet'!F63>0),1,0)","v":0},{"$f":"IF(AND('Rater 2 Scoresheet'!F63=0,'Rater 1 Scoresheet'!F63>0),1,0)","v":0},{"$f":"IF(AND('Rater 1 Scoresheet'!I63=0,'Rater 2 Scoresheet'!I63>0),1,0)","v":0},{"$f":"IF(AND('Rater 2 Scoresheet'!I63=0,'Rater 1 Scoresheet'!I63>0),1,0)","v":0},{"$f":"IF(AND('Rater 1 Scoresheet'!O63=0,'Rater 2 Scoresheet'!O63>0),1,0)","v":0},{"$f":"IF(AND('Rater 2 Scoresheet'!O63=0,'Rater 1 Scoresheet'!O63>0),1,0)","v":0},0]
["7N",{"$f":"'Rater 1 Scoresheet'!C64-'Rater 2 Scoresheet'!C64","v":0},null,{"$f":"'Rater 1 Scoresheet'!I64-'Rater 2 Scoresheet'!I64","v":0},null,0,null,{"$f":"IF(AND('Rater 1 Scoresheet'!C64=0,'Rater 2 Scoresheet'!C64>0),1,0)","v":0},{"$f":"IF(AND('Rater 2 Scoresheet'!C64=0,'Rater 1 Scoresheet'!C64>0),1,0)","v":0},{"$f":"IF(AND('Rater 1 Scoresheet'!F64=0,'Rater 2 Scoresheet'!F64>0),1,0)","v":0},{"$f":"IF(AND('Rater 2 Scoresheet'!F64=0,'Rater 1 Scoresheet'!F64>0),1,0)","v":0},{"$f":"IF(AND('Rater 1 Scoresheet'!I64=0,'Rater 2 Scoresheet'!I64>0),1,0)","v":0},{"$f":"IF(AND('Rater 2 Scoresheet'!I64=0,'Rater 1 Scoresheet'!I64>0),1,0)","v":0},{"$f":"IF(AND('Rater 1 Scoresheet'!O64=0,'Rater 2 Scoresheet'!O64>0),1,0)","v":0},{"$f":"IF(AND('Rater 2 Scoresheet'!O64=0,'Rater 1 Scoresheet'!O64>0),1,0)","v":0},0]
["8A",{"$f":"'Rater 1 Scoresheet'!C65-'Rater 2 Scoresheet'!C65","v":0},null,{"$f":"'Rater 1 Scoresheet'!I65-'Rater 2 Scoresheet'!I65","v":0},null,0,null,{"$f":"IF(AND('Rater 1 Scoresheet'!C65=0,'Rater 2 Scoresheet'!C65>0),1,0)","v":0},{"$f":"IF(AND('Rater 2 Scoresheet'!C65=0,'Rater 1 Scoresheet'!C65>0),1,0)","v":0},{"$f":"IF(AND('Rater 1 Scoresheet'!F65=0,'Rater 2 Scoresheet'!F65>0),1,0)","v":0},{"$f":"IF(AND('Rater 2 Scoresheet'!F65=0,'Rater 1 Scoresheet'!F65>0),1,0)","v":0},{"$f":"IF(AND('Rater 1 Scoresheet'!I65=0,'Rater 2 Scoresheet'!I65>0),1,0)","v":0},{"$f":"IF(AND('Rater 2 Scoresheet'!I65=0,'Rater 1 Scoresheet'!I65>0),1,0)","v":0},{"$f":"IF(AND('Rater 1 Scoresheet'!O65=0,'Rater 2 Scoresheet'!O65>0),1,0)","v":0},{"$f":"IF(AND('Rater 2 Scoresheet'!O65=0,'Rater 1 Scoresheet'!O65>0),1,0)","v":0},0]
["8B",{"$f":"'Rater 1 Scoresheet'!C66-'Rater 2 Scoresheet'!C66","v":0},null,{"$f":"'Rater 1 Scoresheet'!I66-'Rater 2 Scoresheet'!I66","v":0},null,0,null,{"$f":"IF(AND('Rater 1 Scoresheet'!C66=0,'Rater 2 Scoresheet'!C66>0),1,0)","v":0},{"$f":"IF(AND('Rater 2 Scoresheet'!C66=0,'Rater 1 Scoresheet'!C66>0),1,0)","v":0},{"$f":"IF(AND('Rater 1 Scoresheet'!F66=0,'Rater 2 Scoresheet'!F66>0),1,0)","v":0},{"$f":"IF(AND('Rater 2 Scoresheet'!F66=0,'Rater 1 Scoresheet'!F66>0),1,0)","v":0},{"$f":"IF(AND('Rater 1 Scoresheet'!I66=0,'Rater 2 Scoresheet'!I66>0),1,0)","v":0},{"$f":"IF(AND('Rater 2 Scoresheet'!I66=0,'Rater 1 Scoresheet'!I66>0),1,0)","v":0},{"$f":"IF(AND('Rater 1 Scoresheet'!O66=0,'Rater 2 Scoresheet'!O66>0),1,0)","v":0},{"$f":"IF(AND('Rater 2 Scoresheet'!O66=0,'Rater 1 Scoresheet'!O66>0),1,0)","v":0},0]
["8C",{"$f":"'Rater 1 Scoresheet'!C67-'Rater 2 Scoresheet'!C67","v":0},null,{"$f":"'Rater 1 Scoresheet'!I67-'Rater 2 Scoresheet'!I67","v":0},null,{"$f":"IF(OR(ABS(B67)>1,(ABS(C67)>1),(ABS(D67)>1),(ABS(E67)>1)),1,0)","v":0},null,{"$f":"IF(AND('Rater 1 Scoresheet'!C67=0,'Rater 2 Scoresheet'!C67>0),1,0)","v":0},{"$f":"IF(AND('Rater 2 Scoresheet'!C67=0,'Rater 1 Scoresheet'!C67>0),1,0)","v":0},{"$f":"IF(AND('Rater 1 Scoresheet'!F67=0,'Rater 2 Scoresheet'!F67>0),1,0)","v":0},{"$f":"IF(AND('Rater 2 Scoresheet'!F67=0,'Rater 1 Scoresheet'!F67>0),1,0)","v":0},{"$f":"IF(AND('Rater 1 Scoresheet'!I67=0,'Rater 2 Scoresheet'!I67>0),1,0)","v":0},{"$f":"IF(AND('Rater 2 Scoresheet'!I67=0,'Rater 1 Scoresheet'!I67>0),1,0)","v":0},{"$f":"IF(AND('Rater 1 Scoresheet'!O67=0,'Rater 2 Scoresheet'!O67>0),1,0)","v":0},{"$f":"IF(AND('Rater 2 Scoresheet'!O67=0,'Rater 1 Scoresheet'!O67>0),1,0)","v":0},{"$f":"IF(OR(H67=1,I67=1,J67=1,K67=1,L67=1,M67=1,N67=1,O67=1),1,0)","v":0}]
["8D",{"$f":"'Rater 1 Scoresheet'!C68-'Rater 2 Scoresheet'!C68","v":0},null,{"$f":"'Rater 1 Scoresheet'!I68-'Rater 2 Scoresheet'!I68","v":0},null,{"$f":"IF(OR(ABS(B68)>1,(ABS(C68)>1),(ABS(D68)>1),(ABS(E68)>1)),1,0)","v":0},null,{"$f":"IF(AND('Rater 1 Scoresheet'!C68=0,'Rater 2 Scoresheet'!C68>0),1,0)","v":0},{"$f":"IF(AND('Rater 2 Scoresheet'!C68=0,'Rater 1 Scoresheet'!C68>0),1,0)","v":0},{"$f":"IF(AND('Rater 1 Scoresheet'!F68=0,'Rater 2 Scoresheet'!F68>0),1,0)","v":0},{"$f":"IF(AND('Rater 2 Scoresheet'!F68=0,'Rater 1 Scoresheet'!F68>0),1,0)","v":0},{"$f":"IF(AND('Rater 1 Scoresheet'!I68=0,'Rater 2 Scoresheet'!I68>0),1,0)","v":0},{"$f":"IF(AND('Rater 2 Scoresheet'!I68=0,'Rater 1 Scoresheet'!I68>0),1,0)","v":0},{"$f":"IF(AND('Rater 1 Scoresheet'!O68=0,'Rater 2 Scoresheet'!O68>0),1,0)","v":0},{"$f":"IF(AND('Rater 2 Scoresheet'!O68=0,'Rater 1 Scoresheet'!O68>0),1,0)","v":0},0]
[]
["Was there a rater 2?",{"$f":"SUM('Rater 2 Scoresheet'!C2:C68,'Rater 2 Scoresheet'!F2:F68,'Rater 2 Scoresheet'!I2:I68,'Rater 2 Scoresheet'!O2:O68)","v":0}]
[]
["Number of Zeros",null,null,null,{"$f":"COUNTIF(B2:E68,0)","v":151}]
["Number of Items",null,null,null,{"$f":"COUNTIF(B2:E68,\"<>\")","v":151},null,null,null,null,null,null,null,null,null,null,null," "]
[]
["Percent Agreement",{"$f":"IF(B70>0,E72/E73,\"\")","v":""}]
["Cohen's Kappa Statistic",{"$f":"(IF(B70>0,'Kappa Statistic '!K12,\"\"))","v":""}]

{"sheet":"Kappa Statistic ","index":9,"n_rows":153,"n_cols":35,"rows_kept":153,"cut":false,"hidden":true,"merged":[]}
["R1","R2",null,null,"R1","R2","Code"]
[{"$f":"'Rater 1 Scoresheet'!C2","v":0},{"$f":"'Rater 2 Scoresheet'!C2","v":0},{"$f":"IF(AND(A2=3,B2=3),\"A\",IF(AND(A2=3,B2=2),\"B\",IF(AND(A2=3,B2=1),\"C\",IF(AND(A2=3,B2=0),\"D\",IF(AND(A2=2,B2=3),\"E\",IF(AND(A2=2,B2=2),\"F\",IF(AND(A2=2,B2=1),\"G\",IF(AND(A2=2,B2=0),\"H\",IF(AND(A2=1,B2=3),\"I\",IF(AND(A2=1,B2=2),\"J\",IF(AND(A2=1,B2=1),\"K\",IF(AND(A2=1,B2=0),\"L\",IF(AND(A2=0,B2=3),\"M\",IF(AND(A2=0,B2=2),\"N\",IF(AND(A2=0,B2=1),\"O\",IF(AND(A2=0,B2=0),\"P\"))))))))))))))))","v":"P"},null,3,3,"A",{"$f":"COUNTIF(C2:C152,\"A\")","v":0},null,null,"R1"]
[{"$f":"'Rater 1 Scoresheet'!C3","v":0},{"$f":"'Rater 2 Scoresheet'!C3","v":0},{"$f":"IF(AND(A3=3,B3=3),\"A\",IF(AND(A3=3,B3=2),\"B\",IF(AND(A3=3,B3=1),\"C\",IF(AND(A3=3,B3=0),\"D\",IF(AND(A3=2,B3=3),\"E\",IF(AND(A3=2,B3=2),\"F\",IF(AND(A3=2,B3=1),\"G\",IF(AND(A3=2,B3=0),\"H\",IF(AND(A3=1,B3=3),\"I\",IF(AND(A3=1,B3=2),\"J\",IF(AND(A3=1,B3=1),\"K\",IF(AND(A3=1,B3=0),\"L\",IF(AND(A3=0,B3=3),\"M\",IF(AND(A3=0,B3=2),\"N\",IF(AND(A3=0,B3=1),\"O\",IF(AND(A3=0,B3=0),\"P\"))))))))))))))))","v":"P"},null,3,2,"B",{"$f":"COUNTIF(C2:C152,\"B\")","v":0},null,"R2",3,2,1,0,"Total"]
[{"$f":"'Rater 1 Scoresheet'!C5","v":0},{"$f":"'Rater 2 Scoresheet'!C5","v":0},"P",null,3,1,"C",{"$f":"COUNTIF(C2:C152,\"C\")","v":0},null,3,{"$f":"H2","v":0},{"$f":"H6","v":0},{"$f":"H10","v":0},{"$f":"H14","v":0},{"$f":"SUM(K4:N4)","v":0}]
[{"$f":"'Rater 1 Scoresheet'!C6","v":0},{"$f":"'Rater 2 Scoresheet'!C6","v":0},"P",null,3,0,"D",{"$f":"COUNTIF(C2:C152,\"D\")","v":0},null,2,{"$f":"H3","v":0},{"$f":"H7","v":0},{"$f":"H11","v":0},{"$f":"H15","v":0},{"$f":"SUM(K5:N5)","v":0}]
[{"$f":"'Rater 1 Scoresheet'!C7","v":0},{"$f":"'Rater 2 Scoresheet'!C7","v":0},"P",null,2,3,"E",{"$f":"COUNTIF(C2:C152,\"E\")","v":0},null,1,{"$f":"H4","v":0},{"$f":"H8","v":0},{"$f":"H12","v":0},{"$f":"H16","v":0},0]
[{"$f":"'Rater 1 Scoresheet'!C8","v":0},{"$f":"'Rater 2 Scoresheet'!C8","v":0},"P",null,2,2,"F",{"$f":"COUNTIF(C2:C152,\"F\")","v":0},null,0,{"$f":"H5","v":0},{"$f":"H9","v":0},{"$f":"H13","v":0},{"$f":"H17","v":151},151]
[{"$f":"'Rater 1 Scoresheet'!C9","v":0},{"$f":"'Rater 2 Scoresheet'!C9","v":0},"P",null,2,1,"G",{"$f":"COUNTIF(C2:C152,\"G\")","v":0},null,"Total",{"$f":"SUM(K4:K7)","v":0},{"$f":"SUM(L4:L7)","v":0},0,151,151]
[{"$f":"'Rater 1 Scoresheet'!C10","v":0},{"$f":"'Rater 2 Scoresheet'!C10","v":0},"P",null,2,0,"H",{"$f":"COUNTIF(C2:C152,\"H\")","v":0}]
[{"$f":"'Rater 1 Scoresheet'!C11","v":0},{"$f":"'Rater 2 Scoresheet'!C11","v":0},"P",null,1,3,"I",{"$f":"COUNTIF(C2:C152,\"I\")","v":0},null,"Agreement",{"$f":"K4","v":0},{"$f":"L5","v":0},{"$f":"M6","v":0},{"$f":"N7","v":151},{"$f":"SUM(K10:N10)","v":151}]
[{"$f":"'Rater 1 Scoresheet'!C12","v":0},{"$f":"'Rater 2 Scoresheet'!C12","v":0},"P",null,1,2,"J",{"$f":"COUNTIF(C2:C152,\"J\")","v":0},null,"By Chance ",{"$f":"N17*O8","v":0},{"$f":"U17*O8","v":0},{"$f":"AB17*O8","v":0},{"$f":"AH17*O8","v":151},{"$f":"SUM(K11:N11)","v":151}]
[{"$f":"'Rater 1 Scoresheet'!C13","v":0},{"$f":"'Rater 2 Scoresheet'!C13","v":0},"P",null,1,1,"K",{"$f":"COUNTIF(C2:C152,\"K\")","v":0},null,"Cohen's Kappa",{"$f":"(O10-O11)/(O8-O11)","v":{"$error":"#DIV/0!"}}]
[{"$f":"'Rater 1 Scoresheet'!C14","v":0},{"$f":"'Rater 2 Scoresheet'!C14","v":0},"P",null,1,0,"L",{"$f":"COUNTIF(C2:C152,\"L\")","v":0}]
[{"$f":"'Rater 1 Scoresheet'!C15","v":0},{"$f":"'Rater 2 Scoresheet'!C15","v":0},"P",null,0,3,"M",{"$f":"COUNTIF(C2:C152,\"M\")","v":0}]
[{"$f":"'Rater 1 Scoresheet'!C16","v":0},{"$f":"'Rater 2 Scoresheet'!C16","v":0},"P",null,0,2,"N",{"$f":"COUNTIF(C2:C152,\"N\")","v":0},null,"3 represents how many of r1's ratings?",null,null,null,{"$f":"K8/O8","v":0},null,null,"2 reps how many of r1's ratings?",null,null,null,{"$f":"L8/O8","v":0},null,null,"1 reps how many of r1's ratings?",null,null,null,{"$f":"M8/O8","v":0},null,"0 reps how many of r1's ratings?",null,null,null,{"$f":"N7/O8","v":1}]
[{"$f":"'Rater 1 Scoresheet'!C17","v":0},{"$f":"'Rater 2 Scoresheet'!C17","v":0},"P",null,0,1,"O",{"$f":"COUNTIF(C2:C152,\"O\")","v":0},null,"3 represents how many of r2's ratings?",null,null,null,{"$f":"O4/O8","v":0},null,null,"2 reps how many of r2's ratings?",null,null,null,{"$f":"O5/O8","v":0},null,null,"1 reps how many of r2's ratings?",null,null,null,{"$f":"O6/O8","v":0},null,"0 reps how many of r2's ratings?",null,null,null,{"$f":"O7/O8","v":1}]
[{"$f":"'Rater 1 Scoresheet'!C18","v":0},{"$f":"'Rater 2 Scoresheet'!C18","v":0},"P",null,0,0,"P",{"$f":"COUNTIF(C2:C152,\"P\")","v":151},null,"Agreement about 3 that is due to chance",null,null,null,{"$f":"N15*N16","v":0},{"$f":"N17*O8","v":0},null,"Agreement about 2 that is due to chance",null,null,null,{"$f":"U15*U16","v":0},{"$f":"U17*O8","v":0},null,"Agreement about 1 that is due to chance",null,null,null,{"$f":"AB15*AB16","v":0},{"$f":"AB17*O8","v":0},"Agreement about 0 that is due to chance",null,null,null,{"$f":"AH15*AH16","v":1},{"$f":"AH17*O8","v":151}]
[{"$f":"'Rater 1 Scoresheet'!C19","v":0},{"$f":"'Rater 2 Scoresheet'!C19","v":0},"P",null,null,null,"Total",{"$f":"SUM(H2:H17)","v":151}]
[{"$f":"'Rater 1 Scoresheet'!C20","v":0},{"$f":"'Rater 2 Scoresheet'!C20","v":0},"P"]
[{"$f":"'Rater 1 Scoresheet'!C21","v":0},{"$f":"'Rater 2 Scoresheet'!C21","v":0},"P",null,"Total # of Agreements",null,null,{"$f":"SUM(H2,H7,H12,H17)","v":151},null,"# of agreements about 3",null,null,{"$f":"K4","v":0},null,"# of agreements about 2",null,null,null,{"$f":"L5","v":0},null,"# of agreements about 1",null,null,{"$f":"M6","v":0},null,"# of agreements about 0",null,null,{"$f":"N7","v":151}]
[{"$f":"'Rater 1 Scoresheet'!C22","v":0},{"$f":"'Rater 2 Scoresheet'!C22","v":0},"P",null,null,null,null,null,null,"# agreements about 3 due to chance",null,null,{"$f":"K$8*$O4/$O$8","v":0},null,"# agreements about 2 due to chance",null,null,null,{"$f":"L$8*$O5/$O$8","v":0},null,"# agreements about 1 due to chance",null,null,{"$f":"M$8*$O6/$O$8","v":0},null,"# agreements about 0 due to chance",null,null,{"$f":"N$7*$O7/$O$8","v":151}]
[{"$f":"'Rater 1 Scoresheet'!C23","v":0},{"$f":"'Rater 2 Scoresheet'!C23","v":0},"P"]
[{"$f":"'Rater 1 Scoresheet'!C24","v":0},{"$f":"'Rater 2 Scoresheet'!C24","v":0},"P"]
[{"$f":"'Rater 1 Scoresheet'!C25","v":0},{"$f":"'Rater 2 Scoresheet'!C25","v":0},"P"]
[{"$f":"'Rater 1 Scoresheet'!C26","v":0},{"$f":"'Rater 2 Scoresheet'!C26","v":0},"P"]
[{"$f":"'Rater 1 Scoresheet'!C27","v":0},{"$f":"'Rater 2 Scoresheet'!C27","v":0},"P"]
[{"$f":"'Rater 1 Scoresheet'!C28","v":0},{"$f":"'Rater 2 Scoresheet'!C28","v":0},"P"]
[{"$f":"'Rater 1 Scoresheet'!C29","v":0},{"$f":"'Rater 2 Scoresheet'!C29","v":0},"P"]
[{"$f":"'Rater 1 Scoresheet'!C30","v":0},{"$f":"'Rater 2 Scoresheet'!C30","v":0},"P"]
[{"$f":"'Rater 1 Scoresheet'!C31","v":0},{"$f":"'Rater 2 Scoresheet'!C31","v":0},"P"]
[{"$f":"'Rater 1 Scoresheet'!C32","v":0},{"$f":"'Rater 2 Scoresheet'!C32","v":0},"P"]
[{"$f":"'Rater 1 Scoresheet'!C34","v":0},{"$f":"'Rater 2 Scoresheet'!C34","v":0},"P"]
[{"$f":"'Rater 1 Scoresheet'!C35","v":0},{"$f":"'Rater 2 Scoresheet'!C35","v":0},"P"]
[{"$f":"'Rater 1 Scoresheet'!C36","v":0},{"$f":"'Rater 2 Scoresheet'!C36","v":0},"P"]
[{"$f":"'Rater 1 Scoresheet'!C37","v":0},{"$f":"'Rater 2 Scoresheet'!C37","v":0},"P"]
[{"$f":"'Rater 1 Scoresheet'!C38","v":0},{"$f":"'Rater 2 Scoresheet'!C38","v":0},"P"]
[{"$f":"'Rater 1 Scoresheet'!C39","v":0},{"$f":"'Rater 2 Scoresheet'!C39","v":0},"P"]
[{"$f":"'Rater 1 Scoresheet'!C40","v":0},{"$f":"'Rater 2 Scoresheet'!C40","v":0},"P"]
[{"$f":"'Rater 1 Scoresheet'!C41","v":0},{"$f":"'Rater 2 Scoresheet'!C41","v":0},"P"]
[{"$f":"'Rater 1 Scoresheet'!C42","v":0},{"$f":"'Rater 2 Scoresheet'!C42","v":0},"P"]
[{"$f":"'Rater 1 Scoresheet'!C43","v":0},{"$f":"'Rater 2 Scoresheet'!C43","v":0},"P"]
[{"$f":"'Rater 1 Scoresheet'!C44","v":0},{"$f":"'Rater 2 Scoresheet'!C44","v":0},"P"]
[{"$f":"'Rater 1 Scoresheet'!C45","v":0},{"$f":"'Rater 2 Scoresheet'!C45","v":0},"P"]
[{"$f":"'Rater 1 Scoresheet'!C46","v":0},{"$f":"'Rater 2 Scoresheet'!C46","v":0},"P"]
[{"$f":"'Rater 1 Scoresheet'!C47","v":0},{"$f":"'Rater 2 Scoresheet'!C47","v":0},"P"]
[{"$f":"'Rater 1 Scoresheet'!C48","v":0},{"$f":"'Rater 2 Scoresheet'!C48","v":0},"P"]
[{"$f":"'Rater 1 Scoresheet'!C49","v":0},{"$f":"'Rater 2 Scoresheet'!C49","v":0},"P"]
[{"$f":"'Rater 1 Scoresheet'!C50","v":0},{"$f":"'Rater 2 Scoresheet'!C50","v":0},"P"]
[{"$f":"'Rater 1 Scoresheet'!C51","v":0},{"$f":"'Rater 2 Scoresheet'!C51","v":0},"P"]
[{"$f":"'Rater 1 Scoresheet'!C52","v":0},{"$f":"'Rater 2 Scoresheet'!C52","v":0},"P"]
[{"$f":"'Rater 1 Scoresheet'!C53","v":0},{"$f":"'Rater 2 Scoresheet'!C53","v":0},"P"]
[{"$f":"'Rater 1 Scoresheet'!C54","v":0},{"$f":"'Rater 2 Scoresheet'!C54","v":0},"P"]
[{"$f":"'Rater 1 Scoresheet'!C55","v":0},{"$f":"'Rater 2 Scoresheet'!C55","v":0},"P"]
[{"$f":"'Rater 1 Scoresheet'!C56","v":0},{"$f":"'Rater 2 Scoresheet'!C56","v":0},"P"]
[{"$f":"'Rater 1 Scoresheet'!C57","v":0},{"$f":"'Rater 2 Scoresheet'!C57","v":0},"P"]
[{"$f":"'Rater 1 Scoresheet'!C58","v":0},{"$f":"'Rater 2 Scoresheet'!C58","v":0},"P"]
[{"$f":"'Rater 1 Scoresheet'!C59","v":0},{"$f":"'Rater 2 Scoresheet'!C59","v":0},"P"]
[{"$f":"'Rater 1 Scoresheet'!C60","v":0},{"$f":"'Rater 2 Scoresheet'!C60","v":0},"P"]
[{"$f":"'Rater 1 Scoresheet'!C61","v":0},{"$f":"'Rater 2 Scoresheet'!C61","v":0},"P"]
[{"$f":"'Rater 1 Scoresheet'!C62","v":0},{"$f":"'Rater 2 Scoresheet'!C62","v":0},"P"]
[{"$f":"'Rater 1 Scoresheet'!C63","v":0},{"$f":"'Rater 2 Scoresheet'!C63","v":0},"P"]
[{"$f":"'Rater 1 Scoresheet'!C64","v":0},{"$f":"'Rater 2 Scoresheet'!C64","v":0},"P"]
[{"$f":"'Rater 1 Scoresheet'!C65","v":0},{"$f":"'Rater 2 Scoresheet'!C65","v":0},"P"]
[{"$f":"'Rater 1 Scoresheet'!C66","v":0},{"$f":"'Rater 2 Scoresheet'!C66","v":0},"P"]
[{"$f":"'Rater 1 Scoresheet'!C67","v":0},{"$f":"'Rater 2 Scoresheet'!C67","v":0},"P"]
[{"$f":"'Rater 1 Scoresheet'!C68","v":0},{"$f":"'Rater 2 Scoresheet'!C68","v":0},"P"]
[{"$f":"'Rater 1 Scoresheet'!F7","v":0},{"$f":"'Rater 2 Scoresheet'!F7","v":0},"P",null,null,"f"]
[{"$f":"'Rater 1 Scoresheet'!F25","v":0},{"$f":"'Rater 2 Scoresheet'!F25","v":0},{"$f":"IF(AND(A68=3,B68=3),\"A\",IF(AND(A68=3,B68=2),\"B\",IF(AND(A68=3,B68=1),\"C\",IF(AND(A68=3,B68=0),\"D\",IF(AND(A68=2,B68=3),\"E\",IF(AND(A68=2,B68=2),\"F\",IF(AND(A68=2,B68=1),\"G\",IF(AND(A68=2,B68=0),\"H\",IF(AND(A68=1,B68=3),\"I\",IF(AND(A68=1,B68=2),\"J\",IF(AND(A68=1,B68=1),\"K\",IF(AND(A68=1,B68=0),\"L\",IF(AND(A68=0,B68=3),\"M\",IF(AND(A68=0,B68=2),\"N\",IF(AND(A68=0,B68=1),\"O\",IF(AND(A68=0,B68=0),\"P\"))))))))))))))))","v":"P"}]
[{"$f":"'Rater 1 Scoresheet'!F28","v":0},{"$f":"'Rater 2 Scoresheet'!F28","v":0},"P"]
[{"$f":"'Rater 1 Scoresheet'!F29","v":0},{"$f":"'Rater 2 Scoresheet'!F29","v":0},"P"]
[{"$f":"'Rater 1 Scoresheet'!F30","v":0},{"$f":"'Rater 2 Scoresheet'!F30","v":0},"P"]
[{"$f":"'Rater 1 Scoresheet'!F31","v":0},{"$f":"'Rater 2 Scoresheet'!F31","v":0},"P"]
[{"$f":"'Rater 1 Scoresheet'!F32","v":0},{"$f":"'Rater 2 Scoresheet'!F32","v":0},"P"]
[{"$f":"'Rater 1 Scoresheet'!F33","v":0},{"$f":"'Rater 2 Scoresheet'!F33","v":0},"P"]
[{"$f":"'Rater 1 Scoresheet'!F34","v":0},{"$f":"'Rater 2 Scoresheet'!F34","v":0},"P"]
[{"$f":"'Rater 1 Scoresheet'!F35","v":0},{"$f":"'Rater 2 Scoresheet'!F35","v":0},"P"]
[{"$f":"'Rater 1 Scoresheet'!F36","v":0},{"$f":"'Rater 2 Scoresheet'!F36","v":0},"P"]
[{"$f":"'Rater 1 Scoresheet'!F37","v":0},{"$f":"'Rater 2 Scoresheet'!F37","v":0},"P"]
[{"$f":"'Rater 1 Scoresheet'!F38","v":0},{"$f":"'Rater 2 Scoresheet'!F38","v":0},"P"]
[{"$f":"'Rater 1 Scoresheet'!F39","v":0},{"$f":"'Rater 2 Scoresheet'!F39","v":0},"P"]
[{"$f":"'Rater 1 Scoresheet'!F42","v":0},{"$f":"'Rater 2 Scoresheet'!F42","v":0},"P",null,null,42]
[{"$f":"'Rater 1 Scoresheet'!F44","v":0},{"$f":"'Rater 2 Scoresheet'!F44","v":0},"P",null,null,44]
[{"$f":"'Rater 1 Scoresheet'!F46","v":0},{"$f":"'Rater 2 Scoresheet'!F46","v":0},"P",null,null,46]
[{"$f":"'Rater 1 Scoresheet'!F52","v":0},{"$f":"'Rater 2 Scoresheet'!F52","v":0},"P",null,null,52]
[{"$f":"'Rater 1 Scoresheet'!I3","v":0},{"$f":"'Rater 2 Scoresheet'!I3","v":0},"P",null,null,"i",3]
[{"$f":"'Rater 1 Scoresheet'!I4","v":0},{"$f":"'Rater 2 Scoresheet'!I4","v":0},"P",null,null,null,4]
[{"$f":"'Rater 1 Scoresheet'!I5","v":0},{"$f":"'Rater 2 Scoresheet'!I5","v":0},"P",null,null,null,5]
[{"$f":"'Rater 1 Scoresheet'!I6","v":0},{"$f":"'Rater 2 Scoresheet'!I6","v":0},"P",null,null,null,6]
[{"$f":"'Rater 1 Scoresheet'!I7","v":0},{"$f":"'Rater 2 Scoresheet'!I7","v":0},"P",null,null,null,7]
[{"$f":"'Rater 1 Scoresheet'!I8","v":0},{"$f":"'Rater 2 Scoresheet'!I8","v":0},"P",null,null,null,8]
[{"$f":"'Rater 1 Scoresheet'!I9","v":0},{"$f":"'Rater 2 Scoresheet'!I9","v":0},"P",null,null,null,9]
[{"$f":"'Rater 1 Scoresheet'!I10","v":0},{"$f":"'Rater 2 Scoresheet'!I10","v":0},"P",null,null,null,10]
[{"$f":"'Rater 1 Scoresheet'!I11","v":0},{"$f":"'Rater 2 Scoresheet'!I11","v":0},"P",null,null,null,11]
[{"$f":"'Rater 1 Scoresheet'!I12","v":0},{"$f":"'Rater 2 Scoresheet'!I12","v":0},"P",null,null,null,12]
[{"$f":"'Rater 1 Scoresheet'!I16","v":0},{"$f":"'Rater 2 Scoresheet'!I16","v":0},"P",null,null,null,16]
[{"$f":"'Rater 1 Scoresheet'!I17","v":0},{"$f":"'Rater 2 Scoresheet'!I17","v":0},"P",null,null,null,17]
[{"$f":"'Rater 1 Scoresheet'!I18","v":0},{"$f":"'Rater 2 Scoresheet'!I18","v":0},"P",null,null,null,18]
[{"$f":"'Rater 1 Scoresheet'!I19","v":0},{"$f":"'Rater 2 Scoresheet'!I19","v":0},"P",null,null,null,19]
[{"$f":"'Rater 1 Scoresheet'!I20","v":0},{"$f":"'Rater 2 Scoresheet'!I20","v":0},"P",null,null,null,20]
[{"$f":"'Rater 1 Scoresheet'!I21","v":0},{"$f":"'Rater 2 Scoresheet'!I21","v":0},"P",null,null,null,21]
[{"$f":"'Rater 1 Scoresheet'!I22","v":0},{"$f":"'Rater 2 Scoresheet'!I22","v":0},"P",null,null,null,22]
[{"$f":"'Rater 1 Scoresheet'!I23","v":0},{"$f":"'Rater 2 Scoresheet'!I23","v":0},"P",null,null,null,23]
[{"$f":"'Rater 1 Scoresheet'!I24","v":0},{"$f":"'Rater 2 Scoresheet'!I24","v":0},"P",null,null,null,24]
[{"$f":"'Rater 1 Scoresheet'!I25","v":0},{"$f":"'Rater 2 Scoresheet'!I25","v":0},"P",null,null,null,25]
[{"$f":"'Rater 1 Scoresheet'!I26","v":0},{"$f":"'Rater 2 Scoresheet'!I26","v":0},"P",null,null,null,26]
[{"$f":"'Rater 1 Scoresheet'!I27","v":0},{"$f":"'Rater 2 Scoresheet'!I27","v":0},"P",null,null,null,27]
[{"$f":"'Rater 1 Scoresheet'!I33","v":0},{"$f":"'Rater 2 Scoresheet'!I33","v":0},"P",null,null,null,29]
[{"$f":"'Rater 1 Scoresheet'!I36","v":0},{"$f":"'Rater 2 Scoresheet'!I36","v":0},"P",null,null,null,33]
[{"$f":"'Rater 1 Scoresheet'!I37","v":0},{"$f":"'Rater 2 Scoresheet'!I37","v":0},"P",null,null,null,36]
[{"$f":"'Rater 1 Scoresheet'!I38","v":0},{"$f":"'Rater 2 Scoresheet'!I38","v":0},"P",null,null,null,37]
[{"$f":"'Rater 1 Scoresheet'!I39","v":0},{"$f":"'Rater 2 Scoresheet'!I39","v":0},"P",null,null,null,38]
[{"$f":"'Rater 1 Scoresheet'!I40","v":0},{"$f":"'Rater 2 Scoresheet'!I40","v":0},"P",null,null,null,39]
[{"$f":"'Rater 1 Scoresheet'!I43","v":0},{"$f":"'Rater 2 Scoresheet'!I43","v":0},"P",null,null,null,40]
[{"$f":"'Rater 1 Scoresheet'!I45","v":0},{"$f":"'Rater 2 Scoresheet'!I45","v":0},"P",null,null,null,43]
[{"$f":"'Rater 1 Scoresheet'!I46","v":0},{"$f":"'Rater 2 Scoresheet'!I46","v":0},"P",null,null,null,45]
[{"$f":"'Rater 1 Scoresheet'!I47","v":0},{"$f":"'Rater 2 Scoresheet'!I47","v":0},"P",null,null,null,46]
[{"$f":"'Rater 1 Scoresheet'!I48","v":0},{"$f":"'Rater 2 Scoresheet'!I48","v":0},"P",null,null,null,47]
[{"$f":"'Rater 1 Scoresheet'!I49","v":0},{"$f":"'Rater 2 Scoresheet'!I49","v":0},"P",null,null,null,48]
[{"$f":"'Rater 1 Scoresheet'!I50","v":0},{"$f":"'Rater 2 Scoresheet'!I50","v":0},"P",null,null,null,49]
[{"$f":"'Rater 1 Scoresheet'!I54","v":0},{"$f":"'Rater 2 Scoresheet'!I54","v":0},"P",null,null,null,50]
[{"$f":"'Rater 1 Scoresheet'!I57","v":0},{"$f":"'Rater 2 Scoresheet'!I57","v":0},"P",null,null,null,54]
[{"$f":"'Rater 1 Scoresheet'!I58","v":0},{"$f":"'Rater 2 Scoresheet'!I58","v":0},"P",null,null,null,57]
[{"$f":"'Rater 1 Scoresheet'!I63","v":0},{"$f":"'Rater 2 Scoresheet'!I63","v":0},"P",null,null,null,58]
[{"$f":"'Rater 1 Scoresheet'!I64","v":0},{"$f":"'Rater 2 Scoresheet'!I64","v":0},"P",null,null,null,63]
[{"$f":"'Rater 1 Scoresheet'!I65","v":0},{"$f":"'Rater 2 Scoresheet'!I65","v":0},"P",null,null,null,64]
[{"$f":"'Rater 1 Scoresheet'!I66","v":0},{"$f":"'Rater 2 Scoresheet'!I66","v":0},"P",null,null,null,65]
[{"$f":"'Rater 1 Scoresheet'!I67","v":0},{"$f":"'Rater 2 Scoresheet'!I67","v":0},"P",null,null,null,66]
[{"$f":"'Rater 1 Scoresheet'!I68","v":0},{"$f":"'Rater 2 Scoresheet'!I68","v":0},"P",null,null,null,67]
[{"$f":"'Rater 1 Scoresheet'!O2","v":0},{"$f":"'Rater 2 Scoresheet'!O2","v":0},"P",null,null,null,68]
[{"$f":"'Rater 1 Scoresheet'!O4","v":0},{"$f":"'Rater 2 Scoresheet'!O4","v":0},"P",null,null,"o",2]
[{"$f":"'Rater 1 Scoresheet'!O11","v":0},{"$f":"'Rater 2 Scoresheet'!O11","v":0},{"$f":"IF(AND(A131=3,B131=3),\"A\",IF(AND(A131=3,B131=2),\"B\",IF(AND(A131=3,B131=1),\"C\",IF(AND(A131=3,B131=0),\"D\",IF(AND(A131=2,B131=3),\"E\",IF(AND(A131=2,B131=2),\"F\",IF(AND(A131=2,B131=1),\"G\",IF(AND(A131=2,B131=0),\"H\",IF(AND(A131=1,B131=3),\"I\",IF(AND(A131=1,B131=2),\"J\",IF(AND(A131=1,B131=1),\"K\",IF(AND(A131=1,B131=0),\"L\",IF(AND(A131=0,B131=3),\"M\",IF(AND(A131=0,B131=2),\"N\",IF(AND(A131=0,B131=1),\"O\",IF(AND(A131=0,B131=0),\"P\"))))))))))))))))","v":"P"},null,null,null,4]
[{"$f":"'Rater 1 Scoresheet'!O13","v":0},{"$f":"'Rater 2 Scoresheet'!O13","v":0},"P",null,null,null,11]
[{"$f":"'Rater 1 Scoresheet'!O14","v":0},{"$f":"'Rater 2 Scoresheet'!O14","v":0},"P",null,null,null,13]
[{"$f":"'Rater 1 Scoresheet'!O15","v":0},{"$f":"'Rater 2 Scoresheet'!O15","v":0},"P",null,null,null,14]
[{"$f":"'Rater 1 Scoresheet'!O23","v":0},{"$f":"'Rater 2 Scoresheet'!O23","v":0},"P",null,null,null,15]
[{"$f":"'Rater 1 Scoresheet'!O27","v":0},{"$f":"'Rater 2 Scoresheet'!O27","v":0},"P",null,null,null,23]
[{"$f":"'Rater 1 Scoresheet'!O40","v":0},{"$f":"'Rater 2 Scoresheet'!O40","v":0},"P",null,null,null,27]
[{"$f":"'Rater 1 Scoresheet'!O41","v":0},{"$f":"'Rater 2 Scoresheet'!O41","v":0},"P",null,null,null,40]
[{"$f":"'Rater 1 Scoresheet'!O42","v":0},{"$f":"'Rater 2 Scoresheet'!O42","v":0},"P",null,null,null,41]
[{"$f":"'Rater 1 Scoresheet'!O45","v":0},{"$f":"'Rater 2 Scoresheet'!O45","v":0},"P",null,null,null,42]
[{"$f":"'Rater 1 Scoresheet'!O47","v":0},{"$f":"'Rater 2 Scoresheet'!O47","v":0},"P",null,null,null,45]
[{"$f":"'Rater 1 Scoresheet'!O48","v":0},{"$f":"'Rater 2 Scoresheet'!O48","v":0},"P",null,null,null,47]
[{"$f":"'Rater 1 Scoresheet'!O51","v":0},{"$f":"'Rater 2 Scoresheet'!O51","v":0},"P",null,null,null,48]
[{"$f":"'Rater 1 Scoresheet'!O52","v":0},{"$f":"'Rater 2 Scoresheet'!O52","v":0},"P",null,null,null,51]
[{"$f":"'Rater 1 Scoresheet'!O53","v":0},{"$f":"'Rater 2 Scoresheet'!O53","v":0},"P",null,null,null,52]
[{"$f":"'Rater 1 Scoresheet'!O55","v":0},{"$f":"'Rater 2 Scoresheet'!O55","v":0},"P",null,null,null,53]
[{"$f":"'Rater 1 Scoresheet'!O56","v":0},{"$f":"'Rater 2 Scoresheet'!O56","v":0},"P",null,null,null,55]
[{"$f":"'Rater 1 Scoresheet'!O59","v":0},{"$f":"'Rater 2 Scoresheet'!O59","v":0},"P",null,null,null,56]
[{"$f":"'Rater 1 Scoresheet'!O60","v":0},{"$f":"'Rater 2 Scoresheet'!O60","v":0},"P",null,null,null,59]
[{"$f":"'Rater 1 Scoresheet'!O61","v":0},{"$f":"'Rater 2 Scoresheet'!O61","v":0},"P",null,null,null,60]
[{"$f":"'Rater 1 Scoresheet'!O62","v":0},{"$f":"'Rater 2 Scoresheet'!O62","v":0},"P",null,null,null,61]
[{"$f":"'Rater 1 Scoresheet'!O62","v":0},{"$f":"'Rater 2 Scoresheet'!O62","v":0},"P",null,null,null,62]
[null,null,null,null,null,null,63]

{"sheet":"Sheet3","index":10,"n_rows":18,"n_cols":7,"rows_kept":18,"cut":false,"hidden":true,"merged":[]}
[]
[null,null,null,null,"R1","R2","Code"]
[null,null,null,null,3,3,"A"]
[null,null,null,null,3,2,"B"]
[null,null,null,null,3,1,"C"]
[null,null,null,null,3,0,"D"]
[null,null,null,null,2,3,"E"]
[null,null,null,null,2,2,"F"]
[null,null,null,null,2,1,"G"]
[null,null,null,null,2,0,"H"]
[null,null,null,null,1,3,"I"]
[null,null,null,null,1,2,"J"]
[null,null,null,null,1,1,"K"]
[null,null,null,null,1,0,"L"]
[null,null,null,null,0,3,"M"]
[null,null,null,null,0,2,"N"]
[null,null,null,null,0,1,"O"]
[null,null,null,null,0,0,"P"]